Workbook

Sheet Overview
B1: Renewable Energy Certificate (REC) Arbitrage Portfolio Planner v2.2 A tool that measures the financial impact of REC arbitrage to reach 100% renewable electricity goals.
B8: Overview:
B9: The REC Arbitrage Portfolio Planner tool was created to help public agencies and other portfolio owners assess the financial impact of meeting 100% renewable goals. This tool specfically analyzes REC Arbitrage as a means of meeting both renewable and financial goals. REC Arbitrage is a method that allows portfolio owners to buy low-cost RECs to meet renewable compliance goals and sell high-value RECs to finance solar photovoltaic (PV) installations. Purchasing RECs alone, while meeting renewable compiance objectives, will increase energy costs. While REC Arbitrage is a method that allows for meeting renewable compliance goals and reducing energy costs, while meeting other important goals, like developing new, local solar installations, job creation, and job training opportunitiers. The tool is designed to require minimal inputs to produce robust analysis and strategic guidance for developing long term renewable deployment plans. The tools also allows more technically advanced users to create more granular plans and site specific designs, allowing for long term plans with specific compliance and financial goals to be established over time.
B11: Portfolio Planner The Portfolio Planner worksheet allows users to analyze the costs associated with REC purchases for meeting long-term renewables compliance goals. This tool and the Portfolio Planner worksheet can analyze scenarios for a single year or across multiple years. The user will input aggregate electricity load for their portfolio and measure the financial impact of a scenario with different shares of desired REC types to be purchased. By entering data for the portfolio load, average electricity and net metering rates, and the projected costs of various REC types, the tool will calculate the aggregate cost of the scenario. Similarly, the user will enter shares for new solar generation, including behind the meter owned systems, onsite and offsite PPAs, as well as for community solar subscriptions and bundled supply options. The tool can then analyze the combined, projected financial impact for both renewable generation and REC purchases for your scenario. The primary metrics include the overall costs/revenues and compares this to current electricity costs for the portfolio. In most instances, combining REC purchases with onsite generation or PPAs will deliver a net energy cost reduction, where purchasing RECs alone will mean a cost increase. The steps for creating a complete scenario are: 1. Enter aggregate portfolio electricity load. 2. Enter average electricity and Net Metering rate information. 3. Determine the desired shares of various REC purchase types. 4. Determine the share of renewable generation projects. 5. Assess the financial impact of your scenario With these inputs, the tool will calculate the projected financial impact your deployment scenario has on annual electricity costs across the portfolio, as well as how well your scenario meets other, non-energy goals, like job creation or job training opportunities. | C11: Generation Inputs The Generations Inputs page allows users to determine the solar PV system designs for the various new generation scenarios. Three types of systems are designed providing five different scenarios. Onsite Generation: This system is based on the average system size the portfolio can accommodate. For example, where the rooftops for 10 sites are assessed and the average solar installation is 100 KW, enter 100 for the System Size field, as well as the city and state of the portfolio. Average installation costs and the full 25-year cashflow can be projected with these inputs and the rate and net metering inputs entered on the Portfolio Planning page. This tool is automated to pull data from the National Renewable Laboratory’s (NREL) PV Watts tool (an active internet connection is needed). Default values have been populated for all other system parameters. However, most of these defaults can be adjusted to design more site-specific designs or to include specific equipment. These inputs will generate projections for both 1) Onsite Behind-The-Meter and 2) Onsite PPA scenarios. This scenario is based on a PPA savings rate of 20% but can be adjusted to your market conditions. Offsite PPA: The Offsite PPA system by default is set to accommodate a single system that provides enough power to meet the share of Offsite PPA indicated on the Portfolio Planner page. For example, if an Offsite PPA share was entered that requires an aggregate sum of 100,000 kWh, the system defaults to a design whereby a single, utility-scale system will accommodate that load. Only the city and state need to be input for this system projection. Similarly, however, most default parameters can be adjusted to deliver site-specific system designs. These inputs will generate projections for 3) the Offsite PPA scenario. This scenario is based on a PPA savings rate of 30% but can be adjusted to your market conditions. Community Solar: The Community Solar system defaults at a single, 1 Megawatt project with an Anchor Share of 40%. For the Anchor and Host option, a default lease rate of $800 per acre is used. The only required input is city and state. However, most input can be adjusted based on your market or a specific site. These inputs will generate projections for both 4) Community Solar Anchor, and 5) Community Solar Host and Anchor scenarios. This scenario is based on a subscription savings rate of 20% but can be adjusted to your market conditions.
B41: Creating a Multi-Year Plan The Snapshot Button allows you to assign all of the details in a scenario created on the Portfolio Planner page to a single year of a Multi-Year Plan (up to 20 years). To use this feature, select the year number or Target in the Multi-Year Planning Report section at the bottum of the Portfolio Planner page and click the Snaphot button. The data will be transferred to the Multi-Year Plan page in the appropriate column. The Target can be set as the long-term goal for the portfolio, which will appear in the first column, highlighted in green. For example set a target scenario of 100% REC offset and a combination of onsite and PPA types that equal 10% of your portfolio load. Scenarios can be created on the Portfolio Planner page for each subsequent year leading to your target goal. This can be any number of years up to 20. For each annual scenario, consider the following: * Increase energy rates annually to reflect the market. * Consider delaying procurements of onsite generation, new generation RECs, or dedicated offsite PPAs to reflect development timelines. * Change the annual electricity load to reflect changes to the portfolio or energy efficiency. The data can be cleared on the Multi-Year Plan page with the Clear Data button at the bottom of the page.
B55: Version History
B56: v2.1 Released on Feb 18, 2021
B57: v2.2 Released on Mar 15, 2021
B58: Updated ITC basis in cash flows to include developer fees
B59: Fixed snapshot button for Multi-Year Plan sheet

Sheet Portfolio Planner
B2: Annual Portfolio Planner Dashboard | BA2: Environmental Compliance | BB2: Reduces Onsite Electricity Consumption | BC2: Reduce energy costs | BD2: Creates New Generation | BE2: Within State | BF2: Reduce onsite demand charges | BG2: Stablize energy costs | BH2: Creates new, local jobs | BI2: Provides training opportunities | BJ2: Environmental Compliance | BK2: Reduces Onsite Electricity Consumption | BL2: Reduce energy costs | BM2: Creates New Generation | BN2: Within State | BO2: Reduce onsite demand charges | BP2: Stablize energy costs | BQ2: Creates new, local jobs | BR2: Provides training opportunities | BS2: Environmental Compliance
BA4: Onsite Generation | BW4: Benefits Rubric
C5: Energy Usage and Rates | I5: Onsite Generation and PPA Planning | BA5: 3 - Offsite PPA | BB5: No | BC5: Yes | BD5: Yes | BE5: Yes | BF5: No | BG5: Yes | BH5: Yes | BI5: Yes | BJ5: No | BK5: =SUMIF(BB5,"Yes",L14) -> 0 | BL5: =SUMIF(BC5,"Yes",$L14) -> 10000000 | BM5: 10000000 | BN5: 10000000 | BO5: 0 | BP5: 10000000 | BQ5: 10000000 | BR5: 10000000 | BS5: 0 | BV5: Reduces Onsite Electricity Consumption | BW5: =BK25 -> 0.06
BA6: 1 - Onsite Behind-the-Meter DG | BB6: Yes | BC6: Yes | BD6: Yes | BE6: Yes | BF6: Yes | BG6: Yes | BH6: Yes | BI6: Yes | BJ6: No | BK6: =SUMIF(BB6,"Yes",L12) -> 4000000 | BL6: =SUMIF(BC6,"Yes",$L12) -> 4000000 | BM6: 4000000 | BN6: 4000000 | BO6: 4000000 | BP6: 4000000 | BQ6: 4000000 | BR6: 4000000 | BS6: 0 | BV6: Reduce energy costs | BW6: =BL25 -> 0.14
C7: Annual Portfolio Energy Usage | D7: 200000000 | E7: kWhs | I7: Onsite Deployment Targets | BA7: 2 - Onsite Behind-the-Meter PPA | BB7: Yes | BC7: Yes | BD7: Yes | BE7: Yes | BF7: Yes | BG7: Yes | BH7: Yes | BI7: Yes | BJ7: No | BK7: =SUMIF(BB7,"Yes",L13) -> 8000000 | BL7: 8000000 | BM7: 8000000 | BN7: 8000000 | BO7: 8000000 | BP7: 8000000 | BQ7: 8000000 | BR7: 8000000 | BS7: 0 | BV7: Creates New Generation | BW7: =BM25 -> 0.49
I8: Percent of portfolio load offset by each type of onsite generation | BA8: 4 - Community Solar Anchor Subscription | BB8: No | BC8: Yes | BD8: Yes | BE8: Yes | BF8: No | BG8: Yes | BH8: No | BI8: No | BJ8: No | BK8: =SUMIF(BB8,"Yes",L15) -> 0 | BL8: =SUMIF(BC8,"Yes",$L15) -> 4000000 | BM8: 4000000 | BN8: 4000000 | BO8: 0 | BP8: 4000000 | BQ8: 0 | BR8: 0 | BS8: 0 | BV8: Creates Generation Within State | BW8: =BN25 -> 0.14
C9: Average Portfolio Electricity Rates | BA9: 5 - Community Solar Host & Anchor Subscription | BB9: No | BC9: Yes | BD9: Yes | BE9: Yes | BF9: No | BG9: Yes | BH9: No | BI9: No | BJ9: No | BK9: =SUMIF(BB9,"Yes",L16) -> 0 | BL9: 2000000 | BM9: 2000000 | BN9: 2000000 | BO9: 0 | BP9: 2000000 | BQ9: 0 | BR9: 0 | BS9: 0 | BV9: Reduce onsite demand charges | BW9: =BO25 -> 0.06
C10: • Average Baseline Retail Electricity Rate | D10: 0.085 | M10: LCOE Offset | BV10: Stablize energy costs | BW10: =BP25 -> 0.14
C11: • Average Baseline Supply Rate | D11: 0.055 | J11: % | K11: Installed kW | L11: kWh | M11: (savings) | N11: Cost/Revenue | BV11: Creates new, local jobs | BW11: =BQ25 -> 0.11
C12: • Average Wholesale Supply Rate | D12: 0.035 | I12: 1 - Onsite Behind-the-Meter DG | J12: 0.02 | K12: =L12/'1'!$D$99 -> 3427.101284 | L12: =J12*$D$7 -> 4000000 | M12: ='1'!F15 -> 0.1238165258 | N12: =L12*M12 -> 495266.1031 | BV12: Provides training opportunities | BW12: =BR25 -> 0.11
I13: 2 - Onsite Behind-the-Meter PPA | J13: 0.04 | K13: =L13/'1'!$D$99 -> 6854.202569 | L13: =J13*$D$7 -> 8000000 | M13: ='2'!J14 -> 0.06219343411 | N13: 497547.4729 | BV13: Environmental Compliance | BW13: =BS25 -> 1
C14: Average Portfolio Demand Charges | I14: 3 - Offsite PPA | J14: 0.05 | K14: =L14/'1'!$D$99 -> 8567.753211 | L14: =J14*$D$7 -> 10000000 | M14: ='3'!F14 -> 0.01605852119 | N14: =IF('3'!F14>0,L14*M14,0) -> 160585.2119 | BA14: REC Purchases
C15: • Average Peak Demand Price Range | D15: Med ($7.00 to $15.00 per kW) | E15: per kW | I15: 4 - Community Solar Anchor Subscription | J15: 0.02 | K15: =L15/'1'!$D$99 -> 3427.101284 | L15: =J15*$D$7 -> 4000000 | M15: ='4'!F14 -> 0.01070568079 | N15: 42822.72316 | BA15: National RECs
C16: • Average Demand Charges Incurred | D16: Medium percentage of total costs | E16: portion of bill | I16: 5 - Community Solar Host & Anchor Subscription | J16: 0.01 | K16: =L16/'1'!$D$99 -> 1713.550642 | L16: =J16*$D$7 -> 2000000 | M16: ='5'!F14 -> 0.0139908492 | N16: 27981.6984 | BA16: • Solar Existing Generation | BB16: No | BC16: No | BD16: No | BE16: No | BF16: No | BG16: No | BH16: No | BI16: No | BJ16: Yes | BK16: =SUMIF(BB16,"Yes",K27) -> 0 | BL16: =SUMIF(BC16,"Yes",$K27) -> 0 | BM16: 0 | BN16: 0 | BO16: 0 | BP16: 0 | BQ16: 0 | BR16: 0 | BS16: 50000000
BA17: • Solar New Generation | BB17: No | BC17: No | BD17: Yes | BE17: No | BF17: No | BG17: No | BH17: No | BI17: No | BJ17: Yes | BK17: =SUMIF(BB17,"Yes",K28) -> 0 | BL17: 0 | BM17: 40000000 | BN17: 0 | BO17: 0 | BP17: 0 | BQ17: 0 | BR17: 0 | BS17: 40000000
C18: Average Portfolio Net Metering Rates | I18: Share of load not covered by Onsite or PPA | J18: =1-(J12+J13+J14+J15+J16) -> 0.86 | BA18: • Wind Existing Generation | BB18: No | BC18: No | BD18: No | BE18: No | BF18: No | BG18: No | BH18: No | BI18: No | BJ18: Yes | BK18: =SUMIF(BB18,"Yes",K29) -> 0 | BL18: 0 | BM18: 0 | BN18: 0 | BO18: 0 | BP18: 0 | BQ18: 0 | BR18: 0 | BS18: 60000000
C19: • Behind-The-Meter Offset Rates (Retail) | D19: =D10 -> 0.085 | E19: per kWh | BA19: • Wind New Generation | BB19: No | BC19: No | BD19: Yes | BE19: No | BF19: No | BG19: No | BH19: No | BI19: No | BJ19: Yes | BK19: =SUMIF(BB19,"Yes",K30) -> 0 | BL19: 0 | BM19: 30000000 | BN19: 0 | BO19: 0 | BP19: 0 | BQ19: 0 | BR19: 0 | BS19: 30000000
C20: • Net Metered Rate (direct to grid) | D20: =D10 -> 0.085 | E20: per kWh | I20: TOTAL COST/REVENUE FOR RENEWABLE GENERATION | J20: =SUM(J12:J16) -> 0.14 | K20: =SUM(K12:K17) -> 23989.70899 | L20: =SUM(L12:L16) -> 28000000 | N20: =SUM(N12:N16) -> 1224203.209
BA21: Bundled RECs | BB21: No | BC21: No | BD21: No | BE21: No | BF21: No | BG21: No | BH21: No | BI21: No | BJ21: Yes | BK21: =SUMIF(BB21,"Yes",$K$33) -> 0 | BL21: 0 | BM21: 0 | BN21: 0 | BO21: 0 | BP21: 0 | BQ21: 0 | BR21: 0 | BS21: 20000000
C24: REC Value Assumptions | I24: REC Purchase Planning | BK24: =SUM(BK5:BK22) -> 12000000 | BL24: =SUM(BL5:BL22) -> 28000000 | BM24: =SUM(BM5:BM22) -> 98000000 | BN24: 28000000 | BO24: 12000000 | BP24: 28000000 | BQ24: 22000000 | BR24: 22000000 | BS24: 200000000
L25: LCOE (REC only) | M25: Cost (REC only) | BK25: =BK24/$D$7 -> 0.06 | BL25: 0.14 | BM25: 0.49 | BN25: 0.14 | BO25: 0.06 | BP25: 0.14 | BQ25: 0.11 | BR25: =BR24/$D$7 -> 0.11 | BS25: 1
C26: Voluntary Market REC Values | I26: RECs purchased from Voluntary Markets | J26: % | K26: kWh
C27: • Solar Existing Generation | D27: 4 | E27: per REC | I27: • Solar Existing Generation | J27: 0.25 | K27: =J27*$D$7 -> 50000000 | L27: =-D27/1000 -> -0.004 | M27: =L27*K27 -> -200000
C28: • Solar New Generation | D28: 6 | E28: per REC | I28: • Solar New Generation | J28: 0.2 | K28: =J28*$D$7 -> 40000000 | L28: =-D28/1000 -> -0.006 | M28: =L28*K28 -> -240000
C29: • Wind Existing Generation | D29: 2 | E29: per REC | I29: • Wind Existing Generation | J29: 0.3 | K29: =J29*$D$7 -> 60000000 | L29: =-D29/1000 -> -0.002 | M29: =L29*K29 -> -120000
C30: • Wind New Generation | D30: 4 | E30: per REC | I30: • Wind New Generation | J30: 0.15 | K30: =J30*$D$7 -> 30000000 | L30: =-D30/1000 -> -0.004 | M30: =L30*K30 -> -120000
J31: =SUM(J27:J30) -> 0.9 | K31: =SUM(K27:K30) -> 180000000 | M31: =SUM(M27:M30) -> -680000
C32: Compliance Market REC Values | I32: Bundled Supply
C33: • Small System Average Value (up to 100 kW) | D33: 40 | E33: per REC | I33: • Bundled Supply | J33: 0.1 | K33: =J33*$D$7 -> 20000000 | L33: =-(D37-D11) -> -0.009 | M33: =L33*K33 -> -180000 | R33: `
C34: • Large System Average Value (up to 2 MW) | D34: 25 | E34: per REC | J34: =SUM(J33:J33) -> 0.1 | K34: =SUM(K33:K33) -> 20000000 | M34: =SUM(M33:M33) -> -180000
C36: Bundled Supply Rate
C37: • Average Bundled Supply Rate | D37: 0.064 | E37: per kWh | I37: TOTAL COST FOR REC PURCHASES | J37: =J31+J34 -> 1 | K37: =K31+K34 -> 200000000 | M37: =M31+M34 -> -860000
C41: Annual Renewables Portfolio Costs/Savings | I41: Benefits Rubric: Frequency of Meeting Priority
C45: Annual Baseline Supply Costs | E45: =-D7*D11 -> -11000000
C47: Annual Renewables Cost | E47: =N20+M37 -> 364203.2094
C49: Aggregate LCOE Offset (RECs, Onsite & Supply) | E49: =(E45+E47)/D7 -> -0.05317898395
C52: Change in Annual Baseline Supply Cost | E52: =(-D11-E49)/-D11 -> 0.03310938267
E53: =IF(E52>0,"Cost Reduction","Cost Increase") -> Cost Reduction
C56: Multi-Year Planning Report
C57: The Multi-Year Planning Report allows you to use the scenario created above as a snapshot for a single year of a multi-year plan (up to 20 years). To use this feature, select the year below in which this scenario will be represented. To establish this scenario as the "Target Year," simply select Target in the drop-down list below. Once your selection is made, click the Snapshot button and the annual report will be created. Repeat the planning process for additional years in your multi-year plan. Go to the Multi-Year Plan page to review or print your plan.
C64: Select Plan Year
C65: Target
D72: =D10*1.02 -> 0.0867
D73: =D11*1.02 -> 0.0561
D74: =D12*1.02 -> 0.0357
C114: Average Peak Demand Price Range
C115: (Please Select)
C116: Low (less than $7.00 per kW)
C117: Med ($7.00 to $15.00 per kW)
C118: High (more than $15.00 per kW)
C120: Average Demand Charges
C121: (Please Select)
C122: Low percentage of total costs
C123: Medium percentage of total costs
C124: High percentage of total costs

Sheet Generation Inputs
B2: System Inputs | D2: Onsite Generation | F2: Offsite PPA | H2: Community Solar
B6: ONSITE SYSTEM INPUTS
B7: Average System Size | C7: kW | D7: 200 | F7: ='Portfolio Planner'!K12 -> 3427.101284 | H7: 1000
B8: Installation Type: | C8: Roof, Ground or Canopy | D8: Roof | F8: Ground | H8: Roof
B9: Number of Panels | C9: # | D9: =(D7*1000)/D16 -> 526.3157895 | F9: =(F7*1000)/F16 -> 8567.753211 | H9: =(H7*1000)/D16 -> 2631.578947
B10: City | C10: Enter City or Town | D10: Chicago | F10: Dekalb | H10: Chicago
B11: State | C11: State | D11: IL | F11: IL | H11: IL
B12: Cost per installed watt | C12: $ per installed watt | D12: =INDEX(C95:E100,MATCH(B92,B95:B100,0),MATCH(D8,$C$94:$E$94,0)) -> 2.44 | F12: 1.1 | H12: 1.9
B13: Estimated annual electricity usage | C13: kWh | D13: 300000 | F13: ='Portfolio Planner'!D5 -> 0 | H13: ='Portfolio Planner'!D5 -> 0
B15: SYSTEM INPUTS
B16: Panel efficiency | C16: Watts | D16: 380 | F16: 400 | H16: 380
B17: Capacity Factor: | C17: % | D17: 0.1332382578 | F17: 0.1667648247 | H17: 0.1486029939
B18: System Losses (%): | C18: % | D18: 14.1 | F18: 14.1 | H18: 14.1
B19: Inverter Efficiency (%): | C19: % | D19: 96 | F19: 98 | H19: 96
B20: Annual Derate (%): | C20: % | D20: 0.005 | F20: 0.005 | H20: 0.005
B21: Azimuth | C21: Degrees | D21: 180 | F21: 180 | H21: 180
B22: Tilt | C22: Degrees | D22: 10 | F22: 10 | H22: 10
B23: Array Type | D23: Fixed - Roof Mounted | E23: =IF(D23="Fixed - Open Rack",0,IF(D23="Fixed - Roof Mounted",1,IF(D23="1-Axis",2,IF(D23="1-Axis Backtracking",3,IF(D23="2-axis",4))))) -> 1 | F23: 1-Axis | G23: =IF(F23="Fixed - Open Rack",0,IF(F23="Fixed - Roof Mounted",1,IF(F23="1-Axis",2,IF(F23="1-Axis Backtracking",3,IF(F23="2-axis",4))))) -> 2 | H23: Fixed - Roof Mounted | I23: =IF(H23="Fixed - Open Rack",0,IF(H23="Fixed - Roof Mounted",1,IF(H23="1-Axis",2,IF(H23="1-Axis Backtracking",3,IF(H23="2-axis",4))))) -> 1
B24: Module Type | D24: Standard | E24: =IF(D24="Standard",0,IF(D24="Premium",1,IF(D24="Thin film",2,0))) -> 0 | F24: Premium | G24: =IF(F24="Standard",0,IF(F24="Premium",1,IF(F24="Thin film",2,0))) -> 1 | H24: Standard | I24: =IF(H24="Standard",0,IF(H24="Premium",1,IF(H24="Thin film",2,0))) -> 0
B25: DC/AC Ratio | D25: 1.2 | F25: 1.3 | H25: 1.2
B26: Ground Cover Ratio | D26: 0.4 | F26: 0.4 | H26: 0.4
B28: Generation Rates | D28: Onsite Generation | F28: Offsite PPA | H28: Community Solar
B30: MONTHLY GENERATION | D30: First-Year Production | F30: First-Year Production | H30: First-Year Production
B31: January | C31: kWh per kW | D31: 58.96162109 | F31: 74.82230261 | H31: 70.93617187
B32: February | C32: kWh per kW | D32: 76.06 | F32: 96.06209561 | H32: 84.858375
B33: March | C33: kWh per kW | D33: 114.9559766 | F33: 142.6310979 | H33: 106.7920234
B34: April | C34: kWh per kW | D34: 135.5548828 | F34: 168.5880835 | H34: 132.5494063
B35: May | C35: kWh per kW | D35: 133.5846582 | F35: 167.9452844 | H35: 144.228125
B36: June | C36: kWh per kW | D36: 137.159834 | F36: 172.8122802 | H36: 150.551625
B37: July | C37: kWh per kW | D37: 133.815166 | F37: 165.3403862 | H37: 151.9770937
B38: August | C38: kWh per kW | D38: 121.8549512 | F38: 154.7849826 | H38: 134.3608125
B39: September | C39: kWh per kW | D39: 93.95856445 | F39: 118.8828667 | H39: 110.2954297
B40: October | C40: kWh per kW | D40: 70.41900879 | F40: 88.25341007 | H40: 96.90822656
B41: November | C41: kWh per kW | D41: 45.0525 | F41: 53.35908373 | H41: 62.6368125
B42: December | C42: kWh per kW | D42: 45.78997559 | F42: 57.37799125 | H42: 55.668125
B43: Annual | D43: =SUM(D31:D42) -> 1167.167139 | F43: =SUM(F31:F42) -> 1460.859865 | H43: =SUM(H31:H42) -> 1301.762227
B45: Rate & Net Metering Inputs | D45: Onsite Generation | F45: Offsite PPA | H45: Community Solar
B47: RATE INPUTS
B48: Average Portfolio Retail Electricity Rate | C48: $ per kWh | D48: ='Portfolio Planner'!D10 -> 0.085 | F48: ='Portfolio Planner'!$D$10 -> 0.085 | H48: ='Portfolio Planner'!$D$10 -> 0.085
B49: Net Metering/Bill Credit Rate | C49: $ per kWh | D49: 0.088 | F49: 0.055 | H49: 0.055
B50: Average Portfolio Supply Rate | C50: $ per kWh | D50: ='Portfolio Planner'!D11 -> 0.055 | F50: ='Portfolio Planner'!$D$11 -> 0.055 | H50: ='Portfolio Planner'!$D$11 -> 0.055 | L50: `
B51: Percent Energy Generated to Offset Load | C51: % | D51: 0.75 | F51: 1 | H51: 1
B52: Percent Energy Generated Sent to Grid | C52: % | D52: 0.25 | F52: 0 | H52: 0
B53: Anticipated PPA Savings Percent | C53: % reduction of current rate | D53: 0.2 | F53: 0.3 | H53: 0.2
B55: Onsite Generation Financial Inputs
B57: ONSITE GENERATION FINANCING INPUTS | F57: Tax Incentives
B58: Construction Loan | F58: Federal Investment Tax Credit | G58: % | H58: 0.26
B59: Loan amount | C59: % | D59: 0 | F59: MACRs | G59: Yes/No | H59: Yes
B60: Interest Rate | C60: % | D60: 0 | F60: Low Income Housing Tax Credit | G60: Yes/No | H60: No
B61: Loan Term | C61: Years | D61: 0 | F61: LIHTC Rate | G61: Percent | H61: 0
B62: Operating Loan | F62: Eligible LIHTC Basis | G62: Percent | H62: 0
B63: Loan amount | C63: % | D63: 0 | F63: Eligible LIHTC Basis | G63: $$ | H63: =(-'1'!E32*'Generation Inputs'!H62) -> 0
B64: Interest Rate | C64: % | D64: 0 | F64: New Markets Tax Credit | G64: Yes/No | H64: No
B65: Loan Term | C65: Years | D65: 0
B67: FINANCIAL ASSUMPTIONS
B68: Annual Energy & Demand Cost Increase: | C68: % | D68: 0.0278
B69: Developer NPV Discount Rate: | C69: % | D69: 0.01
B70: Customer NPV Discount Rate: | C70: % | D70: 0.03
B71: Annual Derate (%): | C71: % | D71: 0.005
B73: ONSITE Renewable Energy Certificates | F73: OFFSITE Renewable Energy Certificates
B74: REC Value | C74: $$ per REC | D74: 35 | F74: REC Value | G74: $/REC | H74: 6
B75: Term of REC Contract | C75: Years | D75: 15 | F75: Term of REC Contract | G75: Years | H75: 25
B76: Term of REC Payout | C76: Years | D76: 1 | F76: Term of REC Payout | G76: Years | H76: 25
B77: Total RECs Generated Over Contract Term | C77: # | D77: =SUMIF('1'!F101:AD101, "<="&$D$75,'1'!F117:AD117)/1000 -> 3364.656953 | F77: RECs Generated Over Term | G77: # | H77: =SUMIF('3'!F51:AD51, "<="&$D$75,'3'!F67:AD67)/1000 -> 181313.5119
B78: Total REC Value | C78: $$ Over Full Term | D78: =D77*D74 -> 117762.9933 | F78: Total REC Value over Term | G78: $$ | H78: =H74*H77 -> 1087881.071
B80: Installation Costs
B82: Installed Cost per Watt by system size
B83: From: | C83: To: | D83: Size Category
B84: 0 | C84: 10 | D84: 1
B85: 11 | C85: 25 | D85: 2
B86: 26 | C86: 100 | D86: 3
B87: 101 | C87: 200 | D87: 4
B88: 201 | C88: 500 | D88: 5
B89: 501 | C89: 2000 | D89: 6
B91: Size Category
B92: =IF(D7>500,6,IF(D7>200,5,IF(D7>100,4,IF(D7>25,3,IF(D7>10,2,1))))) -> 4
B94: Installation Costs | C94: Roof | D94: Ground | E94: Canopy
B95: 1 | C95: 2.83 | D95: 2.6 | E95: 3.25
B96: 2 | C96: 2.75 | D96: 2.45 | E96: 3.1
B97: 3 | C97: 2.59 | D97: 2 | E97: 3
B98: 4 | C98: 2.44 | D98: 1.9 | E98: 2.8
B99: 5 | C99: 2.29 | D99: 1.85 | E99: 2.75
B100: 6 | C100: 2.14 | D100: 1.8 | E100: 2.65

Sheet Multi-Year Plan
A2: Annual Renewable Plan Summary | C2: Created For:
A3: A schedule of Renewable Energy Certificate purchase, onsite generation, and renewables supply planning. | C3: Created By:
C4: Date Created:
A6: Plan Year: | B6: Target | C6: 1 | D6: 2 | E6: 3 | F6: 4 | G6: 5 | H6: 6 | I6: 7 | J6: 8 | K6: 9 | L6: 10 | M6: 11 | N6: 12 | O6: 13 | P6: 14 | Q6: 15 | R6: 16 | S6: 17 | T6: 18 | U6: 19 | V6: 20 | W6: Current Values
A7: Electricity Load | W7: ='Portfolio Planner'!D7 -> 200000000
A8: Purchased RECs
A9: Solar Existing Generation
A10: # RECs purchased | W10: ='Portfolio Planner'!K27/1000 -> 50000
A11: kWh as share of annual load | W11: ='Portfolio Planner'!J27 -> 0.25
A12: Cost per REC | W12: ='Portfolio Planner'!D27 -> 4
A13: Total annual costs for this type | W13: ='Portfolio Planner'!M27 -> -200000
A14: Solar New Generation
A15: # RECs purchased | W15: ='Portfolio Planner'!K28/1000 -> 40000
A16: kWh as share of annual load | W16: ='Portfolio Planner'!J28 -> 0.2
A17: Cost per REC | W17: ='Portfolio Planner'!D28 -> 6
A18: Total annual costs for this type | W18: ='Portfolio Planner'!M28 -> -240000
A19: Wind Existing Generation
A20: # RECs purchased | W20: ='Portfolio Planner'!K29/1000 -> 60000
A21: kWh as share of annual load | W21: ='Portfolio Planner'!J29 -> 0.3
A22: Cost per REC | W22: ='Portfolio Planner'!D29 -> 2
A23: Total annual costs for this type | W23: ='Portfolio Planner'!M29 -> -120000
A24: Wind New Generation
A25: # RECs purchased | W25: ='Portfolio Planner'!K30/1000 -> 30000
A26: kWh as share of annual load | W26: ='Portfolio Planner'!J30 -> 0.15
A27: Cost per REC | W27: ='Portfolio Planner'!D30 -> 4
A28: Total annual costs for this type | W28: ='Portfolio Planner'!M30 -> -120000
A29: Bundled Supply
A30: # RECs purchased | W30: ='Portfolio Planner'!K33/1000 -> 20000
A31: kWh as share of annual load | W31: ='Portfolio Planner'!J33 -> 0.1
A32: Cost per kWh | W32: ='Portfolio Planner'!D37 -> 0.064
A33: Total annual costs for this type | W33: ='Portfolio Planner'!M33 -> -180000
A35: Share of Renewables Deployment Types
A36: Onsite Behind-the-Meter DG
A37: KW installed | W37: ='Portfolio Planner'!K12 -> 3427.101284
A38: kWh as share of annual load | W38: ='Portfolio Planner'!J12 -> 0.02
A39: Cost per KW installed | W39: ='Generation Inputs'!D12 -> 2.44
A40: Total annual revenue | W40: ='Portfolio Planner'!N12 -> 495266.1031
A41: Onsite Behind-the-Meter PPA
A42: KW installed | W42: ='Portfolio Planner'!K13 -> 6854.202569
A43: kWh as share of annual load | W43: ='Portfolio Planner'!J13 -> 0.04
A44: Cost per KW installed | W44: ='Generation Inputs'!D12 -> 2.44
A45: Total annual revenue | W45: ='Portfolio Planner'!N13 -> 497547.4729
A46: Offsite PPA
A47: KW installed | W47: ='Portfolio Planner'!K14 -> 8567.753211
A48: kWh as share of annual load | W48: ='Portfolio Planner'!J14 -> 0.05
A49: Cost per KW installed | W49: ='Generation Inputs'!F12 -> 1.1
A50: Total annual revenue | W50: ='Portfolio Planner'!N14 -> 160585.2119
A51: Community Solar Anchor Subscription
A52: KW installed | W52: ='Portfolio Planner'!K15 -> 3427.101284
A53: kWh as share of annual load | W53: ='Portfolio Planner'!J15 -> 0.02
A54: Cost per KW installed | W54: ='Generation Inputs'!H12 -> 1.9
A55: Total annual revenue | W55: ='Portfolio Planner'!N15 -> 42822.72316
A56: Community Solar Host & Anchor Subscription
A57: KW installed | W57: ='Portfolio Planner'!K16 -> 1713.550642
A58: kWh as share of annual load | W58: ='Portfolio Planner'!J16 -> 0.01
A59: Cost per KW installed | W59: ='Generation Inputs'!H12 -> 1.9
A60: Total annual revenue | W60: ='Portfolio Planner'!N16 -> 27981.6984
A62: Financial Metrics
A63: Annual Baseline Supply Costs | W63: ='Portfolio Planner'!E45 -> -11000000
A64: Annual Renewables Cost | W64: ='Portfolio Planner'!E47 -> 364203.2094
A65: Aggregate LCOE Offset (RECs, Onsite & Supply) | W65: ='Portfolio Planner'!E49 -> -0.05317898395
A66: Annual electricty cost | W66: ='Portfolio Planner'!D10 -> 0.085
A67: Change in Annual Baseline Supply Cost | W67: ='Portfolio Planner'!E52 -> 0.03310938267
A69: Frequency of Meeting Objectives
A70: Reduces Onsite Electricity Consumption | W70: ='Portfolio Planner'!BW5 -> 0.06
A71: Reduce energy costs | W71: ='Portfolio Planner'!BW6 -> 0.14
A72: Creates New Generation | W72: ='Portfolio Planner'!BW7 -> 0.49
A73: Creates Generation Within State | W73: ='Portfolio Planner'!BW8 -> 0.14
A74: Reduce onsite demand charges | W74: ='Portfolio Planner'!BW9 -> 0.06
A75: Stablize energy costs | W75: ='Portfolio Planner'!BW10 -> 0.14
A76: Creates new, local jobs | W76: ='Portfolio Planner'!BW11 -> 0.11
A77: Provides training opportunities | W77: ='Portfolio Planner'!BW12 -> 0.11
A78: Environmental Compliance | W78: ='Portfolio Planner'!BW13 -> 1

Sheet 1
B1: 1 - Onsite Behind-the-Meter DG
B2: • New rooftop solar photovoltaic (PV) system installed behind the customer's meter • Solar array purchased by property owner • Customer participates in Net Metering with local utility • Customer sells higher value RECs to finance installation | I2: Customer receives all incentives, RECs, and tax benefits if applicable. Energy savings through offseting load with PCV and Net Metering with utility.
B5: Summary Financial Metrics
B7: Key Performace Indicator
B8: 25-Year Costs: | C8: $ | D8: =AF32+AF36+AF38+AF46 -> -606273.4363 | F8: 25-yr Power | H8: Average Installation Size
B9: 25-Year Revenues: | C9: $ | D9: =AF35+AF37+AF55+AF63+AF70 -> 1204776.711 | F9: Generation (kWh) | H9: ='Generation Inputs'!D7 -> 200 | I9: KW
B10: 25-Year Net Benefits: | C10: $ | D10: =D8+D9 -> 598503.2747 | F10: =SUM(F136:AD136) -> 4114264.164
B11: 25-Year Net Present Value (NPV): | C11: $ | D11: =E73+NPV('Generation Inputs'!D69,F73:AD73) -> 509413.8949
B12: Return on Investment (ROI): | C12: % | D12: =D9/(-D8) -> 1.987183734
B13: Internal Rate of Return (IRR) | C13: $ | D13: =IRR(E78:AD78) -> 0.1690215224 | F13: 25-Year
B14: Upfront Costs | C14: $ | D14: =E32 -> -500642.7916 | F14: Incremental LCOE
B15: Average Annual Revenue | C15: $ | D15: =D10/25 -> 23940.13099 | F15: =D11/F10 -> 0.1238165258
B16: Payback Period: | C16: years | D16: =E75 -> 3.24668792 | F16: (25-year NPV/ 25-year Production)
B19: Business Case
B21: Year | E21: 0 | F21: 1 | G21: 2 | H21: 3 | I21: 4 | J21: 5 | K21: 6 | L21: 7 | M21: 8 | N21: 9 | O21: 10 | P21: 11 | Q21: 12 | R21: 13 | S21: 14 | T21: 15 | U21: 16 | V21: 17 | W21: 18 | X21: 19 | Y21: 20 | Z21: 21 | AA21: 22 | AB21: 23 | AC21: 24 | AD21: 25
B23: INSTALLATION COSTS
B24: Generation Equipment | C24: $ | D24: 0.4758194185 | E24: =-(('Generation Inputs'!$D$7*'Generation Inputs'!$D$12)*1000)*$D24 -> -232199.8762 | AF24: =SUM(E24:AE24) -> -232199.8762
B25: Balance of Plant | C25: $ | D25: 0.2362044723 | E25: =-(('Generation Inputs'!$D$7*'Generation Inputs'!$D$12)*1000)*$D25 -> -115267.7825 | AF25: -115267.7825
B26: Interconnection | C26: $ | D26: 0.06010307624 | E26: =-(('Generation Inputs'!$D$7*'Generation Inputs'!$D$12)*1000)*$D26 -> -29330.30121 | AF26: -29330.30121
B27: Development Costs & Fee | C27: $ | D27: 0.227873033 | E27: =-(('Generation Inputs'!$D$7*'Generation Inputs'!$D$12)*1000)*$D27 -> -111202.0401 | AF27: -111202.0401
B28: Site Preparation cost | C28: $/Installed watt | D28: 0.06 | E28: =-('Generation Inputs'!D7*1000)*D28 -> -12000 | AF28: -12000
B29: Site Purchase Cost | C29: $ | D29: 0 | E29: =D29 -> 0 | AF29: 0
B30: Removal Cost | C30: $ | D30: 0 | E30: =D30 -> 0 | AF30: 0
B31: Site lease cost (based on per acre $=>) | C31: $/Acre/Yr | D31: 800 | E31: =-(('Generation Inputs'!D7*175)/43560)*D31 -> -642.7915519 | AF31: -642.7915519
B32: Total Installation Costs | E32: =SUM(E24:E31) -> -500642.7916 | AF32: -500642.7916
B34: CAPITAL COSTS
B35: Construction loan | C35: $ | E35: =-E32*'Generation Inputs'!D59 -> 0 | AF35: =SUM(E35:AE35) -> 0
B36: Construction loan payments | C36: $ | F36: =IF(F21=0,0,IF(F21<='Generation Inputs'!$D$61,-PMT('Generation Inputs'!$D$60/12,'Generation Inputs'!$D$61*12,'Generation Inputs'!$D$59*($E$32))*12,0)) -> 0 | G36: =IF(G21=0,0,IF(G21<='Generation Inputs'!$D$61,-PMT('Generation Inputs'!$D$60/12,'Generation Inputs'!$D$61*12,'Generation Inputs'!$D$59*($E$32))*12,0)) -> 0 | H36: =IF(H21=0,0,IF(H21<='Generation Inputs'!$D$61,-PMT('Generation Inputs'!$D$60/12,'Generation Inputs'!$D$61*12,'Generation Inputs'!$D$59*($E$32))*12,0)) -> 0 | I36: =IF(I21=0,0,IF(I21<='Generation Inputs'!$D$61,-PMT('Generation Inputs'!$D$60/12,'Generation Inputs'!$D$61*12,'Generation Inputs'!$D$59*($E$32))*12,0)) -> 0 | J36: =IF(J21=0,0,IF(J21<='Generation Inputs'!$D$61,-PMT('Generation Inputs'!$D$60/12,'Generation Inputs'!$D$61*12,'Generation Inputs'!$D$59*($E$32))*12,0)) -> 0 | K36: =IF(K21=0,0,IF(K21<='Generation Inputs'!$D$61,-PMT('Generation Inputs'!$D$60/12,'Generation Inputs'!$D$61*12,'Generation Inputs'!$D$59*($E$32))*12,0)) -> 0 | L36: =IF(L21=0,0,IF(L21<='Generation Inputs'!$D$61,-PMT('Generation Inputs'!$D$60/12,'Generation Inputs'!$D$61*12,'Generation Inputs'!$D$59*($E$32))*12,0)) -> 0 | M36: =IF(M21=0,0,IF(M21<='Generation Inputs'!$D$61,-PMT('Generation Inputs'!$D$60/12,'Generation Inputs'!$D$61*12,'Generation Inputs'!$D$59*($E$32))*12,0)) -> 0 | N36: =IF(N21=0,0,IF(N21<='Generation Inputs'!$D$61,-PMT('Generation Inputs'!$D$60/12,'Generation Inputs'!$D$61*12,'Generation Inputs'!$D$59*($E$32))*12,0)) -> 0 | O36: =IF(O21=0,0,IF(O21<='Generation Inputs'!$D$61,-PMT('Generation Inputs'!$D$60/12,'Generation Inputs'!$D$61*12,'Generation Inputs'!$D$59*($E$32))*12,0)) -> 0 | P36: =IF(P21=0,0,IF(P21<='Generation Inputs'!$D$61,-PMT('Generation Inputs'!$D$60/12,'Generation Inputs'!$D$61*12,'Generation Inputs'!$D$59*($E$32))*12,0)) -> 0 | Q36: =IF(Q21=0,0,IF(Q21<='Generation Inputs'!$D$61,-PMT('Generation Inputs'!$D$60/12,'Generation Inputs'!$D$61*12,'Generation Inputs'!$D$59*($E$32))*12,0)) -> 0 | R36: =IF(R21=0,0,IF(R21<='Generation Inputs'!$D$61,-PMT('Generation Inputs'!$D$60/12,'Generation Inputs'!$D$61*12,'Generation Inputs'!$D$59*($E$32))*12,0)) -> 0 | S36: =IF(S21=0,0,IF(S21<='Generation Inputs'!$D$61,-PMT('Generation Inputs'!$D$60/12,'Generation Inputs'!$D$61*12,'Generation Inputs'!$D$59*($E$32))*12,0)) -> 0 | T36: =IF(T21=0,0,IF(T21<='Generation Inputs'!$D$61,-PMT('Generation Inputs'!$D$60/12,'Generation Inputs'!$D$61*12,'Generation Inputs'!$D$59*($E$32))*12,0)) -> 0 | U36: =IF(U21=0,0,IF(U21<='Generation Inputs'!$D$61,-PMT('Generation Inputs'!$D$60/12,'Generation Inputs'!$D$61*12,'Generation Inputs'!$D$59*($E$32))*12,0)) -> 0 | V36: =IF(V21=0,0,IF(V21<='Generation Inputs'!$D$61,-PMT('Generation Inputs'!$D$60/12,'Generation Inputs'!$D$61*12,'Generation Inputs'!$D$59*($E$32))*12,0)) -> 0 | W36: =IF(W21=0,0,IF(W21<='Generation Inputs'!$D$61,-PMT('Generation Inputs'!$D$60/12,'Generation Inputs'!$D$61*12,'Generation Inputs'!$D$59*($E$32))*12,0)) -> 0 | X36: =IF(X21=0,0,IF(X21<='Generation Inputs'!$D$61,-PMT('Generation Inputs'!$D$60/12,'Generation Inputs'!$D$61*12,'Generation Inputs'!$D$59*($E$32))*12,0)) -> 0 | Y36: =IF(Y21=0,0,IF(Y21<='Generation Inputs'!$D$61,-PMT('Generation Inputs'!$D$60/12,'Generation Inputs'!$D$61*12,'Generation Inputs'!$D$59*($E$32))*12,0)) -> 0 | Z36: =IF(Z21=0,0,IF(Z21<='Generation Inputs'!$D$61,-PMT('Generation Inputs'!$D$60/12,'Generation Inputs'!$D$61*12,'Generation Inputs'!$D$59*($E$32))*12,0)) -> 0 | AA36: =IF(AA21=0,0,IF(AA21<='Generation Inputs'!$D$61,-PMT('Generation Inputs'!$D$60/12,'Generation Inputs'!$D$61*12,'Generation Inputs'!$D$59*($E$32))*12,0)) -> 0 | AB36: =IF(AB21=0,0,IF(AB21<='Generation Inputs'!$D$61,-PMT('Generation Inputs'!$D$60/12,'Generation Inputs'!$D$61*12,'Generation Inputs'!$D$59*($E$32))*12,0)) -> 0 | AC36: =IF(AC21=0,0,IF(AC21<='Generation Inputs'!$D$61,-PMT('Generation Inputs'!$D$60/12,'Generation Inputs'!$D$61*12,'Generation Inputs'!$D$59*($E$32))*12,0)) -> 0 | AD36: =IF(AD21=0,0,IF(AD21<='Generation Inputs'!$D$61,-PMT('Generation Inputs'!$D$60/12,'Generation Inputs'!$D$61*12,'Generation Inputs'!$D$59*($E$32))*12,0)) -> 0 | AF36: =SUM(E36:AE36) -> 0
B37: Operating loan | C37: $ | F37: =-E32*'Generation Inputs'!D63 -> 0 | AF37: =SUM(E37:AE37) -> 0
B38: Operating loan payments | C38: $ | F38: =IF(F21=0,0,IF(F21<='Generation Inputs'!$D$65,-PMT('Generation Inputs'!$D$64/12,'Generation Inputs'!$D$65*12,'Generation Inputs'!$D$63*($E$32))*12,0)) -> 0 | G38: =IF(G21=0,0,IF(G21<='Generation Inputs'!$D$65,-PMT('Generation Inputs'!$D$64/12,'Generation Inputs'!$D$65*12,'Generation Inputs'!$D$63*($E$32))*12,0)) -> 0 | H38: =IF(H21=0,0,IF(H21<='Generation Inputs'!$D$65,-PMT('Generation Inputs'!$D$64/12,'Generation Inputs'!$D$65*12,'Generation Inputs'!$D$63*($E$32))*12,0)) -> 0 | I38: =IF(I21=0,0,IF(I21<='Generation Inputs'!$D$65,-PMT('Generation Inputs'!$D$64/12,'Generation Inputs'!$D$65*12,'Generation Inputs'!$D$63*($E$32))*12,0)) -> 0 | J38: =IF(J21=0,0,IF(J21<='Generation Inputs'!$D$65,-PMT('Generation Inputs'!$D$64/12,'Generation Inputs'!$D$65*12,'Generation Inputs'!$D$63*($E$32))*12,0)) -> 0 | K38: =IF(K21=0,0,IF(K21<='Generation Inputs'!$D$65,-PMT('Generation Inputs'!$D$64/12,'Generation Inputs'!$D$65*12,'Generation Inputs'!$D$63*($E$32))*12,0)) -> 0 | L38: =IF(L21=0,0,IF(L21<='Generation Inputs'!$D$65,-PMT('Generation Inputs'!$D$64/12,'Generation Inputs'!$D$65*12,'Generation Inputs'!$D$63*($E$32))*12,0)) -> 0 | M38: =IF(M21=0,0,IF(M21<='Generation Inputs'!$D$65,-PMT('Generation Inputs'!$D$64/12,'Generation Inputs'!$D$65*12,'Generation Inputs'!$D$63*($E$32))*12,0)) -> 0 | N38: =IF(N21=0,0,IF(N21<='Generation Inputs'!$D$65,-PMT('Generation Inputs'!$D$64/12,'Generation Inputs'!$D$65*12,'Generation Inputs'!$D$63*($E$32))*12,0)) -> 0 | O38: =IF(O21=0,0,IF(O21<='Generation Inputs'!$D$65,-PMT('Generation Inputs'!$D$64/12,'Generation Inputs'!$D$65*12,'Generation Inputs'!$D$63*($E$32))*12,0)) -> 0 | P38: =IF(P21=0,0,IF(P21<='Generation Inputs'!$D$65,-PMT('Generation Inputs'!$D$64/12,'Generation Inputs'!$D$65*12,'Generation Inputs'!$D$63*($E$32))*12,0)) -> 0 | Q38: =IF(Q21=0,0,IF(Q21<='Generation Inputs'!$D$65,-PMT('Generation Inputs'!$D$64/12,'Generation Inputs'!$D$65*12,'Generation Inputs'!$D$63*($E$32))*12,0)) -> 0 | R38: =IF(R21=0,0,IF(R21<='Generation Inputs'!$D$65,-PMT('Generation Inputs'!$D$64/12,'Generation Inputs'!$D$65*12,'Generation Inputs'!$D$63*($E$32))*12,0)) -> 0 | S38: =IF(S21=0,0,IF(S21<='Generation Inputs'!$D$65,-PMT('Generation Inputs'!$D$64/12,'Generation Inputs'!$D$65*12,'Generation Inputs'!$D$63*($E$32))*12,0)) -> 0 | T38: =IF(T21=0,0,IF(T21<='Generation Inputs'!$D$65,-PMT('Generation Inputs'!$D$64/12,'Generation Inputs'!$D$65*12,'Generation Inputs'!$D$63*($E$32))*12,0)) -> 0 | U38: =IF(U21=0,0,IF(U21<='Generation Inputs'!$D$65,-PMT('Generation Inputs'!$D$64/12,'Generation Inputs'!$D$65*12,'Generation Inputs'!$D$63*($E$32))*12,0)) -> 0 | V38: =IF(V21=0,0,IF(V21<='Generation Inputs'!$D$65,-PMT('Generation Inputs'!$D$64/12,'Generation Inputs'!$D$65*12,'Generation Inputs'!$D$63*($E$32))*12,0)) -> 0 | W38: =IF(W21=0,0,IF(W21<='Generation Inputs'!$D$65,-PMT('Generation Inputs'!$D$64/12,'Generation Inputs'!$D$65*12,'Generation Inputs'!$D$63*($E$32))*12,0)) -> 0 | X38: =IF(X21=0,0,IF(X21<='Generation Inputs'!$D$65,-PMT('Generation Inputs'!$D$64/12,'Generation Inputs'!$D$65*12,'Generation Inputs'!$D$63*($E$32))*12,0)) -> 0 | Y38: =IF(Y21=0,0,IF(Y21<='Generation Inputs'!$D$65,-PMT('Generation Inputs'!$D$64/12,'Generation Inputs'!$D$65*12,'Generation Inputs'!$D$63*($E$32))*12,0)) -> 0 | Z38: =IF(Z21=0,0,IF(Z21<='Generation Inputs'!$D$65,-PMT('Generation Inputs'!$D$64/12,'Generation Inputs'!$D$65*12,'Generation Inputs'!$D$63*($E$32))*12,0)) -> 0 | AA38: =IF(AA21=0,0,IF(AA21<='Generation Inputs'!$D$65,-PMT('Generation Inputs'!$D$64/12,'Generation Inputs'!$D$65*12,'Generation Inputs'!$D$63*($E$32))*12,0)) -> 0 | AB38: =IF(AB21=0,0,IF(AB21<='Generation Inputs'!$D$65,-PMT('Generation Inputs'!$D$64/12,'Generation Inputs'!$D$65*12,'Generation Inputs'!$D$63*($E$32))*12,0)) -> 0 | AC38: =IF(AC21=0,0,IF(AC21<='Generation Inputs'!$D$65,-PMT('Generation Inputs'!$D$64/12,'Generation Inputs'!$D$65*12,'Generation Inputs'!$D$63*($E$32))*12,0)) -> 0 | AD38: =IF(AD21=0,0,IF(AD21<='Generation Inputs'!$D$65,-PMT('Generation Inputs'!$D$64/12,'Generation Inputs'!$D$65*12,'Generation Inputs'!$D$63*($E$32))*12,0)) -> 0 | AF38: =SUM(E38:AE38) -> 0
B39: Total Cost of Capital | E39: =SUM(E35:E38) -> 0 | F39: 0 | G39: 0 | H39: 0 | I39: 0 | J39: 0 | K39: 0 | L39: 0 | M39: 0 | N39: 0 | O39: 0 | P39: 0 | Q39: 0 | R39: 0 | S39: 0 | T39: 0 | U39: 0 | V39: 0 | W39: 0 | X39: 0 | Y39: 0 | Z39: 0 | AA39: 0 | AB39: 0 | AC39: 0 | AD39: 0 | AF39: =SUM(E39:AE39) -> 0
B41: OPERATING EXPENSES | D41: $/kW/Yr
B42: Fixed O&M Expense | C42: $ | D42: 10.4 | F42: =-D42*'Generation Inputs'!D7 -> -2080 | G42: =F42*1.02 -> -2121.6 | H42: -2164.032 | I42: -2207.31264 | J42: -2251.458893 | K42: -2296.488071 | L42: -2342.417832 | M42: -2389.266189 | N42: -2437.051512 | O42: -2485.792543 | P42: -2535.508394 | Q42: -2586.218561 | R42: -2637.942933 | S42: -2690.701791 | T42: -2744.515827 | U42: -2799.406144 | V42: -2855.394267 | W42: -2912.502152 | X42: -2970.752195 | Y42: -3030.167239 | Z42: 0 | AA42: 0 | AB42: 0 | AC42: 0 | AD42: =AC42*1.02 -> 0 | AF42: =SUM(E42:AE42) -> -50538.52918
B43: Insurance | C43: $ | D43: 3.4 | F43: =-D43*'Generation Inputs'!D7 -> -680 | G43: -693.6 | H43: -707.472 | I43: -721.62144 | J43: -736.0538688 | K43: -750.7749462 | L43: -765.7904451 | M43: -781.106254 | N43: -796.7283791 | O43: -812.6629467 | P43: -828.9162056 | Q43: -845.4945297 | R43: -862.4044203 | S43: -879.6525087 | T43: -897.2455589 | U43: -915.1904701 | V43: -933.4942795 | W43: -952.1641651 | X43: -971.2074484 | Y43: -990.6315973 | Z43: =Y43*1.02 -> -1010.444229 | AA43: -1030.653114 | AB43: -1051.266176 | AC43: -1072.2915 | AD43: =AC43*1.02 -> -1093.73733 | AF43: =SUM(E43:AE43) -> -21780.60381
B44: Project Administration | C44: $ | D44: 5.2 | F44: =-D44*'Generation Inputs'!D7 -> -1040 | G44: -1060.8 | H44: -1082.016 | I44: -1103.65632 | J44: -1125.729446 | K44: -1148.244035 | L44: -1171.208916 | M44: -1194.633094 | N44: -1218.525756 | O44: -1242.896271 | P44: -1267.754197 | Q44: -1293.109281 | R44: -1318.971466 | S44: -1345.350896 | T44: -1372.257914 | U44: -1399.703072 | V44: -1427.697133 | W44: -1456.251076 | X44: -1485.376097 | Y44: -1515.083619 | Z44: -1545.385292 | AA44: -1576.292998 | AB44: -1607.818858 | AC44: -1639.975235 | AD44: =AC44*1.02 -> -1672.774739 | AF44: =SUM(E44:AE44) -> -33311.51171
B45: REC Collateral Payment (5%) | D45: 0 | F45: =-(F60+G60+H60+I60+J60)*D45 -> 0
B46: Total Operating Expense | F46: =SUM(F42:F44) -> -3800 | G46: -3876 | H46: -3953.52 | I46: -4032.5904 | J46: -4113.242208 | K46: -4195.507052 | L46: -4279.417193 | M46: -4365.005537 | N46: -4452.305648 | O46: -4541.351761 | P46: -4632.178796 | Q46: -4724.822372 | R46: -4819.318819 | S46: -4915.705196 | T46: -5014.0193 | U46: -5114.299686 | V46: -5216.585679 | W46: -5320.917393 | X46: -5427.335741 | Y46: -5535.882456 | Z46: -2555.829521 | AA46: -2606.946112 | AB46: -2659.085034 | AC46: -2712.266734 | AD46: -2766.512069 | AF46: =SUM(AF42:AF44) -> -105630.6447
B48: OPERATING RESERVES
B49: Annual reserve contribution | C49: $ | F49: =-F42 -> 2080 | G49: 2121.6 | H49: 2164.032 | I49: 2207.31264 | J49: 2251.458893 | K49: 2296.488071 | L49: 2342.417832 | M49: 2389.266189 | N49: 2437.051512 | O49: 2485.792543 | P49: 2535.508394 | Q49: 2586.218561 | R49: 2637.942933 | S49: 2690.701791 | T49: 2744.515827 | U49: 2799.406144 | V49: 2855.394267 | W49: 2912.502152 | X49: 2970.752195 | Y49: 3030.167239 | Z49: 0 | AA49: 0 | AB49: 0 | AC49: 0 | AD49: =AC49*1.02 -> 0
B50: Cumulative reserves | C50: $ | F50: =F49+F51 -> 2080 | G50: =F50+F52+G49+G51 -> 4243.2 | H50: 6492.096 | I50: 8785.96992 | J50: 11125.72132 | K50: 13512.26774 | L50: 15946.5451 | M50: 18429.508 | N50: 20962.13016 | O50: 2583.274603 | P50: 5218.214699 | Q50: 7905.853596 | R50: 10647.24527 | S50: 13443.46478 | T50: 16295.60868 | U50: 19204.79546 | V50: 22172.16597 | W50: 25198.88389 | X50: 28286.13617 | Y50: 3148.997327 | Z50: 3270.204016 | AA50: 3393.83484 | AB50: 3519.938279 | AC50: 3648.563788 | AD50: 3779.761807
B51: Inverter replacement | C51: $ | F51: 0 | G51: =F51*1.02 -> 0 | H51: 0 | I51: 0 | J51: 0 | K51: 0 | L51: 0 | M51: 0 | N51: 0 | O51: =-N50 -> -20962.13016 | P51: 0 | Q51: =P51*1.02 -> 0 | R51: 0 | S51: 0 | T51: 0 | U51: 0 | V51: 0 | W51: 0 | X51: 0 | Y51: =-X50 -> -28286.13617 | Z51: 0 | AA51: 0 | AB51: 0 | AC51: 0 | AD51: 0
B52: Reserve interest | C52: $ | F52: =F50*0.02 -> 41.6 | G52: =G50*0.02 -> 84.864 | H52: 86.56128 | I52: 88.2925056 | J52: 90.05835571 | K52: 91.85952283 | L52: 93.69671328 | M52: 95.57064755 | N52: 97.4820605 | O52: 99.43170171 | P52: 101.4203357 | Q52: 103.4487425 | R52: 105.5177173 | S52: 107.6280717 | T52: 109.7806331 | U52: 111.9762457 | V52: 114.2157707 | W52: 116.5000861 | X52: 118.8300878 | Y52: 121.2066896 | Z52: 123.6308233 | AA52: 126.1034398 | AB52: 128.6255086 | AC52: 131.1980188 | AD52: 133.8219792
B53: IL REC Collateral Reserves | C53: $ | F53: =-F45 -> 0 | G53: =F53+F54 -> 0 | H53: =G53+G54 -> 0 | I53: 0 | J53: 0 | K53: 0 | L53: 0 | M53: 0 | N53: 0 | O53: 0 | P53: 0 | Q53: 0 | R53: 0 | S53: 0 | T53: 0
B54: IL REC Collateral Interest | C54: % | D54: 0.02 | F54: =F53*$D$54 -> 0 | G54: =G53*$D$54 -> 0 | H54: =H53*$D$54 -> 0 | I54: 0 | J54: 0 | K54: 0 | L54: 0 | M54: 0 | N54: 0 | O54: 0 | P54: 0 | Q54: 0 | R54: 0 | S54: 0 | T54: 0
B55: Reserve interest revenue | F55: =F52 -> 41.6 | G55: 84.864 | H55: 86.56128 | I55: 88.2925056 | J55: 90.05835571 | K55: 91.85952283 | L55: 93.69671328 | M55: 95.57064755 | N55: 97.4820605 | O55: 99.43170171 | P55: 101.4203357 | Q55: 103.4487425 | R55: 105.5177173 | S55: 107.6280717 | T55: =S52+S53+S54 -> 107.6280717 | U55: 111.9762457 | V55: 114.2157707 | W55: 116.5000861 | X55: 118.8300878 | Y55: 121.2066896 | Z55: 123.6308233 | AA55: 126.1034398 | AB55: 128.6255086 | AC55: 131.1980188 | AD55: =SUM(AD50:AD52) -> 3913.583786 | AF55: =SUM(E55:AE55) -> 6400.930182
B57: INCENTIVES PAYMENTS
B58: Federal ITC | C58: ='Generation Inputs'!H58 -> 0.26 | D58: Year 1 | F58: =-(E24+E25+E26+E27+E28)*C58 -> 130000 | AF58: =SUM(E58:AE58) -> 130000
B59: Federal MACRS Cash Equivalent | C59: =IF('Generation Inputs'!H59="Yes",35%,0) -> 0.35 | F59: =IF(F21=1,((-$E$32-($F$58/2))*0.2*$C$59)*2)+IF(F21=2,(-$E$32-($F$58/2))*0.32*$C$59)+IF(F21=3,(-$E$32-($F$58/2))*0.192*$C$59)+IF(F21=4,(-$E$32-($F$58/2))*0.1152*$C$59)+IF(F21=5,(-$E$32-($F$58/2))*0.1152*$C$59)+IF(F21=6,(-$E$32-($F$58/2))*0.0576*$C$59,0) -> 60989.99082 | G59: 48791.99265 | H59: 29275.19559 | I59: 17565.11736 | J59: 17565.11736 | K59: 8782.558678 | AF59: =SUM(E59:AE59) -> 182969.9725
B60: SRECs | C60: $ | D60: Up to 15 years | F60: =IF(F21<='Generation Inputs'!$D$76,'1'!$C$222/'Generation Inputs'!$D$76,0) -> 117762.9933 | G60: =IF(G21<='Generation Inputs'!$D$76,'1'!$C$222/'Generation Inputs'!$D$76,0) -> 0 | H60: =IF(H21<='Generation Inputs'!$D$76,'1'!$C$222/'Generation Inputs'!$D$76,0) -> 0 | I60: =IF(I21<='Generation Inputs'!$D$76,'1'!$C$222/'Generation Inputs'!$D$76,0) -> 0 | J60: =IF(J21<='Generation Inputs'!$D$76,'1'!$C$222/'Generation Inputs'!$D$76,0) -> 0 | K60: =IF(K21<='Generation Inputs'!$D$76,'1'!$C$222/'Generation Inputs'!$D$76,0) -> 0 | L60: =IF(L21<='Generation Inputs'!$D$76,'1'!$C$222/'Generation Inputs'!$D$76,0) -> 0 | M60: =IF(M21<='Generation Inputs'!$D$76,'1'!$C$222/'Generation Inputs'!$D$76,0) -> 0 | N60: =IF(N21<='Generation Inputs'!$D$76,'1'!$C$222/'Generation Inputs'!$D$76,0) -> 0 | O60: =IF(O21<='Generation Inputs'!$D$76,'1'!$C$222/'Generation Inputs'!$D$76,0) -> 0 | P60: =IF(P21<='Generation Inputs'!$D$76,'1'!$C$222/'Generation Inputs'!$D$76,0) -> 0 | Q60: =IF(Q21<='Generation Inputs'!$D$76,'1'!$C$222/'Generation Inputs'!$D$76,0) -> 0 | R60: =IF(R21<='Generation Inputs'!$D$76,'1'!$C$222/'Generation Inputs'!$D$76,0) -> 0 | S60: =IF(S21<='Generation Inputs'!$D$76,'1'!$C$222/'Generation Inputs'!$D$76,0) -> 0 | T60: =IF(T21<='Generation Inputs'!$D$76,'1'!$C$222/'Generation Inputs'!$D$76,0) -> 0 | U60: =IF(U21<='Generation Inputs'!$D$76,'1'!$C$222/'Generation Inputs'!$D$76,0) -> 0 | V60: =IF(V21<='Generation Inputs'!$D$76,'1'!$C$222/'Generation Inputs'!$D$76,0) -> 0 | W60: =IF(W21<='Generation Inputs'!$D$76,'1'!$C$222/'Generation Inputs'!$D$76,0) -> 0 | X60: =IF(X21<='Generation Inputs'!$D$76,'1'!$C$222/'Generation Inputs'!$D$76,0) -> 0 | Y60: =IF(Y21<='Generation Inputs'!$D$76,'1'!$C$222/'Generation Inputs'!$D$76,0) -> 0 | Z60: =IF(Z21<='Generation Inputs'!$D$76,'1'!$C$222/'Generation Inputs'!$D$76,0) -> 0 | AA60: =IF(AA21<='Generation Inputs'!$D$76,'1'!$C$222/'Generation Inputs'!$D$76,0) -> 0 | AB60: =IF(AB21<='Generation Inputs'!$D$76,'1'!$C$222/'Generation Inputs'!$D$76,0) -> 0 | AC60: =IF(AC21<='Generation Inputs'!$D$76,'1'!$C$222/'Generation Inputs'!$D$76,0) -> 0 | AD60: =IF(AD21<='Generation Inputs'!$D$76,'1'!$C$222/'Generation Inputs'!$D$76,0) -> 0 | AF60: =SUM(E60:AE60) -> 117762.9933
B61: Inverter Rebate | C61: 250 | D61: Per kW | F61: ='Generation Inputs'!D7*250 -> 50000 | AF61: =SUM(E61:AE61) -> 50000
B62: Grants | C62: $ | D62: Lump sum | F62: 0 | AF62: =SUM(E62:AE62) -> 0
B63: Total Incentive Payments | F63: =SUM(F58:F62) -> 358752.9842 | G63: 48791.99265 | H63: 29275.19559 | I63: 17565.11736 | J63: 17565.11736 | K63: 8782.558678 | L63: 0 | M63: 0 | N63: 0 | O63: 0 | P63: 0 | Q63: 0 | R63: 0 | S63: 0 | T63: 0 | U63: 0 | V63: 0 | W63: 0 | X63: 0 | Y63: 0 | Z63: 0 | AA63: 0 | AB63: 0 | AC63: 0 | AD63: 0 | AF63: =SUM(AF58:AF62) -> 480732.9658
B65: REVENUES
B66: Net Metering Credits: Load Offset | C66: $ annually | D66: ='Generation Inputs'!D51 -> 0.75 | F66: =F167 -> 15295.08341 | G66: 15641.6853 | H66: 15995.73759 | I66: 16357.38668 | J66: 16726.78131 | K66: 17104.07263 | L66: 17489.41423 | M66: 17882.96212 | N66: 18284.87474 | O66: 18695.31304 | P66: 19114.44042 | Q66: 19542.4228 | R66: 19979.4286 | S66: 20425.62875 | T66: 20881.19673 | U66: 21346.30855 | V66: 21821.14276 | W66: 22305.88047 | X66: 22800.70535 | Y66: 23305.80361 | Z66: 23821.36404 | AA66: 24347.57797 | AB66: 24884.6393 | AC66: 25432.74445 | AD66: 25992.0924 | AF66: =SUM(E66:AE66) -> 505474.6873
B67: Net Metering Credits: Direct to Grid | C67: $ annually | D67: ='Generation Inputs'!D52 -> 0.25 | F67: =F216 -> 5278.303295 | G67: 5397.914926 | H67: 5520.097679 | I67: 5644.902069 | J67: 5772.379432 | K67: 5902.581929 | L67: 6035.562559 | M67: 6171.375161 | N67: 6310.07442 | O67: 6451.715872 | P67: 6596.35591 | Q67: 6744.051791 | R67: 6894.861635 | S67: 7048.844433 | T67: 7206.06005 | U67: 7366.569226 | V67: 7530.433581 | W67: 7697.715615 | X67: 7868.478709 | Y67: 8042.787129 | Z67: 8220.706023 | AA67: 8402.301419 | AB67: 8587.640228 | AC67: 8776.790241 | AD67: 8969.820123 | AF67: =SUM(E67:AE67) -> 174438.3235
B68: Site Lease Payments | C68: $/Acre/Yr | D68: =E31 -> -642.7915519 | E68: ` | F68: =$D$68 -> -642.7915519 | G68: =$D$68 -> -642.7915519 | H68: -642.7915519 | I68: -642.7915519 | J68: -642.7915519 | K68: -642.7915519 | L68: -642.7915519 | M68: -642.7915519 | N68: -642.7915519 | O68: -642.7915519 | P68: -642.7915519 | Q68: -642.7915519 | R68: -642.7915519 | S68: -642.7915519 | T68: -642.7915519 | U68: -642.7915519 | V68: -642.7915519 | W68: -642.7915519 | X68: -642.7915519 | Y68: -642.7915519 | Z68: -642.7915519 | AA68: -642.7915519 | AB68: -642.7915519 | AC68: -642.7915519 | AD68: -642.7915519 | AF68: =SUM(E68:AE68) -> -16069.7888
B69: Projected Demand Charge Savings | C69: $ annually | D69: =C229 -> 0.08 | F69: =(F117*F140*'1'!$D$69) -> 1623.318186 | G69: =(G117*G140*'1'!$D$69) -> 1660.104199 | H69: =(H117*H140*'1'!$D$69) -> 1697.723821 | I69: =(I117*I140*'1'!$D$69) -> 1736.19594 | J69: =(J117*J140*'1'!$D$69) -> 1775.539876 | K69: =(K117*K140*'1'!$D$69) -> 1815.775385 | L69: =(L117*L140*'1'!$D$69) -> 1856.922671 | M69: =(M117*M140*'1'!$D$69) -> 1899.002396 | N69: =(N117*N140*'1'!$D$69) -> 1942.035689 | O69: =(O117*O140*'1'!$D$69) -> 1986.04416 | P69: =(P117*P140*'1'!$D$69) -> 2031.049907 | Q69: =(Q117*Q140*'1'!$D$69) -> 2077.075529 | R69: =(R117*R140*'1'!$D$69) -> 2124.144137 | S69: =(S117*S140*'1'!$D$69) -> 2172.279368 | T69: =(T117*T140*'1'!$D$69) -> 2221.50539 | U69: =(U117*U140*'1'!$D$69) -> 2271.846924 | V69: =(V117*V140*'1'!$D$69) -> 2323.329247 | W69: =(W117*W140*'1'!$D$69) -> 2375.978211 | X69: =(X117*X140*'1'!$D$69) -> 2429.820254 | Y69: =(Y117*Y140*'1'!$D$69) -> 2484.88241 | Z69: =(Z117*Z140*'1'!$D$69) -> 2541.192331 | AA69: =(AA117*AA140*'1'!$D$69) -> 2598.77829 | AB69: =(AB117*AB140*'1'!$D$69) -> 2657.669205 | AC69: =(AC117*AC140*'1'!$D$69) -> 2717.894647 | AD69: =(AD117*AD140*'1'!$D$69) -> 2779.484857 | AF69: =SUM(E69:AE69) -> 53799.59303
B70: Total Revenue | F70: =SUM(F66:F69) -> 21553.91334 | G70: 22056.91287 | H70: 22570.76754 | I70: 23095.69314 | J70: 23631.90906 | K70: 24179.6384 | L70: 24739.10791 | M70: 25310.54812 | N70: 25894.1933 | O70: 26490.28152 | P70: 27099.05469 | Q70: 27720.75857 | R70: 28355.64282 | S70: 29003.961 | T70: 29665.97062 | U70: 30341.93315 | V70: 31032.11404 | W70: 31736.78275 | X70: 32456.21276 | Y70: 33190.6816 | Z70: 33940.47084 | AA70: 34705.86613 | AB70: 35487.15718 | AC70: 36284.63778 | AD70: 37098.60583 | AF70: =SUM(AF66:AF69) -> 717642.815
B72: CASHFLOW
B73: Net Benefits (Costs) | C73: $ | E73: =E32+E39+E46+E55+E63+E70 -> -500642.7916 | F73: 376548.4975 | G73: 67057.76952 | H73: 47979.00441 | I73: 36716.5126 | J73: 37173.84257 | K73: 28858.54955 | L73: 20553.38743 | M73: 21041.11323 | N73: 21539.36971 | O73: 22048.36146 | P73: 22568.29623 | Q73: 23099.38494 | R73: 23641.84172 | S73: 24195.88388 | T73: 24759.5794 | U73: 25339.60971 | V73: 25929.74413 | W73: 26532.36544 | X73: 27147.70711 | Y73: 27776.00584 | Z73: 31508.27215 | AA73: 32225.02346 | AB73: 32956.69765 | AC73: 33703.56907 | AD73: 38245.67755 | AF73: =SUM(E73:AE73) -> 598503.2747
B74: Cumulative Cashflow | C74: $ | E74: =E73 -> -500642.7916 | F74: =E74+F73 -> -124094.2941 | G74: -57036.52453 | H74: -9057.520114 | I74: 27658.99248 | J74: 64832.83505 | K74: 93691.3846 | L74: 114244.772 | M74: 135285.8853 | N74: 156825.255 | O74: 178873.6164 | P74: 201441.9127 | Q74: 224541.2976 | R74: 248183.1393 | S74: 272379.0232 | T74: 297138.6026 | U74: 322478.2123 | V74: 348407.9564 | W74: 374940.3219 | X74: 402088.029 | Y74: 429864.0348 | Z74: 461372.307 | AA74: 493597.3304 | AB74: 526554.0281 | AC74: 560257.5971 | AD74: 598503.2747 | AF74: =AD74 -> 598503.2747
B75: Payback Calculation | D75: Years | E75: =SUM(F75:AD75) -> 3.24668792 | F75: =IF(F74<0,1,IF(AND(F74>0,E74<0),(-E74/(F74-E74)),0)) -> 1 | G75: 1 | H75: 1 | I75: 0.2466879198 | J75: 0 | K75: 0 | L75: 0 | M75: 0 | N75: 0 | O75: 0 | P75: 0 | Q75: 0 | R75: 0 | S75: 0 | T75: 0 | U75: 0 | V75: 0 | W75: 0 | X75: 0 | Y75: 0 | Z75: 0 | AA75: 0 | AB75: 0 | AC75: 0 | AD75: 0 | AF75: =E75 -> 3.24668792
B77: Internal Rate of Return
B78: Internal Net Benefits (Costs less loans) | C78: $ | E78: =E32+E46 -> -500642.7916 | F78: =F46+F55+F63+F70 -> 376548.4975 | G78: 67057.76952 | H78: 47979.00441 | I78: 36716.5126 | J78: 37173.84257 | K78: 28858.54955 | L78: 20553.38743 | M78: 21041.11323 | N78: 21539.36971 | O78: 22048.36146 | P78: 22568.29623 | Q78: 23099.38494 | R78: 23641.84172 | S78: 24195.88388 | T78: 24759.5794 | U78: 25339.60971 | V78: 25929.74413 | W78: 26532.36544 | X78: 27147.70711 | Y78: 27776.00584 | Z78: 31508.27215 | AA78: 32225.02346 | AB78: 32956.69765 | AC78: 33703.56907 | AD78: 38245.67755 | AF78: =SUM(E78:AE78) -> 598503.2747
B79: Internal Cumulative Cashflow | C79: $ | E79: =D78+E78 -> -500642.7916 | F79: =E79+F78 -> -124094.2941 | G79: =F79+G78 -> -57036.52453 | H79: -9057.520114 | I79: 27658.99248 | J79: 64832.83505 | K79: 93691.3846 | L79: 114244.772 | M79: 135285.8853 | N79: 156825.255 | O79: 178873.6164 | P79: 201441.9127 | Q79: 224541.2976 | R79: 248183.1393 | S79: 272379.0232 | T79: 297138.6026 | U79: 322478.2123 | V79: 348407.9564 | W79: 374940.3219 | X79: 402088.029 | Y79: 429864.0348 | Z79: 461372.307 | AA79: 493597.3304 | AB79: 526554.0281 | AC79: 560257.5971 | AD79: 598503.2747 | AF79: =AD79 -> 598503.2747
B80: Payback Calculation | D80: Years | E80: =SUM(F80:AD80) -> 3.24668792 | F80: =IF(F79<0,1,IF(AND(F79>0,E79<0),(-E79/(F79-E79)),0)) -> 1 | G80: 1 | H80: 1 | I80: 0.2466879198 | J80: 0 | K80: 0 | L80: 0 | M80: 0 | N80: 0 | O80: 0 | P80: 0 | Q80: 0 | R80: 0 | S80: 0 | T80: 0 | U80: 0 | V80: 0 | W80: 0 | X80: 0 | Y80: 0 | Z80: 0 | AA80: 0 | AB80: 0 | AC80: 0 | AD80: 0
B84: Generation Rates
B86: Month | D86: Generation Output per PVWatts (kWh/kW)
B87: January | D87: ='Generation Inputs'!D31 -> 58.96162109
B88: February | D88: ='Generation Inputs'!D32 -> 76.06
B89: March | D89: ='Generation Inputs'!D33 -> 114.9559766
B90: April | D90: ='Generation Inputs'!D34 -> 135.5548828
B91: May | D91: ='Generation Inputs'!D35 -> 133.5846582
B92: June | D92: ='Generation Inputs'!D36 -> 137.159834
B93: July | D93: ='Generation Inputs'!D37 -> 133.815166
B94: August | D94: ='Generation Inputs'!D38 -> 121.8549512
B95: September | D95: ='Generation Inputs'!D39 -> 93.95856445
B96: October | D96: ='Generation Inputs'!D40 -> 70.41900879
B97: November | D97: ='Generation Inputs'!D41 -> 45.0525
B98: December | D98: ='Generation Inputs'!D42 -> 45.78997559
B99: Annual | D99: =SUM(D87:D98) -> 1167.167139
B101: Year | E101: 0 | F101: 1 | G101: 2 | H101: 3 | I101: 4 | J101: 5 | K101: 6 | L101: 7 | M101: 8 | N101: 9 | O101: 10 | P101: 11 | Q101: 12 | R101: 13 | S101: 14 | T101: 15 | U101: 16 | V101: 17 | W101: 18 | X101: 19 | Y101: 20 | Z101: 21 | AA101: 22 | AB101: 23 | AC101: 24 | AD101: 25
B103: Total System Energy Generation
B104: Month | C104: Generation (kWh)
B105: January | C105: ='Generation Inputs'!$D$7*D87 -> 11792.32422 | D105: kWh's per mo. | F105: =C105*(1-'Generation Inputs'!$D$71) -> 11733.3626 | G105: =F105*(1-'Generation Inputs'!$D$71) -> 11674.69578 | H105: =G105*(1-'Generation Inputs'!$D$71) -> 11616.32231 | I105: =H105*(1-'Generation Inputs'!$D$71) -> 11558.24069 | J105: =I105*(1-'Generation Inputs'!$D$71) -> 11500.44949 | K105: =J105*(1-'Generation Inputs'!$D$71) -> 11442.94724 | L105: =K105*(1-'Generation Inputs'!$D$71) -> 11385.73251 | M105: =L105*(1-'Generation Inputs'!$D$71) -> 11328.80384 | N105: =M105*(1-'Generation Inputs'!$D$71) -> 11272.15983 | O105: =N105*(1-'Generation Inputs'!$D$71) -> 11215.79903 | P105: =O105*(1-'Generation Inputs'!$D$71) -> 11159.72003 | Q105: =P105*(1-'Generation Inputs'!$D$71) -> 11103.92143 | R105: =Q105*(1-'Generation Inputs'!$D$71) -> 11048.40182 | S105: =R105*(1-'Generation Inputs'!$D$71) -> 10993.15981 | T105: =S105*(1-'Generation Inputs'!$D$71) -> 10938.19402 | U105: =T105*(1-'Generation Inputs'!$D$71) -> 10883.50305 | V105: =U105*(1-'Generation Inputs'!$D$71) -> 10829.08553 | W105: =V105*(1-'Generation Inputs'!$D$71) -> 10774.9401 | X105: =W105*(1-'Generation Inputs'!$D$71) -> 10721.0654 | Y105: =X105*(1-'Generation Inputs'!$D$71) -> 10667.46008 | Z105: =Y105*(1-'Generation Inputs'!$D$71) -> 10614.12277 | AA105: =Z105*(1-'Generation Inputs'!$D$71) -> 10561.05216 | AB105: =AA105*(1-'Generation Inputs'!$D$71) -> 10508.2469 | AC105: =AB105*(1-'Generation Inputs'!$D$71) -> 10455.70567 | AD105: =AC105*(1-'Generation Inputs'!$D$71) -> 10403.42714
B106: February | C106: ='Generation Inputs'!$D$7*D88 -> 15212 | D106: kWh's per mo. | F106: =C106*(1-'Generation Inputs'!$D$71) -> 15135.94 | G106: =F106*(1-'Generation Inputs'!$D$71) -> 15060.2603 | H106: =G106*(1-'Generation Inputs'!$D$71) -> 14984.959 | I106: =H106*(1-'Generation Inputs'!$D$71) -> 14910.0342 | J106: =I106*(1-'Generation Inputs'!$D$71) -> 14835.48403 | K106: =J106*(1-'Generation Inputs'!$D$71) -> 14761.30661 | L106: =K106*(1-'Generation Inputs'!$D$71) -> 14687.50008 | M106: =L106*(1-'Generation Inputs'!$D$71) -> 14614.06258 | N106: =M106*(1-'Generation Inputs'!$D$71) -> 14540.99227 | O106: =N106*(1-'Generation Inputs'!$D$71) -> 14468.2873 | P106: =O106*(1-'Generation Inputs'!$D$71) -> 14395.94587 | Q106: =P106*(1-'Generation Inputs'!$D$71) -> 14323.96614 | R106: =Q106*(1-'Generation Inputs'!$D$71) -> 14252.34631 | S106: =R106*(1-'Generation Inputs'!$D$71) -> 14181.08458 | T106: =S106*(1-'Generation Inputs'!$D$71) -> 14110.17915 | U106: =T106*(1-'Generation Inputs'!$D$71) -> 14039.62826 | V106: =U106*(1-'Generation Inputs'!$D$71) -> 13969.43012 | W106: =V106*(1-'Generation Inputs'!$D$71) -> 13899.58297 | X106: =W106*(1-'Generation Inputs'!$D$71) -> 13830.08505 | Y106: =X106*(1-'Generation Inputs'!$D$71) -> 13760.93463 | Z106: =Y106*(1-'Generation Inputs'!$D$71) -> 13692.12995 | AA106: =Z106*(1-'Generation Inputs'!$D$71) -> 13623.6693 | AB106: =AA106*(1-'Generation Inputs'!$D$71) -> 13555.55096 | AC106: =AB106*(1-'Generation Inputs'!$D$71) -> 13487.7732 | AD106: =AC106*(1-'Generation Inputs'!$D$71) -> 13420.33434
B107: March | C107: ='Generation Inputs'!$D$7*D89 -> 22991.19531 | D107: kWh's per mo. | F107: =C107*(1-'Generation Inputs'!$D$71) -> 22876.23934 | G107: =F107*(1-'Generation Inputs'!$D$71) -> 22761.85814 | H107: =G107*(1-'Generation Inputs'!$D$71) -> 22648.04885 | I107: =H107*(1-'Generation Inputs'!$D$71) -> 22534.8086 | J107: =I107*(1-'Generation Inputs'!$D$71) -> 22422.13456 | K107: =J107*(1-'Generation Inputs'!$D$71) -> 22310.02389 | L107: =K107*(1-'Generation Inputs'!$D$71) -> 22198.47377 | M107: =L107*(1-'Generation Inputs'!$D$71) -> 22087.4814 | N107: =M107*(1-'Generation Inputs'!$D$71) -> 21977.04399 | O107: =N107*(1-'Generation Inputs'!$D$71) -> 21867.15877 | P107: =O107*(1-'Generation Inputs'!$D$71) -> 21757.82298 | Q107: =P107*(1-'Generation Inputs'!$D$71) -> 21649.03386 | R107: =Q107*(1-'Generation Inputs'!$D$71) -> 21540.7887 | S107: =R107*(1-'Generation Inputs'!$D$71) -> 21433.08475 | T107: =S107*(1-'Generation Inputs'!$D$71) -> 21325.91933 | U107: =T107*(1-'Generation Inputs'!$D$71) -> 21219.28973 | V107: =U107*(1-'Generation Inputs'!$D$71) -> 21113.19328 | W107: =V107*(1-'Generation Inputs'!$D$71) -> 21007.62732 | X107: =W107*(1-'Generation Inputs'!$D$71) -> 20902.58918 | Y107: =X107*(1-'Generation Inputs'!$D$71) -> 20798.07623 | Z107: =Y107*(1-'Generation Inputs'!$D$71) -> 20694.08585 | AA107: =Z107*(1-'Generation Inputs'!$D$71) -> 20590.61542 | AB107: =AA107*(1-'Generation Inputs'!$D$71) -> 20487.66235 | AC107: =AB107*(1-'Generation Inputs'!$D$71) -> 20385.22403 | AD107: =AC107*(1-'Generation Inputs'!$D$71) -> 20283.29791
B108: April | C108: ='Generation Inputs'!$D$7*D90 -> 27110.97656 | D108: kWh's per mo. | F108: =C108*(1-'Generation Inputs'!$D$71) -> 26975.42168 | G108: =F108*(1-'Generation Inputs'!$D$71) -> 26840.54457 | H108: =G108*(1-'Generation Inputs'!$D$71) -> 26706.34185 | I108: =H108*(1-'Generation Inputs'!$D$71) -> 26572.81014 | J108: =I108*(1-'Generation Inputs'!$D$71) -> 26439.94609 | K108: =J108*(1-'Generation Inputs'!$D$71) -> 26307.74636 | L108: =K108*(1-'Generation Inputs'!$D$71) -> 26176.20763 | M108: =L108*(1-'Generation Inputs'!$D$71) -> 26045.32659 | N108: =M108*(1-'Generation Inputs'!$D$71) -> 25915.09996 | O108: =N108*(1-'Generation Inputs'!$D$71) -> 25785.52446 | P108: =O108*(1-'Generation Inputs'!$D$71) -> 25656.59683 | Q108: =P108*(1-'Generation Inputs'!$D$71) -> 25528.31385 | R108: =Q108*(1-'Generation Inputs'!$D$71) -> 25400.67228 | S108: =R108*(1-'Generation Inputs'!$D$71) -> 25273.66892 | T108: =S108*(1-'Generation Inputs'!$D$71) -> 25147.30057 | U108: =T108*(1-'Generation Inputs'!$D$71) -> 25021.56407 | V108: =U108*(1-'Generation Inputs'!$D$71) -> 24896.45625 | W108: =V108*(1-'Generation Inputs'!$D$71) -> 24771.97397 | X108: =W108*(1-'Generation Inputs'!$D$71) -> 24648.1141 | Y108: =X108*(1-'Generation Inputs'!$D$71) -> 24524.87353 | Z108: =Y108*(1-'Generation Inputs'!$D$71) -> 24402.24916 | AA108: =Z108*(1-'Generation Inputs'!$D$71) -> 24280.23792 | AB108: =AA108*(1-'Generation Inputs'!$D$71) -> 24158.83673 | AC108: =AB108*(1-'Generation Inputs'!$D$71) -> 24038.04254 | AD108: =AC108*(1-'Generation Inputs'!$D$71) -> 23917.85233
B109: May | C109: ='Generation Inputs'!$D$7*D91 -> 26716.93164 | D109: kWh's per mo. | F109: =C109*(1-'Generation Inputs'!$D$71) -> 26583.34698 | G109: =F109*(1-'Generation Inputs'!$D$71) -> 26450.43025 | H109: =G109*(1-'Generation Inputs'!$D$71) -> 26318.1781 | I109: =H109*(1-'Generation Inputs'!$D$71) -> 26186.58721 | J109: =I109*(1-'Generation Inputs'!$D$71) -> 26055.65427 | K109: =J109*(1-'Generation Inputs'!$D$71) -> 25925.376 | L109: =K109*(1-'Generation Inputs'!$D$71) -> 25795.74912 | M109: =L109*(1-'Generation Inputs'!$D$71) -> 25666.77037 | N109: =M109*(1-'Generation Inputs'!$D$71) -> 25538.43652 | O109: =N109*(1-'Generation Inputs'!$D$71) -> 25410.74434 | P109: =O109*(1-'Generation Inputs'!$D$71) -> 25283.69062 | Q109: =P109*(1-'Generation Inputs'!$D$71) -> 25157.27216 | R109: =Q109*(1-'Generation Inputs'!$D$71) -> 25031.4858 | S109: =R109*(1-'Generation Inputs'!$D$71) -> 24906.32837 | T109: =S109*(1-'Generation Inputs'!$D$71) -> 24781.79673 | U109: =T109*(1-'Generation Inputs'!$D$71) -> 24657.88775 | V109: =U109*(1-'Generation Inputs'!$D$71) -> 24534.59831 | W109: =V109*(1-'Generation Inputs'!$D$71) -> 24411.92532 | X109: =W109*(1-'Generation Inputs'!$D$71) -> 24289.86569 | Y109: =X109*(1-'Generation Inputs'!$D$71) -> 24168.41636 | Z109: =Y109*(1-'Generation Inputs'!$D$71) -> 24047.57428 | AA109: =Z109*(1-'Generation Inputs'!$D$71) -> 23927.33641 | AB109: =AA109*(1-'Generation Inputs'!$D$71) -> 23807.69973 | AC109: =AB109*(1-'Generation Inputs'!$D$71) -> 23688.66123 | AD109: =AC109*(1-'Generation Inputs'!$D$71) -> 23570.21792
B110: June | C110: ='Generation Inputs'!$D$7*D92 -> 27431.9668 | D110: kWh's per mo. | F110: =C110*(1-'Generation Inputs'!$D$71) -> 27294.80696 | G110: =F110*(1-'Generation Inputs'!$D$71) -> 27158.33293 | H110: =G110*(1-'Generation Inputs'!$D$71) -> 27022.54126 | I110: =H110*(1-'Generation Inputs'!$D$71) -> 26887.42856 | J110: =I110*(1-'Generation Inputs'!$D$71) -> 26752.99141 | K110: =J110*(1-'Generation Inputs'!$D$71) -> 26619.22646 | L110: =K110*(1-'Generation Inputs'!$D$71) -> 26486.13032 | M110: =L110*(1-'Generation Inputs'!$D$71) -> 26353.69967 | N110: =M110*(1-'Generation Inputs'!$D$71) -> 26221.93117 | O110: =N110*(1-'Generation Inputs'!$D$71) -> 26090.82152 | P110: =O110*(1-'Generation Inputs'!$D$71) -> 25960.36741 | Q110: =P110*(1-'Generation Inputs'!$D$71) -> 25830.56557 | R110: =Q110*(1-'Generation Inputs'!$D$71) -> 25701.41275 | S110: =R110*(1-'Generation Inputs'!$D$71) -> 25572.90568 | T110: =S110*(1-'Generation Inputs'!$D$71) -> 25445.04115 | U110: =T110*(1-'Generation Inputs'!$D$71) -> 25317.81595 | V110: =U110*(1-'Generation Inputs'!$D$71) -> 25191.22687 | W110: =V110*(1-'Generation Inputs'!$D$71) -> 25065.27073 | X110: =W110*(1-'Generation Inputs'!$D$71) -> 24939.94438 | Y110: =X110*(1-'Generation Inputs'!$D$71) -> 24815.24466 | Z110: =Y110*(1-'Generation Inputs'!$D$71) -> 24691.16844 | AA110: =Z110*(1-'Generation Inputs'!$D$71) -> 24567.71259 | AB110: =AA110*(1-'Generation Inputs'!$D$71) -> 24444.87403 | AC110: =AB110*(1-'Generation Inputs'!$D$71) -> 24322.64966 | AD110: =AC110*(1-'Generation Inputs'!$D$71) -> 24201.03641
B111: July | C111: ='Generation Inputs'!$D$7*D93 -> 26763.0332 | D111: kWh's per mo. | F111: =C111*(1-'Generation Inputs'!$D$71) -> 26629.21804 | G111: =F111*(1-'Generation Inputs'!$D$71) -> 26496.07195 | H111: =G111*(1-'Generation Inputs'!$D$71) -> 26363.59159 | I111: =H111*(1-'Generation Inputs'!$D$71) -> 26231.77363 | J111: =I111*(1-'Generation Inputs'!$D$71) -> 26100.61476 | K111: =J111*(1-'Generation Inputs'!$D$71) -> 25970.11169 | L111: =K111*(1-'Generation Inputs'!$D$71) -> 25840.26113 | M111: =L111*(1-'Generation Inputs'!$D$71) -> 25711.05982 | N111: =M111*(1-'Generation Inputs'!$D$71) -> 25582.50452 | O111: =N111*(1-'Generation Inputs'!$D$71) -> 25454.592 | P111: =O111*(1-'Generation Inputs'!$D$71) -> 25327.31904 | Q111: =P111*(1-'Generation Inputs'!$D$71) -> 25200.68245 | R111: =Q111*(1-'Generation Inputs'!$D$71) -> 25074.67903 | S111: =R111*(1-'Generation Inputs'!$D$71) -> 24949.30564 | T111: =S111*(1-'Generation Inputs'!$D$71) -> 24824.55911 | U111: =T111*(1-'Generation Inputs'!$D$71) -> 24700.43632 | V111: =U111*(1-'Generation Inputs'!$D$71) -> 24576.93413 | W111: =V111*(1-'Generation Inputs'!$D$71) -> 24454.04946 | X111: =W111*(1-'Generation Inputs'!$D$71) -> 24331.77922 | Y111: =X111*(1-'Generation Inputs'!$D$71) -> 24210.12032 | Z111: =Y111*(1-'Generation Inputs'!$D$71) -> 24089.06972 | AA111: =Z111*(1-'Generation Inputs'!$D$71) -> 23968.62437 | AB111: =AA111*(1-'Generation Inputs'!$D$71) -> 23848.78125 | AC111: =AB111*(1-'Generation Inputs'!$D$71) -> 23729.53734 | AD111: =AC111*(1-'Generation Inputs'!$D$71) -> 23610.88965
B112: August | C112: ='Generation Inputs'!$D$7*D94 -> 24370.99023 | D112: kWh's per mo. | F112: =C112*(1-'Generation Inputs'!$D$71) -> 24249.13528 | G112: =F112*(1-'Generation Inputs'!$D$71) -> 24127.88961 | H112: =G112*(1-'Generation Inputs'!$D$71) -> 24007.25016 | I112: =H112*(1-'Generation Inputs'!$D$71) -> 23887.21391 | J112: =I112*(1-'Generation Inputs'!$D$71) -> 23767.77784 | K112: =J112*(1-'Generation Inputs'!$D$71) -> 23648.93895 | L112: =K112*(1-'Generation Inputs'!$D$71) -> 23530.69425 | M112: =L112*(1-'Generation Inputs'!$D$71) -> 23413.04078 | N112: =M112*(1-'Generation Inputs'!$D$71) -> 23295.97558 | O112: =N112*(1-'Generation Inputs'!$D$71) -> 23179.4957 | P112: =O112*(1-'Generation Inputs'!$D$71) -> 23063.59822 | Q112: =P112*(1-'Generation Inputs'!$D$71) -> 22948.28023 | R112: =Q112*(1-'Generation Inputs'!$D$71) -> 22833.53883 | S112: =R112*(1-'Generation Inputs'!$D$71) -> 22719.37114 | T112: =S112*(1-'Generation Inputs'!$D$71) -> 22605.77428 | U112: =T112*(1-'Generation Inputs'!$D$71) -> 22492.74541 | V112: =U112*(1-'Generation Inputs'!$D$71) -> 22380.28168 | W112: =V112*(1-'Generation Inputs'!$D$71) -> 22268.38027 | X112: =W112*(1-'Generation Inputs'!$D$71) -> 22157.03837 | Y112: =X112*(1-'Generation Inputs'!$D$71) -> 22046.25318 | Z112: =Y112*(1-'Generation Inputs'!$D$71) -> 21936.02191 | AA112: =Z112*(1-'Generation Inputs'!$D$71) -> 21826.34181 | AB112: =AA112*(1-'Generation Inputs'!$D$71) -> 21717.2101 | AC112: =AB112*(1-'Generation Inputs'!$D$71) -> 21608.62405 | AD112: =AC112*(1-'Generation Inputs'!$D$71) -> 21500.58093
B113: September | C113: ='Generation Inputs'!$D$7*D95 -> 18791.71289 | D113: kWh's per mo. | F113: =C113*(1-'Generation Inputs'!$D$71) -> 18697.75433 | G113: =F113*(1-'Generation Inputs'!$D$71) -> 18604.26555 | H113: =G113*(1-'Generation Inputs'!$D$71) -> 18511.24423 | I113: =H113*(1-'Generation Inputs'!$D$71) -> 18418.68801 | J113: =I113*(1-'Generation Inputs'!$D$71) -> 18326.59457 | K113: =J113*(1-'Generation Inputs'!$D$71) -> 18234.96159 | L113: =K113*(1-'Generation Inputs'!$D$71) -> 18143.78678 | M113: =L113*(1-'Generation Inputs'!$D$71) -> 18053.06785 | N113: =M113*(1-'Generation Inputs'!$D$71) -> 17962.80251 | O113: =N113*(1-'Generation Inputs'!$D$71) -> 17872.9885 | P113: =O113*(1-'Generation Inputs'!$D$71) -> 17783.62356 | Q113: =P113*(1-'Generation Inputs'!$D$71) -> 17694.70544 | R113: =Q113*(1-'Generation Inputs'!$D$71) -> 17606.23191 | S113: =R113*(1-'Generation Inputs'!$D$71) -> 17518.20075 | T113: =S113*(1-'Generation Inputs'!$D$71) -> 17430.60975 | U113: =T113*(1-'Generation Inputs'!$D$71) -> 17343.4567 | V113: =U113*(1-'Generation Inputs'!$D$71) -> 17256.73942 | W113: =V113*(1-'Generation Inputs'!$D$71) -> 17170.45572 | X113: =W113*(1-'Generation Inputs'!$D$71) -> 17084.60344 | Y113: =X113*(1-'Generation Inputs'!$D$71) -> 16999.18042 | Z113: =Y113*(1-'Generation Inputs'!$D$71) -> 16914.18452 | AA113: =Z113*(1-'Generation Inputs'!$D$71) -> 16829.6136 | AB113: =AA113*(1-'Generation Inputs'!$D$71) -> 16745.46553 | AC113: =AB113*(1-'Generation Inputs'!$D$71) -> 16661.7382 | AD113: =AC113*(1-'Generation Inputs'!$D$71) -> 16578.42951
B114: October | C114: ='Generation Inputs'!$D$7*D96 -> 14083.80176 | D114: kWh's per mo. | F114: =C114*(1-'Generation Inputs'!$D$71) -> 14013.38275 | G114: =F114*(1-'Generation Inputs'!$D$71) -> 13943.31584 | H114: =G114*(1-'Generation Inputs'!$D$71) -> 13873.59926 | I114: =H114*(1-'Generation Inputs'!$D$71) -> 13804.23126 | J114: =I114*(1-'Generation Inputs'!$D$71) -> 13735.2101 | K114: =J114*(1-'Generation Inputs'!$D$71) -> 13666.53405 | L114: =K114*(1-'Generation Inputs'!$D$71) -> 13598.20138 | M114: =L114*(1-'Generation Inputs'!$D$71) -> 13530.21038 | N114: =M114*(1-'Generation Inputs'!$D$71) -> 13462.55932 | O114: =N114*(1-'Generation Inputs'!$D$71) -> 13395.24653 | P114: =O114*(1-'Generation Inputs'!$D$71) -> 13328.27029 | Q114: =P114*(1-'Generation Inputs'!$D$71) -> 13261.62894 | R114: =Q114*(1-'Generation Inputs'!$D$71) -> 13195.3208 | S114: =R114*(1-'Generation Inputs'!$D$71) -> 13129.34419 | T114: =S114*(1-'Generation Inputs'!$D$71) -> 13063.69747 | U114: =T114*(1-'Generation Inputs'!$D$71) -> 12998.37899 | V114: =U114*(1-'Generation Inputs'!$D$71) -> 12933.38709 | W114: =V114*(1-'Generation Inputs'!$D$71) -> 12868.72016 | X114: =W114*(1-'Generation Inputs'!$D$71) -> 12804.37656 | Y114: =X114*(1-'Generation Inputs'!$D$71) -> 12740.35467 | Z114: =Y114*(1-'Generation Inputs'!$D$71) -> 12676.6529 | AA114: =Z114*(1-'Generation Inputs'!$D$71) -> 12613.26963 | AB114: =AA114*(1-'Generation Inputs'!$D$71) -> 12550.20329 | AC114: =AB114*(1-'Generation Inputs'!$D$71) -> 12487.45227 | AD114: =AC114*(1-'Generation Inputs'!$D$71) -> 12425.01501
B115: November | C115: ='Generation Inputs'!$D$7*D97 -> 9010.5 | D115: kWh's per mo. | F115: =C115*(1-'Generation Inputs'!$D$71) -> 8965.4475 | G115: =F115*(1-'Generation Inputs'!$D$71) -> 8920.620263 | H115: =G115*(1-'Generation Inputs'!$D$71) -> 8876.017161 | I115: =H115*(1-'Generation Inputs'!$D$71) -> 8831.637075 | J115: =I115*(1-'Generation Inputs'!$D$71) -> 8787.47889 | K115: =J115*(1-'Generation Inputs'!$D$71) -> 8743.541496 | L115: =K115*(1-'Generation Inputs'!$D$71) -> 8699.823788 | M115: =L115*(1-'Generation Inputs'!$D$71) -> 8656.324669 | N115: =M115*(1-'Generation Inputs'!$D$71) -> 8613.043046 | O115: =N115*(1-'Generation Inputs'!$D$71) -> 8569.977831 | P115: =O115*(1-'Generation Inputs'!$D$71) -> 8527.127941 | Q115: =P115*(1-'Generation Inputs'!$D$71) -> 8484.492302 | R115: =Q115*(1-'Generation Inputs'!$D$71) -> 8442.06984 | S115: =R115*(1-'Generation Inputs'!$D$71) -> 8399.859491 | T115: =S115*(1-'Generation Inputs'!$D$71) -> 8357.860194 | U115: =T115*(1-'Generation Inputs'!$D$71) -> 8316.070893 | V115: =U115*(1-'Generation Inputs'!$D$71) -> 8274.490538 | W115: =V115*(1-'Generation Inputs'!$D$71) -> 8233.118085 | X115: =W115*(1-'Generation Inputs'!$D$71) -> 8191.952495 | Y115: =X115*(1-'Generation Inputs'!$D$71) -> 8150.992733 | Z115: =Y115*(1-'Generation Inputs'!$D$71) -> 8110.237769 | AA115: =Z115*(1-'Generation Inputs'!$D$71) -> 8069.68658 | AB115: =AA115*(1-'Generation Inputs'!$D$71) -> 8029.338147 | AC115: =AB115*(1-'Generation Inputs'!$D$71) -> 7989.191456 | AD115: =AC115*(1-'Generation Inputs'!$D$71) -> 7949.245499
B116: December | C116: ='Generation Inputs'!$D$7*D98 -> 9157.995117 | D116: kWh's per mo. | F116: =C116*(1-'Generation Inputs'!$D$71) -> 9112.205142 | G116: =F116*(1-'Generation Inputs'!$D$71) -> 9066.644116 | H116: =G116*(1-'Generation Inputs'!$D$71) -> 9021.310895 | I116: =H116*(1-'Generation Inputs'!$D$71) -> 8976.204341 | J116: =I116*(1-'Generation Inputs'!$D$71) -> 8931.323319 | K116: =J116*(1-'Generation Inputs'!$D$71) -> 8886.666703 | L116: =K116*(1-'Generation Inputs'!$D$71) -> 8842.233369 | M116: =L116*(1-'Generation Inputs'!$D$71) -> 8798.022202 | N116: =M116*(1-'Generation Inputs'!$D$71) -> 8754.032091 | O116: =N116*(1-'Generation Inputs'!$D$71) -> 8710.261931 | P116: =O116*(1-'Generation Inputs'!$D$71) -> 8666.710621 | Q116: =P116*(1-'Generation Inputs'!$D$71) -> 8623.377068 | R116: =Q116*(1-'Generation Inputs'!$D$71) -> 8580.260183 | S116: =R116*(1-'Generation Inputs'!$D$71) -> 8537.358882 | T116: =S116*(1-'Generation Inputs'!$D$71) -> 8494.672087 | U116: =T116*(1-'Generation Inputs'!$D$71) -> 8452.198727 | V116: =U116*(1-'Generation Inputs'!$D$71) -> 8409.937733 | W116: =V116*(1-'Generation Inputs'!$D$71) -> 8367.888045 | X116: =W116*(1-'Generation Inputs'!$D$71) -> 8326.048604 | Y116: =X116*(1-'Generation Inputs'!$D$71) -> 8284.418361 | Z116: =Y116*(1-'Generation Inputs'!$D$71) -> 8242.99627 | AA116: =Z116*(1-'Generation Inputs'!$D$71) -> 8201.781288 | AB116: =AA116*(1-'Generation Inputs'!$D$71) -> 8160.772382 | AC116: =AB116*(1-'Generation Inputs'!$D$71) -> 8119.96852 | AD116: =AC116*(1-'Generation Inputs'!$D$71) -> 8079.368677
B117: Annual | C117: =SUM(C105:C116) -> 233433.4277 | D117: kWh's per yr. | F117: =SUM(F105:F116) -> 232266.2606 | G117: 231104.9293 | H117: 229949.4046 | I117: 228799.6576 | J117: 227655.6593 | K117: 226517.381 | L117: 225384.7941 | M117: 224257.8702 | N117: 223136.5808 | O117: 222020.8979 | P117: 220910.7934 | Q117: 219806.2395 | R117: 218707.2083 | S117: 217613.6722 | T117: 216525.6039 | U117: 215442.9758 | V117: 214365.761 | W117: 213293.9321 | X117: 212227.4625 | Y117: 211166.3252 | Z117: 210110.4935 | AA117: 209059.9411 | AB117: 208014.6414 | AC117: 206974.5682 | AD117: 205939.6953 | AF117: =SUM(F117:AE117) -> 5471252.749
B120: Direct Load Offest Value
B122: Load Offset Generation Estimate
B123: Month | C123: Generation (kWh)
B124: January | C124: =C105*'Generation Inputs'!$D$51 -> 8844.243164 | D124: kWh's per mo. | F124: =($C124)*(1-((F$21-1)*('Generation Inputs'!$D$71))) -> 8844.243164 | G124: =($C124)*(1-((G$21-1)*('Generation Inputs'!$D$71))) -> 8800.021948 | H124: =($C124)*(1-((H$21-1)*('Generation Inputs'!$D$71))) -> 8755.800732 | I124: =($C124)*(1-((I$21-1)*('Generation Inputs'!$D$71))) -> 8711.579517 | J124: =($C124)*(1-((J$21-1)*('Generation Inputs'!$D$71))) -> 8667.358301 | K124: =($C124)*(1-((K$21-1)*('Generation Inputs'!$D$71))) -> 8623.137085 | L124: =($C124)*(1-((L$21-1)*('Generation Inputs'!$D$71))) -> 8578.915869 | M124: =($C124)*(1-((M$21-1)*('Generation Inputs'!$D$71))) -> 8534.694653 | N124: =($C124)*(1-((N$21-1)*('Generation Inputs'!$D$71))) -> 8490.473437 | O124: =($C124)*(1-((O$21-1)*('Generation Inputs'!$D$71))) -> 8446.252222 | P124: =($C124)*(1-((P$21-1)*('Generation Inputs'!$D$71))) -> 8402.031006 | Q124: =($C124)*(1-((Q$21-1)*('Generation Inputs'!$D$71))) -> 8357.80979 | R124: =($C124)*(1-((R$21-1)*('Generation Inputs'!$D$71))) -> 8313.588574 | S124: =($C124)*(1-((S$21-1)*('Generation Inputs'!$D$71))) -> 8269.367358 | T124: =($C124)*(1-((T$21-1)*('Generation Inputs'!$D$71))) -> 8225.146143 | U124: =($C124)*(1-((U$21-1)*('Generation Inputs'!$D$71))) -> 8180.924927 | V124: =($C124)*(1-((V$21-1)*('Generation Inputs'!$D$71))) -> 8136.703711 | W124: =($C124)*(1-((W$21-1)*('Generation Inputs'!$D$71))) -> 8092.482495 | X124: =($C124)*(1-((X$21-1)*('Generation Inputs'!$D$71))) -> 8048.261279 | Y124: =($C124)*(1-((Y$21-1)*('Generation Inputs'!$D$71))) -> 8004.040063 | Z124: =($C124)*(1-((Z$21-1)*('Generation Inputs'!$D$71))) -> 7959.818848 | AA124: =($C124)*(1-((AA$21-1)*('Generation Inputs'!$D$71))) -> 7915.597632 | AB124: =($C124)*(1-((AB$21-1)*('Generation Inputs'!$D$71))) -> 7871.376416 | AC124: =($C124)*(1-((AC$21-1)*('Generation Inputs'!$D$71))) -> 7827.1552 | AD124: =($C124)*(1-((AD$21-1)*('Generation Inputs'!$D$71))) -> 7782.933984
B125: February | C125: =C106*'Generation Inputs'!$D$51 -> 11409 | D125: kWh's per mo. | F125: =($C125)*(1-((F$21-1)*('Generation Inputs'!$D$71))) -> 11409 | G125: =($C125)*(1-((G$21-1)*('Generation Inputs'!$D$71))) -> 11351.955 | H125: =($C125)*(1-((H$21-1)*('Generation Inputs'!$D$71))) -> 11294.91 | I125: =($C125)*(1-((I$21-1)*('Generation Inputs'!$D$71))) -> 11237.865 | J125: =($C125)*(1-((J$21-1)*('Generation Inputs'!$D$71))) -> 11180.82 | K125: =($C125)*(1-((K$21-1)*('Generation Inputs'!$D$71))) -> 11123.775 | L125: =($C125)*(1-((L$21-1)*('Generation Inputs'!$D$71))) -> 11066.73 | M125: =($C125)*(1-((M$21-1)*('Generation Inputs'!$D$71))) -> 11009.685 | N125: =($C125)*(1-((N$21-1)*('Generation Inputs'!$D$71))) -> 10952.64 | O125: =($C125)*(1-((O$21-1)*('Generation Inputs'!$D$71))) -> 10895.595 | P125: =($C125)*(1-((P$21-1)*('Generation Inputs'!$D$71))) -> 10838.55 | Q125: =($C125)*(1-((Q$21-1)*('Generation Inputs'!$D$71))) -> 10781.505 | R125: =($C125)*(1-((R$21-1)*('Generation Inputs'!$D$71))) -> 10724.46 | S125: =($C125)*(1-((S$21-1)*('Generation Inputs'!$D$71))) -> 10667.415 | T125: =($C125)*(1-((T$21-1)*('Generation Inputs'!$D$71))) -> 10610.37 | U125: =($C125)*(1-((U$21-1)*('Generation Inputs'!$D$71))) -> 10553.325 | V125: =($C125)*(1-((V$21-1)*('Generation Inputs'!$D$71))) -> 10496.28 | W125: =($C125)*(1-((W$21-1)*('Generation Inputs'!$D$71))) -> 10439.235 | X125: =($C125)*(1-((X$21-1)*('Generation Inputs'!$D$71))) -> 10382.19 | Y125: =($C125)*(1-((Y$21-1)*('Generation Inputs'!$D$71))) -> 10325.145 | Z125: =($C125)*(1-((Z$21-1)*('Generation Inputs'!$D$71))) -> 10268.1 | AA125: =($C125)*(1-((AA$21-1)*('Generation Inputs'!$D$71))) -> 10211.055 | AB125: =($C125)*(1-((AB$21-1)*('Generation Inputs'!$D$71))) -> 10154.01 | AC125: =($C125)*(1-((AC$21-1)*('Generation Inputs'!$D$71))) -> 10096.965 | AD125: =($C125)*(1-((AD$21-1)*('Generation Inputs'!$D$71))) -> 10039.92
B126: March | C126: =C107*'Generation Inputs'!$D$51 -> 17243.39648 | D126: kWh's per mo. | F126: =($C126)*(1-((F$21-1)*('Generation Inputs'!$D$71))) -> 17243.39648 | G126: =($C126)*(1-((G$21-1)*('Generation Inputs'!$D$71))) -> 17157.1795 | H126: =($C126)*(1-((H$21-1)*('Generation Inputs'!$D$71))) -> 17070.96252 | I126: =($C126)*(1-((I$21-1)*('Generation Inputs'!$D$71))) -> 16984.74554 | J126: =($C126)*(1-((J$21-1)*('Generation Inputs'!$D$71))) -> 16898.52855 | K126: =($C126)*(1-((K$21-1)*('Generation Inputs'!$D$71))) -> 16812.31157 | L126: =($C126)*(1-((L$21-1)*('Generation Inputs'!$D$71))) -> 16726.09459 | M126: =($C126)*(1-((M$21-1)*('Generation Inputs'!$D$71))) -> 16639.87761 | N126: =($C126)*(1-((N$21-1)*('Generation Inputs'!$D$71))) -> 16553.66063 | O126: =($C126)*(1-((O$21-1)*('Generation Inputs'!$D$71))) -> 16467.44364 | P126: =($C126)*(1-((P$21-1)*('Generation Inputs'!$D$71))) -> 16381.22666 | Q126: =($C126)*(1-((Q$21-1)*('Generation Inputs'!$D$71))) -> 16295.00968 | R126: =($C126)*(1-((R$21-1)*('Generation Inputs'!$D$71))) -> 16208.7927 | S126: =($C126)*(1-((S$21-1)*('Generation Inputs'!$D$71))) -> 16122.57571 | T126: =($C126)*(1-((T$21-1)*('Generation Inputs'!$D$71))) -> 16036.35873 | U126: =($C126)*(1-((U$21-1)*('Generation Inputs'!$D$71))) -> 15950.14175 | V126: =($C126)*(1-((V$21-1)*('Generation Inputs'!$D$71))) -> 15863.92477 | W126: =($C126)*(1-((W$21-1)*('Generation Inputs'!$D$71))) -> 15777.70778 | X126: =($C126)*(1-((X$21-1)*('Generation Inputs'!$D$71))) -> 15691.4908 | Y126: =($C126)*(1-((Y$21-1)*('Generation Inputs'!$D$71))) -> 15605.27382 | Z126: =($C126)*(1-((Z$21-1)*('Generation Inputs'!$D$71))) -> 15519.05684 | AA126: =($C126)*(1-((AA$21-1)*('Generation Inputs'!$D$71))) -> 15432.83985 | AB126: =($C126)*(1-((AB$21-1)*('Generation Inputs'!$D$71))) -> 15346.62287 | AC126: =($C126)*(1-((AC$21-1)*('Generation Inputs'!$D$71))) -> 15260.40589 | AD126: =($C126)*(1-((AD$21-1)*('Generation Inputs'!$D$71))) -> 15174.18891
B127: April | C127: =C108*'Generation Inputs'!$D$51 -> 20333.23242 | D127: kWh's per mo. | F127: =($C127)*(1-((F$21-1)*('Generation Inputs'!$D$71))) -> 20333.23242 | G127: =($C127)*(1-((G$21-1)*('Generation Inputs'!$D$71))) -> 20231.56626 | H127: =($C127)*(1-((H$21-1)*('Generation Inputs'!$D$71))) -> 20129.9001 | I127: =($C127)*(1-((I$21-1)*('Generation Inputs'!$D$71))) -> 20028.23394 | J127: =($C127)*(1-((J$21-1)*('Generation Inputs'!$D$71))) -> 19926.56777 | K127: =($C127)*(1-((K$21-1)*('Generation Inputs'!$D$71))) -> 19824.90161 | L127: =($C127)*(1-((L$21-1)*('Generation Inputs'!$D$71))) -> 19723.23545 | M127: =($C127)*(1-((M$21-1)*('Generation Inputs'!$D$71))) -> 19621.56929 | N127: =($C127)*(1-((N$21-1)*('Generation Inputs'!$D$71))) -> 19519.90313 | O127: =($C127)*(1-((O$21-1)*('Generation Inputs'!$D$71))) -> 19418.23696 | P127: =($C127)*(1-((P$21-1)*('Generation Inputs'!$D$71))) -> 19316.5708 | Q127: =($C127)*(1-((Q$21-1)*('Generation Inputs'!$D$71))) -> 19214.90464 | R127: =($C127)*(1-((R$21-1)*('Generation Inputs'!$D$71))) -> 19113.23848 | S127: =($C127)*(1-((S$21-1)*('Generation Inputs'!$D$71))) -> 19011.57231 | T127: =($C127)*(1-((T$21-1)*('Generation Inputs'!$D$71))) -> 18909.90615 | U127: =($C127)*(1-((U$21-1)*('Generation Inputs'!$D$71))) -> 18808.23999 | V127: =($C127)*(1-((V$21-1)*('Generation Inputs'!$D$71))) -> 18706.57383 | W127: =($C127)*(1-((W$21-1)*('Generation Inputs'!$D$71))) -> 18604.90767 | X127: =($C127)*(1-((X$21-1)*('Generation Inputs'!$D$71))) -> 18503.2415 | Y127: =($C127)*(1-((Y$21-1)*('Generation Inputs'!$D$71))) -> 18401.57534 | Z127: =($C127)*(1-((Z$21-1)*('Generation Inputs'!$D$71))) -> 18299.90918 | AA127: =($C127)*(1-((AA$21-1)*('Generation Inputs'!$D$71))) -> 18198.24302 | AB127: =($C127)*(1-((AB$21-1)*('Generation Inputs'!$D$71))) -> 18096.57686 | AC127: =($C127)*(1-((AC$21-1)*('Generation Inputs'!$D$71))) -> 17994.91069 | AD127: =($C127)*(1-((AD$21-1)*('Generation Inputs'!$D$71))) -> 17893.24453
B128: May | C128: =C109*'Generation Inputs'!$D$51 -> 20037.69873 | D128: kWh's per mo. | F128: =($C128)*(1-((F$21-1)*('Generation Inputs'!$D$71))) -> 20037.69873 | G128: =($C128)*(1-((G$21-1)*('Generation Inputs'!$D$71))) -> 19937.51024 | H128: =($C128)*(1-((H$21-1)*('Generation Inputs'!$D$71))) -> 19837.32174 | I128: =($C128)*(1-((I$21-1)*('Generation Inputs'!$D$71))) -> 19737.13325 | J128: =($C128)*(1-((J$21-1)*('Generation Inputs'!$D$71))) -> 19636.94476 | K128: =($C128)*(1-((K$21-1)*('Generation Inputs'!$D$71))) -> 19536.75626 | L128: =($C128)*(1-((L$21-1)*('Generation Inputs'!$D$71))) -> 19436.56777 | M128: =($C128)*(1-((M$21-1)*('Generation Inputs'!$D$71))) -> 19336.37927 | N128: =($C128)*(1-((N$21-1)*('Generation Inputs'!$D$71))) -> 19236.19078 | O128: =($C128)*(1-((O$21-1)*('Generation Inputs'!$D$71))) -> 19136.00229 | P128: =($C128)*(1-((P$21-1)*('Generation Inputs'!$D$71))) -> 19035.81379 | Q128: =($C128)*(1-((Q$21-1)*('Generation Inputs'!$D$71))) -> 18935.6253 | R128: =($C128)*(1-((R$21-1)*('Generation Inputs'!$D$71))) -> 18835.43681 | S128: =($C128)*(1-((S$21-1)*('Generation Inputs'!$D$71))) -> 18735.24831 | T128: =($C128)*(1-((T$21-1)*('Generation Inputs'!$D$71))) -> 18635.05982 | U128: =($C128)*(1-((U$21-1)*('Generation Inputs'!$D$71))) -> 18534.87133 | V128: =($C128)*(1-((V$21-1)*('Generation Inputs'!$D$71))) -> 18434.68283 | W128: =($C128)*(1-((W$21-1)*('Generation Inputs'!$D$71))) -> 18334.49434 | X128: =($C128)*(1-((X$21-1)*('Generation Inputs'!$D$71))) -> 18234.30584 | Y128: =($C128)*(1-((Y$21-1)*('Generation Inputs'!$D$71))) -> 18134.11735 | Z128: =($C128)*(1-((Z$21-1)*('Generation Inputs'!$D$71))) -> 18033.92886 | AA128: =($C128)*(1-((AA$21-1)*('Generation Inputs'!$D$71))) -> 17933.74036 | AB128: =($C128)*(1-((AB$21-1)*('Generation Inputs'!$D$71))) -> 17833.55187 | AC128: =($C128)*(1-((AC$21-1)*('Generation Inputs'!$D$71))) -> 17733.36338 | AD128: =($C128)*(1-((AD$21-1)*('Generation Inputs'!$D$71))) -> 17633.17488
B129: June | C129: =C110*'Generation Inputs'!$D$51 -> 20573.9751 | D129: kWh's per mo. | F129: =($C129)*(1-((F$21-1)*('Generation Inputs'!$D$71))) -> 20573.9751 | G129: =($C129)*(1-((G$21-1)*('Generation Inputs'!$D$71))) -> 20471.10522 | H129: =($C129)*(1-((H$21-1)*('Generation Inputs'!$D$71))) -> 20368.23535 | I129: =($C129)*(1-((I$21-1)*('Generation Inputs'!$D$71))) -> 20265.36547 | J129: =($C129)*(1-((J$21-1)*('Generation Inputs'!$D$71))) -> 20162.4956 | K129: =($C129)*(1-((K$21-1)*('Generation Inputs'!$D$71))) -> 20059.62572 | L129: =($C129)*(1-((L$21-1)*('Generation Inputs'!$D$71))) -> 19956.75584 | M129: =($C129)*(1-((M$21-1)*('Generation Inputs'!$D$71))) -> 19853.88597 | N129: =($C129)*(1-((N$21-1)*('Generation Inputs'!$D$71))) -> 19751.01609 | O129: =($C129)*(1-((O$21-1)*('Generation Inputs'!$D$71))) -> 19648.14622 | P129: =($C129)*(1-((P$21-1)*('Generation Inputs'!$D$71))) -> 19545.27634 | Q129: =($C129)*(1-((Q$21-1)*('Generation Inputs'!$D$71))) -> 19442.40647 | R129: =($C129)*(1-((R$21-1)*('Generation Inputs'!$D$71))) -> 19339.53659 | S129: =($C129)*(1-((S$21-1)*('Generation Inputs'!$D$71))) -> 19236.66672 | T129: =($C129)*(1-((T$21-1)*('Generation Inputs'!$D$71))) -> 19133.79684 | U129: =($C129)*(1-((U$21-1)*('Generation Inputs'!$D$71))) -> 19030.92697 | V129: =($C129)*(1-((V$21-1)*('Generation Inputs'!$D$71))) -> 18928.05709 | W129: =($C129)*(1-((W$21-1)*('Generation Inputs'!$D$71))) -> 18825.18721 | X129: =($C129)*(1-((X$21-1)*('Generation Inputs'!$D$71))) -> 18722.31734 | Y129: =($C129)*(1-((Y$21-1)*('Generation Inputs'!$D$71))) -> 18619.44746 | Z129: =($C129)*(1-((Z$21-1)*('Generation Inputs'!$D$71))) -> 18516.57759 | AA129: =($C129)*(1-((AA$21-1)*('Generation Inputs'!$D$71))) -> 18413.70771 | AB129: =($C129)*(1-((AB$21-1)*('Generation Inputs'!$D$71))) -> 18310.83784 | AC129: =($C129)*(1-((AC$21-1)*('Generation Inputs'!$D$71))) -> 18207.96796 | AD129: =($C129)*(1-((AD$21-1)*('Generation Inputs'!$D$71))) -> 18105.09809
B130: July | C130: =C111*'Generation Inputs'!$D$51 -> 20072.2749 | D130: kWh's per mo. | F130: =($C130)*(1-((F$21-1)*('Generation Inputs'!$D$71))) -> 20072.2749 | G130: =($C130)*(1-((G$21-1)*('Generation Inputs'!$D$71))) -> 19971.91353 | H130: =($C130)*(1-((H$21-1)*('Generation Inputs'!$D$71))) -> 19871.55215 | I130: =($C130)*(1-((I$21-1)*('Generation Inputs'!$D$71))) -> 19771.19078 | J130: =($C130)*(1-((J$21-1)*('Generation Inputs'!$D$71))) -> 19670.8294 | K130: =($C130)*(1-((K$21-1)*('Generation Inputs'!$D$71))) -> 19570.46803 | L130: =($C130)*(1-((L$21-1)*('Generation Inputs'!$D$71))) -> 19470.10666 | M130: =($C130)*(1-((M$21-1)*('Generation Inputs'!$D$71))) -> 19369.74528 | N130: =($C130)*(1-((N$21-1)*('Generation Inputs'!$D$71))) -> 19269.38391 | O130: =($C130)*(1-((O$21-1)*('Generation Inputs'!$D$71))) -> 19169.02253 | P130: =($C130)*(1-((P$21-1)*('Generation Inputs'!$D$71))) -> 19068.66116 | Q130: =($C130)*(1-((Q$21-1)*('Generation Inputs'!$D$71))) -> 18968.29978 | R130: =($C130)*(1-((R$21-1)*('Generation Inputs'!$D$71))) -> 18867.93841 | S130: =($C130)*(1-((S$21-1)*('Generation Inputs'!$D$71))) -> 18767.57703 | T130: =($C130)*(1-((T$21-1)*('Generation Inputs'!$D$71))) -> 18667.21566 | U130: =($C130)*(1-((U$21-1)*('Generation Inputs'!$D$71))) -> 18566.85428 | V130: =($C130)*(1-((V$21-1)*('Generation Inputs'!$D$71))) -> 18466.49291 | W130: =($C130)*(1-((W$21-1)*('Generation Inputs'!$D$71))) -> 18366.13154 | X130: =($C130)*(1-((X$21-1)*('Generation Inputs'!$D$71))) -> 18265.77016 | Y130: =($C130)*(1-((Y$21-1)*('Generation Inputs'!$D$71))) -> 18165.40879 | Z130: =($C130)*(1-((Z$21-1)*('Generation Inputs'!$D$71))) -> 18065.04741 | AA130: =($C130)*(1-((AA$21-1)*('Generation Inputs'!$D$71))) -> 17964.68604 | AB130: =($C130)*(1-((AB$21-1)*('Generation Inputs'!$D$71))) -> 17864.32466 | AC130: =($C130)*(1-((AC$21-1)*('Generation Inputs'!$D$71))) -> 17763.96329 | AD130: =($C130)*(1-((AD$21-1)*('Generation Inputs'!$D$71))) -> 17663.60191
B131: August | C131: =C112*'Generation Inputs'!$D$51 -> 18278.24268 | D131: kWh's per mo. | F131: =($C131)*(1-((F$21-1)*('Generation Inputs'!$D$71))) -> 18278.24268 | G131: =($C131)*(1-((G$21-1)*('Generation Inputs'!$D$71))) -> 18186.85146 | H131: =($C131)*(1-((H$21-1)*('Generation Inputs'!$D$71))) -> 18095.46025 | I131: =($C131)*(1-((I$21-1)*('Generation Inputs'!$D$71))) -> 18004.06904 | J131: =($C131)*(1-((J$21-1)*('Generation Inputs'!$D$71))) -> 17912.67782 | K131: =($C131)*(1-((K$21-1)*('Generation Inputs'!$D$71))) -> 17821.28661 | L131: =($C131)*(1-((L$21-1)*('Generation Inputs'!$D$71))) -> 17729.8954 | M131: =($C131)*(1-((M$21-1)*('Generation Inputs'!$D$71))) -> 17638.50418 | N131: =($C131)*(1-((N$21-1)*('Generation Inputs'!$D$71))) -> 17547.11297 | O131: =($C131)*(1-((O$21-1)*('Generation Inputs'!$D$71))) -> 17455.72176 | P131: =($C131)*(1-((P$21-1)*('Generation Inputs'!$D$71))) -> 17364.33054 | Q131: =($C131)*(1-((Q$21-1)*('Generation Inputs'!$D$71))) -> 17272.93933 | R131: =($C131)*(1-((R$21-1)*('Generation Inputs'!$D$71))) -> 17181.54812 | S131: =($C131)*(1-((S$21-1)*('Generation Inputs'!$D$71))) -> 17090.1569 | T131: =($C131)*(1-((T$21-1)*('Generation Inputs'!$D$71))) -> 16998.76569 | U131: =($C131)*(1-((U$21-1)*('Generation Inputs'!$D$71))) -> 16907.37448 | V131: =($C131)*(1-((V$21-1)*('Generation Inputs'!$D$71))) -> 16815.98326 | W131: =($C131)*(1-((W$21-1)*('Generation Inputs'!$D$71))) -> 16724.59205 | X131: =($C131)*(1-((X$21-1)*('Generation Inputs'!$D$71))) -> 16633.20083 | Y131: =($C131)*(1-((Y$21-1)*('Generation Inputs'!$D$71))) -> 16541.80962 | Z131: =($C131)*(1-((Z$21-1)*('Generation Inputs'!$D$71))) -> 16450.41841 | AA131: =($C131)*(1-((AA$21-1)*('Generation Inputs'!$D$71))) -> 16359.02719 | AB131: =($C131)*(1-((AB$21-1)*('Generation Inputs'!$D$71))) -> 16267.63598 | AC131: =($C131)*(1-((AC$21-1)*('Generation Inputs'!$D$71))) -> 16176.24477 | AD131: =($C131)*(1-((AD$21-1)*('Generation Inputs'!$D$71))) -> 16084.85355
B132: September | C132: =C113*'Generation Inputs'!$D$51 -> 14093.78467 | D132: kWh's per mo. | F132: =($C132)*(1-((F$21-1)*('Generation Inputs'!$D$71))) -> 14093.78467 | G132: =($C132)*(1-((G$21-1)*('Generation Inputs'!$D$71))) -> 14023.31574 | H132: =($C132)*(1-((H$21-1)*('Generation Inputs'!$D$71))) -> 13952.84682 | I132: =($C132)*(1-((I$21-1)*('Generation Inputs'!$D$71))) -> 13882.3779 | J132: =($C132)*(1-((J$21-1)*('Generation Inputs'!$D$71))) -> 13811.90897 | K132: =($C132)*(1-((K$21-1)*('Generation Inputs'!$D$71))) -> 13741.44005 | L132: =($C132)*(1-((L$21-1)*('Generation Inputs'!$D$71))) -> 13670.97113 | M132: =($C132)*(1-((M$21-1)*('Generation Inputs'!$D$71))) -> 13600.5022 | N132: =($C132)*(1-((N$21-1)*('Generation Inputs'!$D$71))) -> 13530.03328 | O132: =($C132)*(1-((O$21-1)*('Generation Inputs'!$D$71))) -> 13459.56436 | P132: =($C132)*(1-((P$21-1)*('Generation Inputs'!$D$71))) -> 13389.09543 | Q132: =($C132)*(1-((Q$21-1)*('Generation Inputs'!$D$71))) -> 13318.62651 | R132: =($C132)*(1-((R$21-1)*('Generation Inputs'!$D$71))) -> 13248.15759 | S132: =($C132)*(1-((S$21-1)*('Generation Inputs'!$D$71))) -> 13177.68866 | T132: =($C132)*(1-((T$21-1)*('Generation Inputs'!$D$71))) -> 13107.21974 | U132: =($C132)*(1-((U$21-1)*('Generation Inputs'!$D$71))) -> 13036.75082 | V132: =($C132)*(1-((V$21-1)*('Generation Inputs'!$D$71))) -> 12966.28189 | W132: =($C132)*(1-((W$21-1)*('Generation Inputs'!$D$71))) -> 12895.81297 | X132: =($C132)*(1-((X$21-1)*('Generation Inputs'!$D$71))) -> 12825.34405 | Y132: =($C132)*(1-((Y$21-1)*('Generation Inputs'!$D$71))) -> 12754.87512 | Z132: =($C132)*(1-((Z$21-1)*('Generation Inputs'!$D$71))) -> 12684.4062 | AA132: =($C132)*(1-((AA$21-1)*('Generation Inputs'!$D$71))) -> 12613.93728 | AB132: =($C132)*(1-((AB$21-1)*('Generation Inputs'!$D$71))) -> 12543.46835 | AC132: =($C132)*(1-((AC$21-1)*('Generation Inputs'!$D$71))) -> 12472.99943 | AD132: =($C132)*(1-((AD$21-1)*('Generation Inputs'!$D$71))) -> 12402.53051
B133: October | C133: =C114*'Generation Inputs'!$D$51 -> 10562.85132 | D133: kWh's per mo. | F133: =($C133)*(1-((F$21-1)*('Generation Inputs'!$D$71))) -> 10562.85132 | G133: =($C133)*(1-((G$21-1)*('Generation Inputs'!$D$71))) -> 10510.03706 | H133: =($C133)*(1-((H$21-1)*('Generation Inputs'!$D$71))) -> 10457.22281 | I133: =($C133)*(1-((I$21-1)*('Generation Inputs'!$D$71))) -> 10404.40855 | J133: =($C133)*(1-((J$21-1)*('Generation Inputs'!$D$71))) -> 10351.59429 | K133: =($C133)*(1-((K$21-1)*('Generation Inputs'!$D$71))) -> 10298.78004 | L133: =($C133)*(1-((L$21-1)*('Generation Inputs'!$D$71))) -> 10245.96578 | M133: =($C133)*(1-((M$21-1)*('Generation Inputs'!$D$71))) -> 10193.15152 | N133: =($C133)*(1-((N$21-1)*('Generation Inputs'!$D$71))) -> 10140.33727 | O133: =($C133)*(1-((O$21-1)*('Generation Inputs'!$D$71))) -> 10087.52301 | P133: =($C133)*(1-((P$21-1)*('Generation Inputs'!$D$71))) -> 10034.70875 | Q133: =($C133)*(1-((Q$21-1)*('Generation Inputs'!$D$71))) -> 9981.894496 | R133: =($C133)*(1-((R$21-1)*('Generation Inputs'!$D$71))) -> 9929.080239 | S133: =($C133)*(1-((S$21-1)*('Generation Inputs'!$D$71))) -> 9876.265983 | T133: =($C133)*(1-((T$21-1)*('Generation Inputs'!$D$71))) -> 9823.451726 | U133: =($C133)*(1-((U$21-1)*('Generation Inputs'!$D$71))) -> 9770.637469 | V133: =($C133)*(1-((V$21-1)*('Generation Inputs'!$D$71))) -> 9717.823213 | W133: =($C133)*(1-((W$21-1)*('Generation Inputs'!$D$71))) -> 9665.008956 | X133: =($C133)*(1-((X$21-1)*('Generation Inputs'!$D$71))) -> 9612.1947 | Y133: =($C133)*(1-((Y$21-1)*('Generation Inputs'!$D$71))) -> 9559.380443 | Z133: =($C133)*(1-((Z$21-1)*('Generation Inputs'!$D$71))) -> 9506.566187 | AA133: =($C133)*(1-((AA$21-1)*('Generation Inputs'!$D$71))) -> 9453.75193 | AB133: =($C133)*(1-((AB$21-1)*('Generation Inputs'!$D$71))) -> 9400.937673 | AC133: =($C133)*(1-((AC$21-1)*('Generation Inputs'!$D$71))) -> 9348.123417 | AD133: =($C133)*(1-((AD$21-1)*('Generation Inputs'!$D$71))) -> 9295.30916
B134: November | C134: =C115*'Generation Inputs'!$D$51 -> 6757.875 | D134: kWh's per mo. | F134: =($C134)*(1-((F$21-1)*('Generation Inputs'!$D$71))) -> 6757.875 | G134: =($C134)*(1-((G$21-1)*('Generation Inputs'!$D$71))) -> 6724.085625 | H134: =($C134)*(1-((H$21-1)*('Generation Inputs'!$D$71))) -> 6690.29625 | I134: =($C134)*(1-((I$21-1)*('Generation Inputs'!$D$71))) -> 6656.506875 | J134: =($C134)*(1-((J$21-1)*('Generation Inputs'!$D$71))) -> 6622.7175 | K134: =($C134)*(1-((K$21-1)*('Generation Inputs'!$D$71))) -> 6588.928125 | L134: =($C134)*(1-((L$21-1)*('Generation Inputs'!$D$71))) -> 6555.13875 | M134: =($C134)*(1-((M$21-1)*('Generation Inputs'!$D$71))) -> 6521.349375 | N134: =($C134)*(1-((N$21-1)*('Generation Inputs'!$D$71))) -> 6487.56 | O134: =($C134)*(1-((O$21-1)*('Generation Inputs'!$D$71))) -> 6453.770625 | P134: =($C134)*(1-((P$21-1)*('Generation Inputs'!$D$71))) -> 6419.98125 | Q134: =($C134)*(1-((Q$21-1)*('Generation Inputs'!$D$71))) -> 6386.191875 | R134: =($C134)*(1-((R$21-1)*('Generation Inputs'!$D$71))) -> 6352.4025 | S134: =($C134)*(1-((S$21-1)*('Generation Inputs'!$D$71))) -> 6318.613125 | T134: =($C134)*(1-((T$21-1)*('Generation Inputs'!$D$71))) -> 6284.82375 | U134: =($C134)*(1-((U$21-1)*('Generation Inputs'!$D$71))) -> 6251.034375 | V134: =($C134)*(1-((V$21-1)*('Generation Inputs'!$D$71))) -> 6217.245 | W134: =($C134)*(1-((W$21-1)*('Generation Inputs'!$D$71))) -> 6183.455625 | X134: =($C134)*(1-((X$21-1)*('Generation Inputs'!$D$71))) -> 6149.66625 | Y134: =($C134)*(1-((Y$21-1)*('Generation Inputs'!$D$71))) -> 6115.876875 | Z134: =($C134)*(1-((Z$21-1)*('Generation Inputs'!$D$71))) -> 6082.0875 | AA134: =($C134)*(1-((AA$21-1)*('Generation Inputs'!$D$71))) -> 6048.298125 | AB134: =($C134)*(1-((AB$21-1)*('Generation Inputs'!$D$71))) -> 6014.50875 | AC134: =($C134)*(1-((AC$21-1)*('Generation Inputs'!$D$71))) -> 5980.719375 | AD134: =($C134)*(1-((AD$21-1)*('Generation Inputs'!$D$71))) -> 5946.93
B135: December | C135: =C116*'Generation Inputs'!$D$51 -> 6868.496338 | D135: kWh's per mo. | F135: =($C135)*(1-((F$21-1)*('Generation Inputs'!$D$71))) -> 6868.496338 | G135: =($C135)*(1-((G$21-1)*('Generation Inputs'!$D$71))) -> 6834.153856 | H135: =($C135)*(1-((H$21-1)*('Generation Inputs'!$D$71))) -> 6799.811375 | I135: =($C135)*(1-((I$21-1)*('Generation Inputs'!$D$71))) -> 6765.468893 | J135: =($C135)*(1-((J$21-1)*('Generation Inputs'!$D$71))) -> 6731.126411 | K135: =($C135)*(1-((K$21-1)*('Generation Inputs'!$D$71))) -> 6696.783929 | L135: =($C135)*(1-((L$21-1)*('Generation Inputs'!$D$71))) -> 6662.441448 | M135: =($C135)*(1-((M$21-1)*('Generation Inputs'!$D$71))) -> 6628.098966 | N135: =($C135)*(1-((N$21-1)*('Generation Inputs'!$D$71))) -> 6593.756484 | O135: =($C135)*(1-((O$21-1)*('Generation Inputs'!$D$71))) -> 6559.414003 | P135: =($C135)*(1-((P$21-1)*('Generation Inputs'!$D$71))) -> 6525.071521 | Q135: =($C135)*(1-((Q$21-1)*('Generation Inputs'!$D$71))) -> 6490.729039 | R135: =($C135)*(1-((R$21-1)*('Generation Inputs'!$D$71))) -> 6456.386558 | S135: =($C135)*(1-((S$21-1)*('Generation Inputs'!$D$71))) -> 6422.044076 | T135: =($C135)*(1-((T$21-1)*('Generation Inputs'!$D$71))) -> 6387.701594 | U135: =($C135)*(1-((U$21-1)*('Generation Inputs'!$D$71))) -> 6353.359113 | V135: =($C135)*(1-((V$21-1)*('Generation Inputs'!$D$71))) -> 6319.016631 | W135: =($C135)*(1-((W$21-1)*('Generation Inputs'!$D$71))) -> 6284.674149 | X135: =($C135)*(1-((X$21-1)*('Generation Inputs'!$D$71))) -> 6250.331667 | Y135: =($C135)*(1-((Y$21-1)*('Generation Inputs'!$D$71))) -> 6215.989186 | Z135: =($C135)*(1-((Z$21-1)*('Generation Inputs'!$D$71))) -> 6181.646704 | AA135: =($C135)*(1-((AA$21-1)*('Generation Inputs'!$D$71))) -> 6147.304222 | AB135: =($C135)*(1-((AB$21-1)*('Generation Inputs'!$D$71))) -> 6112.961741 | AC135: =($C135)*(1-((AC$21-1)*('Generation Inputs'!$D$71))) -> 6078.619259 | AD135: =($C135)*(1-((AD$21-1)*('Generation Inputs'!$D$71))) -> 6044.276777
B136: Annual | C136: =SUM(C124:C135) -> 175075.0708 | D136: kWh's per yr. | F136: =SUM(F124:F135) -> 175075.0708 | G136: 174199.6954 | H136: 173324.3201 | I136: 172448.9447 | J136: 171573.5694 | K136: 170698.194 | L136: 169822.8187 | M136: 168947.4433 | N136: 168072.068 | O136: 167196.6926 | P136: 166321.3173 | Q136: 165445.9419 | R136: 164570.5666 | S136: 163695.1912 | T136: 162819.8158 | U136: 161944.4405 | V136: 161069.0651 | W136: 160193.6898 | X136: 159318.3144 | Y136: 158442.9391 | Z136: 157567.5637 | AA136: 156692.1884 | AB136: 155816.813 | AC136: 154941.4377 | AD136: 154066.0623 | AF136: =SUM(F136:AE136) -> 4114264.164
B138: Load Offset Rate Schedule
B139: Month | C139: Rate ($/kWh)
B140: January | C140: ='Generation Inputs'!$D$48 -> 0.085 | D140: $/kWh | F140: =C140*(1+'Generation Inputs'!$D$68) -> 0.087363 | G140: =F140*(1+'Generation Inputs'!$D$68) -> 0.0897916914 | H140: =G140*(1+'Generation Inputs'!$D$68) -> 0.09228790042 | I140: =H140*(1+'Generation Inputs'!$D$68) -> 0.09485350405 | J140: =I140*(1+'Generation Inputs'!$D$68) -> 0.09749043147 | K140: =J140*(1+'Generation Inputs'!$D$68) -> 0.1002006655 | L140: =K140*(1+'Generation Inputs'!$D$68) -> 0.102986244 | M140: =L140*(1+'Generation Inputs'!$D$68) -> 0.1058492615 | N140: =M140*(1+'Generation Inputs'!$D$68) -> 0.108791871 | O140: =N140*(1+'Generation Inputs'!$D$68) -> 0.111816285 | P140: =O140*(1+'Generation Inputs'!$D$68) -> 0.1149247778 | Q140: =P140*(1+'Generation Inputs'!$D$68) -> 0.1181196866 | R140: =Q140*(1+'Generation Inputs'!$D$68) -> 0.1214034139 | S140: =R140*(1+'Generation Inputs'!$D$68) -> 0.1247784288 | T140: =S140*(1+'Generation Inputs'!$D$68) -> 0.1282472691 | U140: =T140*(1+'Generation Inputs'!$D$68) -> 0.1318125432 | V140: =U140*(1+'Generation Inputs'!$D$68) -> 0.1354769319 | W140: =V140*(1+'Generation Inputs'!$D$68) -> 0.1392431906 | X140: =W140*(1+'Generation Inputs'!$D$68) -> 0.1431141513 | Y140: =X140*(1+'Generation Inputs'!$D$68) -> 0.1470927247 | Z140: =Y140*(1+'Generation Inputs'!$D$68) -> 0.1511819024 | AA140: =Z140*(1+'Generation Inputs'!$D$68) -> 0.1553847593 | AB140: =AA140*(1+'Generation Inputs'!$D$68) -> 0.1597044556 | AC140: =AB140*(1+'Generation Inputs'!$D$68) -> 0.1641442395 | AD140: =AC140*(1+'Generation Inputs'!$D$68) -> 0.1687074493
B141: February | C141: ='Generation Inputs'!$D$48 -> 0.085 | D141: $/kWh | F141: =C141*(1+'Generation Inputs'!$D$68) -> 0.087363 | G141: =F141*(1+'Generation Inputs'!$D$68) -> 0.0897916914 | H141: =G141*(1+'Generation Inputs'!$D$68) -> 0.09228790042 | I141: =H141*(1+'Generation Inputs'!$D$68) -> 0.09485350405 | J141: =I141*(1+'Generation Inputs'!$D$68) -> 0.09749043147 | K141: =J141*(1+'Generation Inputs'!$D$68) -> 0.1002006655 | L141: =K141*(1+'Generation Inputs'!$D$68) -> 0.102986244 | M141: =L141*(1+'Generation Inputs'!$D$68) -> 0.1058492615 | N141: =M141*(1+'Generation Inputs'!$D$68) -> 0.108791871 | O141: =N141*(1+'Generation Inputs'!$D$68) -> 0.111816285 | P141: =O141*(1+'Generation Inputs'!$D$68) -> 0.1149247778 | Q141: =P141*(1+'Generation Inputs'!$D$68) -> 0.1181196866 | R141: =Q141*(1+'Generation Inputs'!$D$68) -> 0.1214034139 | S141: =R141*(1+'Generation Inputs'!$D$68) -> 0.1247784288 | T141: =S141*(1+'Generation Inputs'!$D$68) -> 0.1282472691 | U141: =T141*(1+'Generation Inputs'!$D$68) -> 0.1318125432 | V141: =U141*(1+'Generation Inputs'!$D$68) -> 0.1354769319 | W141: =V141*(1+'Generation Inputs'!$D$68) -> 0.1392431906 | X141: =W141*(1+'Generation Inputs'!$D$68) -> 0.1431141513 | Y141: =X141*(1+'Generation Inputs'!$D$68) -> 0.1470927247 | Z141: =Y141*(1+'Generation Inputs'!$D$68) -> 0.1511819024 | AA141: =Z141*(1+'Generation Inputs'!$D$68) -> 0.1553847593 | AB141: =AA141*(1+'Generation Inputs'!$D$68) -> 0.1597044556 | AC141: =AB141*(1+'Generation Inputs'!$D$68) -> 0.1641442395 | AD141: =AC141*(1+'Generation Inputs'!$D$68) -> 0.1687074493
B142: March | C142: ='Generation Inputs'!$D$48 -> 0.085 | D142: $/kWh | F142: =C142*(1+'Generation Inputs'!$D$68) -> 0.087363 | G142: =F142*(1+'Generation Inputs'!$D$68) -> 0.0897916914 | H142: =G142*(1+'Generation Inputs'!$D$68) -> 0.09228790042 | I142: =H142*(1+'Generation Inputs'!$D$68) -> 0.09485350405 | J142: =I142*(1+'Generation Inputs'!$D$68) -> 0.09749043147 | K142: =J142*(1+'Generation Inputs'!$D$68) -> 0.1002006655 | L142: =K142*(1+'Generation Inputs'!$D$68) -> 0.102986244 | M142: =L142*(1+'Generation Inputs'!$D$68) -> 0.1058492615 | N142: =M142*(1+'Generation Inputs'!$D$68) -> 0.108791871 | O142: =N142*(1+'Generation Inputs'!$D$68) -> 0.111816285 | P142: =O142*(1+'Generation Inputs'!$D$68) -> 0.1149247778 | Q142: =P142*(1+'Generation Inputs'!$D$68) -> 0.1181196866 | R142: =Q142*(1+'Generation Inputs'!$D$68) -> 0.1214034139 | S142: =R142*(1+'Generation Inputs'!$D$68) -> 0.1247784288 | T142: =S142*(1+'Generation Inputs'!$D$68) -> 0.1282472691 | U142: =T142*(1+'Generation Inputs'!$D$68) -> 0.1318125432 | V142: =U142*(1+'Generation Inputs'!$D$68) -> 0.1354769319 | W142: =V142*(1+'Generation Inputs'!$D$68) -> 0.1392431906 | X142: =W142*(1+'Generation Inputs'!$D$68) -> 0.1431141513 | Y142: =X142*(1+'Generation Inputs'!$D$68) -> 0.1470927247 | Z142: =Y142*(1+'Generation Inputs'!$D$68) -> 0.1511819024 | AA142: =Z142*(1+'Generation Inputs'!$D$68) -> 0.1553847593 | AB142: =AA142*(1+'Generation Inputs'!$D$68) -> 0.1597044556 | AC142: =AB142*(1+'Generation Inputs'!$D$68) -> 0.1641442395 | AD142: =AC142*(1+'Generation Inputs'!$D$68) -> 0.1687074493
B143: April | C143: ='Generation Inputs'!$D$48 -> 0.085 | D143: $/kWh | F143: =C143*(1+'Generation Inputs'!$D$68) -> 0.087363 | G143: =F143*(1+'Generation Inputs'!$D$68) -> 0.0897916914 | H143: =G143*(1+'Generation Inputs'!$D$68) -> 0.09228790042 | I143: =H143*(1+'Generation Inputs'!$D$68) -> 0.09485350405 | J143: =I143*(1+'Generation Inputs'!$D$68) -> 0.09749043147 | K143: =J143*(1+'Generation Inputs'!$D$68) -> 0.1002006655 | L143: =K143*(1+'Generation Inputs'!$D$68) -> 0.102986244 | M143: =L143*(1+'Generation Inputs'!$D$68) -> 0.1058492615 | N143: =M143*(1+'Generation Inputs'!$D$68) -> 0.108791871 | O143: =N143*(1+'Generation Inputs'!$D$68) -> 0.111816285 | P143: =O143*(1+'Generation Inputs'!$D$68) -> 0.1149247778 | Q143: =P143*(1+'Generation Inputs'!$D$68) -> 0.1181196866 | R143: =Q143*(1+'Generation Inputs'!$D$68) -> 0.1214034139 | S143: =R143*(1+'Generation Inputs'!$D$68) -> 0.1247784288 | T143: =S143*(1+'Generation Inputs'!$D$68) -> 0.1282472691 | U143: =T143*(1+'Generation Inputs'!$D$68) -> 0.1318125432 | V143: =U143*(1+'Generation Inputs'!$D$68) -> 0.1354769319 | W143: =V143*(1+'Generation Inputs'!$D$68) -> 0.1392431906 | X143: =W143*(1+'Generation Inputs'!$D$68) -> 0.1431141513 | Y143: =X143*(1+'Generation Inputs'!$D$68) -> 0.1470927247 | Z143: =Y143*(1+'Generation Inputs'!$D$68) -> 0.1511819024 | AA143: =Z143*(1+'Generation Inputs'!$D$68) -> 0.1553847593 | AB143: =AA143*(1+'Generation Inputs'!$D$68) -> 0.1597044556 | AC143: =AB143*(1+'Generation Inputs'!$D$68) -> 0.1641442395 | AD143: =AC143*(1+'Generation Inputs'!$D$68) -> 0.1687074493
B144: May | C144: ='Generation Inputs'!$D$48 -> 0.085 | D144: $/kWh | F144: =C144*(1+'Generation Inputs'!$D$68) -> 0.087363 | G144: =F144*(1+'Generation Inputs'!$D$68) -> 0.0897916914 | H144: =G144*(1+'Generation Inputs'!$D$68) -> 0.09228790042 | I144: =H144*(1+'Generation Inputs'!$D$68) -> 0.09485350405 | J144: =I144*(1+'Generation Inputs'!$D$68) -> 0.09749043147 | K144: =J144*(1+'Generation Inputs'!$D$68) -> 0.1002006655 | L144: =K144*(1+'Generation Inputs'!$D$68) -> 0.102986244 | M144: =L144*(1+'Generation Inputs'!$D$68) -> 0.1058492615 | N144: =M144*(1+'Generation Inputs'!$D$68) -> 0.108791871 | O144: =N144*(1+'Generation Inputs'!$D$68) -> 0.111816285 | P144: =O144*(1+'Generation Inputs'!$D$68) -> 0.1149247778 | Q144: =P144*(1+'Generation Inputs'!$D$68) -> 0.1181196866 | R144: =Q144*(1+'Generation Inputs'!$D$68) -> 0.1214034139 | S144: =R144*(1+'Generation Inputs'!$D$68) -> 0.1247784288 | T144: =S144*(1+'Generation Inputs'!$D$68) -> 0.1282472691 | U144: =T144*(1+'Generation Inputs'!$D$68) -> 0.1318125432 | V144: =U144*(1+'Generation Inputs'!$D$68) -> 0.1354769319 | W144: =V144*(1+'Generation Inputs'!$D$68) -> 0.1392431906 | X144: =W144*(1+'Generation Inputs'!$D$68) -> 0.1431141513 | Y144: =X144*(1+'Generation Inputs'!$D$68) -> 0.1470927247 | Z144: =Y144*(1+'Generation Inputs'!$D$68) -> 0.1511819024 | AA144: =Z144*(1+'Generation Inputs'!$D$68) -> 0.1553847593 | AB144: =AA144*(1+'Generation Inputs'!$D$68) -> 0.1597044556 | AC144: =AB144*(1+'Generation Inputs'!$D$68) -> 0.1641442395 | AD144: =AC144*(1+'Generation Inputs'!$D$68) -> 0.1687074493
B145: June | C145: ='Generation Inputs'!$D$48 -> 0.085 | D145: $/kWh | F145: =C145*(1+'Generation Inputs'!$D$68) -> 0.087363 | G145: =F145*(1+'Generation Inputs'!$D$68) -> 0.0897916914 | H145: =G145*(1+'Generation Inputs'!$D$68) -> 0.09228790042 | I145: =H145*(1+'Generation Inputs'!$D$68) -> 0.09485350405 | J145: =I145*(1+'Generation Inputs'!$D$68) -> 0.09749043147 | K145: =J145*(1+'Generation Inputs'!$D$68) -> 0.1002006655 | L145: =K145*(1+'Generation Inputs'!$D$68) -> 0.102986244 | M145: =L145*(1+'Generation Inputs'!$D$68) -> 0.1058492615 | N145: =M145*(1+'Generation Inputs'!$D$68) -> 0.108791871 | O145: =N145*(1+'Generation Inputs'!$D$68) -> 0.111816285 | P145: =O145*(1+'Generation Inputs'!$D$68) -> 0.1149247778 | Q145: =P145*(1+'Generation Inputs'!$D$68) -> 0.1181196866 | R145: =Q145*(1+'Generation Inputs'!$D$68) -> 0.1214034139 | S145: =R145*(1+'Generation Inputs'!$D$68) -> 0.1247784288 | T145: =S145*(1+'Generation Inputs'!$D$68) -> 0.1282472691 | U145: =T145*(1+'Generation Inputs'!$D$68) -> 0.1318125432 | V145: =U145*(1+'Generation Inputs'!$D$68) -> 0.1354769319 | W145: =V145*(1+'Generation Inputs'!$D$68) -> 0.1392431906 | X145: =W145*(1+'Generation Inputs'!$D$68) -> 0.1431141513 | Y145: =X145*(1+'Generation Inputs'!$D$68) -> 0.1470927247 | Z145: =Y145*(1+'Generation Inputs'!$D$68) -> 0.1511819024 | AA145: =Z145*(1+'Generation Inputs'!$D$68) -> 0.1553847593 | AB145: =AA145*(1+'Generation Inputs'!$D$68) -> 0.1597044556 | AC145: =AB145*(1+'Generation Inputs'!$D$68) -> 0.1641442395 | AD145: =AC145*(1+'Generation Inputs'!$D$68) -> 0.1687074493
B146: July | C146: ='Generation Inputs'!$D$48 -> 0.085 | D146: $/kWh | F146: =C146*(1+'Generation Inputs'!$D$68) -> 0.087363 | G146: =F146*(1+'Generation Inputs'!$D$68) -> 0.0897916914 | H146: =G146*(1+'Generation Inputs'!$D$68) -> 0.09228790042 | I146: =H146*(1+'Generation Inputs'!$D$68) -> 0.09485350405 | J146: =I146*(1+'Generation Inputs'!$D$68) -> 0.09749043147 | K146: =J146*(1+'Generation Inputs'!$D$68) -> 0.1002006655 | L146: =K146*(1+'Generation Inputs'!$D$68) -> 0.102986244 | M146: =L146*(1+'Generation Inputs'!$D$68) -> 0.1058492615 | N146: =M146*(1+'Generation Inputs'!$D$68) -> 0.108791871 | O146: =N146*(1+'Generation Inputs'!$D$68) -> 0.111816285 | P146: =O146*(1+'Generation Inputs'!$D$68) -> 0.1149247778 | Q146: =P146*(1+'Generation Inputs'!$D$68) -> 0.1181196866 | R146: =Q146*(1+'Generation Inputs'!$D$68) -> 0.1214034139 | S146: =R146*(1+'Generation Inputs'!$D$68) -> 0.1247784288 | T146: =S146*(1+'Generation Inputs'!$D$68) -> 0.1282472691 | U146: =T146*(1+'Generation Inputs'!$D$68) -> 0.1318125432 | V146: =U146*(1+'Generation Inputs'!$D$68) -> 0.1354769319 | W146: =V146*(1+'Generation Inputs'!$D$68) -> 0.1392431906 | X146: =W146*(1+'Generation Inputs'!$D$68) -> 0.1431141513 | Y146: =X146*(1+'Generation Inputs'!$D$68) -> 0.1470927247 | Z146: =Y146*(1+'Generation Inputs'!$D$68) -> 0.1511819024 | AA146: =Z146*(1+'Generation Inputs'!$D$68) -> 0.1553847593 | AB146: =AA146*(1+'Generation Inputs'!$D$68) -> 0.1597044556 | AC146: =AB146*(1+'Generation Inputs'!$D$68) -> 0.1641442395 | AD146: =AC146*(1+'Generation Inputs'!$D$68) -> 0.1687074493
B147: August | C147: ='Generation Inputs'!$D$48 -> 0.085 | D147: $/kWh | F147: =C147*(1+'Generation Inputs'!$D$68) -> 0.087363 | G147: =F147*(1+'Generation Inputs'!$D$68) -> 0.0897916914 | H147: =G147*(1+'Generation Inputs'!$D$68) -> 0.09228790042 | I147: =H147*(1+'Generation Inputs'!$D$68) -> 0.09485350405 | J147: =I147*(1+'Generation Inputs'!$D$68) -> 0.09749043147 | K147: =J147*(1+'Generation Inputs'!$D$68) -> 0.1002006655 | L147: =K147*(1+'Generation Inputs'!$D$68) -> 0.102986244 | M147: =L147*(1+'Generation Inputs'!$D$68) -> 0.1058492615 | N147: =M147*(1+'Generation Inputs'!$D$68) -> 0.108791871 | O147: =N147*(1+'Generation Inputs'!$D$68) -> 0.111816285 | P147: =O147*(1+'Generation Inputs'!$D$68) -> 0.1149247778 | Q147: =P147*(1+'Generation Inputs'!$D$68) -> 0.1181196866 | R147: =Q147*(1+'Generation Inputs'!$D$68) -> 0.1214034139 | S147: =R147*(1+'Generation Inputs'!$D$68) -> 0.1247784288 | T147: =S147*(1+'Generation Inputs'!$D$68) -> 0.1282472691 | U147: =T147*(1+'Generation Inputs'!$D$68) -> 0.1318125432 | V147: =U147*(1+'Generation Inputs'!$D$68) -> 0.1354769319 | W147: =V147*(1+'Generation Inputs'!$D$68) -> 0.1392431906 | X147: =W147*(1+'Generation Inputs'!$D$68) -> 0.1431141513 | Y147: =X147*(1+'Generation Inputs'!$D$68) -> 0.1470927247 | Z147: =Y147*(1+'Generation Inputs'!$D$68) -> 0.1511819024 | AA147: =Z147*(1+'Generation Inputs'!$D$68) -> 0.1553847593 | AB147: =AA147*(1+'Generation Inputs'!$D$68) -> 0.1597044556 | AC147: =AB147*(1+'Generation Inputs'!$D$68) -> 0.1641442395 | AD147: =AC147*(1+'Generation Inputs'!$D$68) -> 0.1687074493
B148: September | C148: ='Generation Inputs'!$D$48 -> 0.085 | D148: $/kWh | F148: =C148*(1+'Generation Inputs'!$D$68) -> 0.087363 | G148: =F148*(1+'Generation Inputs'!$D$68) -> 0.0897916914 | H148: =G148*(1+'Generation Inputs'!$D$68) -> 0.09228790042 | I148: =H148*(1+'Generation Inputs'!$D$68) -> 0.09485350405 | J148: =I148*(1+'Generation Inputs'!$D$68) -> 0.09749043147 | K148: =J148*(1+'Generation Inputs'!$D$68) -> 0.1002006655 | L148: =K148*(1+'Generation Inputs'!$D$68) -> 0.102986244 | M148: =L148*(1+'Generation Inputs'!$D$68) -> 0.1058492615 | N148: =M148*(1+'Generation Inputs'!$D$68) -> 0.108791871 | O148: =N148*(1+'Generation Inputs'!$D$68) -> 0.111816285 | P148: =O148*(1+'Generation Inputs'!$D$68) -> 0.1149247778 | Q148: =P148*(1+'Generation Inputs'!$D$68) -> 0.1181196866 | R148: =Q148*(1+'Generation Inputs'!$D$68) -> 0.1214034139 | S148: =R148*(1+'Generation Inputs'!$D$68) -> 0.1247784288 | T148: =S148*(1+'Generation Inputs'!$D$68) -> 0.1282472691 | U148: =T148*(1+'Generation Inputs'!$D$68) -> 0.1318125432 | V148: =U148*(1+'Generation Inputs'!$D$68) -> 0.1354769319 | W148: =V148*(1+'Generation Inputs'!$D$68) -> 0.1392431906 | X148: =W148*(1+'Generation Inputs'!$D$68) -> 0.1431141513 | Y148: =X148*(1+'Generation Inputs'!$D$68) -> 0.1470927247 | Z148: =Y148*(1+'Generation Inputs'!$D$68) -> 0.1511819024 | AA148: =Z148*(1+'Generation Inputs'!$D$68) -> 0.1553847593 | AB148: =AA148*(1+'Generation Inputs'!$D$68) -> 0.1597044556 | AC148: =AB148*(1+'Generation Inputs'!$D$68) -> 0.1641442395 | AD148: =AC148*(1+'Generation Inputs'!$D$68) -> 0.1687074493
B149: October | C149: ='Generation Inputs'!$D$48 -> 0.085 | D149: $/kWh | F149: =C149*(1+'Generation Inputs'!$D$68) -> 0.087363 | G149: =F149*(1+'Generation Inputs'!$D$68) -> 0.0897916914 | H149: =G149*(1+'Generation Inputs'!$D$68) -> 0.09228790042 | I149: =H149*(1+'Generation Inputs'!$D$68) -> 0.09485350405 | J149: =I149*(1+'Generation Inputs'!$D$68) -> 0.09749043147 | K149: =J149*(1+'Generation Inputs'!$D$68) -> 0.1002006655 | L149: =K149*(1+'Generation Inputs'!$D$68) -> 0.102986244 | M149: =L149*(1+'Generation Inputs'!$D$68) -> 0.1058492615 | N149: =M149*(1+'Generation Inputs'!$D$68) -> 0.108791871 | O149: =N149*(1+'Generation Inputs'!$D$68) -> 0.111816285 | P149: =O149*(1+'Generation Inputs'!$D$68) -> 0.1149247778 | Q149: =P149*(1+'Generation Inputs'!$D$68) -> 0.1181196866 | R149: =Q149*(1+'Generation Inputs'!$D$68) -> 0.1214034139 | S149: =R149*(1+'Generation Inputs'!$D$68) -> 0.1247784288 | T149: =S149*(1+'Generation Inputs'!$D$68) -> 0.1282472691 | U149: =T149*(1+'Generation Inputs'!$D$68) -> 0.1318125432 | V149: =U149*(1+'Generation Inputs'!$D$68) -> 0.1354769319 | W149: =V149*(1+'Generation Inputs'!$D$68) -> 0.1392431906 | X149: =W149*(1+'Generation Inputs'!$D$68) -> 0.1431141513 | Y149: =X149*(1+'Generation Inputs'!$D$68) -> 0.1470927247 | Z149: =Y149*(1+'Generation Inputs'!$D$68) -> 0.1511819024 | AA149: =Z149*(1+'Generation Inputs'!$D$68) -> 0.1553847593 | AB149: =AA149*(1+'Generation Inputs'!$D$68) -> 0.1597044556 | AC149: =AB149*(1+'Generation Inputs'!$D$68) -> 0.1641442395 | AD149: =AC149*(1+'Generation Inputs'!$D$68) -> 0.1687074493
B150: November | C150: ='Generation Inputs'!$D$48 -> 0.085 | D150: $/kWh | F150: =C150*(1+'Generation Inputs'!$D$68) -> 0.087363 | G150: =F150*(1+'Generation Inputs'!$D$68) -> 0.0897916914 | H150: =G150*(1+'Generation Inputs'!$D$68) -> 0.09228790042 | I150: =H150*(1+'Generation Inputs'!$D$68) -> 0.09485350405 | J150: =I150*(1+'Generation Inputs'!$D$68) -> 0.09749043147 | K150: =J150*(1+'Generation Inputs'!$D$68) -> 0.1002006655 | L150: =K150*(1+'Generation Inputs'!$D$68) -> 0.102986244 | M150: =L150*(1+'Generation Inputs'!$D$68) -> 0.1058492615 | N150: =M150*(1+'Generation Inputs'!$D$68) -> 0.108791871 | O150: =N150*(1+'Generation Inputs'!$D$68) -> 0.111816285 | P150: =O150*(1+'Generation Inputs'!$D$68) -> 0.1149247778 | Q150: =P150*(1+'Generation Inputs'!$D$68) -> 0.1181196866 | R150: =Q150*(1+'Generation Inputs'!$D$68) -> 0.1214034139 | S150: =R150*(1+'Generation Inputs'!$D$68) -> 0.1247784288 | T150: =S150*(1+'Generation Inputs'!$D$68) -> 0.1282472691 | U150: =T150*(1+'Generation Inputs'!$D$68) -> 0.1318125432 | V150: =U150*(1+'Generation Inputs'!$D$68) -> 0.1354769319 | W150: =V150*(1+'Generation Inputs'!$D$68) -> 0.1392431906 | X150: =W150*(1+'Generation Inputs'!$D$68) -> 0.1431141513 | Y150: =X150*(1+'Generation Inputs'!$D$68) -> 0.1470927247 | Z150: =Y150*(1+'Generation Inputs'!$D$68) -> 0.1511819024 | AA150: =Z150*(1+'Generation Inputs'!$D$68) -> 0.1553847593 | AB150: =AA150*(1+'Generation Inputs'!$D$68) -> 0.1597044556 | AC150: =AB150*(1+'Generation Inputs'!$D$68) -> 0.1641442395 | AD150: =AC150*(1+'Generation Inputs'!$D$68) -> 0.1687074493
B151: December | C151: ='Generation Inputs'!$D$48 -> 0.085 | D151: $/kWh | F151: =C151*(1+'Generation Inputs'!$D$68) -> 0.087363 | G151: =F151*(1+'Generation Inputs'!$D$68) -> 0.0897916914 | H151: =G151*(1+'Generation Inputs'!$D$68) -> 0.09228790042 | I151: =H151*(1+'Generation Inputs'!$D$68) -> 0.09485350405 | J151: =I151*(1+'Generation Inputs'!$D$68) -> 0.09749043147 | K151: =J151*(1+'Generation Inputs'!$D$68) -> 0.1002006655 | L151: =K151*(1+'Generation Inputs'!$D$68) -> 0.102986244 | M151: =L151*(1+'Generation Inputs'!$D$68) -> 0.1058492615 | N151: =M151*(1+'Generation Inputs'!$D$68) -> 0.108791871 | O151: =N151*(1+'Generation Inputs'!$D$68) -> 0.111816285 | P151: =O151*(1+'Generation Inputs'!$D$68) -> 0.1149247778 | Q151: =P151*(1+'Generation Inputs'!$D$68) -> 0.1181196866 | R151: =Q151*(1+'Generation Inputs'!$D$68) -> 0.1214034139 | S151: =R151*(1+'Generation Inputs'!$D$68) -> 0.1247784288 | T151: =S151*(1+'Generation Inputs'!$D$68) -> 0.1282472691 | U151: =T151*(1+'Generation Inputs'!$D$68) -> 0.1318125432 | V151: =U151*(1+'Generation Inputs'!$D$68) -> 0.1354769319 | W151: =V151*(1+'Generation Inputs'!$D$68) -> 0.1392431906 | X151: =W151*(1+'Generation Inputs'!$D$68) -> 0.1431141513 | Y151: =X151*(1+'Generation Inputs'!$D$68) -> 0.1470927247 | Z151: =Y151*(1+'Generation Inputs'!$D$68) -> 0.1511819024 | AA151: =Z151*(1+'Generation Inputs'!$D$68) -> 0.1553847593 | AB151: =AA151*(1+'Generation Inputs'!$D$68) -> 0.1597044556 | AC151: =AB151*(1+'Generation Inputs'!$D$68) -> 0.1641442395 | AD151: =AC151*(1+'Generation Inputs'!$D$68) -> 0.1687074493
B153: Load Offset Revenue Estimate
B154: Month
B155: January | D155: $ per mo. | F155: =F124*F140 -> 772.6596155 | G155: =G124*G140 -> 790.1688551 | H155: 808.0544661 | I155: 826.323843 | J155: 844.9845004 | K155: 864.0440743 | L155: 883.5103226 | M155: 903.3911265 | N155: 923.694491 | O155: 944.4285458 | P155: 965.601546 | Q155: 987.2218728 | R155: 1009.298034 | S155: 1031.838666 | T155: 1054.852531 | U155: 1078.34852 | V155: 1102.335654 | W155: 1126.823082 | X155: 1151.820082 | Y155: 1177.336061 | Z155: 1203.380556 | AA155: 1229.963233 | AB155: 1257.093885 | AC155: 1284.782438 | AD155: 1313.038941
B156: February | D156: $ per mo. | F156: =F125*F141 -> 996.724467 | G156: 1019.31124 | H156: 1042.383529 | I156: 1065.950873 | J156: 1090.022966 | K156: 1114.609657 | L156: 1139.720956 | M156: 1165.367027 | N156: 1191.558198 | O156: 1218.304956 | P156: 1245.61795 | Q156: 1273.507991 | R156: 1301.986056 | S156: 1331.063283 | T156: 1360.750976 | U156: 1391.060607 | V156: 1422.00381 | W156: 1453.592389 | X156: 1485.83831 | Y156: 1518.753711 | Z156: 1552.350892 | AA156: 1586.642323 | AB156: 1621.640639 | AC156: 1657.358641 | AD156: 1693.809295
B157: March | D157: $ per mo. | F157: =F126*F142 -> 1506.434847 | G157: 1540.572167 | H157: 1575.443289 | I157: 1611.06263 | J157: 1647.44484 | K157: 1684.604807 | L157: 1722.557658 | M157: 1761.318757 | N157: 1800.903712 | O157: 1841.328372 | P157: 1882.608833 | Q157: 1924.761436 | R157: 1967.802768 | S157: 2011.749665 | T157: 2056.619213 | U157: 2102.428748 | V157: 2149.195855 | W157: 2196.938372 | X157: 2245.674388 | Y157: 2295.422245 | Z157: 2346.200536 | AA157: 2398.028106 | AB157: 2450.924051 | AC157: 2504.907719 | AD157: 2559.998706
B158: April | D158: $ per mo. | F158: =F127*F143 -> 1776.372184 | G158: 1816.626554 | H158: 1857.746216 | I158: 1899.748169 | J158: 1942.64969 | K158: 1986.468334 | L158: 2031.221938 | M158: 2076.928619 | N158: 2123.606783 | O158: 2171.275119 | P158: 2219.952606 | Q158: 2269.658513 | R158: 2320.412401 | S158: 2372.234122 | T158: 2425.143823 | U158: 2479.161946 | V158: 2534.309228 | W158: 2590.606704 | X158: 2648.075704 | Y158: 2706.737855 | Z158: 2766.615084 | AA158: 2827.729611 | AB158: 2890.103955 | AC158: 2953.76093 | AD158: 3018.723645
B159: May | D159: $ per mo. | F159: =F128*F144 -> 1750.553474 | G159: 1790.222766 | H159: 1830.744774 | I159: 1872.136249 | J159: 1914.414217 | K159: 1957.595978 | L159: 2001.69911 | M159: 2046.741467 | N159: 2092.741186 | O159: 2139.716686 | P159: 2187.68667 | Q159: 2236.670126 | R159: 2286.68633 | S159: 2337.754847 | T159: 2389.895531 | U159: 2443.128527 | V159: 2497.47427 | W159: 2552.953489 | X159: 2609.587205 | Y159: 2667.396731 | Z159: 2726.403673 | AA159: 2786.62993 | AB159: 2848.097693 | AC159: 2910.829445 | AD159: 2974.847958
B160: June | D160: $ per mo. | F160: =F129*F145 -> 1797.404186 | G160: 1838.135163 | H160: 1879.741675 | I160: 1922.240926 | J160: 1965.650395 | K160: 2009.987846 | L160: 2055.271326 | M160: 2101.519169 | N160: 2148.749995 | O160: 2196.982718 | P160: 2246.23654 | Q160: 2296.530958 | R160: 2347.885765 | S160: 2400.321048 | T160: 2453.857192 | U160: 2508.514882 | V160: 2564.315101 | W160: 2621.279131 | X160: 2679.428556 | Y160: 2738.785259 | Z160: 2799.371426 | AA160: 2861.209541 | AB160: 2924.322389 | AC160: 2988.733054 | AD160: 3054.464918
B161: July | D161: $ per mo. | F161: =F130*F146 -> 1753.574152 | G161: 1793.311896 | H161: 1833.903826 | I161: 1875.366725 | J161: 1917.717646 | K161: 1960.97392 | L161: 2005.153154 | M161: 2050.273234 | N161: 2096.352328 | O161: 2143.408887 | P161: 2191.461645 | Q161: 2240.529625 | R161: 2290.632135 | S161: 2341.788774 | T161: 2394.01943 | U161: 2447.344282 | V161: 2501.783802 | W161: 2557.358753 | X161: 2614.090194 | Y161: 2671.999473 | Z161: 2731.108235 | AA161: 2791.438416 | AB161: 2853.012245 | AC161: 2915.852244 | AD161: 2979.981225
B162: August | D162: $ per mo. | F162: =F131*F147 -> 1596.842115 | G162: 1633.028154 | H162: 1669.992034 | I162: 1707.749035 | J162: 1746.31469 | K162: 1785.704778 | L162: 1825.935333 | M162: 1867.022642 | N162: 1908.983251 | O162: 1951.833959 | P162: 1995.591828 | Q162: 2040.27418 | R162: 2085.898597 | S162: 2132.482926 | T162: 2180.045277 | U162: 2228.604028 | V162: 2278.177819 | W162: 2328.785558 | X162: 2380.44642 | Y162: 2433.179848 | Z162: 2487.005551 | AA162: 2541.943503 | AB162: 2598.013949 | AC162: 2655.237395 | AD162: 2713.634616
B163: September | D163: $ per mo. | F163: =F132*F148 -> 1231.27531 | G163: 1259.17724 | H163: 1287.678938 | I163: 1316.792188 | J163: 1346.528965 | K163: 1376.901438 | L163: 1407.921968 | M163: 1439.603115 | N163: 1471.957636 | O163: 1504.998485 | P163: 1538.738817 | Q163: 1573.191989 | R163: 1608.371559 | S163: 1644.291286 | T163: 1680.965137 | U163: 1718.40728 | V163: 1756.632089 | W163: 1795.654143 | X163: 1835.488228 | Y163: 1876.149335 | Z163: 1917.652661 | AA163: 1960.013608 | AB163: 2003.247785 | AC163: 2047.371006 | AD163: 2092.399287
B164: October | D164: $ per mo. | F164: =F133*F149 -> 922.8023797 | G164: 943.7140045 | H164: 965.0751369 | I164: 986.8946084 | J164: 1009.181394 | K164: 1031.944613 | L164: 1055.193531 | M164: 1078.937561 | N164: 1103.186264 | O164: 1127.949348 | P164: 1153.236673 | Q164: 1179.058249 | R164: 1205.424238 | S164: 1232.344951 | T164: 1259.830857 | U164: 1287.892573 | V164: 1316.540873 | W164: 1345.786684 | X164: 1375.641086 | Y164: 1406.115316 | Z164: 1437.220762 | AA164: 1468.968968 | AB164: 1501.371633 | AC164: 1534.440609 | AD164: 1568.187899
B165: November | D165: $ per mo. | F165: =F134*F150 -> 590.3882336 | G165: 603.7670214 | H165: 617.4333941 | I165: 631.3930018 | J165: 645.6515865 | K165: 660.2149828 | L165: 675.0891185 | M165: 690.2800156 | N165: 705.7937907 | O165: 721.6366557 | P165: 737.8149183 | Q165: 754.3349827 | R165: 771.2033497 | S165: 788.4266177 | T165: 806.0114826 | U165: 823.9647384 | V165: 842.2932772 | W165: 861.00409 | X165: 880.1042659 | Y165: 899.6009933 | Z165: 919.5015589 | AA165: 939.8133484 | AB165: 960.5438457 | AC165: 981.7006334 | AD165: 1003.291392
B166: December | D166: $ per mo. | F166: =F135*F151 -> 600.0524456 | G166: 613.650234 | H166: 627.540315 | I166: 641.728431 | J166: 656.2204181 | K166: 671.0222062 | L166: 686.1398203 | M166: 701.579381 | N166: 717.3471049 | O166: 733.4493057 | P166: 749.8923944 | Q166: 766.6828797 | R166: 783.8273693 | S166: 801.3325692 | T166: 819.2052852 | U166: 837.4524223 | V166: 856.0809855 | W166: 875.0980802 | X166: 894.5109117 | Y166: 914.3267859 | Z166: 934.5531088 | AA166: 955.197387 | AB166: 976.267227 | AC166: 997.7703354 | AD166: 1019.714518
B167: Annual | D167: $ per yr. | F167: =SUM(F155:F166) -> 15295.08341 | G167: 15641.6853 | H167: 15995.73759 | I167: 16357.38668 | J167: 16726.78131 | K167: 17104.07263 | L167: 17489.41423 | M167: 17882.96212 | N167: 18284.87474 | O167: 18695.31304 | P167: 19114.44042 | Q167: 19542.4228 | R167: 19979.4286 | S167: 20425.62875 | T167: 20881.19673 | U167: 21346.30855 | V167: 21821.14276 | W167: 22305.88047 | X167: 22800.70535 | Y167: 23305.80361 | Z167: 23821.36404 | AA167: 24347.57797 | AB167: 24884.6393 | AC167: 25432.74445 | AD167: 25992.0924
B169: Direct To Grid Net Metering Value
B171: Direct To Grid Energy Generation
B172: Month | C172: Generation (kWh)
B173: January | C173: =C105*'Generation Inputs'!$D$52 -> 2948.081055 | D173: kWh's per mo. | F173: =($C173)*(1-((F$21-1)*('Generation Inputs'!$D$71))) -> 2948.081055 | G173: =($C173)*(1-((G$21-1)*('Generation Inputs'!$D$71))) -> 2933.340649 | H173: =($C173)*(1-((H$21-1)*('Generation Inputs'!$D$71))) -> 2918.600244 | I173: =($C173)*(1-((I$21-1)*('Generation Inputs'!$D$71))) -> 2903.859839 | J173: =($C173)*(1-((J$21-1)*('Generation Inputs'!$D$71))) -> 2889.119434 | K173: =($C173)*(1-((K$21-1)*('Generation Inputs'!$D$71))) -> 2874.379028 | L173: =($C173)*(1-((L$21-1)*('Generation Inputs'!$D$71))) -> 2859.638623 | M173: =($C173)*(1-((M$21-1)*('Generation Inputs'!$D$71))) -> 2844.898218 | N173: =($C173)*(1-((N$21-1)*('Generation Inputs'!$D$71))) -> 2830.157813 | O173: =($C173)*(1-((O$21-1)*('Generation Inputs'!$D$71))) -> 2815.417407 | P173: =($C173)*(1-((P$21-1)*('Generation Inputs'!$D$71))) -> 2800.677002 | Q173: =($C173)*(1-((Q$21-1)*('Generation Inputs'!$D$71))) -> 2785.936597 | R173: =($C173)*(1-((R$21-1)*('Generation Inputs'!$D$71))) -> 2771.196191 | S173: =($C173)*(1-((S$21-1)*('Generation Inputs'!$D$71))) -> 2756.455786 | T173: =($C173)*(1-((T$21-1)*('Generation Inputs'!$D$71))) -> 2741.715381 | U173: =($C173)*(1-((U$21-1)*('Generation Inputs'!$D$71))) -> 2726.974976 | V173: =($C173)*(1-((V$21-1)*('Generation Inputs'!$D$71))) -> 2712.23457 | W173: =($C173)*(1-((W$21-1)*('Generation Inputs'!$D$71))) -> 2697.494165 | X173: =($C173)*(1-((X$21-1)*('Generation Inputs'!$D$71))) -> 2682.75376 | Y173: =($C173)*(1-((Y$21-1)*('Generation Inputs'!$D$71))) -> 2668.013354 | Z173: =($C173)*(1-((Z$21-1)*('Generation Inputs'!$D$71))) -> 2653.272949 | AA173: =($C173)*(1-((AA$21-1)*('Generation Inputs'!$D$71))) -> 2638.532544 | AB173: =($C173)*(1-((AB$21-1)*('Generation Inputs'!$D$71))) -> 2623.792139 | AC173: =($C173)*(1-((AC$21-1)*('Generation Inputs'!$D$71))) -> 2609.051733 | AD173: =($C173)*(1-((AD$21-1)*('Generation Inputs'!$D$71))) -> 2594.311328
B174: February | C174: =C106*'Generation Inputs'!$D$52 -> 3803 | D174: kWh's per mo. | F174: =($C174)*(1-((F$21-1)*('Generation Inputs'!$D$71))) -> 3803 | G174: =($C174)*(1-((G$21-1)*('Generation Inputs'!$D$71))) -> 3783.985 | H174: =($C174)*(1-((H$21-1)*('Generation Inputs'!$D$71))) -> 3764.97 | I174: =($C174)*(1-((I$21-1)*('Generation Inputs'!$D$71))) -> 3745.955 | J174: =($C174)*(1-((J$21-1)*('Generation Inputs'!$D$71))) -> 3726.94 | K174: =($C174)*(1-((K$21-1)*('Generation Inputs'!$D$71))) -> 3707.925 | L174: =($C174)*(1-((L$21-1)*('Generation Inputs'!$D$71))) -> 3688.91 | M174: =($C174)*(1-((M$21-1)*('Generation Inputs'!$D$71))) -> 3669.895 | N174: =($C174)*(1-((N$21-1)*('Generation Inputs'!$D$71))) -> 3650.88 | O174: =($C174)*(1-((O$21-1)*('Generation Inputs'!$D$71))) -> 3631.865 | P174: =($C174)*(1-((P$21-1)*('Generation Inputs'!$D$71))) -> 3612.85 | Q174: =($C174)*(1-((Q$21-1)*('Generation Inputs'!$D$71))) -> 3593.835 | R174: =($C174)*(1-((R$21-1)*('Generation Inputs'!$D$71))) -> 3574.82 | S174: =($C174)*(1-((S$21-1)*('Generation Inputs'!$D$71))) -> 3555.805 | T174: =($C174)*(1-((T$21-1)*('Generation Inputs'!$D$71))) -> 3536.79 | U174: =($C174)*(1-((U$21-1)*('Generation Inputs'!$D$71))) -> 3517.775 | V174: =($C174)*(1-((V$21-1)*('Generation Inputs'!$D$71))) -> 3498.76 | W174: =($C174)*(1-((W$21-1)*('Generation Inputs'!$D$71))) -> 3479.745 | X174: =($C174)*(1-((X$21-1)*('Generation Inputs'!$D$71))) -> 3460.73 | Y174: =($C174)*(1-((Y$21-1)*('Generation Inputs'!$D$71))) -> 3441.715 | Z174: =($C174)*(1-((Z$21-1)*('Generation Inputs'!$D$71))) -> 3422.7 | AA174: =($C174)*(1-((AA$21-1)*('Generation Inputs'!$D$71))) -> 3403.685 | AB174: =($C174)*(1-((AB$21-1)*('Generation Inputs'!$D$71))) -> 3384.67 | AC174: =($C174)*(1-((AC$21-1)*('Generation Inputs'!$D$71))) -> 3365.655 | AD174: =($C174)*(1-((AD$21-1)*('Generation Inputs'!$D$71))) -> 3346.64
B175: March | C175: =C107*'Generation Inputs'!$D$52 -> 5747.798828 | D175: kWh's per mo. | F175: =($C175)*(1-((F$21-1)*('Generation Inputs'!$D$71))) -> 5747.798828 | G175: =($C175)*(1-((G$21-1)*('Generation Inputs'!$D$71))) -> 5719.059834 | H175: =($C175)*(1-((H$21-1)*('Generation Inputs'!$D$71))) -> 5690.32084 | I175: =($C175)*(1-((I$21-1)*('Generation Inputs'!$D$71))) -> 5661.581846 | J175: =($C175)*(1-((J$21-1)*('Generation Inputs'!$D$71))) -> 5632.842852 | K175: =($C175)*(1-((K$21-1)*('Generation Inputs'!$D$71))) -> 5604.103857 | L175: =($C175)*(1-((L$21-1)*('Generation Inputs'!$D$71))) -> 5575.364863 | M175: =($C175)*(1-((M$21-1)*('Generation Inputs'!$D$71))) -> 5546.625869 | N175: =($C175)*(1-((N$21-1)*('Generation Inputs'!$D$71))) -> 5517.886875 | O175: =($C175)*(1-((O$21-1)*('Generation Inputs'!$D$71))) -> 5489.147881 | P175: =($C175)*(1-((P$21-1)*('Generation Inputs'!$D$71))) -> 5460.408887 | Q175: =($C175)*(1-((Q$21-1)*('Generation Inputs'!$D$71))) -> 5431.669893 | R175: =($C175)*(1-((R$21-1)*('Generation Inputs'!$D$71))) -> 5402.930898 | S175: =($C175)*(1-((S$21-1)*('Generation Inputs'!$D$71))) -> 5374.191904 | T175: =($C175)*(1-((T$21-1)*('Generation Inputs'!$D$71))) -> 5345.45291 | U175: =($C175)*(1-((U$21-1)*('Generation Inputs'!$D$71))) -> 5316.713916 | V175: =($C175)*(1-((V$21-1)*('Generation Inputs'!$D$71))) -> 5287.974922 | W175: =($C175)*(1-((W$21-1)*('Generation Inputs'!$D$71))) -> 5259.235928 | X175: =($C175)*(1-((X$21-1)*('Generation Inputs'!$D$71))) -> 5230.496934 | Y175: =($C175)*(1-((Y$21-1)*('Generation Inputs'!$D$71))) -> 5201.757939 | Z175: =($C175)*(1-((Z$21-1)*('Generation Inputs'!$D$71))) -> 5173.018945 | AA175: =($C175)*(1-((AA$21-1)*('Generation Inputs'!$D$71))) -> 5144.279951 | AB175: =($C175)*(1-((AB$21-1)*('Generation Inputs'!$D$71))) -> 5115.540957 | AC175: =($C175)*(1-((AC$21-1)*('Generation Inputs'!$D$71))) -> 5086.801963 | AD175: =($C175)*(1-((AD$21-1)*('Generation Inputs'!$D$71))) -> 5058.062969
B176: April | C176: =C108*'Generation Inputs'!$D$52 -> 6777.744141 | D176: kWh's per mo. | F176: =($C176)*(1-((F$21-1)*('Generation Inputs'!$D$71))) -> 6777.744141 | G176: =($C176)*(1-((G$21-1)*('Generation Inputs'!$D$71))) -> 6743.85542 | H176: =($C176)*(1-((H$21-1)*('Generation Inputs'!$D$71))) -> 6709.966699 | I176: =($C176)*(1-((I$21-1)*('Generation Inputs'!$D$71))) -> 6676.077979 | J176: =($C176)*(1-((J$21-1)*('Generation Inputs'!$D$71))) -> 6642.189258 | K176: =($C176)*(1-((K$21-1)*('Generation Inputs'!$D$71))) -> 6608.300537 | L176: =($C176)*(1-((L$21-1)*('Generation Inputs'!$D$71))) -> 6574.411816 | M176: =($C176)*(1-((M$21-1)*('Generation Inputs'!$D$71))) -> 6540.523096 | N176: =($C176)*(1-((N$21-1)*('Generation Inputs'!$D$71))) -> 6506.634375 | O176: =($C176)*(1-((O$21-1)*('Generation Inputs'!$D$71))) -> 6472.745654 | P176: =($C176)*(1-((P$21-1)*('Generation Inputs'!$D$71))) -> 6438.856934 | Q176: =($C176)*(1-((Q$21-1)*('Generation Inputs'!$D$71))) -> 6404.968213 | R176: =($C176)*(1-((R$21-1)*('Generation Inputs'!$D$71))) -> 6371.079492 | S176: =($C176)*(1-((S$21-1)*('Generation Inputs'!$D$71))) -> 6337.190771 | T176: =($C176)*(1-((T$21-1)*('Generation Inputs'!$D$71))) -> 6303.302051 | U176: =($C176)*(1-((U$21-1)*('Generation Inputs'!$D$71))) -> 6269.41333 | V176: =($C176)*(1-((V$21-1)*('Generation Inputs'!$D$71))) -> 6235.524609 | W176: =($C176)*(1-((W$21-1)*('Generation Inputs'!$D$71))) -> 6201.635889 | X176: =($C176)*(1-((X$21-1)*('Generation Inputs'!$D$71))) -> 6167.747168 | Y176: =($C176)*(1-((Y$21-1)*('Generation Inputs'!$D$71))) -> 6133.858447 | Z176: =($C176)*(1-((Z$21-1)*('Generation Inputs'!$D$71))) -> 6099.969727 | AA176: =($C176)*(1-((AA$21-1)*('Generation Inputs'!$D$71))) -> 6066.081006 | AB176: =($C176)*(1-((AB$21-1)*('Generation Inputs'!$D$71))) -> 6032.192285 | AC176: =($C176)*(1-((AC$21-1)*('Generation Inputs'!$D$71))) -> 5998.303564 | AD176: =($C176)*(1-((AD$21-1)*('Generation Inputs'!$D$71))) -> 5964.414844
B177: May | C177: =C109*'Generation Inputs'!$D$52 -> 6679.23291 | D177: kWh's per mo. | F177: =($C177)*(1-((F$21-1)*('Generation Inputs'!$D$71))) -> 6679.23291 | G177: =($C177)*(1-((G$21-1)*('Generation Inputs'!$D$71))) -> 6645.836746 | H177: =($C177)*(1-((H$21-1)*('Generation Inputs'!$D$71))) -> 6612.440581 | I177: =($C177)*(1-((I$21-1)*('Generation Inputs'!$D$71))) -> 6579.044417 | J177: =($C177)*(1-((J$21-1)*('Generation Inputs'!$D$71))) -> 6545.648252 | K177: =($C177)*(1-((K$21-1)*('Generation Inputs'!$D$71))) -> 6512.252087 | L177: =($C177)*(1-((L$21-1)*('Generation Inputs'!$D$71))) -> 6478.855923 | M177: =($C177)*(1-((M$21-1)*('Generation Inputs'!$D$71))) -> 6445.459758 | N177: =($C177)*(1-((N$21-1)*('Generation Inputs'!$D$71))) -> 6412.063594 | O177: =($C177)*(1-((O$21-1)*('Generation Inputs'!$D$71))) -> 6378.667429 | P177: =($C177)*(1-((P$21-1)*('Generation Inputs'!$D$71))) -> 6345.271265 | Q177: =($C177)*(1-((Q$21-1)*('Generation Inputs'!$D$71))) -> 6311.8751 | R177: =($C177)*(1-((R$21-1)*('Generation Inputs'!$D$71))) -> 6278.478936 | S177: =($C177)*(1-((S$21-1)*('Generation Inputs'!$D$71))) -> 6245.082771 | T177: =($C177)*(1-((T$21-1)*('Generation Inputs'!$D$71))) -> 6211.686606 | U177: =($C177)*(1-((U$21-1)*('Generation Inputs'!$D$71))) -> 6178.290442 | V177: =($C177)*(1-((V$21-1)*('Generation Inputs'!$D$71))) -> 6144.894277 | W177: =($C177)*(1-((W$21-1)*('Generation Inputs'!$D$71))) -> 6111.498113 | X177: =($C177)*(1-((X$21-1)*('Generation Inputs'!$D$71))) -> 6078.101948 | Y177: =($C177)*(1-((Y$21-1)*('Generation Inputs'!$D$71))) -> 6044.705784 | Z177: =($C177)*(1-((Z$21-1)*('Generation Inputs'!$D$71))) -> 6011.309619 | AA177: =($C177)*(1-((AA$21-1)*('Generation Inputs'!$D$71))) -> 5977.913455 | AB177: =($C177)*(1-((AB$21-1)*('Generation Inputs'!$D$71))) -> 5944.51729 | AC177: =($C177)*(1-((AC$21-1)*('Generation Inputs'!$D$71))) -> 5911.121125 | AD177: =($C177)*(1-((AD$21-1)*('Generation Inputs'!$D$71))) -> 5877.724961
B178: June | C178: =C110*'Generation Inputs'!$D$52 -> 6857.991699 | D178: kWh's per mo. | F178: =($C178)*(1-((F$21-1)*('Generation Inputs'!$D$71))) -> 6857.991699 | G178: =($C178)*(1-((G$21-1)*('Generation Inputs'!$D$71))) -> 6823.701741 | H178: =($C178)*(1-((H$21-1)*('Generation Inputs'!$D$71))) -> 6789.411782 | I178: =($C178)*(1-((I$21-1)*('Generation Inputs'!$D$71))) -> 6755.121824 | J178: =($C178)*(1-((J$21-1)*('Generation Inputs'!$D$71))) -> 6720.831865 | K178: =($C178)*(1-((K$21-1)*('Generation Inputs'!$D$71))) -> 6686.541907 | L178: =($C178)*(1-((L$21-1)*('Generation Inputs'!$D$71))) -> 6652.251948 | M178: =($C178)*(1-((M$21-1)*('Generation Inputs'!$D$71))) -> 6617.96199 | N178: =($C178)*(1-((N$21-1)*('Generation Inputs'!$D$71))) -> 6583.672031 | O178: =($C178)*(1-((O$21-1)*('Generation Inputs'!$D$71))) -> 6549.382073 | P178: =($C178)*(1-((P$21-1)*('Generation Inputs'!$D$71))) -> 6515.092114 | Q178: =($C178)*(1-((Q$21-1)*('Generation Inputs'!$D$71))) -> 6480.802156 | R178: =($C178)*(1-((R$21-1)*('Generation Inputs'!$D$71))) -> 6446.512197 | S178: =($C178)*(1-((S$21-1)*('Generation Inputs'!$D$71))) -> 6412.222239 | T178: =($C178)*(1-((T$21-1)*('Generation Inputs'!$D$71))) -> 6377.93228 | U178: =($C178)*(1-((U$21-1)*('Generation Inputs'!$D$71))) -> 6343.642322 | V178: =($C178)*(1-((V$21-1)*('Generation Inputs'!$D$71))) -> 6309.352363 | W178: =($C178)*(1-((W$21-1)*('Generation Inputs'!$D$71))) -> 6275.062405 | X178: =($C178)*(1-((X$21-1)*('Generation Inputs'!$D$71))) -> 6240.772446 | Y178: =($C178)*(1-((Y$21-1)*('Generation Inputs'!$D$71))) -> 6206.482488 | Z178: =($C178)*(1-((Z$21-1)*('Generation Inputs'!$D$71))) -> 6172.192529 | AA178: =($C178)*(1-((AA$21-1)*('Generation Inputs'!$D$71))) -> 6137.902571 | AB178: =($C178)*(1-((AB$21-1)*('Generation Inputs'!$D$71))) -> 6103.612612 | AC178: =($C178)*(1-((AC$21-1)*('Generation Inputs'!$D$71))) -> 6069.322654 | AD178: =($C178)*(1-((AD$21-1)*('Generation Inputs'!$D$71))) -> 6035.032695
B179: July | C179: =C111*'Generation Inputs'!$D$52 -> 6690.758301 | D179: kWh's per mo. | F179: =($C179)*(1-((F$21-1)*('Generation Inputs'!$D$71))) -> 6690.758301 | G179: =($C179)*(1-((G$21-1)*('Generation Inputs'!$D$71))) -> 6657.304509 | H179: =($C179)*(1-((H$21-1)*('Generation Inputs'!$D$71))) -> 6623.850718 | I179: =($C179)*(1-((I$21-1)*('Generation Inputs'!$D$71))) -> 6590.396926 | J179: =($C179)*(1-((J$21-1)*('Generation Inputs'!$D$71))) -> 6556.943135 | K179: =($C179)*(1-((K$21-1)*('Generation Inputs'!$D$71))) -> 6523.489343 | L179: =($C179)*(1-((L$21-1)*('Generation Inputs'!$D$71))) -> 6490.035552 | M179: =($C179)*(1-((M$21-1)*('Generation Inputs'!$D$71))) -> 6456.58176 | N179: =($C179)*(1-((N$21-1)*('Generation Inputs'!$D$71))) -> 6423.127969 | O179: =($C179)*(1-((O$21-1)*('Generation Inputs'!$D$71))) -> 6389.674177 | P179: =($C179)*(1-((P$21-1)*('Generation Inputs'!$D$71))) -> 6356.220386 | Q179: =($C179)*(1-((Q$21-1)*('Generation Inputs'!$D$71))) -> 6322.766594 | R179: =($C179)*(1-((R$21-1)*('Generation Inputs'!$D$71))) -> 6289.312803 | S179: =($C179)*(1-((S$21-1)*('Generation Inputs'!$D$71))) -> 6255.859011 | T179: =($C179)*(1-((T$21-1)*('Generation Inputs'!$D$71))) -> 6222.40522 | U179: =($C179)*(1-((U$21-1)*('Generation Inputs'!$D$71))) -> 6188.951428 | V179: =($C179)*(1-((V$21-1)*('Generation Inputs'!$D$71))) -> 6155.497637 | W179: =($C179)*(1-((W$21-1)*('Generation Inputs'!$D$71))) -> 6122.043845 | X179: =($C179)*(1-((X$21-1)*('Generation Inputs'!$D$71))) -> 6088.590054 | Y179: =($C179)*(1-((Y$21-1)*('Generation Inputs'!$D$71))) -> 6055.136262 | Z179: =($C179)*(1-((Z$21-1)*('Generation Inputs'!$D$71))) -> 6021.682471 | AA179: =($C179)*(1-((AA$21-1)*('Generation Inputs'!$D$71))) -> 5988.228679 | AB179: =($C179)*(1-((AB$21-1)*('Generation Inputs'!$D$71))) -> 5954.774888 | AC179: =($C179)*(1-((AC$21-1)*('Generation Inputs'!$D$71))) -> 5921.321096 | AD179: =($C179)*(1-((AD$21-1)*('Generation Inputs'!$D$71))) -> 5887.867305
B180: August | C180: =C112*'Generation Inputs'!$D$52 -> 6092.747559 | D180: kWh's per mo. | F180: =($C180)*(1-((F$21-1)*('Generation Inputs'!$D$71))) -> 6092.747559 | G180: =($C180)*(1-((G$21-1)*('Generation Inputs'!$D$71))) -> 6062.283821 | H180: =($C180)*(1-((H$21-1)*('Generation Inputs'!$D$71))) -> 6031.820083 | I180: =($C180)*(1-((I$21-1)*('Generation Inputs'!$D$71))) -> 6001.356345 | J180: =($C180)*(1-((J$21-1)*('Generation Inputs'!$D$71))) -> 5970.892607 | K180: =($C180)*(1-((K$21-1)*('Generation Inputs'!$D$71))) -> 5940.42887 | L180: =($C180)*(1-((L$21-1)*('Generation Inputs'!$D$71))) -> 5909.965132 | M180: =($C180)*(1-((M$21-1)*('Generation Inputs'!$D$71))) -> 5879.501394 | N180: =($C180)*(1-((N$21-1)*('Generation Inputs'!$D$71))) -> 5849.037656 | O180: =($C180)*(1-((O$21-1)*('Generation Inputs'!$D$71))) -> 5818.573918 | P180: =($C180)*(1-((P$21-1)*('Generation Inputs'!$D$71))) -> 5788.110181 | Q180: =($C180)*(1-((Q$21-1)*('Generation Inputs'!$D$71))) -> 5757.646443 | R180: =($C180)*(1-((R$21-1)*('Generation Inputs'!$D$71))) -> 5727.182705 | S180: =($C180)*(1-((S$21-1)*('Generation Inputs'!$D$71))) -> 5696.718967 | T180: =($C180)*(1-((T$21-1)*('Generation Inputs'!$D$71))) -> 5666.255229 | U180: =($C180)*(1-((U$21-1)*('Generation Inputs'!$D$71))) -> 5635.791492 | V180: =($C180)*(1-((V$21-1)*('Generation Inputs'!$D$71))) -> 5605.327754 | W180: =($C180)*(1-((W$21-1)*('Generation Inputs'!$D$71))) -> 5574.864016 | X180: =($C180)*(1-((X$21-1)*('Generation Inputs'!$D$71))) -> 5544.400278 | Y180: =($C180)*(1-((Y$21-1)*('Generation Inputs'!$D$71))) -> 5513.936541 | Z180: =($C180)*(1-((Z$21-1)*('Generation Inputs'!$D$71))) -> 5483.472803 | AA180: =($C180)*(1-((AA$21-1)*('Generation Inputs'!$D$71))) -> 5453.009065 | AB180: =($C180)*(1-((AB$21-1)*('Generation Inputs'!$D$71))) -> 5422.545327 | AC180: =($C180)*(1-((AC$21-1)*('Generation Inputs'!$D$71))) -> 5392.081589 | AD180: =($C180)*(1-((AD$21-1)*('Generation Inputs'!$D$71))) -> 5361.617852
B181: September | C181: =C113*'Generation Inputs'!$D$52 -> 4697.928223 | D181: kWh's per mo. | F181: =($C181)*(1-((F$21-1)*('Generation Inputs'!$D$71))) -> 4697.928223 | G181: =($C181)*(1-((G$21-1)*('Generation Inputs'!$D$71))) -> 4674.438582 | H181: =($C181)*(1-((H$21-1)*('Generation Inputs'!$D$71))) -> 4650.94894 | I181: =($C181)*(1-((I$21-1)*('Generation Inputs'!$D$71))) -> 4627.459299 | J181: =($C181)*(1-((J$21-1)*('Generation Inputs'!$D$71))) -> 4603.969658 | K181: =($C181)*(1-((K$21-1)*('Generation Inputs'!$D$71))) -> 4580.480017 | L181: =($C181)*(1-((L$21-1)*('Generation Inputs'!$D$71))) -> 4556.990376 | M181: =($C181)*(1-((M$21-1)*('Generation Inputs'!$D$71))) -> 4533.500735 | N181: =($C181)*(1-((N$21-1)*('Generation Inputs'!$D$71))) -> 4510.011094 | O181: =($C181)*(1-((O$21-1)*('Generation Inputs'!$D$71))) -> 4486.521453 | P181: =($C181)*(1-((P$21-1)*('Generation Inputs'!$D$71))) -> 4463.031812 | Q181: =($C181)*(1-((Q$21-1)*('Generation Inputs'!$D$71))) -> 4439.54217 | R181: =($C181)*(1-((R$21-1)*('Generation Inputs'!$D$71))) -> 4416.052529 | S181: =($C181)*(1-((S$21-1)*('Generation Inputs'!$D$71))) -> 4392.562888 | T181: =($C181)*(1-((T$21-1)*('Generation Inputs'!$D$71))) -> 4369.073247 | U181: =($C181)*(1-((U$21-1)*('Generation Inputs'!$D$71))) -> 4345.583606 | V181: =($C181)*(1-((V$21-1)*('Generation Inputs'!$D$71))) -> 4322.093965 | W181: =($C181)*(1-((W$21-1)*('Generation Inputs'!$D$71))) -> 4298.604324 | X181: =($C181)*(1-((X$21-1)*('Generation Inputs'!$D$71))) -> 4275.114683 | Y181: =($C181)*(1-((Y$21-1)*('Generation Inputs'!$D$71))) -> 4251.625042 | Z181: =($C181)*(1-((Z$21-1)*('Generation Inputs'!$D$71))) -> 4228.1354 | AA181: =($C181)*(1-((AA$21-1)*('Generation Inputs'!$D$71))) -> 4204.645759 | AB181: =($C181)*(1-((AB$21-1)*('Generation Inputs'!$D$71))) -> 4181.156118 | AC181: =($C181)*(1-((AC$21-1)*('Generation Inputs'!$D$71))) -> 4157.666477 | AD181: =($C181)*(1-((AD$21-1)*('Generation Inputs'!$D$71))) -> 4134.176836
B182: October | C182: =C114*'Generation Inputs'!$D$52 -> 3520.950439 | D182: kWh's per mo. | F182: =($C182)*(1-((F$21-1)*('Generation Inputs'!$D$71))) -> 3520.950439 | G182: =($C182)*(1-((G$21-1)*('Generation Inputs'!$D$71))) -> 3503.345687 | H182: =($C182)*(1-((H$21-1)*('Generation Inputs'!$D$71))) -> 3485.740935 | I182: =($C182)*(1-((I$21-1)*('Generation Inputs'!$D$71))) -> 3468.136183 | J182: =($C182)*(1-((J$21-1)*('Generation Inputs'!$D$71))) -> 3450.531431 | K182: =($C182)*(1-((K$21-1)*('Generation Inputs'!$D$71))) -> 3432.926678 | L182: =($C182)*(1-((L$21-1)*('Generation Inputs'!$D$71))) -> 3415.321926 | M182: =($C182)*(1-((M$21-1)*('Generation Inputs'!$D$71))) -> 3397.717174 | N182: =($C182)*(1-((N$21-1)*('Generation Inputs'!$D$71))) -> 3380.112422 | O182: =($C182)*(1-((O$21-1)*('Generation Inputs'!$D$71))) -> 3362.50767 | P182: =($C182)*(1-((P$21-1)*('Generation Inputs'!$D$71))) -> 3344.902917 | Q182: =($C182)*(1-((Q$21-1)*('Generation Inputs'!$D$71))) -> 3327.298165 | R182: =($C182)*(1-((R$21-1)*('Generation Inputs'!$D$71))) -> 3309.693413 | S182: =($C182)*(1-((S$21-1)*('Generation Inputs'!$D$71))) -> 3292.088661 | T182: =($C182)*(1-((T$21-1)*('Generation Inputs'!$D$71))) -> 3274.483909 | U182: =($C182)*(1-((U$21-1)*('Generation Inputs'!$D$71))) -> 3256.879156 | V182: =($C182)*(1-((V$21-1)*('Generation Inputs'!$D$71))) -> 3239.274404 | W182: =($C182)*(1-((W$21-1)*('Generation Inputs'!$D$71))) -> 3221.669652 | X182: =($C182)*(1-((X$21-1)*('Generation Inputs'!$D$71))) -> 3204.0649 | Y182: =($C182)*(1-((Y$21-1)*('Generation Inputs'!$D$71))) -> 3186.460148 | Z182: =($C182)*(1-((Z$21-1)*('Generation Inputs'!$D$71))) -> 3168.855396 | AA182: =($C182)*(1-((AA$21-1)*('Generation Inputs'!$D$71))) -> 3151.250643 | AB182: =($C182)*(1-((AB$21-1)*('Generation Inputs'!$D$71))) -> 3133.645891 | AC182: =($C182)*(1-((AC$21-1)*('Generation Inputs'!$D$71))) -> 3116.041139 | AD182: =($C182)*(1-((AD$21-1)*('Generation Inputs'!$D$71))) -> 3098.436387
B183: November | C183: =C115*'Generation Inputs'!$D$52 -> 2252.625 | D183: kWh's per mo. | F183: =($C183)*(1-((F$21-1)*('Generation Inputs'!$D$71))) -> 2252.625 | G183: =($C183)*(1-((G$21-1)*('Generation Inputs'!$D$71))) -> 2241.361875 | H183: =($C183)*(1-((H$21-1)*('Generation Inputs'!$D$71))) -> 2230.09875 | I183: =($C183)*(1-((I$21-1)*('Generation Inputs'!$D$71))) -> 2218.835625 | J183: =($C183)*(1-((J$21-1)*('Generation Inputs'!$D$71))) -> 2207.5725 | K183: =($C183)*(1-((K$21-1)*('Generation Inputs'!$D$71))) -> 2196.309375 | L183: =($C183)*(1-((L$21-1)*('Generation Inputs'!$D$71))) -> 2185.04625 | M183: =($C183)*(1-((M$21-1)*('Generation Inputs'!$D$71))) -> 2173.783125 | N183: =($C183)*(1-((N$21-1)*('Generation Inputs'!$D$71))) -> 2162.52 | O183: =($C183)*(1-((O$21-1)*('Generation Inputs'!$D$71))) -> 2151.256875 | P183: =($C183)*(1-((P$21-1)*('Generation Inputs'!$D$71))) -> 2139.99375 | Q183: =($C183)*(1-((Q$21-1)*('Generation Inputs'!$D$71))) -> 2128.730625 | R183: =($C183)*(1-((R$21-1)*('Generation Inputs'!$D$71))) -> 2117.4675 | S183: =($C183)*(1-((S$21-1)*('Generation Inputs'!$D$71))) -> 2106.204375 | T183: =($C183)*(1-((T$21-1)*('Generation Inputs'!$D$71))) -> 2094.94125 | U183: =($C183)*(1-((U$21-1)*('Generation Inputs'!$D$71))) -> 2083.678125 | V183: =($C183)*(1-((V$21-1)*('Generation Inputs'!$D$71))) -> 2072.415 | W183: =($C183)*(1-((W$21-1)*('Generation Inputs'!$D$71))) -> 2061.151875 | X183: =($C183)*(1-((X$21-1)*('Generation Inputs'!$D$71))) -> 2049.88875 | Y183: =($C183)*(1-((Y$21-1)*('Generation Inputs'!$D$71))) -> 2038.625625 | Z183: =($C183)*(1-((Z$21-1)*('Generation Inputs'!$D$71))) -> 2027.3625 | AA183: =($C183)*(1-((AA$21-1)*('Generation Inputs'!$D$71))) -> 2016.099375 | AB183: =($C183)*(1-((AB$21-1)*('Generation Inputs'!$D$71))) -> 2004.83625 | AC183: =($C183)*(1-((AC$21-1)*('Generation Inputs'!$D$71))) -> 1993.573125 | AD183: =($C183)*(1-((AD$21-1)*('Generation Inputs'!$D$71))) -> 1982.31
B184: December | C184: =C116*'Generation Inputs'!$D$52 -> 2289.498779 | D184: kWh's per mo. | F184: =($C184)*(1-((F$21-1)*('Generation Inputs'!$D$71))) -> 2289.498779 | G184: =($C184)*(1-((G$21-1)*('Generation Inputs'!$D$71))) -> 2278.051285 | H184: =($C184)*(1-((H$21-1)*('Generation Inputs'!$D$71))) -> 2266.603792 | I184: =($C184)*(1-((I$21-1)*('Generation Inputs'!$D$71))) -> 2255.156298 | J184: =($C184)*(1-((J$21-1)*('Generation Inputs'!$D$71))) -> 2243.708804 | K184: =($C184)*(1-((K$21-1)*('Generation Inputs'!$D$71))) -> 2232.26131 | L184: =($C184)*(1-((L$21-1)*('Generation Inputs'!$D$71))) -> 2220.813816 | M184: =($C184)*(1-((M$21-1)*('Generation Inputs'!$D$71))) -> 2209.366322 | N184: =($C184)*(1-((N$21-1)*('Generation Inputs'!$D$71))) -> 2197.918828 | O184: =($C184)*(1-((O$21-1)*('Generation Inputs'!$D$71))) -> 2186.471334 | P184: =($C184)*(1-((P$21-1)*('Generation Inputs'!$D$71))) -> 2175.02384 | Q184: =($C184)*(1-((Q$21-1)*('Generation Inputs'!$D$71))) -> 2163.576346 | R184: =($C184)*(1-((R$21-1)*('Generation Inputs'!$D$71))) -> 2152.128853 | S184: =($C184)*(1-((S$21-1)*('Generation Inputs'!$D$71))) -> 2140.681359 | T184: =($C184)*(1-((T$21-1)*('Generation Inputs'!$D$71))) -> 2129.233865 | U184: =($C184)*(1-((U$21-1)*('Generation Inputs'!$D$71))) -> 2117.786371 | V184: =($C184)*(1-((V$21-1)*('Generation Inputs'!$D$71))) -> 2106.338877 | W184: =($C184)*(1-((W$21-1)*('Generation Inputs'!$D$71))) -> 2094.891383 | X184: =($C184)*(1-((X$21-1)*('Generation Inputs'!$D$71))) -> 2083.443889 | Y184: =($C184)*(1-((Y$21-1)*('Generation Inputs'!$D$71))) -> 2071.996395 | Z184: =($C184)*(1-((Z$21-1)*('Generation Inputs'!$D$71))) -> 2060.548901 | AA184: =($C184)*(1-((AA$21-1)*('Generation Inputs'!$D$71))) -> 2049.101407 | AB184: =($C184)*(1-((AB$21-1)*('Generation Inputs'!$D$71))) -> 2037.653914 | AC184: =($C184)*(1-((AC$21-1)*('Generation Inputs'!$D$71))) -> 2026.20642 | AD184: =($C184)*(1-((AD$21-1)*('Generation Inputs'!$D$71))) -> 2014.758926
B185: Annual | C185: =SUM(C173:C184) -> 58358.35693 | D185: kWh's per yr. | F185: =SUM(F173:F184) -> 58358.35693 | G185: 58066.56515 | H185: 57774.77336 | I185: 57482.98158 | J185: 57191.18979 | K185: 56899.39801 | L185: 56607.60623 | M185: 56315.81444 | N185: 56024.02266 | O185: 55732.23087 | P185: 55440.43909 | Q185: 55148.6473 | R185: 54856.85552 | S185: 54565.06373 | T185: 54273.27195 | U185: 53981.48016 | V185: 53689.68838 | W185: 53397.89659 | X185: 53106.10481 | Y185: 52814.31302 | Z185: 52522.52124 | AA185: 52230.72946 | AB185: 51938.93767 | AC185: 51647.14589 | AD185: 51355.3541 | AF185: =SUM(F185:AE185) -> 1371421.388
B187: Rate Schedule: Direct to Grid Net Metering
B188: Month | C188: Rate ($/kWh)
B189: January | C189: ='Generation Inputs'!$D$49 -> 0.088 | D189: $/kWh | F189: =C189*(1+'Generation Inputs'!$D$68) -> 0.0904464 | G189: =F189*(1+'Generation Inputs'!$D$68) -> 0.09296080992 | H189: =G189*(1+'Generation Inputs'!$D$68) -> 0.09554512044 | I189: =H189*(1+'Generation Inputs'!$D$68) -> 0.09820127478 | J189: =I189*(1+'Generation Inputs'!$D$68) -> 0.1009312702 | K189: =J189*(1+'Generation Inputs'!$D$68) -> 0.1037371595 | L189: =K189*(1+'Generation Inputs'!$D$68) -> 0.1066210526 | M189: =L189*(1+'Generation Inputs'!$D$68) -> 0.1095851178 | N189: =M189*(1+'Generation Inputs'!$D$68) -> 0.1126315841 | O189: =N189*(1+'Generation Inputs'!$D$68) -> 0.1157627421 | P189: =O189*(1+'Generation Inputs'!$D$68) -> 0.1189809464 | Q189: =P189*(1+'Generation Inputs'!$D$68) -> 0.1222886167 | R189: =Q189*(1+'Generation Inputs'!$D$68) -> 0.1256882402 | S189: =R189*(1+'Generation Inputs'!$D$68) -> 0.1291823733 | T189: =S189*(1+'Generation Inputs'!$D$68) -> 0.1327736433 | U189: =T189*(1+'Generation Inputs'!$D$68) -> 0.1364647506 | V189: =U189*(1+'Generation Inputs'!$D$68) -> 0.1402584706 | W189: =V189*(1+'Generation Inputs'!$D$68) -> 0.1441576561 | X189: =W189*(1+'Generation Inputs'!$D$68) -> 0.148165239 | Y189: =X189*(1+'Generation Inputs'!$D$68) -> 0.1522842326 | Z189: =Y189*(1+'Generation Inputs'!$D$68) -> 0.1565177343 | AA189: =Z189*(1+'Generation Inputs'!$D$68) -> 0.1608689273 | AB189: =AA189*(1+'Generation Inputs'!$D$68) -> 0.1653410835 | AC189: =AB189*(1+'Generation Inputs'!$D$68) -> 0.1699375656 | AD189: =AC189*(1+'Generation Inputs'!$D$68) -> 0.1746618299
B190: February | C190: ='Generation Inputs'!$D$49 -> 0.088 | D190: $/kWh | F190: =C190*(1+'Generation Inputs'!$D$68) -> 0.0904464 | G190: =F190*(1+'Generation Inputs'!$D$68) -> 0.09296080992 | H190: =G190*(1+'Generation Inputs'!$D$68) -> 0.09554512044 | I190: =H190*(1+'Generation Inputs'!$D$68) -> 0.09820127478 | J190: =I190*(1+'Generation Inputs'!$D$68) -> 0.1009312702 | K190: =J190*(1+'Generation Inputs'!$D$68) -> 0.1037371595 | L190: =K190*(1+'Generation Inputs'!$D$68) -> 0.1066210526 | M190: =L190*(1+'Generation Inputs'!$D$68) -> 0.1095851178 | N190: =M190*(1+'Generation Inputs'!$D$68) -> 0.1126315841 | O190: =N190*(1+'Generation Inputs'!$D$68) -> 0.1157627421 | P190: =O190*(1+'Generation Inputs'!$D$68) -> 0.1189809464 | Q190: =P190*(1+'Generation Inputs'!$D$68) -> 0.1222886167 | R190: =Q190*(1+'Generation Inputs'!$D$68) -> 0.1256882402 | S190: =R190*(1+'Generation Inputs'!$D$68) -> 0.1291823733 | T190: =S190*(1+'Generation Inputs'!$D$68) -> 0.1327736433 | U190: =T190*(1+'Generation Inputs'!$D$68) -> 0.1364647506 | V190: =U190*(1+'Generation Inputs'!$D$68) -> 0.1402584706 | W190: =V190*(1+'Generation Inputs'!$D$68) -> 0.1441576561 | X190: =W190*(1+'Generation Inputs'!$D$68) -> 0.148165239 | Y190: =X190*(1+'Generation Inputs'!$D$68) -> 0.1522842326 | Z190: =Y190*(1+'Generation Inputs'!$D$68) -> 0.1565177343 | AA190: =Z190*(1+'Generation Inputs'!$D$68) -> 0.1608689273 | AB190: =AA190*(1+'Generation Inputs'!$D$68) -> 0.1653410835 | AC190: =AB190*(1+'Generation Inputs'!$D$68) -> 0.1699375656 | AD190: =AC190*(1+'Generation Inputs'!$D$68) -> 0.1746618299
B191: March | C191: ='Generation Inputs'!$D$49 -> 0.088 | D191: $/kWh | F191: =C191*(1+'Generation Inputs'!$D$68) -> 0.0904464 | G191: =F191*(1+'Generation Inputs'!$D$68) -> 0.09296080992 | H191: =G191*(1+'Generation Inputs'!$D$68) -> 0.09554512044 | I191: =H191*(1+'Generation Inputs'!$D$68) -> 0.09820127478 | J191: =I191*(1+'Generation Inputs'!$D$68) -> 0.1009312702 | K191: =J191*(1+'Generation Inputs'!$D$68) -> 0.1037371595 | L191: =K191*(1+'Generation Inputs'!$D$68) -> 0.1066210526 | M191: =L191*(1+'Generation Inputs'!$D$68) -> 0.1095851178 | N191: =M191*(1+'Generation Inputs'!$D$68) -> 0.1126315841 | O191: =N191*(1+'Generation Inputs'!$D$68) -> 0.1157627421 | P191: =O191*(1+'Generation Inputs'!$D$68) -> 0.1189809464 | Q191: =P191*(1+'Generation Inputs'!$D$68) -> 0.1222886167 | R191: =Q191*(1+'Generation Inputs'!$D$68) -> 0.1256882402 | S191: =R191*(1+'Generation Inputs'!$D$68) -> 0.1291823733 | T191: =S191*(1+'Generation Inputs'!$D$68) -> 0.1327736433 | U191: =T191*(1+'Generation Inputs'!$D$68) -> 0.1364647506 | V191: =U191*(1+'Generation Inputs'!$D$68) -> 0.1402584706 | W191: =V191*(1+'Generation Inputs'!$D$68) -> 0.1441576561 | X191: =W191*(1+'Generation Inputs'!$D$68) -> 0.148165239 | Y191: =X191*(1+'Generation Inputs'!$D$68) -> 0.1522842326 | Z191: =Y191*(1+'Generation Inputs'!$D$68) -> 0.1565177343 | AA191: =Z191*(1+'Generation Inputs'!$D$68) -> 0.1608689273 | AB191: =AA191*(1+'Generation Inputs'!$D$68) -> 0.1653410835 | AC191: =AB191*(1+'Generation Inputs'!$D$68) -> 0.1699375656 | AD191: =AC191*(1+'Generation Inputs'!$D$68) -> 0.1746618299
B192: April | C192: ='Generation Inputs'!$D$49 -> 0.088 | D192: $/kWh | F192: =C192*(1+'Generation Inputs'!$D$68) -> 0.0904464 | G192: =F192*(1+'Generation Inputs'!$D$68) -> 0.09296080992 | H192: =G192*(1+'Generation Inputs'!$D$68) -> 0.09554512044 | I192: =H192*(1+'Generation Inputs'!$D$68) -> 0.09820127478 | J192: =I192*(1+'Generation Inputs'!$D$68) -> 0.1009312702 | K192: =J192*(1+'Generation Inputs'!$D$68) -> 0.1037371595 | L192: =K192*(1+'Generation Inputs'!$D$68) -> 0.1066210526 | M192: =L192*(1+'Generation Inputs'!$D$68) -> 0.1095851178 | N192: =M192*(1+'Generation Inputs'!$D$68) -> 0.1126315841 | O192: =N192*(1+'Generation Inputs'!$D$68) -> 0.1157627421 | P192: =O192*(1+'Generation Inputs'!$D$68) -> 0.1189809464 | Q192: =P192*(1+'Generation Inputs'!$D$68) -> 0.1222886167 | R192: =Q192*(1+'Generation Inputs'!$D$68) -> 0.1256882402 | S192: =R192*(1+'Generation Inputs'!$D$68) -> 0.1291823733 | T192: =S192*(1+'Generation Inputs'!$D$68) -> 0.1327736433 | U192: =T192*(1+'Generation Inputs'!$D$68) -> 0.1364647506 | V192: =U192*(1+'Generation Inputs'!$D$68) -> 0.1402584706 | W192: =V192*(1+'Generation Inputs'!$D$68) -> 0.1441576561 | X192: =W192*(1+'Generation Inputs'!$D$68) -> 0.148165239 | Y192: =X192*(1+'Generation Inputs'!$D$68) -> 0.1522842326 | Z192: =Y192*(1+'Generation Inputs'!$D$68) -> 0.1565177343 | AA192: =Z192*(1+'Generation Inputs'!$D$68) -> 0.1608689273 | AB192: =AA192*(1+'Generation Inputs'!$D$68) -> 0.1653410835 | AC192: =AB192*(1+'Generation Inputs'!$D$68) -> 0.1699375656 | AD192: =AC192*(1+'Generation Inputs'!$D$68) -> 0.1746618299
B193: May | C193: ='Generation Inputs'!$D$49 -> 0.088 | D193: $/kWh | F193: =C193*(1+'Generation Inputs'!$D$68) -> 0.0904464 | G193: =F193*(1+'Generation Inputs'!$D$68) -> 0.09296080992 | H193: =G193*(1+'Generation Inputs'!$D$68) -> 0.09554512044 | I193: =H193*(1+'Generation Inputs'!$D$68) -> 0.09820127478 | J193: =I193*(1+'Generation Inputs'!$D$68) -> 0.1009312702 | K193: =J193*(1+'Generation Inputs'!$D$68) -> 0.1037371595 | L193: =K193*(1+'Generation Inputs'!$D$68) -> 0.1066210526 | M193: =L193*(1+'Generation Inputs'!$D$68) -> 0.1095851178 | N193: =M193*(1+'Generation Inputs'!$D$68) -> 0.1126315841 | O193: =N193*(1+'Generation Inputs'!$D$68) -> 0.1157627421 | P193: =O193*(1+'Generation Inputs'!$D$68) -> 0.1189809464 | Q193: =P193*(1+'Generation Inputs'!$D$68) -> 0.1222886167 | R193: =Q193*(1+'Generation Inputs'!$D$68) -> 0.1256882402 | S193: =R193*(1+'Generation Inputs'!$D$68) -> 0.1291823733 | T193: =S193*(1+'Generation Inputs'!$D$68) -> 0.1327736433 | U193: =T193*(1+'Generation Inputs'!$D$68) -> 0.1364647506 | V193: =U193*(1+'Generation Inputs'!$D$68) -> 0.1402584706 | W193: =V193*(1+'Generation Inputs'!$D$68) -> 0.1441576561 | X193: =W193*(1+'Generation Inputs'!$D$68) -> 0.148165239 | Y193: =X193*(1+'Generation Inputs'!$D$68) -> 0.1522842326 | Z193: =Y193*(1+'Generation Inputs'!$D$68) -> 0.1565177343 | AA193: =Z193*(1+'Generation Inputs'!$D$68) -> 0.1608689273 | AB193: =AA193*(1+'Generation Inputs'!$D$68) -> 0.1653410835 | AC193: =AB193*(1+'Generation Inputs'!$D$68) -> 0.1699375656 | AD193: =AC193*(1+'Generation Inputs'!$D$68) -> 0.1746618299
B194: June | C194: ='Generation Inputs'!$D$49 -> 0.088 | D194: $/kWh | F194: =C194*(1+'Generation Inputs'!$D$68) -> 0.0904464 | G194: =F194*(1+'Generation Inputs'!$D$68) -> 0.09296080992 | H194: =G194*(1+'Generation Inputs'!$D$68) -> 0.09554512044 | I194: =H194*(1+'Generation Inputs'!$D$68) -> 0.09820127478 | J194: =I194*(1+'Generation Inputs'!$D$68) -> 0.1009312702 | K194: =J194*(1+'Generation Inputs'!$D$68) -> 0.1037371595 | L194: =K194*(1+'Generation Inputs'!$D$68) -> 0.1066210526 | M194: =L194*(1+'Generation Inputs'!$D$68) -> 0.1095851178 | N194: =M194*(1+'Generation Inputs'!$D$68) -> 0.1126315841 | O194: =N194*(1+'Generation Inputs'!$D$68) -> 0.1157627421 | P194: =O194*(1+'Generation Inputs'!$D$68) -> 0.1189809464 | Q194: =P194*(1+'Generation Inputs'!$D$68) -> 0.1222886167 | R194: =Q194*(1+'Generation Inputs'!$D$68) -> 0.1256882402 | S194: =R194*(1+'Generation Inputs'!$D$68) -> 0.1291823733 | T194: =S194*(1+'Generation Inputs'!$D$68) -> 0.1327736433 | U194: =T194*(1+'Generation Inputs'!$D$68) -> 0.1364647506 | V194: =U194*(1+'Generation Inputs'!$D$68) -> 0.1402584706 | W194: =V194*(1+'Generation Inputs'!$D$68) -> 0.1441576561 | X194: =W194*(1+'Generation Inputs'!$D$68) -> 0.148165239 | Y194: =X194*(1+'Generation Inputs'!$D$68) -> 0.1522842326 | Z194: =Y194*(1+'Generation Inputs'!$D$68) -> 0.1565177343 | AA194: =Z194*(1+'Generation Inputs'!$D$68) -> 0.1608689273 | AB194: =AA194*(1+'Generation Inputs'!$D$68) -> 0.1653410835 | AC194: =AB194*(1+'Generation Inputs'!$D$68) -> 0.1699375656 | AD194: =AC194*(1+'Generation Inputs'!$D$68) -> 0.1746618299
B195: July | C195: ='Generation Inputs'!$D$49 -> 0.088 | D195: $/kWh | F195: =C195*(1+'Generation Inputs'!$D$68) -> 0.0904464 | G195: =F195*(1+'Generation Inputs'!$D$68) -> 0.09296080992 | H195: =G195*(1+'Generation Inputs'!$D$68) -> 0.09554512044 | I195: =H195*(1+'Generation Inputs'!$D$68) -> 0.09820127478 | J195: =I195*(1+'Generation Inputs'!$D$68) -> 0.1009312702 | K195: =J195*(1+'Generation Inputs'!$D$68) -> 0.1037371595 | L195: =K195*(1+'Generation Inputs'!$D$68) -> 0.1066210526 | M195: =L195*(1+'Generation Inputs'!$D$68) -> 0.1095851178 | N195: =M195*(1+'Generation Inputs'!$D$68) -> 0.1126315841 | O195: =N195*(1+'Generation Inputs'!$D$68) -> 0.1157627421 | P195: =O195*(1+'Generation Inputs'!$D$68) -> 0.1189809464 | Q195: =P195*(1+'Generation Inputs'!$D$68) -> 0.1222886167 | R195: =Q195*(1+'Generation Inputs'!$D$68) -> 0.1256882402 | S195: =R195*(1+'Generation Inputs'!$D$68) -> 0.1291823733 | T195: =S195*(1+'Generation Inputs'!$D$68) -> 0.1327736433 | U195: =T195*(1+'Generation Inputs'!$D$68) -> 0.1364647506 | V195: =U195*(1+'Generation Inputs'!$D$68) -> 0.1402584706 | W195: =V195*(1+'Generation Inputs'!$D$68) -> 0.1441576561 | X195: =W195*(1+'Generation Inputs'!$D$68) -> 0.148165239 | Y195: =X195*(1+'Generation Inputs'!$D$68) -> 0.1522842326 | Z195: =Y195*(1+'Generation Inputs'!$D$68) -> 0.1565177343 | AA195: =Z195*(1+'Generation Inputs'!$D$68) -> 0.1608689273 | AB195: =AA195*(1+'Generation Inputs'!$D$68) -> 0.1653410835 | AC195: =AB195*(1+'Generation Inputs'!$D$68) -> 0.1699375656 | AD195: =AC195*(1+'Generation Inputs'!$D$68) -> 0.1746618299
B196: August | C196: ='Generation Inputs'!$D$49 -> 0.088 | D196: $/kWh | F196: =C196*(1+'Generation Inputs'!$D$68) -> 0.0904464 | G196: =F196*(1+'Generation Inputs'!$D$68) -> 0.09296080992 | H196: =G196*(1+'Generation Inputs'!$D$68) -> 0.09554512044 | I196: =H196*(1+'Generation Inputs'!$D$68) -> 0.09820127478 | J196: =I196*(1+'Generation Inputs'!$D$68) -> 0.1009312702 | K196: =J196*(1+'Generation Inputs'!$D$68) -> 0.1037371595 | L196: =K196*(1+'Generation Inputs'!$D$68) -> 0.1066210526 | M196: =L196*(1+'Generation Inputs'!$D$68) -> 0.1095851178 | N196: =M196*(1+'Generation Inputs'!$D$68) -> 0.1126315841 | O196: =N196*(1+'Generation Inputs'!$D$68) -> 0.1157627421 | P196: =O196*(1+'Generation Inputs'!$D$68) -> 0.1189809464 | Q196: =P196*(1+'Generation Inputs'!$D$68) -> 0.1222886167 | R196: =Q196*(1+'Generation Inputs'!$D$68) -> 0.1256882402 | S196: =R196*(1+'Generation Inputs'!$D$68) -> 0.1291823733 | T196: =S196*(1+'Generation Inputs'!$D$68) -> 0.1327736433 | U196: =T196*(1+'Generation Inputs'!$D$68) -> 0.1364647506 | V196: =U196*(1+'Generation Inputs'!$D$68) -> 0.1402584706 | W196: =V196*(1+'Generation Inputs'!$D$68) -> 0.1441576561 | X196: =W196*(1+'Generation Inputs'!$D$68) -> 0.148165239 | Y196: =X196*(1+'Generation Inputs'!$D$68) -> 0.1522842326 | Z196: =Y196*(1+'Generation Inputs'!$D$68) -> 0.1565177343 | AA196: =Z196*(1+'Generation Inputs'!$D$68) -> 0.1608689273 | AB196: =AA196*(1+'Generation Inputs'!$D$68) -> 0.1653410835 | AC196: =AB196*(1+'Generation Inputs'!$D$68) -> 0.1699375656 | AD196: =AC196*(1+'Generation Inputs'!$D$68) -> 0.1746618299
B197: September | C197: ='Generation Inputs'!$D$49 -> 0.088 | D197: $/kWh | F197: =C197*(1+'Generation Inputs'!$D$68) -> 0.0904464 | G197: =F197*(1+'Generation Inputs'!$D$68) -> 0.09296080992 | H197: =G197*(1+'Generation Inputs'!$D$68) -> 0.09554512044 | I197: =H197*(1+'Generation Inputs'!$D$68) -> 0.09820127478 | J197: =I197*(1+'Generation Inputs'!$D$68) -> 0.1009312702 | K197: =J197*(1+'Generation Inputs'!$D$68) -> 0.1037371595 | L197: =K197*(1+'Generation Inputs'!$D$68) -> 0.1066210526 | M197: =L197*(1+'Generation Inputs'!$D$68) -> 0.1095851178 | N197: =M197*(1+'Generation Inputs'!$D$68) -> 0.1126315841 | O197: =N197*(1+'Generation Inputs'!$D$68) -> 0.1157627421 | P197: =O197*(1+'Generation Inputs'!$D$68) -> 0.1189809464 | Q197: =P197*(1+'Generation Inputs'!$D$68) -> 0.1222886167 | R197: =Q197*(1+'Generation Inputs'!$D$68) -> 0.1256882402 | S197: =R197*(1+'Generation Inputs'!$D$68) -> 0.1291823733 | T197: =S197*(1+'Generation Inputs'!$D$68) -> 0.1327736433 | U197: =T197*(1+'Generation Inputs'!$D$68) -> 0.1364647506 | V197: =U197*(1+'Generation Inputs'!$D$68) -> 0.1402584706 | W197: =V197*(1+'Generation Inputs'!$D$68) -> 0.1441576561 | X197: =W197*(1+'Generation Inputs'!$D$68) -> 0.148165239 | Y197: =X197*(1+'Generation Inputs'!$D$68) -> 0.1522842326 | Z197: =Y197*(1+'Generation Inputs'!$D$68) -> 0.1565177343 | AA197: =Z197*(1+'Generation Inputs'!$D$68) -> 0.1608689273 | AB197: =AA197*(1+'Generation Inputs'!$D$68) -> 0.1653410835 | AC197: =AB197*(1+'Generation Inputs'!$D$68) -> 0.1699375656 | AD197: =AC197*(1+'Generation Inputs'!$D$68) -> 0.1746618299
B198: October | C198: ='Generation Inputs'!$D$49 -> 0.088 | D198: $/kWh | F198: =C198*(1+'Generation Inputs'!$D$68) -> 0.0904464 | G198: =F198*(1+'Generation Inputs'!$D$68) -> 0.09296080992 | H198: =G198*(1+'Generation Inputs'!$D$68) -> 0.09554512044 | I198: =H198*(1+'Generation Inputs'!$D$68) -> 0.09820127478 | J198: =I198*(1+'Generation Inputs'!$D$68) -> 0.1009312702 | K198: =J198*(1+'Generation Inputs'!$D$68) -> 0.1037371595 | L198: =K198*(1+'Generation Inputs'!$D$68) -> 0.1066210526 | M198: =L198*(1+'Generation Inputs'!$D$68) -> 0.1095851178 | N198: =M198*(1+'Generation Inputs'!$D$68) -> 0.1126315841 | O198: =N198*(1+'Generation Inputs'!$D$68) -> 0.1157627421 | P198: =O198*(1+'Generation Inputs'!$D$68) -> 0.1189809464 | Q198: =P198*(1+'Generation Inputs'!$D$68) -> 0.1222886167 | R198: =Q198*(1+'Generation Inputs'!$D$68) -> 0.1256882402 | S198: =R198*(1+'Generation Inputs'!$D$68) -> 0.1291823733 | T198: =S198*(1+'Generation Inputs'!$D$68) -> 0.1327736433 | U198: =T198*(1+'Generation Inputs'!$D$68) -> 0.1364647506 | V198: =U198*(1+'Generation Inputs'!$D$68) -> 0.1402584706 | W198: =V198*(1+'Generation Inputs'!$D$68) -> 0.1441576561 | X198: =W198*(1+'Generation Inputs'!$D$68) -> 0.148165239 | Y198: =X198*(1+'Generation Inputs'!$D$68) -> 0.1522842326 | Z198: =Y198*(1+'Generation Inputs'!$D$68) -> 0.1565177343 | AA198: =Z198*(1+'Generation Inputs'!$D$68) -> 0.1608689273 | AB198: =AA198*(1+'Generation Inputs'!$D$68) -> 0.1653410835 | AC198: =AB198*(1+'Generation Inputs'!$D$68) -> 0.1699375656 | AD198: =AC198*(1+'Generation Inputs'!$D$68) -> 0.1746618299
B199: November | C199: ='Generation Inputs'!$D$49 -> 0.088 | D199: $/kWh | F199: =C199*(1+'Generation Inputs'!$D$68) -> 0.0904464 | G199: =F199*(1+'Generation Inputs'!$D$68) -> 0.09296080992 | H199: =G199*(1+'Generation Inputs'!$D$68) -> 0.09554512044 | I199: =H199*(1+'Generation Inputs'!$D$68) -> 0.09820127478 | J199: =I199*(1+'Generation Inputs'!$D$68) -> 0.1009312702 | K199: =J199*(1+'Generation Inputs'!$D$68) -> 0.1037371595 | L199: =K199*(1+'Generation Inputs'!$D$68) -> 0.1066210526 | M199: =L199*(1+'Generation Inputs'!$D$68) -> 0.1095851178 | N199: =M199*(1+'Generation Inputs'!$D$68) -> 0.1126315841 | O199: =N199*(1+'Generation Inputs'!$D$68) -> 0.1157627421 | P199: =O199*(1+'Generation Inputs'!$D$68) -> 0.1189809464 | Q199: =P199*(1+'Generation Inputs'!$D$68) -> 0.1222886167 | R199: =Q199*(1+'Generation Inputs'!$D$68) -> 0.1256882402 | S199: =R199*(1+'Generation Inputs'!$D$68) -> 0.1291823733 | T199: =S199*(1+'Generation Inputs'!$D$68) -> 0.1327736433 | U199: =T199*(1+'Generation Inputs'!$D$68) -> 0.1364647506 | V199: =U199*(1+'Generation Inputs'!$D$68) -> 0.1402584706 | W199: =V199*(1+'Generation Inputs'!$D$68) -> 0.1441576561 | X199: =W199*(1+'Generation Inputs'!$D$68) -> 0.148165239 | Y199: =X199*(1+'Generation Inputs'!$D$68) -> 0.1522842326 | Z199: =Y199*(1+'Generation Inputs'!$D$68) -> 0.1565177343 | AA199: =Z199*(1+'Generation Inputs'!$D$68) -> 0.1608689273 | AB199: =AA199*(1+'Generation Inputs'!$D$68) -> 0.1653410835 | AC199: =AB199*(1+'Generation Inputs'!$D$68) -> 0.1699375656 | AD199: =AC199*(1+'Generation Inputs'!$D$68) -> 0.1746618299
B200: December | C200: ='Generation Inputs'!$D$49 -> 0.088 | D200: $/kWh | F200: =C200*(1+'Generation Inputs'!$D$68) -> 0.0904464 | G200: =F200*(1+'Generation Inputs'!$D$68) -> 0.09296080992 | H200: =G200*(1+'Generation Inputs'!$D$68) -> 0.09554512044 | I200: =H200*(1+'Generation Inputs'!$D$68) -> 0.09820127478 | J200: =I200*(1+'Generation Inputs'!$D$68) -> 0.1009312702 | K200: =J200*(1+'Generation Inputs'!$D$68) -> 0.1037371595 | L200: =K200*(1+'Generation Inputs'!$D$68) -> 0.1066210526 | M200: =L200*(1+'Generation Inputs'!$D$68) -> 0.1095851178 | N200: =M200*(1+'Generation Inputs'!$D$68) -> 0.1126315841 | O200: =N200*(1+'Generation Inputs'!$D$68) -> 0.1157627421 | P200: =O200*(1+'Generation Inputs'!$D$68) -> 0.1189809464 | Q200: =P200*(1+'Generation Inputs'!$D$68) -> 0.1222886167 | R200: =Q200*(1+'Generation Inputs'!$D$68) -> 0.1256882402 | S200: =R200*(1+'Generation Inputs'!$D$68) -> 0.1291823733 | T200: =S200*(1+'Generation Inputs'!$D$68) -> 0.1327736433 | U200: =T200*(1+'Generation Inputs'!$D$68) -> 0.1364647506 | V200: =U200*(1+'Generation Inputs'!$D$68) -> 0.1402584706 | W200: =V200*(1+'Generation Inputs'!$D$68) -> 0.1441576561 | X200: =W200*(1+'Generation Inputs'!$D$68) -> 0.148165239 | Y200: =X200*(1+'Generation Inputs'!$D$68) -> 0.1522842326 | Z200: =Y200*(1+'Generation Inputs'!$D$68) -> 0.1565177343 | AA200: =Z200*(1+'Generation Inputs'!$D$68) -> 0.1608689273 | AB200: =AA200*(1+'Generation Inputs'!$D$68) -> 0.1653410835 | AC200: =AB200*(1+'Generation Inputs'!$D$68) -> 0.1699375656 | AD200: =AC200*(1+'Generation Inputs'!$D$68) -> 0.1746618299
B202: Revenue Estimate: Direct to Grid Net Metering
B203: Month
B204: January | D204: $ per mo. | F204: =F173*F189 -> 266.6433183 | G204: =G173*G189 -> 272.6857225 | H204: 278.8580118 | I204: 285.162738 | J204: 291.6024943 | K204: 298.1799158 | L204: 304.89768 | M204: 311.7585064 | N204: 318.7651577 | O204: 325.9204393 | P204: 333.2272002 | Q204: 340.6883326 | R204: 348.3067726 | S204: 356.0855004 | T204: 364.02754 | U204: 372.1359599 | V204: 380.4138728 | W204: 388.8644362 | X204: 397.4908519 | Y204: 406.2963663 | Z204: 415.2842704 | AA204: 424.4578999 | AB204: 433.820635 | AC204: 443.3759 | AD204: 453.1271639
B205: February | D205: $ per mo. | F205: =F174*F190 -> 343.9676592 | G205: 351.7623103 | H205: 359.7245121 | I205: 367.8575563 | J205: 376.1647882 | K205: 384.6496073 | L205: 393.315467 | M205: 402.165876 | N205: 411.2043978 | O205: 420.4346515 | P205: 429.8603121 | Q205: 439.4851107 | R205: 449.3128349 | S205: 459.3473289 | T205: 469.5924938 | U205: 480.0522879 | V205: 490.7307267 | W205: 501.6318831 | X205: 512.7598874 | Y205: 524.1189276 | Z205: 535.7132491 | AA205: 547.5471548 | AB205: 559.625005 | AC205: 571.9512173 | AD205: 584.5302664
B206: March | D206: $ per mo. | F206: =F175*F191 -> 519.8677119 | G206: 531.6484341 | H206: 543.68239 | I206: 555.9745545 | J206: 568.529984 | K206: 581.3538159 | L206: 594.4512702 | M206: 607.8276494 | N206: 621.4883397 | O206: 635.4388107 | P206: 649.6846169 | Q206: 664.2313975 | R206: 679.0848767 | S206: 694.2508648 | T206: 709.7352579 | U206: 725.5440384 | V206: 741.6832753 | W206: 758.1591243 | X206: 774.977828 | Y206: 792.145716 | Z206: 809.6692047 | AA206: 827.5547974 | AB206: 845.8090843 | AC206: 864.4387422 | AD206: 883.4505339
B207: April | D207: $ per mo. | F207: =F176*F192 -> 613.0225576 | G207: 626.9142618 | H207: 641.1045764 | I207: 655.599368 | J207: 670.4045989 | K207: 685.5263271 | L207: 700.9707079 | M207: 716.7439941 | N207: 732.8525369 | O207: 749.3027862 | P207: 766.1012915 | Q207: 783.2547027 | R207: 800.7697697 | S207: 818.653344 | T207: 836.912378 | U207: 855.5539263 | V207: 874.5851453 | W207: 894.0132938 | X207: 913.845733 | Y207: 934.0899265 | Z207: 954.7534407 | AA207: 975.8439442 | AB207: 997.3692081 | AC207: 1019.337105 | AD207: 1041.755611
B208: May | D208: $ per mo. | F208: =F177*F193 -> 604.1125715 | G208: 617.8023665 | H208: 631.7864317 | I208: 646.0705486 | J208: 660.6605925 | K208: 675.5625337 | L208: 690.7824379 | M208: 706.3264671 | N208: 722.20088 | O208: 738.4120328 | P208: 754.9663801 | Q208: 771.8704747 | R208: 789.1309687 | S208: 806.7546139 | T208: 824.7482617 | U208: 843.1188641 | V208: 861.8734736 | W208: 881.0192433 | X208: 900.5634276 | Y208: 920.5133816 | Z208: 940.8765616 | AA208: 961.6605248 | AB208: 982.8729294 | AC208: 1004.521534 | AD208: 1026.614197
B209: June | D209: $ per mo. | F209: =F178*F194 -> 620.2806604 | G209: 634.3368405 | H209: 648.6951664 | I209: 663.3615744 | J209: 678.3420971 | K209: 693.6428645 | L209: 709.2701047 | M209: 725.2301445 | N209: 741.5294101 | O209: 758.1744281 | P209: 775.1718255 | Q209: 792.5283306 | R209: 810.2507737 | S209: 828.346087 | T209: 846.8213055 | U209: 865.6835671 | V209: 884.9401132 | W209: 904.5982883 | X209: 924.6655408 | Y209: 945.1494228 | Z209: 966.0575902 | AA209: 987.3978023 | AB209: 1009.177922 | AC209: 1031.405917 | AD209: 1054.089854
B210: July | D210: $ per mo. | F210: =F179*F195 -> 605.1550016 | G210: 618.8684191 | H210: 632.8766146 | I210: 647.1853795 | J210: 661.8005994 | K210: 676.7282547 | L210: 691.9744217 | M210: 707.545273 | N210: 723.447078 | O210: 739.6862042 | P210: 756.2691169 | Q210: 773.2023804 | R210: 790.4926584 | S210: 808.1467142 | T210: 826.171411 | U210: 844.5737129 | V210: 863.3606845 | W210: 882.5394914 | X210: 902.1174002 | Y210: 922.101779 | Z210: 942.5000968 | AA210: 963.3199239 | AB210: 984.5689317 | AC210: 1006.254892 | AD210: 1028.385678
B211: August | D211: $ per mo. | F211: =F180*F196 -> 551.0670828 | G211: 563.5548139 | H211: 576.3109763 | I211: 589.3408435 | J211: 602.6497752 | K211: 616.2432174 | L211: 630.126703 | M211: 644.3058531 | N211: 658.7863767 | O211: 673.5740722 | P211: 688.674827 | Q211: 704.0946189 | R211: 719.8395157 | S211: 735.9156763 | T211: 752.3293506 | U211: 769.0868802 | V211: 786.1946982 | W211: 803.6593297 | X211: 821.4873921 | Y211: 839.6855947 | Z211: 858.260739 | AA211: 877.2197187 | AB211: 896.5695195 | AC211: 916.3172187 | AD211: 936.4699852
B212: September | D212: $ per mo. | F212: =F181*F197 -> 424.9106952 | G212: 434.5395965 | H212: 444.3754767 | I212: 454.4224022 | J212: 464.6845057 | K212: 475.1659863 | L212: 485.8711104 | M212: 496.8042122 | N212: 507.9696938 | O212: 519.3720261 | P212: 531.0157486 | Q212: 542.9054707 | R212: 555.0458712 | S212: 567.4416988 | T212: 580.0977728 | U212: 593.0189829 | V212: 606.2102895 | W212: 619.6767239 | X212: 633.4233885 | Y212: 647.4554568 | Z212: 661.7781731 | AA212: 676.3968529 | AB212: 691.3168827 | AC212: 706.5437196 | AD212: 722.0828913
B213: October | D213: $ per mo. | F213: =F182*F198 -> 318.4572918 | G213: 325.6738525 | H213: 333.0455374 | I213: 340.5753943 | J213: 348.2665202 | K213: 356.1220625 | L213: 364.1452186 | M213: 372.3392369 | N213: 380.7074165 | O213: 389.2531083 | P213: 397.9797147 | Q213: 406.8906899 | R213: 415.9895408 | S213: 425.2798264 | T213: 434.7651584 | U213: 444.4492017 | V213: 454.3356739 | W213: 464.4283458 | X213: 474.7310415 | Y213: 485.2476383 | Z213: 495.9820667 | AA213: 506.9383106 | AB213: 518.1204068 | AC213: 529.5324454 | AD213: 541.1785691
B214: November | D214: $ per mo. | F214: =F183*F199 -> 203.7418218 | G214: 208.3588152 | H214: 213.0750537 | I214: 217.8924869 | J214: 222.8130965 | K214: 227.838896 | L214: 232.9719311 | M214: 238.2142799 | N214: 243.5680533 | O214: 249.0353949 | P214: 254.6184816 | Q214: 260.3195234 | R214: 266.1407638 | S214: 272.0844798 | T214: 278.1529822 | U214: 284.3486156 | V214: 290.6737584 | W214: 297.1308232 | X214: 303.7222565 | Y214: 310.4505389 | Z214: 317.318185 | AA214: 324.3277437 | AB214: 331.4817977 | AC214: 338.7829637 | AD214: 346.233892
B215: December | D215: $ per mo. | F215: =F184*F200 -> 207.0769224 | G215: 211.7694925 | H215: 216.5629322 | I215: 221.4592233 | J215: 226.4603796 | K215: 231.5684476 | L215: 236.7855066 | M215: 242.1136687 | N215: 247.5550794 | O215: 253.1119173 | P215: 258.7863949 | Q215: 264.5807585 | R215: 270.4972882 | S215: 276.5382984 | T215: 282.7061376 | U215: 289.0031889 | V215: 295.4318695 | W215: 301.9946316 | X215: 308.6939617 | Y215: 315.532381 | Z215: 322.5124454 | AA215: 329.6367453 | AB215: 336.9079058 | AC215: 344.3285863 | AD215: 351.9014808
B216: Annual | D216: $ per yr. | F216: =SUM(F204:F215) -> 5278.303295 | G216: 5397.914926 | H216: 5520.097679 | I216: 5644.902069 | J216: 5772.379432 | K216: 5902.581929 | L216: 6035.562559 | M216: 6171.375161 | N216: 6310.07442 | O216: 6451.715872 | P216: 6596.35591 | Q216: 6744.051791 | R216: 6894.861635 | S216: 7048.844433 | T216: 7206.06005 | U216: 7366.569226 | V216: 7530.433581 | W216: 7697.715615 | X216: 7868.478709 | Y216: 8042.787129 | Z216: 8220.706023 | AA216: 8402.301419 | AB216: 8587.640228 | AC216: 8776.790241 | AD216: 8969.820123
B219: REC Schedule
B220: REC Term | C220: ='Generation Inputs'!D75 -> 15
B221: Total RECs produced during term | C221: =SUMIF(F101:AD101, "<="&'Generation Inputs'!$D$75,F117:AD117)/1000 -> 3364.656953
B222: Total REC Value over term | C222: =C221*'Generation Inputs'!D74 -> 117762.9933
B224: Demand Charge Assumptions
B225: Average Peak Demand Price Range | C225: ='Portfolio Planner'!D15 -> Med ($7.00 to $15.00 per kW)
B226: Average Demand Charges Incurred | C226: ='Portfolio Planner'!D16 -> Medium percentage of total costs
B227: Reduction Associated with Tariff | C227: =IF(C225="Low (less than $7.00 per kW)",0.02,IF(C225="Med ($7.00 to $15.00 per kW)",0.04,IF(C225="High (more than $15.00 per kW)",0.06,0))) -> 0.04
B228: Reduction Associated with Load | C228: =IF(C226="Low percentage of total costs",0.02,IF(C226="Medium percentage of total costs",0.04,IF(C226="High percentage of total costs",0.06,0))) -> 0.04
B229: Total Projected Reduction | C229: =C227+C228 -> 0.08
B231: Energy Offset:
B232: Solar | C232: ='Portfolio Planner'!L12 -> 4000000 | D232: =C232/C234 -> 0.02
B233: Non-solar | C233: =('Portfolio Planner'!D7-C232) -> 196000000 | D233: =C233/C234 -> 0.98
... 1 more rows

Sheet 2
B1: 2 - Onsite Behind-the-Meter PPA
B2: • New rooftop solar photovoltaic (PV) system installed behind the customer's meter • Solar array financed and owned by solar developer • Customer participates in Net Metering with local utility • Developer sells higher value RECs to finance installation | I2: Customer receives energy savings by purchasing electricity at a discount from the PV array installed on their roof and owned by a solar developer.
B4: Third-party Owner: Financial Metrics | F4: Host Site: Financial Metrics
B6: Key Performace Indicator | F6: Key Performace Indicator
B7: 25-Year Costs: | C7: $ | D7: =AF31+AF35+AF37+AF44 -> -606273.4363 | F7: 25-Year Costs: | G7: $ | H7: =AF82 -> -372045.1869 | J7: 25-yr Power | L7: Average Installation Size
B8: 25-Year Revenues: | C8: $ | D8: =AF34+AF36+AF51+AF59+AF65 -> 843111.4467 | F8: 25-Year Revenues: | G8: $ | H8: =AF80+AF81+AF83+AF84 -> 770170.1148 | J8: Generation (kWh) | L8: ='Generation Inputs'!D7 -> 200 | M8: KW
B9: 25-Year Net Benefits: | C9: $ | D9: =D7+D8 -> 236838.0104 | F9: 25-Year Net Benefits: | G9: $ | H9: =H7+H8 -> 398124.9279 | J9: =SUM(F127:AD127) -> 5471252.749
B10: 25-Year Net Present Value (NPV): | C10: $ | D10: =E68+NPV('Generation Inputs'!D69,F68:Y68) -> 152399.8253 | F10: 25-Year Net Present Value (NPV): | G10: $ | H10: =E88+NPV('Generation Inputs'!D69,F88:AD88) -> 340275.9973
B11: Return on Investment (ROI): | C11: % | D11: =D8/(-D7) -> 1.390645534 | F11: Return on Investment (ROI): | G11: % | H11: =H8/(-H7) -> 2.070098316
B12: Internal Rate of Return (IRR) | C12: $ | D12: =IRR(E73:AD73) -> 0.1088475114 | F12: Internal Rate of Return (IRR) | G12: $ | H12: NA | J12: 25-Year
B13: Upfront Costs | C13: $ | D13: =E31 -> -500642.7916 | F13: Upfront Costs | G13: $ | H13: =E82 -> 0 | J13: Incremental LCOE
B14: Average Annual Revenue | C14: $ | D14: =D9/25 -> 9473.520416 | F14: Average Annual Revenue | G14: $ | H14: =H9/25 -> 15924.99712 | J14: =H10/J9 -> 0.06219343411
B15: Payback Period: | C15: years | D15: =E70 -> 4.052336073 | F15: Payback Period: | G15: years | H15: =E88 -> 0 | J15: (25-year NPV/ 25-year Production)
B18: Business Case
B20: Year | E20: 0 | F20: 1 | G20: 2 | H20: 3 | I20: 4 | J20: 5 | K20: 6 | L20: 7 | M20: 8 | N20: 9 | O20: 10 | P20: 11 | Q20: 12 | R20: 13 | S20: 14 | T20: 15 | U20: 16 | V20: 17 | W20: 18 | X20: 19 | Y20: 20 | Z20: 21 | AA20: 22 | AB20: 23 | AC20: 24 | AD20: 25
B22: INSTALLATION COSTS
B23: Generation Equipment | C23: $ | D23: 0.4758194185 | E23: =-(('Generation Inputs'!$D$7*'Generation Inputs'!$D$12)*1000)*$D23 -> -232199.8762 | AF23: =SUM(E23:AE23) -> -232199.8762
B24: Balance of Plant | C24: $ | D24: 0.2362044723 | E24: =-(('Generation Inputs'!$D$7*'Generation Inputs'!$D$12)*1000)*$D24 -> -115267.7825 | AF24: -115267.7825
B25: Interconnection | C25: $ | D25: 0.06010307624 | E25: =-(('Generation Inputs'!$D$7*'Generation Inputs'!$D$12)*1000)*$D25 -> -29330.30121 | AF25: -29330.30121
B26: Development Costs & Fee | C26: $ | D26: 0.227873033 | E26: =-(('Generation Inputs'!$D$7*'Generation Inputs'!$D$12)*1000)*$D26 -> -111202.0401 | AF26: -111202.0401
B27: Site Preparation cost | C27: $/Installed watt | D27: 0.06 | E27: =-('Generation Inputs'!D7*1000)*D27 -> -12000 | AF27: -12000
B28: Site Purchase Cost | C28: $ | D28: 0 | E28: =D28 -> 0 | AF28: 0
B29: Removal Cost | C29: $ | D29: 0 | E29: =D29 -> 0 | AF29: 0
B30: Site lease cost (based on per acre $=>) | C30: $/Acre/Yr | D30: 800 | E30: =-(('Generation Inputs'!D7*175)/43560)*D30 -> -642.7915519 | AF30: -642.7915519
B31: Total Installation Costs | E31: =SUM(E23:E30) -> -500642.7916 | AF31: -500642.7916
B33: CAPITAL COSTS
B34: Construction loan | C34: $ | E34: =-E31*'Generation Inputs'!D59 -> 0 | AF34: =SUM(E34:AE34) -> 0
B35: Construction loan payments | C35: $ | F35: =IF(F20=0,0,IF(F20<='Generation Inputs'!$D$61,-PMT('Generation Inputs'!$D$60/12,'Generation Inputs'!$D$61*12,'Generation Inputs'!$D$59*($E$31))*12,0)) -> 0 | G35: =IF(G20=0,0,IF(G20<='Generation Inputs'!$D$61,-PMT('Generation Inputs'!$D$60/12,'Generation Inputs'!$D$61*12,'Generation Inputs'!$D$59*($E$31))*12,0)) -> 0 | H35: =IF(H20=0,0,IF(H20<='Generation Inputs'!$D$61,-PMT('Generation Inputs'!$D$60/12,'Generation Inputs'!$D$61*12,'Generation Inputs'!$D$59*($E$31))*12,0)) -> 0 | I35: =IF(I20=0,0,IF(I20<='Generation Inputs'!$D$61,-PMT('Generation Inputs'!$D$60/12,'Generation Inputs'!$D$61*12,'Generation Inputs'!$D$59*($E$31))*12,0)) -> 0 | J35: =IF(J20=0,0,IF(J20<='Generation Inputs'!$D$61,-PMT('Generation Inputs'!$D$60/12,'Generation Inputs'!$D$61*12,'Generation Inputs'!$D$59*($E$31))*12,0)) -> 0 | K35: =IF(K20=0,0,IF(K20<='Generation Inputs'!$D$61,-PMT('Generation Inputs'!$D$60/12,'Generation Inputs'!$D$61*12,'Generation Inputs'!$D$59*($E$31))*12,0)) -> 0 | L35: =IF(L20=0,0,IF(L20<='Generation Inputs'!$D$61,-PMT('Generation Inputs'!$D$60/12,'Generation Inputs'!$D$61*12,'Generation Inputs'!$D$59*($E$31))*12,0)) -> 0 | M35: =IF(M20=0,0,IF(M20<='Generation Inputs'!$D$61,-PMT('Generation Inputs'!$D$60/12,'Generation Inputs'!$D$61*12,'Generation Inputs'!$D$59*($E$31))*12,0)) -> 0 | N35: =IF(N20=0,0,IF(N20<='Generation Inputs'!$D$61,-PMT('Generation Inputs'!$D$60/12,'Generation Inputs'!$D$61*12,'Generation Inputs'!$D$59*($E$31))*12,0)) -> 0 | O35: =IF(O20=0,0,IF(O20<='Generation Inputs'!$D$61,-PMT('Generation Inputs'!$D$60/12,'Generation Inputs'!$D$61*12,'Generation Inputs'!$D$59*($E$31))*12,0)) -> 0 | P35: =IF(P20=0,0,IF(P20<='Generation Inputs'!$D$61,-PMT('Generation Inputs'!$D$60/12,'Generation Inputs'!$D$61*12,'Generation Inputs'!$D$59*($E$31))*12,0)) -> 0 | Q35: =IF(Q20=0,0,IF(Q20<='Generation Inputs'!$D$61,-PMT('Generation Inputs'!$D$60/12,'Generation Inputs'!$D$61*12,'Generation Inputs'!$D$59*($E$31))*12,0)) -> 0 | R35: =IF(R20=0,0,IF(R20<='Generation Inputs'!$D$61,-PMT('Generation Inputs'!$D$60/12,'Generation Inputs'!$D$61*12,'Generation Inputs'!$D$59*($E$31))*12,0)) -> 0 | S35: =IF(S20=0,0,IF(S20<='Generation Inputs'!$D$61,-PMT('Generation Inputs'!$D$60/12,'Generation Inputs'!$D$61*12,'Generation Inputs'!$D$59*($E$31))*12,0)) -> 0 | T35: =IF(T20=0,0,IF(T20<='Generation Inputs'!$D$61,-PMT('Generation Inputs'!$D$60/12,'Generation Inputs'!$D$61*12,'Generation Inputs'!$D$59*($E$31))*12,0)) -> 0 | U35: =IF(U20=0,0,IF(U20<='Generation Inputs'!$D$61,-PMT('Generation Inputs'!$D$60/12,'Generation Inputs'!$D$61*12,'Generation Inputs'!$D$59*($E$31))*12,0)) -> 0 | V35: =IF(V20=0,0,IF(V20<='Generation Inputs'!$D$61,-PMT('Generation Inputs'!$D$60/12,'Generation Inputs'!$D$61*12,'Generation Inputs'!$D$59*($E$31))*12,0)) -> 0 | W35: =IF(W20=0,0,IF(W20<='Generation Inputs'!$D$61,-PMT('Generation Inputs'!$D$60/12,'Generation Inputs'!$D$61*12,'Generation Inputs'!$D$59*($E$31))*12,0)) -> 0 | X35: =IF(X20=0,0,IF(X20<='Generation Inputs'!$D$61,-PMT('Generation Inputs'!$D$60/12,'Generation Inputs'!$D$61*12,'Generation Inputs'!$D$59*($E$31))*12,0)) -> 0 | Y35: =IF(Y20=0,0,IF(Y20<='Generation Inputs'!$D$61,-PMT('Generation Inputs'!$D$60/12,'Generation Inputs'!$D$61*12,'Generation Inputs'!$D$59*($E$31))*12,0)) -> 0 | Z35: =IF(Z20=0,0,IF(Z20<='Generation Inputs'!$D$61,-PMT('Generation Inputs'!$D$60/12,'Generation Inputs'!$D$61*12,'Generation Inputs'!$D$59*($E$31))*12,0)) -> 0 | AA35: =IF(AA20=0,0,IF(AA20<='Generation Inputs'!$D$61,-PMT('Generation Inputs'!$D$60/12,'Generation Inputs'!$D$61*12,'Generation Inputs'!$D$59*($E$31))*12,0)) -> 0 | AB35: =IF(AB20=0,0,IF(AB20<='Generation Inputs'!$D$61,-PMT('Generation Inputs'!$D$60/12,'Generation Inputs'!$D$61*12,'Generation Inputs'!$D$59*($E$31))*12,0)) -> 0 | AC35: =IF(AC20=0,0,IF(AC20<='Generation Inputs'!$D$61,-PMT('Generation Inputs'!$D$60/12,'Generation Inputs'!$D$61*12,'Generation Inputs'!$D$59*($E$31))*12,0)) -> 0 | AD35: =IF(AD20=0,0,IF(AD20<='Generation Inputs'!$D$61,-PMT('Generation Inputs'!$D$60/12,'Generation Inputs'!$D$61*12,'Generation Inputs'!$D$59*($E$31))*12,0)) -> 0 | AF35: =SUM(E35:AE35) -> 0
B36: Operating loan | C36: $ | F36: =-E31*'Generation Inputs'!D63 -> 0 | AF36: =SUM(E36:AE36) -> 0
B37: Operating loan payments | C37: $ | F37: =IF(F20=0,0,IF(F20<='Generation Inputs'!$D$65,-PMT('Generation Inputs'!$D$64/12,'Generation Inputs'!$D$65*12,'Generation Inputs'!$D$63*($E$31))*12,0)) -> 0 | G37: =IF(G20=0,0,IF(G20<='Generation Inputs'!$D$65,-PMT('Generation Inputs'!$D$64/12,'Generation Inputs'!$D$65*12,'Generation Inputs'!$D$63*($E$31))*12,0)) -> 0 | H37: =IF(H20=0,0,IF(H20<='Generation Inputs'!$D$65,-PMT('Generation Inputs'!$D$64/12,'Generation Inputs'!$D$65*12,'Generation Inputs'!$D$63*($E$31))*12,0)) -> 0 | I37: =IF(I20=0,0,IF(I20<='Generation Inputs'!$D$65,-PMT('Generation Inputs'!$D$64/12,'Generation Inputs'!$D$65*12,'Generation Inputs'!$D$63*($E$31))*12,0)) -> 0 | J37: =IF(J20=0,0,IF(J20<='Generation Inputs'!$D$65,-PMT('Generation Inputs'!$D$64/12,'Generation Inputs'!$D$65*12,'Generation Inputs'!$D$63*($E$31))*12,0)) -> 0 | K37: =IF(K20=0,0,IF(K20<='Generation Inputs'!$D$65,-PMT('Generation Inputs'!$D$64/12,'Generation Inputs'!$D$65*12,'Generation Inputs'!$D$63*($E$31))*12,0)) -> 0 | L37: =IF(L20=0,0,IF(L20<='Generation Inputs'!$D$65,-PMT('Generation Inputs'!$D$64/12,'Generation Inputs'!$D$65*12,'Generation Inputs'!$D$63*($E$31))*12,0)) -> 0 | M37: =IF(M20=0,0,IF(M20<='Generation Inputs'!$D$65,-PMT('Generation Inputs'!$D$64/12,'Generation Inputs'!$D$65*12,'Generation Inputs'!$D$63*($E$31))*12,0)) -> 0 | N37: =IF(N20=0,0,IF(N20<='Generation Inputs'!$D$65,-PMT('Generation Inputs'!$D$64/12,'Generation Inputs'!$D$65*12,'Generation Inputs'!$D$63*($E$31))*12,0)) -> 0 | O37: =IF(O20=0,0,IF(O20<='Generation Inputs'!$D$65,-PMT('Generation Inputs'!$D$64/12,'Generation Inputs'!$D$65*12,'Generation Inputs'!$D$63*($E$31))*12,0)) -> 0 | P37: =IF(P20=0,0,IF(P20<='Generation Inputs'!$D$65,-PMT('Generation Inputs'!$D$64/12,'Generation Inputs'!$D$65*12,'Generation Inputs'!$D$63*($E$31))*12,0)) -> 0 | Q37: =IF(Q20=0,0,IF(Q20<='Generation Inputs'!$D$65,-PMT('Generation Inputs'!$D$64/12,'Generation Inputs'!$D$65*12,'Generation Inputs'!$D$63*($E$31))*12,0)) -> 0 | R37: =IF(R20=0,0,IF(R20<='Generation Inputs'!$D$65,-PMT('Generation Inputs'!$D$64/12,'Generation Inputs'!$D$65*12,'Generation Inputs'!$D$63*($E$31))*12,0)) -> 0 | S37: =IF(S20=0,0,IF(S20<='Generation Inputs'!$D$65,-PMT('Generation Inputs'!$D$64/12,'Generation Inputs'!$D$65*12,'Generation Inputs'!$D$63*($E$31))*12,0)) -> 0 | T37: =IF(T20=0,0,IF(T20<='Generation Inputs'!$D$65,-PMT('Generation Inputs'!$D$64/12,'Generation Inputs'!$D$65*12,'Generation Inputs'!$D$63*($E$31))*12,0)) -> 0 | U37: =IF(U20=0,0,IF(U20<='Generation Inputs'!$D$65,-PMT('Generation Inputs'!$D$64/12,'Generation Inputs'!$D$65*12,'Generation Inputs'!$D$63*($E$31))*12,0)) -> 0 | V37: =IF(V20=0,0,IF(V20<='Generation Inputs'!$D$65,-PMT('Generation Inputs'!$D$64/12,'Generation Inputs'!$D$65*12,'Generation Inputs'!$D$63*($E$31))*12,0)) -> 0 | W37: =IF(W20=0,0,IF(W20<='Generation Inputs'!$D$65,-PMT('Generation Inputs'!$D$64/12,'Generation Inputs'!$D$65*12,'Generation Inputs'!$D$63*($E$31))*12,0)) -> 0 | X37: =IF(X20=0,0,IF(X20<='Generation Inputs'!$D$65,-PMT('Generation Inputs'!$D$64/12,'Generation Inputs'!$D$65*12,'Generation Inputs'!$D$63*($E$31))*12,0)) -> 0 | Y37: =IF(Y20=0,0,IF(Y20<='Generation Inputs'!$D$65,-PMT('Generation Inputs'!$D$64/12,'Generation Inputs'!$D$65*12,'Generation Inputs'!$D$63*($E$31))*12,0)) -> 0 | Z37: =IF(Z20=0,0,IF(Z20<='Generation Inputs'!$D$65,-PMT('Generation Inputs'!$D$64/12,'Generation Inputs'!$D$65*12,'Generation Inputs'!$D$63*($E$31))*12,0)) -> 0 | AA37: =IF(AA20=0,0,IF(AA20<='Generation Inputs'!$D$65,-PMT('Generation Inputs'!$D$64/12,'Generation Inputs'!$D$65*12,'Generation Inputs'!$D$63*($E$31))*12,0)) -> 0 | AB37: =IF(AB20=0,0,IF(AB20<='Generation Inputs'!$D$65,-PMT('Generation Inputs'!$D$64/12,'Generation Inputs'!$D$65*12,'Generation Inputs'!$D$63*($E$31))*12,0)) -> 0 | AC37: =IF(AC20=0,0,IF(AC20<='Generation Inputs'!$D$65,-PMT('Generation Inputs'!$D$64/12,'Generation Inputs'!$D$65*12,'Generation Inputs'!$D$63*($E$31))*12,0)) -> 0 | AD37: =IF(AD20=0,0,IF(AD20<='Generation Inputs'!$D$65,-PMT('Generation Inputs'!$D$64/12,'Generation Inputs'!$D$65*12,'Generation Inputs'!$D$63*($E$31))*12,0)) -> 0 | AF37: =SUM(E37:AE37) -> 0
B38: Total Cost of Capital | E38: =SUM(E34:E37) -> 0 | F38: 0 | G38: 0 | H38: 0 | I38: 0 | J38: 0 | K38: 0 | L38: 0 | M38: 0 | N38: 0 | O38: 0 | P38: 0 | Q38: 0 | R38: 0 | S38: 0 | T38: 0 | U38: 0 | V38: 0 | W38: 0 | X38: 0 | Y38: 0 | Z38: 0 | AA38: 0 | AB38: 0 | AC38: 0 | AD38: 0 | AF38: =SUM(E38:AE38) -> 0
B40: OPERATING EXPENSES | D40: $/kW/Yr
B41: Fixed O&M Expense | C41: $ | D41: 10.4 | F41: =-D41*'Generation Inputs'!D7 -> -2080 | G41: =F41*1.02 -> -2121.6 | H41: -2164.032 | I41: -2207.31264 | J41: =I41*1.02 -> -2251.458893 | K41: -2296.488071 | L41: -2342.417832 | M41: -2389.266189 | N41: -2437.051512 | O41: -2485.792543 | P41: -2535.508394 | Q41: -2586.218561 | R41: -2637.942933 | S41: -2690.701791 | T41: -2744.515827 | U41: -2799.406144 | V41: -2855.394267 | W41: -2912.502152 | X41: -2970.752195 | Y41: -3030.167239 | Z41: 0 | AA41: 0 | AB41: 0 | AC41: 0 | AD41: =AC41*1.02 -> 0 | AF41: =SUM(E41:AE41) -> -50538.52918
B42: Insurance | C42: $ | D42: 3.4 | F42: =-D42*'Generation Inputs'!D7 -> -680 | G42: -693.6 | H42: -707.472 | I42: -721.62144 | J42: -736.0538688 | K42: -750.7749462 | L42: -765.7904451 | M42: -781.106254 | N42: -796.7283791 | O42: -812.6629467 | P42: -828.9162056 | Q42: -845.4945297 | R42: -862.4044203 | S42: -879.6525087 | T42: -897.2455589 | U42: -915.1904701 | V42: -933.4942795 | W42: -952.1641651 | X42: -971.2074484 | Y42: -990.6315973 | Z42: =Y42*1.02 -> -1010.444229 | AA42: -1030.653114 | AB42: -1051.266176 | AC42: -1072.2915 | AD42: =AC42*1.02 -> -1093.73733 | AF42: =SUM(E42:AE42) -> -21780.60381
B43: Project Administration | C43: $ | D43: 5.2 | F43: =-D43*'Generation Inputs'!D7 -> -1040 | G43: -1060.8 | H43: -1082.016 | I43: -1103.65632 | J43: -1125.729446 | K43: -1148.244035 | L43: -1171.208916 | M43: -1194.633094 | N43: -1218.525756 | O43: -1242.896271 | P43: -1267.754197 | Q43: -1293.109281 | R43: -1318.971466 | S43: -1345.350896 | T43: -1372.257914 | U43: -1399.703072 | V43: -1427.697133 | W43: -1456.251076 | X43: -1485.376097 | Y43: -1515.083619 | Z43: -1545.385292 | AA43: -1576.292998 | AB43: -1607.818858 | AC43: -1639.975235 | AD43: =AC43*1.02 -> -1672.774739 | AF43: =SUM(E43:AE43) -> -33311.51171
B44: Total Operating Expense | F44: =SUM(F41:F43) -> -3800 | G44: -3876 | H44: -3953.52 | I44: -4032.5904 | J44: -4113.242208 | K44: -4195.507052 | L44: -4279.417193 | M44: -4365.005537 | N44: -4452.305648 | O44: -4541.351761 | P44: -4632.178796 | Q44: -4724.822372 | R44: -4819.318819 | S44: -4915.705196 | T44: -5014.0193 | U44: -5114.299686 | V44: -5216.585679 | W44: -5320.917393 | X44: -5427.335741 | Y44: -5535.882456 | Z44: -2555.829521 | AA44: -2606.946112 | AB44: -2659.085034 | AC44: -2712.266734 | AD44: -2766.512069 | AF44: =SUM(AF41:AF43) -> -105630.6447
B46: OPERATING RESERVES
B47: Annual reserve contribution | C47: $ | F47: =-F41 -> 2080 | G47: 2121.6 | H47: 2164.032 | I47: 2207.31264 | J47: 2251.458893 | K47: 2296.488071 | L47: 2342.417832 | M47: 2389.266189 | N47: 2437.051512 | O47: 2485.792543 | P47: 2535.508394 | Q47: 2586.218561 | R47: 2637.942933 | S47: 2690.701791 | T47: 2744.515827 | U47: 2799.406144 | V47: 2855.394267 | W47: 2912.502152 | X47: 2970.752195 | Y47: 3030.167239 | Z47: 0 | AA47: 0 | AB47: 0 | AC47: 0 | AD47: =AC47*1.02 -> 0
B48: Cumulative reserves | C48: $ | F48: =F47+F49 -> 2080 | G48: =F48+F50+G47+G49 -> 4243.2 | H48: 6492.096 | I48: 8785.96992 | J48: =I48+I50+J47+J49 -> 11125.72132 | K48: =J48+J50+K47+K49 -> 13512.26774 | L48: 15946.5451 | M48: 18429.508 | N48: 20962.13016 | O48: 2583.274603 | P48: 5218.214699 | Q48: 7905.853596 | R48: 10647.24527 | S48: 13443.46478 | T48: 16295.60868 | U48: 19204.79546 | V48: 22172.16597 | W48: 25198.88389 | X48: 28286.13617 | Y48: 3148.997327 | Z48: 3270.204016 | AA48: 3393.83484 | AB48: 3519.938279 | AC48: 3648.563788 | AD48: 3779.761807
B49: Inverter replacement | C49: $ | F49: 0 | G49: =F49*1.02 -> 0 | H49: 0 | I49: 0 | J49: =I49*1.02 -> 0 | K49: =J49*1.02 -> 0 | L49: 0 | M49: 0 | N49: 0 | O49: =-N48 -> -20962.13016 | P49: 0 | Q49: =P49*1.02 -> 0 | R49: 0 | S49: 0 | T49: 0 | U49: 0 | V49: 0 | W49: 0 | X49: 0 | Y49: =-X48 -> -28286.13617 | Z49: 0 | AA49: 0 | AB49: 0 | AC49: 0 | AD49: 0
B50: Reserve interest | C50: $ | F50: =F48*0.02 -> 41.6 | G50: =G48*0.02 -> 84.864 | H50: 86.56128 | I50: 88.2925056 | J50: =I50*1.02 -> 90.05835571 | K50: =J50*1.02 -> 91.85952283 | L50: 93.69671328 | M50: 95.57064755 | N50: 97.4820605 | O50: 99.43170171 | P50: 101.4203357 | Q50: 103.4487425 | R50: 105.5177173 | S50: 107.6280717 | T50: 109.7806331 | U50: 111.9762457 | V50: 114.2157707 | W50: 116.5000861 | X50: 118.8300878 | Y50: 121.2066896 | Z50: 123.6308233 | AA50: 126.1034398 | AB50: 128.6255086 | AC50: 131.1980188 | AD50: 133.8219792
B51: Reserve interest revenue | F51: =F50 -> 41.6 | G51: 84.864 | H51: 86.56128 | I51: 88.2925056 | J51: 90.05835571 | K51: 91.85952283 | L51: 93.69671328 | M51: 95.57064755 | N51: 97.4820605 | O51: 99.43170171 | P51: 101.4203357 | Q51: 103.4487425 | R51: 105.5177173 | S51: 107.6280717 | T51: 109.7806331 | U51: =U50 -> 111.9762457 | V51: 114.2157707 | W51: 116.5000861 | X51: 118.8300878 | Y51: 121.2066896 | Z51: 123.6308233 | AA51: 126.1034398 | AB51: 128.6255086 | AC51: 131.1980188 | AD51: =SUM(AD48:AD50) -> 3913.583786 | AF51: =SUM(E51:AE51) -> 6403.082744
B53: INCENTIVES PAYMENTS
B54: Federal ITC | C54: ='Generation Inputs'!H58 -> 0.26 | D54: Year 1 | F54: =-(E23+E24+E25+E26+E27)*C54 -> 130000 | AF54: =SUM(E54:AE54) -> 130000
B55: Federal MACRS Cash Equivalent | C55: 0.35 | D55: =(-E31*C55) -> 175224.977 | F55: =IF(F20=1,((-$E$31-($F$54/2))*0.2*$C$55)*2)+IF(F20=2,(-$E$31-($F$54/2))*0.32*$C$55)+IF(F20=3,(-$E$31-($F$54/2))*0.192*$C$55)+IF(F20=4,(-$E$31-($F$54/2))*0.1152*$C$55)+IF(F20=5,(-$E$31-($F$54/2))*0.1152*$C$55)+IF(F20=6,(-$E$31-($F$54/2))*0.0576*$C$55,0) -> 60989.99082 | G55: 48791.99265 | H55: 29275.19559 | I55: 17565.11736 | J55: 17565.11736 | K55: 8782.558678 | AF55: =SUM(E55:AE55) -> 182969.9725
B56: SRECs | C56: $ | D56: Up to 15 years | F56: =IF(F20<='Generation Inputs'!$D$76,$C$233/'Generation Inputs'!$D$76,0) -> 117762.9933 | G56: =IF(G20<='Generation Inputs'!$D$76,$C$233/'Generation Inputs'!$D$76,0) -> 0 | H56: =IF(H20<='Generation Inputs'!$D$76,$C$233/'Generation Inputs'!$D$76,0) -> 0 | I56: =IF(I20<='Generation Inputs'!$D$76,$C$233/'Generation Inputs'!$D$76,0) -> 0 | J56: =IF(J20<='Generation Inputs'!$D$76,$C$233/'Generation Inputs'!$D$76,0) -> 0 | K56: =IF(K20<='Generation Inputs'!$D$76,$C$233/'Generation Inputs'!$D$76,0) -> 0 | L56: =IF(L20<='Generation Inputs'!$D$76,$C$233/'Generation Inputs'!$D$76,0) -> 0 | M56: =IF(M20<='Generation Inputs'!$D$76,$C$233/'Generation Inputs'!$D$76,0) -> 0 | N56: =IF(N20<='Generation Inputs'!$D$76,$C$233/'Generation Inputs'!$D$76,0) -> 0 | O56: =IF(O20<='Generation Inputs'!$D$76,$C$233/'Generation Inputs'!$D$76,0) -> 0 | P56: =IF(P20<='Generation Inputs'!$D$76,$C$233/'Generation Inputs'!$D$76,0) -> 0 | Q56: =IF(Q20<='Generation Inputs'!$D$76,$C$233/'Generation Inputs'!$D$76,0) -> 0 | R56: =IF(R20<='Generation Inputs'!$D$76,$C$233/'Generation Inputs'!$D$76,0) -> 0 | S56: =IF(S20<='Generation Inputs'!$D$76,$C$233/'Generation Inputs'!$D$76,0) -> 0 | T56: =IF(T20<='Generation Inputs'!$D$76,$C$233/'Generation Inputs'!$D$76,0) -> 0 | U56: =IF(U20<='Generation Inputs'!$D$76,$C$233/'Generation Inputs'!$D$76,0) -> 0 | V56: =IF(V20<='Generation Inputs'!$D$76,$C$233/'Generation Inputs'!$D$76,0) -> 0 | W56: =IF(W20<='Generation Inputs'!$D$76,$C$233/'Generation Inputs'!$D$76,0) -> 0 | X56: =IF(X20<='Generation Inputs'!$D$76,$C$233/'Generation Inputs'!$D$76,0) -> 0 | Y56: =IF(Y20<='Generation Inputs'!$D$76,$C$233/'Generation Inputs'!$D$76,0) -> 0 | Z56: =IF(Z20<='Generation Inputs'!$D$76,$C$233/'Generation Inputs'!$D$76,0) -> 0 | AA56: =IF(AA20<='Generation Inputs'!$D$76,$C$233/'Generation Inputs'!$D$76,0) -> 0 | AB56: =IF(AB20<='Generation Inputs'!$D$76,$C$233/'Generation Inputs'!$D$76,0) -> 0 | AC56: =IF(AC20<='Generation Inputs'!$D$76,$C$233/'Generation Inputs'!$D$76,0) -> 0 | AD56: =IF(AD20<='Generation Inputs'!$D$76,$C$233/'Generation Inputs'!$D$76,0) -> 0 | AF56: =SUM(E56:AE56) -> 117762.9933
B57: Inverter Rebate | C57: 250 | D57: Per kW | F57: ='Generation Inputs'!D7*250 -> 50000 | AF57: =SUM(E57:AE57) -> 50000
B58: Grants | C58: $ | D58: Lump sum | F58: 0 | AF58: =SUM(E58:AE58) -> 0
B59: Total Incentive Payments | F59: =SUM(F54:F58) -> 358752.9842 | G59: =SUM(G54:G58) -> 48791.99265 | H59: 29275.19559 | I59: 17565.11736 | J59: 17565.11736 | K59: 8782.558678 | L59: 0 | M59: 0 | N59: 0 | O59: 0 | P59: 0 | Q59: 0 | R59: 0 | S59: 0 | T59: 0 | U59: 0 | V59: 0 | W59: 0 | X59: 0 | Y59: 0 | Z59: 0 | AA59: 0 | AB59: 0 | AC59: 0 | AD59: 0 | AF59: =SUM(AF54:AF58) -> 480732.9658
B61: REVENUES
B62: PPA Payments | C62: $ | D62: Annual | F62: =F127*(('Generation Inputs'!$D$48*(1-'Generation Inputs'!$D$53))) -> 15794.10572 | G62: =G127*(('Generation Inputs'!$D$48*(1-'Generation Inputs'!$D$53))) -> 15715.13519 | H62: =H127*(('Generation Inputs'!$D$48*(1-'Generation Inputs'!$D$53))) -> 15636.55952 | I62: =I127*(('Generation Inputs'!$D$48*(1-'Generation Inputs'!$D$53))) -> 15558.37672 | J62: =J127*(('Generation Inputs'!$D$48*(1-'Generation Inputs'!$D$53))) -> 15480.58483 | K62: =K127*(('Generation Inputs'!$D$48*(1-'Generation Inputs'!$D$53))) -> 15403.18191 | L62: =L127*(('Generation Inputs'!$D$48*(1-'Generation Inputs'!$D$53))) -> 15326.166 | M62: =M127*(('Generation Inputs'!$D$48*(1-'Generation Inputs'!$D$53))) -> 15249.53517 | N62: =N127*(('Generation Inputs'!$D$48*(1-'Generation Inputs'!$D$53))) -> 15173.2875 | O62: =O127*(('Generation Inputs'!$D$48*(1-'Generation Inputs'!$D$53))) -> 15097.42106 | P62: =P127*(('Generation Inputs'!$D$48*(1-'Generation Inputs'!$D$53))) -> 15021.93395 | Q62: =Q127*(('Generation Inputs'!$D$48*(1-'Generation Inputs'!$D$53))) -> 14946.82428 | R62: =R127*(('Generation Inputs'!$D$48*(1-'Generation Inputs'!$D$53))) -> 14872.09016 | S62: =S127*(('Generation Inputs'!$D$48*(1-'Generation Inputs'!$D$53))) -> 14797.72971 | T62: =T127*(('Generation Inputs'!$D$48*(1-'Generation Inputs'!$D$53))) -> 14723.74106 | U62: =U127*(('Generation Inputs'!$D$48*(1-'Generation Inputs'!$D$53))) -> 14650.12236 | V62: =V127*(('Generation Inputs'!$D$48*(1-'Generation Inputs'!$D$53))) -> 14576.87174 | W62: =W127*(('Generation Inputs'!$D$48*(1-'Generation Inputs'!$D$53))) -> 14503.98739 | X62: =X127*(('Generation Inputs'!$D$48*(1-'Generation Inputs'!$D$53))) -> 14431.46745 | Y62: =Y127*(('Generation Inputs'!$D$48*(1-'Generation Inputs'!$D$53))) -> 14359.31011 | Z62: =Z127*(('Generation Inputs'!$D$48*(1-'Generation Inputs'!$D$53))) -> 14287.51356 | AA62: =AA127*(('Generation Inputs'!$D$48*(1-'Generation Inputs'!$D$53))) -> 14216.07599 | AB62: =AB127*(('Generation Inputs'!$D$48*(1-'Generation Inputs'!$D$53))) -> 14144.99561 | AC62: =AC127*(('Generation Inputs'!$D$48*(1-'Generation Inputs'!$D$53))) -> 14074.27064 | AD62: =AD127*(('Generation Inputs'!$D$48*(1-'Generation Inputs'!$D$53))) -> 14003.89928 | AF62: =SUM(E62:AE62) -> 372045.1869
B63: Site Lease Payments | C63: $ | D63: Fixed Annual | F63: =$E$30 -> -642.7915519 | G63: -642.7915519 | H63: -642.7915519 | I63: -642.7915519 | J63: -642.7915519 | K63: -642.7915519 | L63: -642.7915519 | M63: -642.7915519 | N63: -642.7915519 | O63: -642.7915519 | P63: -642.7915519 | Q63: -642.7915519 | R63: -642.7915519 | S63: -642.7915519 | T63: -642.7915519 | U63: -642.7915519 | V63: -642.7915519 | W63: -642.7915519 | X63: -642.7915519 | Y63: -642.7915519 | Z63: -642.7915519 | AA63: -642.7915519 | AB63: -642.7915519 | AC63: -642.7915519 | AD63: -642.7915519 | AF63: =SUM(E63:AE63) -> -16069.7888
B64: Demand Charge Savings | C64: $ | D64: Estimated | AF64: =SUM(E64:AE64) -> 0
B65: Total Revenue | F65: =F62+F63+F64 -> 15151.31417 | G65: 15072.34364 | H65: 14993.76796 | I65: 14915.58517 | J65: 14837.79328 | K65: 14760.39036 | L65: 14683.37445 | M65: 14606.74362 | N65: 14530.49594 | O65: 14454.62951 | P65: 14379.1424 | Q65: 14304.03273 | R65: 14229.29861 | S65: 14154.93816 | T65: 14080.94951 | U65: 14007.3308 | V65: 13934.08019 | W65: 13861.19583 | X65: 13788.6759 | Y65: 13716.51856 | Z65: 13644.72201 | AA65: 13573.28444 | AB65: 13502.20406 | AC65: 13431.47908 | AD65: 13361.10773 | AF65: =AF62+AF63+AF64 -> 355975.3981
B67: CASHFLOW
B68: Net Benefits (Costs) | C68: $ | E68: =E31+E38+E44+E51+E59+E65 -> -500642.7916 | F68: 370145.8983 | G68: 60073.20029 | H68: 40402.00484 | I68: 28536.40463 | J68: 28379.72679 | K68: 19439.30151 | L68: 10497.65397 | M68: 10337.30873 | N68: 10175.67236 | O68: 10012.70945 | P68: 9848.38394 | Q68: 9682.659101 | R68: 9515.497507 | S68: 9346.861034 | T68: 9176.710843 | U68: 9005.007365 | V68: 8831.710284 | W68: 8656.778527 | X68: 8480.170244 | Y68: 8301.842794 | Z68: 11212.52331 | AA68: 11092.44177 | AB68: 10971.74454 | AC68: 10850.41037 | AD68: 14508.17945 | AF68: =SUM(E68:AE68) -> 236838.0104
B69: Cumulative Cashflow | C69: $ | E69: =E68 -> -500642.7916 | F69: =E69+F68 -> -130496.8932 | G69: -70423.69293 | H69: -30021.68809 | I69: -1485.283463 | J69: =I69+J68 -> 26894.44332 | K69: =J69+K68 -> 46333.74483 | L69: 56831.3988 | M69: 67168.70753 | N69: 77344.37989 | O69: 87357.08933 | P69: 97205.47327 | Q69: 106888.1324 | R69: 116403.6299 | S69: 125750.4909 | T69: 134927.2018 | U69: 143932.2091 | V69: 152763.9194 | W69: 161420.6979 | X69: 169900.8682 | Y69: 178202.711 | Z69: 189415.2343 | AA69: 200507.6761 | AB69: 211479.4206 | AC69: 222329.831 | AD69: 236838.0104 | AF69: =AD69 -> 236838.0104
B70: Payback Calculation | D70: Years | E70: =SUM(F70:AD70) -> 4.052336073 | F70: =IF(F69<0,1,IF(AND(F69>0,E69<0),(-E69/(F69-E69)),0)) -> 1 | G70: 1 | H70: 1 | I70: 1 | J70: =IF(J69<0,1,IF(AND(J69>0,I69<0),(-I69/(J69-I69)),0)) -> 0.05233607335 | K70: =IF(K69<0,1,IF(AND(K69>0,J69<0),(-J69/(K69-J69)),0)) -> 0 | L70: 0 | M70: 0 | N70: 0 | O70: 0 | P70: 0 | Q70: 0 | R70: 0 | S70: 0 | T70: 0 | U70: 0 | V70: 0 | W70: 0 | X70: 0 | Y70: 0 | Z70: 0 | AA70: 0 | AB70: 0 | AC70: 0 | AD70: 0 | AF70: =E70 -> 4.052336073
B72: Internal Rate of Return
B73: Internal Net Benefits (Costs less loans) | C73: $ | E73: =E31+E44 -> -500642.7916 | F73: =F44+F51+F59+F65 -> 370145.8983 | G73: =G44+G51+G59+G65 -> 60073.20029 | H73: 40402.00484 | I73: 28536.40463 | J73: 28379.72679 | K73: 19439.30151 | L73: 10497.65397 | M73: 10337.30873 | N73: 10175.67236 | O73: 10012.70945 | P73: 9848.38394 | Q73: 9682.659101 | R73: 9515.497507 | S73: 9346.861034 | T73: 9176.710843 | U73: 9005.007365 | V73: 8831.710284 | W73: 8656.778527 | X73: 8480.170244 | Y73: 8301.842794 | Z73: 11212.52331 | AA73: 11092.44177 | AB73: 10971.74454 | AC73: 10850.41037 | AD73: 14508.17945 | AF73: =SUM(E73:AE73) -> 236838.0104
B74: Internal Cumulative Cashflow | C74: $ | E74: =D73+E73 -> -500642.7916 | F74: =E74+F73 -> -130496.8932 | G74: =F74+G73 -> -70423.69293 | H74: -30021.68809 | I74: -1485.283463 | J74: =I74+J73 -> 26894.44332 | K74: =J74+K73 -> 46333.74483 | L74: 56831.3988 | M74: 67168.70753 | N74: 77344.37989 | O74: 87357.08933 | P74: 97205.47327 | Q74: 106888.1324 | R74: 116403.6299 | S74: 125750.4909 | T74: 134927.2018 | U74: 143932.2091 | V74: 152763.9194 | W74: 161420.6979 | X74: 169900.8682 | Y74: 178202.711 | Z74: 189415.2343 | AA74: 200507.6761 | AB74: 211479.4206 | AC74: 222329.831 | AD74: 236838.0104 | AF74: =AD74 -> 236838.0104
B75: Payback Calculation | D75: Years | E75: =SUM(F75:AD75) -> 4.052336073 | F75: =IF(F74<0,1,IF(AND(F74>0,E74<0),(-E74/(F74-E74)),0)) -> 1 | G75: 1 | H75: 1 | I75: 1 | J75: =IF(J74<0,1,IF(AND(J74>0,I74<0),(-I74/(J74-I74)),0)) -> 0.05233607335 | K75: =IF(K74<0,1,IF(AND(K74>0,J74<0),(-J74/(K74-J74)),0)) -> 0 | L75: 0 | M75: 0 | N75: 0 | O75: 0 | P75: 0 | Q75: 0 | R75: 0 | S75: 0 | T75: 0 | U75: 0 | V75: 0 | W75: 0 | X75: 0 | Y75: 0 | Z75: 0 | AA75: 0 | AB75: 0 | AC75: 0 | AD75: 0
B78: Net metering & PPA
B80: Net Metering Credits: Load Offset | C80: $ annually | D80: ='Generation Inputs'!D51 -> 0.75 | F80: =F177 -> 15371.55883 | G80: =G177 -> 15798.88816 | H80: 16238.09725 | I80: 16689.51636 | J80: 17153.48491 | K80: 17630.35179 | L80: 18120.47557 | M80: 18624.22479 | N80: 19141.97824 | O80: 19674.12524 | P80: 20221.06592 | Q80: 20783.21155 | R80: 21360.98483 | S80: 21954.82021 | T80: 22565.16421 | U80: 23192.47578 | V80: 23837.22661 | W80: 24499.9015 | X80: 25180.99877 | Y80: 25881.03053 | Z80: 26600.52318 | AA80: 27340.01773 | AB80: 28100.07022 | AC80: 28881.25217 | AD80: 29684.15098 | AF80: =SUM(E80:AE80) -> 544525.5953
B81: Net Metering Credits: Direct to Grid | C81: $ annually | D81: ='Generation Inputs'!D52 -> 0.25 | F81: =F226 -> 5304.694811 | G81: =G226 -> 5452.165327 | H81: 5603.735523 | I81: 5759.51937 | J81: 5919.634009 | K81: 6084.199834 | L81: 6253.34059 | M81: 6427.183458 | N81: 6605.859158 | O81: 6789.502043 | P81: 6978.2502 | Q81: 7172.245555 | R81: 7371.633982 | S81: 7576.565406 | T81: 7787.193925 | U81: 8003.677916 | V81: 8226.180162 | W81: 8454.86797 | X81: 8689.9133 | Y81: 8931.49289 | Z81: 9179.788392 | AA81: 9434.986509 | AB81: 9697.279134 | AC81: 9966.863494 | AD81: 10243.9423 | AF81: 187914.7153
B82: PPA Payments | C82: $ annually | D82: Total | F82: =-F62 -> -15794.10572 | G82: =-G62 -> -15715.13519 | H82: -15636.55952 | I82: -15558.37672 | J82: -15480.58483 | K82: -15403.18191 | L82: -15326.166 | M82: -15249.53517 | N82: -15173.2875 | O82: -15097.42106 | P82: -15021.93395 | Q82: -14946.82428 | R82: -14872.09016 | S82: -14797.72971 | T82: -14723.74106 | U82: -14650.12236 | V82: -14576.87174 | W82: -14503.98739 | X82: -14431.46745 | Y82: -14359.31011 | Z82: -14287.51356 | AA82: -14216.07599 | AB82: -14144.99561 | AC82: -14074.27064 | AD82: -14003.89928 | AF82: -372045.1869
B83: Site Lease Payments | C83: $/Acre/Yr | D83: =E30 -> -642.7915519 | F83: =$D$83 -> -642.7915519 | G83: =$D$83 -> -642.7915519 | H83: -642.7915519 | I83: -642.7915519 | J83: -642.7915519 | K83: -642.7915519 | L83: -642.7915519 | M83: -642.7915519 | N83: -642.7915519 | O83: -642.7915519 | P83: -642.7915519 | Q83: -642.7915519 | R83: -642.7915519 | S83: -642.7915519 | T83: -642.7915519 | U83: -642.7915519 | V83: -642.7915519 | W83: -642.7915519 | X83: -642.7915519 | Y83: -642.7915519 | Z83: -642.7915519 | AA83: -642.7915519 | AB83: -642.7915519 | AC83: -642.7915519 | AD83: -642.7915519 | AF83: -16069.7888
B84: Demand Charge Savings | C84: $ annually | D84: =C240 -> 0.08 | F84: =F127*F150*$D$84 -> 1623.318186 | G84: =G127*G150*$D$84 -> 1660.104199 | H84: 1697.723821 | I84: 1736.19594 | J84: 1775.539876 | K84: 1815.775385 | L84: 1856.922671 | M84: 1899.002396 | N84: 1942.035689 | O84: 1986.04416 | P84: 2031.049907 | Q84: 2077.075529 | R84: 2124.144137 | S84: 2172.279368 | T84: 2221.50539 | U84: 2271.846924 | V84: 2323.329247 | W84: 2375.978211 | X84: 2429.820254 | Y84: 2484.88241 | Z84: 2541.192331 | AA84: 2598.77829 | AB84: 2657.669205 | AC84: 2717.894647 | AD84: 2779.484857 | AF84: 53799.59303
B85: Total Revenue | F85: =SUM(F80:F84) -> 5862.674552 | G85: =SUM(G80:G84) -> 6553.230945 | H85: 7260.205529 | I85: 7984.063398 | J85: 8725.282411 | K85: 9484.35355 | L85: 10261.78128 | M85: 11058.08392 | N85: 11873.79404 | O85: 12709.45883 | P85: 13565.64052 | Q85: 14442.9168 | R85: 15341.88124 | S85: 16263.14372 | T85: 17207.33091 | U85: 18175.08671 | V85: 19167.07272 | W85: 20183.96875 | X85: 21226.47332 | Y85: 22295.30417 | Z85: 23391.19879 | AA85: 24514.91498 | AB85: 25667.23139 | AC85: 26848.94812 | AD85: 28060.8873 | AF85: 398124.9279
B87: CASHFLOW
B88: Net Benefits (Costs) | C88: $ | E88: 0 | F88: =F85 -> 5862.674552 | G88: =G85 -> 6553.230945 | H88: 7260.205529 | I88: 7984.063398 | J88: 8725.282411 | K88: 9484.35355 | L88: 10261.78128 | M88: 11058.08392 | N88: 11873.79404 | O88: 12709.45883 | P88: 13565.64052 | Q88: 14442.9168 | R88: 15341.88124 | S88: 16263.14372 | T88: 17207.33091 | U88: 18175.08671 | V88: 19167.07272 | W88: 20183.96875 | X88: 21226.47332 | Y88: 22295.30417 | Z88: 23391.19879 | AA88: 24514.91498 | AB88: 25667.23139 | AC88: 26848.94812 | AD88: 28060.8873 | AF88: =SUM(E88:AE88) -> 398124.9279
B89: Cumulative Cashflow | C89: $ | E89: 0 | F89: =E89+F88 -> 5862.674552 | G89: 12415.9055 | H89: 19676.11103 | I89: 27660.17442 | J89: =I89+J88 -> 36385.45683 | K89: =J89+K88 -> 45869.81039 | L89: 56131.59167 | M89: 67189.67559 | N89: 79063.46963 | O89: 91772.92847 | P89: 105338.569 | Q89: 119781.4858 | R89: 135123.367 | S89: 151386.5108 | T89: 168593.8417 | U89: 186768.9284 | V89: 205936.0011 | W89: 226119.9698 | X89: 247346.4432 | Y89: 269641.7473 | Z89: 293032.9461 | AA89: 317547.8611 | AB89: 343215.0925 | AC89: 370064.0406 | AD89: 398124.9279 | AF89: =AD89 -> 398124.9279
B90: Payback Calculation | D90: Years | E90: =SUM(F90:AD90) -> 0 | F90: =IF(F89<0,1,IF(AND(F89>0,E89<0),(-E89/(F89-E89)),0)) -> 0 | G90: 0 | H90: 0 | I90: 0 | J90: =IF(J89<0,1,IF(AND(J89>0,I89<0),(-I89/(J89-I89)),0)) -> 0 | K90: =IF(K89<0,1,IF(AND(K89>0,J89<0),(-J89/(K89-J89)),0)) -> 0 | L90: 0 | M90: 0 | N90: 0 | O90: 0 | P90: 0 | Q90: 0 | R90: 0 | S90: 0 | T90: 0 | U90: 0 | V90: 0 | W90: 0 | X90: 0 | Y90: 0 | Z90: 0 | AA90: 0 | AB90: 0 | AC90: 0 | AD90: 0 | AF90: =E90 -> 0
B93: Generation Rates
B95: Net Metering Rate (Full Retail Rate)
B96: Month | D96: Generation Output per PVWatts (kWh/kW)
B97: January | D97: ='Generation Inputs'!D31 -> 58.96162109
B98: February | D98: ='Generation Inputs'!D32 -> 76.06
B99: March | D99: ='Generation Inputs'!D33 -> 114.9559766
B100: April | D100: ='Generation Inputs'!D34 -> 135.5548828
B101: May | D101: ='Generation Inputs'!D35 -> 133.5846582
B102: June | D102: ='Generation Inputs'!D36 -> 137.159834
B103: July | D103: ='Generation Inputs'!D37 -> 133.815166
B104: August | D104: ='Generation Inputs'!D38 -> 121.8549512
B105: September | D105: ='Generation Inputs'!D39 -> 93.95856445
B106: October | D106: ='Generation Inputs'!D40 -> 70.41900879
B107: November | D107: ='Generation Inputs'!D41 -> 45.0525
B108: December | D108: ='Generation Inputs'!D42 -> 45.78997559
B109: Annual | D109: =SUM(D97:D108) -> 1167.167139
B111: Year | E111: 0 | F111: 1 | G111: 2 | H111: 3 | I111: 4 | J111: 5 | K111: 6 | L111: 7 | M111: 8 | N111: 9 | O111: 10 | P111: 11 | Q111: 12 | R111: 13 | S111: 14 | T111: 15 | U111: 16 | V111: 17 | W111: 18 | X111: 19 | Y111: 20 | Z111: 21 | AA111: 22 | AB111: 23 | AC111: 24 | AD111: 25
B113: Total System Energy Generation
B114: Month | C114: Generation (kWh)
B115: January | C115: ='Generation Inputs'!$D$7*D97 -> 11792.32422 | D115: kWh's per mo. | F115: =C115*(1-'Generation Inputs'!$D$71) -> 11733.3626 | G115: =F115*(1-'Generation Inputs'!$D$71) -> 11674.69578 | H115: =G115*(1-'Generation Inputs'!$D$71) -> 11616.32231 | I115: =H115*(1-'Generation Inputs'!$D$71) -> 11558.24069 | J115: =I115*(1-'Generation Inputs'!$D$71) -> 11500.44949 | K115: =J115*(1-'Generation Inputs'!$D$71) -> 11442.94724 | L115: =K115*(1-'Generation Inputs'!$D$71) -> 11385.73251 | M115: =L115*(1-'Generation Inputs'!$D$71) -> 11328.80384 | N115: =M115*(1-'Generation Inputs'!$D$71) -> 11272.15983 | O115: =N115*(1-'Generation Inputs'!$D$71) -> 11215.79903 | P115: =O115*(1-'Generation Inputs'!$D$71) -> 11159.72003 | Q115: =P115*(1-'Generation Inputs'!$D$71) -> 11103.92143 | R115: =Q115*(1-'Generation Inputs'!$D$71) -> 11048.40182 | S115: =R115*(1-'Generation Inputs'!$D$71) -> 10993.15981 | T115: =S115*(1-'Generation Inputs'!$D$71) -> 10938.19402 | U115: =T115*(1-'Generation Inputs'!$D$71) -> 10883.50305 | V115: =U115*(1-'Generation Inputs'!$D$71) -> 10829.08553 | W115: =V115*(1-'Generation Inputs'!$D$71) -> 10774.9401 | X115: =W115*(1-'Generation Inputs'!$D$71) -> 10721.0654 | Y115: =X115*(1-'Generation Inputs'!$D$71) -> 10667.46008 | Z115: =Y115*(1-'Generation Inputs'!$D$71) -> 10614.12277 | AA115: =Z115*(1-'Generation Inputs'!$D$71) -> 10561.05216 | AB115: =AA115*(1-'Generation Inputs'!$D$71) -> 10508.2469 | AC115: =AB115*(1-'Generation Inputs'!$D$71) -> 10455.70567 | AD115: =AC115*(1-'Generation Inputs'!$D$71) -> 10403.42714
B116: February | C116: ='Generation Inputs'!$D$7*D98 -> 15212 | D116: kWh's per mo. | F116: =C116*(1-'Generation Inputs'!$D$71) -> 15135.94 | G116: =F116*(1-'Generation Inputs'!$D$71) -> 15060.2603 | H116: =G116*(1-'Generation Inputs'!$D$71) -> 14984.959 | I116: =H116*(1-'Generation Inputs'!$D$71) -> 14910.0342 | J116: =I116*(1-'Generation Inputs'!$D$71) -> 14835.48403 | K116: =J116*(1-'Generation Inputs'!$D$71) -> 14761.30661 | L116: =K116*(1-'Generation Inputs'!$D$71) -> 14687.50008 | M116: =L116*(1-'Generation Inputs'!$D$71) -> 14614.06258 | N116: =M116*(1-'Generation Inputs'!$D$71) -> 14540.99227 | O116: =N116*(1-'Generation Inputs'!$D$71) -> 14468.2873 | P116: =O116*(1-'Generation Inputs'!$D$71) -> 14395.94587 | Q116: =P116*(1-'Generation Inputs'!$D$71) -> 14323.96614 | R116: =Q116*(1-'Generation Inputs'!$D$71) -> 14252.34631 | S116: =R116*(1-'Generation Inputs'!$D$71) -> 14181.08458 | T116: =S116*(1-'Generation Inputs'!$D$71) -> 14110.17915 | U116: =T116*(1-'Generation Inputs'!$D$71) -> 14039.62826 | V116: =U116*(1-'Generation Inputs'!$D$71) -> 13969.43012 | W116: =V116*(1-'Generation Inputs'!$D$71) -> 13899.58297 | X116: =W116*(1-'Generation Inputs'!$D$71) -> 13830.08505 | Y116: =X116*(1-'Generation Inputs'!$D$71) -> 13760.93463 | Z116: =Y116*(1-'Generation Inputs'!$D$71) -> 13692.12995 | AA116: =Z116*(1-'Generation Inputs'!$D$71) -> 13623.6693 | AB116: =AA116*(1-'Generation Inputs'!$D$71) -> 13555.55096 | AC116: =AB116*(1-'Generation Inputs'!$D$71) -> 13487.7732 | AD116: =AC116*(1-'Generation Inputs'!$D$71) -> 13420.33434
B117: March | C117: ='Generation Inputs'!$D$7*D99 -> 22991.19531 | D117: kWh's per mo. | F117: =C117*(1-'Generation Inputs'!$D$71) -> 22876.23934 | G117: =F117*(1-'Generation Inputs'!$D$71) -> 22761.85814 | H117: =G117*(1-'Generation Inputs'!$D$71) -> 22648.04885 | I117: =H117*(1-'Generation Inputs'!$D$71) -> 22534.8086 | J117: =I117*(1-'Generation Inputs'!$D$71) -> 22422.13456 | K117: =J117*(1-'Generation Inputs'!$D$71) -> 22310.02389 | L117: =K117*(1-'Generation Inputs'!$D$71) -> 22198.47377 | M117: =L117*(1-'Generation Inputs'!$D$71) -> 22087.4814 | N117: =M117*(1-'Generation Inputs'!$D$71) -> 21977.04399 | O117: =N117*(1-'Generation Inputs'!$D$71) -> 21867.15877 | P117: =O117*(1-'Generation Inputs'!$D$71) -> 21757.82298 | Q117: =P117*(1-'Generation Inputs'!$D$71) -> 21649.03386 | R117: =Q117*(1-'Generation Inputs'!$D$71) -> 21540.7887 | S117: =R117*(1-'Generation Inputs'!$D$71) -> 21433.08475 | T117: =S117*(1-'Generation Inputs'!$D$71) -> 21325.91933 | U117: =T117*(1-'Generation Inputs'!$D$71) -> 21219.28973 | V117: =U117*(1-'Generation Inputs'!$D$71) -> 21113.19328 | W117: =V117*(1-'Generation Inputs'!$D$71) -> 21007.62732 | X117: =W117*(1-'Generation Inputs'!$D$71) -> 20902.58918 | Y117: =X117*(1-'Generation Inputs'!$D$71) -> 20798.07623 | Z117: =Y117*(1-'Generation Inputs'!$D$71) -> 20694.08585 | AA117: =Z117*(1-'Generation Inputs'!$D$71) -> 20590.61542 | AB117: =AA117*(1-'Generation Inputs'!$D$71) -> 20487.66235 | AC117: =AB117*(1-'Generation Inputs'!$D$71) -> 20385.22403 | AD117: =AC117*(1-'Generation Inputs'!$D$71) -> 20283.29791
B118: April | C118: ='Generation Inputs'!$D$7*D100 -> 27110.97656 | D118: kWh's per mo. | F118: =C118*(1-'Generation Inputs'!$D$71) -> 26975.42168 | G118: =F118*(1-'Generation Inputs'!$D$71) -> 26840.54457 | H118: =G118*(1-'Generation Inputs'!$D$71) -> 26706.34185 | I118: =H118*(1-'Generation Inputs'!$D$71) -> 26572.81014 | J118: =I118*(1-'Generation Inputs'!$D$71) -> 26439.94609 | K118: =J118*(1-'Generation Inputs'!$D$71) -> 26307.74636 | L118: =K118*(1-'Generation Inputs'!$D$71) -> 26176.20763 | M118: =L118*(1-'Generation Inputs'!$D$71) -> 26045.32659 | N118: =M118*(1-'Generation Inputs'!$D$71) -> 25915.09996 | O118: =N118*(1-'Generation Inputs'!$D$71) -> 25785.52446 | P118: =O118*(1-'Generation Inputs'!$D$71) -> 25656.59683 | Q118: =P118*(1-'Generation Inputs'!$D$71) -> 25528.31385 | R118: =Q118*(1-'Generation Inputs'!$D$71) -> 25400.67228 | S118: =R118*(1-'Generation Inputs'!$D$71) -> 25273.66892 | T118: =S118*(1-'Generation Inputs'!$D$71) -> 25147.30057 | U118: =T118*(1-'Generation Inputs'!$D$71) -> 25021.56407 | V118: =U118*(1-'Generation Inputs'!$D$71) -> 24896.45625 | W118: =V118*(1-'Generation Inputs'!$D$71) -> 24771.97397 | X118: =W118*(1-'Generation Inputs'!$D$71) -> 24648.1141 | Y118: =X118*(1-'Generation Inputs'!$D$71) -> 24524.87353 | Z118: =Y118*(1-'Generation Inputs'!$D$71) -> 24402.24916 | AA118: =Z118*(1-'Generation Inputs'!$D$71) -> 24280.23792 | AB118: =AA118*(1-'Generation Inputs'!$D$71) -> 24158.83673 | AC118: =AB118*(1-'Generation Inputs'!$D$71) -> 24038.04254 | AD118: =AC118*(1-'Generation Inputs'!$D$71) -> 23917.85233
B119: May | C119: ='Generation Inputs'!$D$7*D101 -> 26716.93164 | D119: kWh's per mo. | F119: =C119*(1-'Generation Inputs'!$D$71) -> 26583.34698 | G119: =F119*(1-'Generation Inputs'!$D$71) -> 26450.43025 | H119: =G119*(1-'Generation Inputs'!$D$71) -> 26318.1781 | I119: =H119*(1-'Generation Inputs'!$D$71) -> 26186.58721 | J119: =I119*(1-'Generation Inputs'!$D$71) -> 26055.65427 | K119: =J119*(1-'Generation Inputs'!$D$71) -> 25925.376 | L119: =K119*(1-'Generation Inputs'!$D$71) -> 25795.74912 | M119: =L119*(1-'Generation Inputs'!$D$71) -> 25666.77037 | N119: =M119*(1-'Generation Inputs'!$D$71) -> 25538.43652 | O119: =N119*(1-'Generation Inputs'!$D$71) -> 25410.74434 | P119: =O119*(1-'Generation Inputs'!$D$71) -> 25283.69062 | Q119: =P119*(1-'Generation Inputs'!$D$71) -> 25157.27216 | R119: =Q119*(1-'Generation Inputs'!$D$71) -> 25031.4858 | S119: =R119*(1-'Generation Inputs'!$D$71) -> 24906.32837 | T119: =S119*(1-'Generation Inputs'!$D$71) -> 24781.79673 | U119: =T119*(1-'Generation Inputs'!$D$71) -> 24657.88775 | V119: =U119*(1-'Generation Inputs'!$D$71) -> 24534.59831 | W119: =V119*(1-'Generation Inputs'!$D$71) -> 24411.92532 | X119: =W119*(1-'Generation Inputs'!$D$71) -> 24289.86569 | Y119: =X119*(1-'Generation Inputs'!$D$71) -> 24168.41636 | Z119: =Y119*(1-'Generation Inputs'!$D$71) -> 24047.57428 | AA119: =Z119*(1-'Generation Inputs'!$D$71) -> 23927.33641 | AB119: =AA119*(1-'Generation Inputs'!$D$71) -> 23807.69973 | AC119: =AB119*(1-'Generation Inputs'!$D$71) -> 23688.66123 | AD119: =AC119*(1-'Generation Inputs'!$D$71) -> 23570.21792
B120: June | C120: ='Generation Inputs'!$D$7*D102 -> 27431.9668 | D120: kWh's per mo. | F120: =C120*(1-'Generation Inputs'!$D$71) -> 27294.80696 | G120: =F120*(1-'Generation Inputs'!$D$71) -> 27158.33293 | H120: =G120*(1-'Generation Inputs'!$D$71) -> 27022.54126 | I120: =H120*(1-'Generation Inputs'!$D$71) -> 26887.42856 | J120: =I120*(1-'Generation Inputs'!$D$71) -> 26752.99141 | K120: =J120*(1-'Generation Inputs'!$D$71) -> 26619.22646 | L120: =K120*(1-'Generation Inputs'!$D$71) -> 26486.13032 | M120: =L120*(1-'Generation Inputs'!$D$71) -> 26353.69967 | N120: =M120*(1-'Generation Inputs'!$D$71) -> 26221.93117 | O120: =N120*(1-'Generation Inputs'!$D$71) -> 26090.82152 | P120: =O120*(1-'Generation Inputs'!$D$71) -> 25960.36741 | Q120: =P120*(1-'Generation Inputs'!$D$71) -> 25830.56557 | R120: =Q120*(1-'Generation Inputs'!$D$71) -> 25701.41275 | S120: =R120*(1-'Generation Inputs'!$D$71) -> 25572.90568 | T120: =S120*(1-'Generation Inputs'!$D$71) -> 25445.04115 | U120: =T120*(1-'Generation Inputs'!$D$71) -> 25317.81595 | V120: =U120*(1-'Generation Inputs'!$D$71) -> 25191.22687 | W120: =V120*(1-'Generation Inputs'!$D$71) -> 25065.27073 | X120: =W120*(1-'Generation Inputs'!$D$71) -> 24939.94438 | Y120: =X120*(1-'Generation Inputs'!$D$71) -> 24815.24466 | Z120: =Y120*(1-'Generation Inputs'!$D$71) -> 24691.16844 | AA120: =Z120*(1-'Generation Inputs'!$D$71) -> 24567.71259 | AB120: =AA120*(1-'Generation Inputs'!$D$71) -> 24444.87403 | AC120: =AB120*(1-'Generation Inputs'!$D$71) -> 24322.64966 | AD120: =AC120*(1-'Generation Inputs'!$D$71) -> 24201.03641
B121: July | C121: ='Generation Inputs'!$D$7*D103 -> 26763.0332 | D121: kWh's per mo. | F121: =C121*(1-'Generation Inputs'!$D$71) -> 26629.21804 | G121: =F121*(1-'Generation Inputs'!$D$71) -> 26496.07195 | H121: =G121*(1-'Generation Inputs'!$D$71) -> 26363.59159 | I121: =H121*(1-'Generation Inputs'!$D$71) -> 26231.77363 | J121: =I121*(1-'Generation Inputs'!$D$71) -> 26100.61476 | K121: =J121*(1-'Generation Inputs'!$D$71) -> 25970.11169 | L121: =K121*(1-'Generation Inputs'!$D$71) -> 25840.26113 | M121: =L121*(1-'Generation Inputs'!$D$71) -> 25711.05982 | N121: =M121*(1-'Generation Inputs'!$D$71) -> 25582.50452 | O121: =N121*(1-'Generation Inputs'!$D$71) -> 25454.592 | P121: =O121*(1-'Generation Inputs'!$D$71) -> 25327.31904 | Q121: =P121*(1-'Generation Inputs'!$D$71) -> 25200.68245 | R121: =Q121*(1-'Generation Inputs'!$D$71) -> 25074.67903 | S121: =R121*(1-'Generation Inputs'!$D$71) -> 24949.30564 | T121: =S121*(1-'Generation Inputs'!$D$71) -> 24824.55911 | U121: =T121*(1-'Generation Inputs'!$D$71) -> 24700.43632 | V121: =U121*(1-'Generation Inputs'!$D$71) -> 24576.93413 | W121: =V121*(1-'Generation Inputs'!$D$71) -> 24454.04946 | X121: =W121*(1-'Generation Inputs'!$D$71) -> 24331.77922 | Y121: =X121*(1-'Generation Inputs'!$D$71) -> 24210.12032 | Z121: =Y121*(1-'Generation Inputs'!$D$71) -> 24089.06972 | AA121: =Z121*(1-'Generation Inputs'!$D$71) -> 23968.62437 | AB121: =AA121*(1-'Generation Inputs'!$D$71) -> 23848.78125 | AC121: =AB121*(1-'Generation Inputs'!$D$71) -> 23729.53734 | AD121: =AC121*(1-'Generation Inputs'!$D$71) -> 23610.88965
B122: August | C122: ='Generation Inputs'!$D$7*D104 -> 24370.99023 | D122: kWh's per mo. | F122: =C122*(1-'Generation Inputs'!$D$71) -> 24249.13528 | G122: =F122*(1-'Generation Inputs'!$D$71) -> 24127.88961 | H122: =G122*(1-'Generation Inputs'!$D$71) -> 24007.25016 | I122: =H122*(1-'Generation Inputs'!$D$71) -> 23887.21391 | J122: =I122*(1-'Generation Inputs'!$D$71) -> 23767.77784 | K122: =J122*(1-'Generation Inputs'!$D$71) -> 23648.93895 | L122: =K122*(1-'Generation Inputs'!$D$71) -> 23530.69425 | M122: =L122*(1-'Generation Inputs'!$D$71) -> 23413.04078 | N122: =M122*(1-'Generation Inputs'!$D$71) -> 23295.97558 | O122: =N122*(1-'Generation Inputs'!$D$71) -> 23179.4957 | P122: =O122*(1-'Generation Inputs'!$D$71) -> 23063.59822 | Q122: =P122*(1-'Generation Inputs'!$D$71) -> 22948.28023 | R122: =Q122*(1-'Generation Inputs'!$D$71) -> 22833.53883 | S122: =R122*(1-'Generation Inputs'!$D$71) -> 22719.37114 | T122: =S122*(1-'Generation Inputs'!$D$71) -> 22605.77428 | U122: =T122*(1-'Generation Inputs'!$D$71) -> 22492.74541 | V122: =U122*(1-'Generation Inputs'!$D$71) -> 22380.28168 | W122: =V122*(1-'Generation Inputs'!$D$71) -> 22268.38027 | X122: =W122*(1-'Generation Inputs'!$D$71) -> 22157.03837 | Y122: =X122*(1-'Generation Inputs'!$D$71) -> 22046.25318 | Z122: =Y122*(1-'Generation Inputs'!$D$71) -> 21936.02191 | AA122: =Z122*(1-'Generation Inputs'!$D$71) -> 21826.34181 | AB122: =AA122*(1-'Generation Inputs'!$D$71) -> 21717.2101 | AC122: =AB122*(1-'Generation Inputs'!$D$71) -> 21608.62405 | AD122: =AC122*(1-'Generation Inputs'!$D$71) -> 21500.58093
B123: September | C123: ='Generation Inputs'!$D$7*D105 -> 18791.71289 | D123: kWh's per mo. | F123: =C123*(1-'Generation Inputs'!$D$71) -> 18697.75433 | G123: =F123*(1-'Generation Inputs'!$D$71) -> 18604.26555 | H123: =G123*(1-'Generation Inputs'!$D$71) -> 18511.24423 | I123: =H123*(1-'Generation Inputs'!$D$71) -> 18418.68801 | J123: =I123*(1-'Generation Inputs'!$D$71) -> 18326.59457 | K123: =J123*(1-'Generation Inputs'!$D$71) -> 18234.96159 | L123: =K123*(1-'Generation Inputs'!$D$71) -> 18143.78678 | M123: =L123*(1-'Generation Inputs'!$D$71) -> 18053.06785 | N123: =M123*(1-'Generation Inputs'!$D$71) -> 17962.80251 | O123: =N123*(1-'Generation Inputs'!$D$71) -> 17872.9885 | P123: =O123*(1-'Generation Inputs'!$D$71) -> 17783.62356 | Q123: =P123*(1-'Generation Inputs'!$D$71) -> 17694.70544 | R123: =Q123*(1-'Generation Inputs'!$D$71) -> 17606.23191 | S123: =R123*(1-'Generation Inputs'!$D$71) -> 17518.20075 | T123: =S123*(1-'Generation Inputs'!$D$71) -> 17430.60975 | U123: =T123*(1-'Generation Inputs'!$D$71) -> 17343.4567 | V123: =U123*(1-'Generation Inputs'!$D$71) -> 17256.73942 | W123: =V123*(1-'Generation Inputs'!$D$71) -> 17170.45572 | X123: =W123*(1-'Generation Inputs'!$D$71) -> 17084.60344 | Y123: =X123*(1-'Generation Inputs'!$D$71) -> 16999.18042 | Z123: =Y123*(1-'Generation Inputs'!$D$71) -> 16914.18452 | AA123: =Z123*(1-'Generation Inputs'!$D$71) -> 16829.6136 | AB123: =AA123*(1-'Generation Inputs'!$D$71) -> 16745.46553 | AC123: =AB123*(1-'Generation Inputs'!$D$71) -> 16661.7382 | AD123: =AC123*(1-'Generation Inputs'!$D$71) -> 16578.42951
B124: October | C124: ='Generation Inputs'!$D$7*D106 -> 14083.80176 | D124: kWh's per mo. | F124: =C124*(1-'Generation Inputs'!$D$71) -> 14013.38275 | G124: =F124*(1-'Generation Inputs'!$D$71) -> 13943.31584 | H124: =G124*(1-'Generation Inputs'!$D$71) -> 13873.59926 | I124: =H124*(1-'Generation Inputs'!$D$71) -> 13804.23126 | J124: =I124*(1-'Generation Inputs'!$D$71) -> 13735.2101 | K124: =J124*(1-'Generation Inputs'!$D$71) -> 13666.53405 | L124: =K124*(1-'Generation Inputs'!$D$71) -> 13598.20138 | M124: =L124*(1-'Generation Inputs'!$D$71) -> 13530.21038 | N124: =M124*(1-'Generation Inputs'!$D$71) -> 13462.55932 | O124: =N124*(1-'Generation Inputs'!$D$71) -> 13395.24653 | P124: =O124*(1-'Generation Inputs'!$D$71) -> 13328.27029 | Q124: =P124*(1-'Generation Inputs'!$D$71) -> 13261.62894 | R124: =Q124*(1-'Generation Inputs'!$D$71) -> 13195.3208 | S124: =R124*(1-'Generation Inputs'!$D$71) -> 13129.34419 | T124: =S124*(1-'Generation Inputs'!$D$71) -> 13063.69747 | U124: =T124*(1-'Generation Inputs'!$D$71) -> 12998.37899 | V124: =U124*(1-'Generation Inputs'!$D$71) -> 12933.38709 | W124: =V124*(1-'Generation Inputs'!$D$71) -> 12868.72016 | X124: =W124*(1-'Generation Inputs'!$D$71) -> 12804.37656 | Y124: =X124*(1-'Generation Inputs'!$D$71) -> 12740.35467 | Z124: =Y124*(1-'Generation Inputs'!$D$71) -> 12676.6529 | AA124: =Z124*(1-'Generation Inputs'!$D$71) -> 12613.26963 | AB124: =AA124*(1-'Generation Inputs'!$D$71) -> 12550.20329 | AC124: =AB124*(1-'Generation Inputs'!$D$71) -> 12487.45227 | AD124: =AC124*(1-'Generation Inputs'!$D$71) -> 12425.01501
B125: November | C125: ='Generation Inputs'!$D$7*D107 -> 9010.5 | D125: kWh's per mo. | F125: =C125*(1-'Generation Inputs'!$D$71) -> 8965.4475 | G125: =F125*(1-'Generation Inputs'!$D$71) -> 8920.620263 | H125: =G125*(1-'Generation Inputs'!$D$71) -> 8876.017161 | I125: =H125*(1-'Generation Inputs'!$D$71) -> 8831.637075 | J125: =I125*(1-'Generation Inputs'!$D$71) -> 8787.47889 | K125: =J125*(1-'Generation Inputs'!$D$71) -> 8743.541496 | L125: =K125*(1-'Generation Inputs'!$D$71) -> 8699.823788 | M125: =L125*(1-'Generation Inputs'!$D$71) -> 8656.324669 | N125: =M125*(1-'Generation Inputs'!$D$71) -> 8613.043046 | O125: =N125*(1-'Generation Inputs'!$D$71) -> 8569.977831 | P125: =O125*(1-'Generation Inputs'!$D$71) -> 8527.127941 | Q125: =P125*(1-'Generation Inputs'!$D$71) -> 8484.492302 | R125: =Q125*(1-'Generation Inputs'!$D$71) -> 8442.06984 | S125: =R125*(1-'Generation Inputs'!$D$71) -> 8399.859491 | T125: =S125*(1-'Generation Inputs'!$D$71) -> 8357.860194 | U125: =T125*(1-'Generation Inputs'!$D$71) -> 8316.070893 | V125: =U125*(1-'Generation Inputs'!$D$71) -> 8274.490538 | W125: =V125*(1-'Generation Inputs'!$D$71) -> 8233.118085 | X125: =W125*(1-'Generation Inputs'!$D$71) -> 8191.952495 | Y125: =X125*(1-'Generation Inputs'!$D$71) -> 8150.992733 | Z125: =Y125*(1-'Generation Inputs'!$D$71) -> 8110.237769 | AA125: =Z125*(1-'Generation Inputs'!$D$71) -> 8069.68658 | AB125: =AA125*(1-'Generation Inputs'!$D$71) -> 8029.338147 | AC125: =AB125*(1-'Generation Inputs'!$D$71) -> 7989.191456 | AD125: =AC125*(1-'Generation Inputs'!$D$71) -> 7949.245499
B126: December | C126: ='Generation Inputs'!$D$7*D108 -> 9157.995117 | D126: kWh's per mo. | F126: =C126*(1-'Generation Inputs'!$D$71) -> 9112.205142 | G126: =F126*(1-'Generation Inputs'!$D$71) -> 9066.644116 | H126: =G126*(1-'Generation Inputs'!$D$71) -> 9021.310895 | I126: =H126*(1-'Generation Inputs'!$D$71) -> 8976.204341 | J126: =I126*(1-'Generation Inputs'!$D$71) -> 8931.323319 | K126: =J126*(1-'Generation Inputs'!$D$71) -> 8886.666703 | L126: =K126*(1-'Generation Inputs'!$D$71) -> 8842.233369 | M126: =L126*(1-'Generation Inputs'!$D$71) -> 8798.022202 | N126: =M126*(1-'Generation Inputs'!$D$71) -> 8754.032091 | O126: =N126*(1-'Generation Inputs'!$D$71) -> 8710.261931 | P126: =O126*(1-'Generation Inputs'!$D$71) -> 8666.710621 | Q126: =P126*(1-'Generation Inputs'!$D$71) -> 8623.377068 | R126: =Q126*(1-'Generation Inputs'!$D$71) -> 8580.260183 | S126: =R126*(1-'Generation Inputs'!$D$71) -> 8537.358882 | T126: =S126*(1-'Generation Inputs'!$D$71) -> 8494.672087 | U126: =T126*(1-'Generation Inputs'!$D$71) -> 8452.198727 | V126: =U126*(1-'Generation Inputs'!$D$71) -> 8409.937733 | W126: =V126*(1-'Generation Inputs'!$D$71) -> 8367.888045 | X126: =W126*(1-'Generation Inputs'!$D$71) -> 8326.048604 | Y126: =X126*(1-'Generation Inputs'!$D$71) -> 8284.418361 | Z126: =Y126*(1-'Generation Inputs'!$D$71) -> 8242.99627 | AA126: =Z126*(1-'Generation Inputs'!$D$71) -> 8201.781288 | AB126: =AA126*(1-'Generation Inputs'!$D$71) -> 8160.772382 | AC126: =AB126*(1-'Generation Inputs'!$D$71) -> 8119.96852 | AD126: =AC126*(1-'Generation Inputs'!$D$71) -> 8079.368677
B127: Annual | C127: =SUM(C115:C126) -> 233433.4277 | D127: kWh's per yr. | F127: =SUM(F115:F126) -> 232266.2606 | G127: 231104.9293 | H127: 229949.4046 | I127: 228799.6576 | J127: 227655.6593 | K127: 226517.381 | L127: 225384.7941 | M127: 224257.8702 | N127: 223136.5808 | O127: 222020.8979 | P127: 220910.7934 | Q127: 219806.2395 | R127: 218707.2083 | S127: 217613.6722 | T127: 216525.6039 | U127: 215442.9758 | V127: 214365.761 | W127: 213293.9321 | X127: 212227.4625 | Y127: 211166.3252 | Z127: 210110.4935 | AA127: 209059.9411 | AB127: 208014.6414 | AC127: 206974.5682 | AD127: 205939.6953 | AF127: =SUM(F127:AE127) -> 5471252.749
B130: Direct Load Offest Value
B132: Load Offset Generation Estimate
B133: Month | C133: Generation (kWh)
B134: January | C134: =C115*'Generation Inputs'!$D$51 -> 8844.243164 | D134: kWh's per mo. | F134: =($C134)*(1-((F$21-1)*('Generation Inputs'!$D$71))) -> 8888.46438 | G134: =($C134)*(1-((G$21-1)*('Generation Inputs'!$D$71))) -> 8888.46438 | H134: =($C134)*(1-((H$21-1)*('Generation Inputs'!$D$71))) -> 8888.46438 | I134: =($C134)*(1-((I$21-1)*('Generation Inputs'!$D$71))) -> 8888.46438 | J134: =($C134)*(1-((J$21-1)*('Generation Inputs'!$D$71))) -> 8888.46438 | K134: =($C134)*(1-((K$21-1)*('Generation Inputs'!$D$71))) -> 8888.46438 | L134: =($C134)*(1-((L$21-1)*('Generation Inputs'!$D$71))) -> 8888.46438 | M134: =($C134)*(1-((M$21-1)*('Generation Inputs'!$D$71))) -> 8888.46438 | N134: =($C134)*(1-((N$21-1)*('Generation Inputs'!$D$71))) -> 8888.46438 | O134: =($C134)*(1-((O$21-1)*('Generation Inputs'!$D$71))) -> 8888.46438 | P134: =($C134)*(1-((P$21-1)*('Generation Inputs'!$D$71))) -> 8888.46438 | Q134: =($C134)*(1-((Q$21-1)*('Generation Inputs'!$D$71))) -> 8888.46438 | R134: =($C134)*(1-((R$21-1)*('Generation Inputs'!$D$71))) -> 8888.46438 | S134: =($C134)*(1-((S$21-1)*('Generation Inputs'!$D$71))) -> 8888.46438 | T134: =($C134)*(1-((T$21-1)*('Generation Inputs'!$D$71))) -> 8888.46438 | U134: =($C134)*(1-((U$21-1)*('Generation Inputs'!$D$71))) -> 8888.46438 | V134: =($C134)*(1-((V$21-1)*('Generation Inputs'!$D$71))) -> 8888.46438 | W134: =($C134)*(1-((W$21-1)*('Generation Inputs'!$D$71))) -> 8888.46438 | X134: =($C134)*(1-((X$21-1)*('Generation Inputs'!$D$71))) -> 8888.46438 | Y134: =($C134)*(1-((Y$21-1)*('Generation Inputs'!$D$71))) -> 8888.46438 | Z134: =($C134)*(1-((Z$21-1)*('Generation Inputs'!$D$71))) -> 8888.46438 | AA134: =($C134)*(1-((AA$21-1)*('Generation Inputs'!$D$71))) -> 8888.46438 | AB134: =($C134)*(1-((AB$21-1)*('Generation Inputs'!$D$71))) -> 8888.46438 | AC134: =($C134)*(1-((AC$21-1)*('Generation Inputs'!$D$71))) -> 8888.46438 | AD134: =($C134)*(1-((AD$21-1)*('Generation Inputs'!$D$71))) -> 8888.46438
B135: February | C135: =C116*'Generation Inputs'!$D$51 -> 11409 | D135: kWh's per mo. | F135: =($C135)*(1-((F$21-1)*('Generation Inputs'!$D$71))) -> 11466.045 | G135: =($C135)*(1-((G$21-1)*('Generation Inputs'!$D$71))) -> 11466.045 | H135: =($C135)*(1-((H$21-1)*('Generation Inputs'!$D$71))) -> 11466.045 | I135: =($C135)*(1-((I$21-1)*('Generation Inputs'!$D$71))) -> 11466.045 | J135: =($C135)*(1-((J$21-1)*('Generation Inputs'!$D$71))) -> 11466.045 | K135: =($C135)*(1-((K$21-1)*('Generation Inputs'!$D$71))) -> 11466.045 | L135: =($C135)*(1-((L$21-1)*('Generation Inputs'!$D$71))) -> 11466.045 | M135: =($C135)*(1-((M$21-1)*('Generation Inputs'!$D$71))) -> 11466.045 | N135: =($C135)*(1-((N$21-1)*('Generation Inputs'!$D$71))) -> 11466.045 | O135: =($C135)*(1-((O$21-1)*('Generation Inputs'!$D$71))) -> 11466.045 | P135: =($C135)*(1-((P$21-1)*('Generation Inputs'!$D$71))) -> 11466.045 | Q135: =($C135)*(1-((Q$21-1)*('Generation Inputs'!$D$71))) -> 11466.045 | R135: =($C135)*(1-((R$21-1)*('Generation Inputs'!$D$71))) -> 11466.045 | S135: =($C135)*(1-((S$21-1)*('Generation Inputs'!$D$71))) -> 11466.045 | T135: =($C135)*(1-((T$21-1)*('Generation Inputs'!$D$71))) -> 11466.045 | U135: =($C135)*(1-((U$21-1)*('Generation Inputs'!$D$71))) -> 11466.045 | V135: =($C135)*(1-((V$21-1)*('Generation Inputs'!$D$71))) -> 11466.045 | W135: =($C135)*(1-((W$21-1)*('Generation Inputs'!$D$71))) -> 11466.045 | X135: =($C135)*(1-((X$21-1)*('Generation Inputs'!$D$71))) -> 11466.045 | Y135: =($C135)*(1-((Y$21-1)*('Generation Inputs'!$D$71))) -> 11466.045 | Z135: =($C135)*(1-((Z$21-1)*('Generation Inputs'!$D$71))) -> 11466.045 | AA135: =($C135)*(1-((AA$21-1)*('Generation Inputs'!$D$71))) -> 11466.045 | AB135: =($C135)*(1-((AB$21-1)*('Generation Inputs'!$D$71))) -> 11466.045 | AC135: =($C135)*(1-((AC$21-1)*('Generation Inputs'!$D$71))) -> 11466.045 | AD135: =($C135)*(1-((AD$21-1)*('Generation Inputs'!$D$71))) -> 11466.045
B136: March | C136: =C117*'Generation Inputs'!$D$51 -> 17243.39648 | D136: kWh's per mo. | F136: =($C136)*(1-((F$21-1)*('Generation Inputs'!$D$71))) -> 17329.61347 | G136: =($C136)*(1-((G$21-1)*('Generation Inputs'!$D$71))) -> 17329.61347 | H136: =($C136)*(1-((H$21-1)*('Generation Inputs'!$D$71))) -> 17329.61347 | I136: =($C136)*(1-((I$21-1)*('Generation Inputs'!$D$71))) -> 17329.61347 | J136: =($C136)*(1-((J$21-1)*('Generation Inputs'!$D$71))) -> 17329.61347 | K136: =($C136)*(1-((K$21-1)*('Generation Inputs'!$D$71))) -> 17329.61347 | L136: =($C136)*(1-((L$21-1)*('Generation Inputs'!$D$71))) -> 17329.61347 | M136: =($C136)*(1-((M$21-1)*('Generation Inputs'!$D$71))) -> 17329.61347 | N136: =($C136)*(1-((N$21-1)*('Generation Inputs'!$D$71))) -> 17329.61347 | O136: =($C136)*(1-((O$21-1)*('Generation Inputs'!$D$71))) -> 17329.61347 | P136: =($C136)*(1-((P$21-1)*('Generation Inputs'!$D$71))) -> 17329.61347 | Q136: =($C136)*(1-((Q$21-1)*('Generation Inputs'!$D$71))) -> 17329.61347 | R136: =($C136)*(1-((R$21-1)*('Generation Inputs'!$D$71))) -> 17329.61347 | S136: =($C136)*(1-((S$21-1)*('Generation Inputs'!$D$71))) -> 17329.61347 | T136: =($C136)*(1-((T$21-1)*('Generation Inputs'!$D$71))) -> 17329.61347 | U136: =($C136)*(1-((U$21-1)*('Generation Inputs'!$D$71))) -> 17329.61347 | V136: =($C136)*(1-((V$21-1)*('Generation Inputs'!$D$71))) -> 17329.61347 | W136: =($C136)*(1-((W$21-1)*('Generation Inputs'!$D$71))) -> 17329.61347 | X136: =($C136)*(1-((X$21-1)*('Generation Inputs'!$D$71))) -> 17329.61347 | Y136: =($C136)*(1-((Y$21-1)*('Generation Inputs'!$D$71))) -> 17329.61347 | Z136: =($C136)*(1-((Z$21-1)*('Generation Inputs'!$D$71))) -> 17329.61347 | AA136: =($C136)*(1-((AA$21-1)*('Generation Inputs'!$D$71))) -> 17329.61347 | AB136: =($C136)*(1-((AB$21-1)*('Generation Inputs'!$D$71))) -> 17329.61347 | AC136: =($C136)*(1-((AC$21-1)*('Generation Inputs'!$D$71))) -> 17329.61347 | AD136: =($C136)*(1-((AD$21-1)*('Generation Inputs'!$D$71))) -> 17329.61347
B137: April | C137: =C118*'Generation Inputs'!$D$51 -> 20333.23242 | D137: kWh's per mo. | F137: =($C137)*(1-((F$21-1)*('Generation Inputs'!$D$71))) -> 20434.89858 | G137: =($C137)*(1-((G$21-1)*('Generation Inputs'!$D$71))) -> 20434.89858 | H137: =($C137)*(1-((H$21-1)*('Generation Inputs'!$D$71))) -> 20434.89858 | I137: =($C137)*(1-((I$21-1)*('Generation Inputs'!$D$71))) -> 20434.89858 | J137: =($C137)*(1-((J$21-1)*('Generation Inputs'!$D$71))) -> 20434.89858 | K137: =($C137)*(1-((K$21-1)*('Generation Inputs'!$D$71))) -> 20434.89858 | L137: =($C137)*(1-((L$21-1)*('Generation Inputs'!$D$71))) -> 20434.89858 | M137: =($C137)*(1-((M$21-1)*('Generation Inputs'!$D$71))) -> 20434.89858 | N137: =($C137)*(1-((N$21-1)*('Generation Inputs'!$D$71))) -> 20434.89858 | O137: =($C137)*(1-((O$21-1)*('Generation Inputs'!$D$71))) -> 20434.89858 | P137: =($C137)*(1-((P$21-1)*('Generation Inputs'!$D$71))) -> 20434.89858 | Q137: =($C137)*(1-((Q$21-1)*('Generation Inputs'!$D$71))) -> 20434.89858 | R137: =($C137)*(1-((R$21-1)*('Generation Inputs'!$D$71))) -> 20434.89858 | S137: =($C137)*(1-((S$21-1)*('Generation Inputs'!$D$71))) -> 20434.89858 | T137: =($C137)*(1-((T$21-1)*('Generation Inputs'!$D$71))) -> 20434.89858 | U137: =($C137)*(1-((U$21-1)*('Generation Inputs'!$D$71))) -> 20434.89858 | V137: =($C137)*(1-((V$21-1)*('Generation Inputs'!$D$71))) -> 20434.89858 | W137: =($C137)*(1-((W$21-1)*('Generation Inputs'!$D$71))) -> 20434.89858 | X137: =($C137)*(1-((X$21-1)*('Generation Inputs'!$D$71))) -> 20434.89858 | Y137: =($C137)*(1-((Y$21-1)*('Generation Inputs'!$D$71))) -> 20434.89858 | Z137: =($C137)*(1-((Z$21-1)*('Generation Inputs'!$D$71))) -> 20434.89858 | AA137: =($C137)*(1-((AA$21-1)*('Generation Inputs'!$D$71))) -> 20434.89858 | AB137: =($C137)*(1-((AB$21-1)*('Generation Inputs'!$D$71))) -> 20434.89858 | AC137: =($C137)*(1-((AC$21-1)*('Generation Inputs'!$D$71))) -> 20434.89858 | AD137: =($C137)*(1-((AD$21-1)*('Generation Inputs'!$D$71))) -> 20434.89858
B138: May | C138: =C119*'Generation Inputs'!$D$51 -> 20037.69873 | D138: kWh's per mo. | F138: =($C138)*(1-((F$21-1)*('Generation Inputs'!$D$71))) -> 20137.88722 | G138: =($C138)*(1-((G$21-1)*('Generation Inputs'!$D$71))) -> 20137.88722 | H138: =($C138)*(1-((H$21-1)*('Generation Inputs'!$D$71))) -> 20137.88722 | I138: =($C138)*(1-((I$21-1)*('Generation Inputs'!$D$71))) -> 20137.88722 | J138: =($C138)*(1-((J$21-1)*('Generation Inputs'!$D$71))) -> 20137.88722 | K138: =($C138)*(1-((K$21-1)*('Generation Inputs'!$D$71))) -> 20137.88722 | L138: =($C138)*(1-((L$21-1)*('Generation Inputs'!$D$71))) -> 20137.88722 | M138: =($C138)*(1-((M$21-1)*('Generation Inputs'!$D$71))) -> 20137.88722 | N138: =($C138)*(1-((N$21-1)*('Generation Inputs'!$D$71))) -> 20137.88722 | O138: =($C138)*(1-((O$21-1)*('Generation Inputs'!$D$71))) -> 20137.88722 | P138: =($C138)*(1-((P$21-1)*('Generation Inputs'!$D$71))) -> 20137.88722 | Q138: =($C138)*(1-((Q$21-1)*('Generation Inputs'!$D$71))) -> 20137.88722 | R138: =($C138)*(1-((R$21-1)*('Generation Inputs'!$D$71))) -> 20137.88722 | S138: =($C138)*(1-((S$21-1)*('Generation Inputs'!$D$71))) -> 20137.88722 | T138: =($C138)*(1-((T$21-1)*('Generation Inputs'!$D$71))) -> 20137.88722 | U138: =($C138)*(1-((U$21-1)*('Generation Inputs'!$D$71))) -> 20137.88722 | V138: =($C138)*(1-((V$21-1)*('Generation Inputs'!$D$71))) -> 20137.88722 | W138: =($C138)*(1-((W$21-1)*('Generation Inputs'!$D$71))) -> 20137.88722 | X138: =($C138)*(1-((X$21-1)*('Generation Inputs'!$D$71))) -> 20137.88722 | Y138: =($C138)*(1-((Y$21-1)*('Generation Inputs'!$D$71))) -> 20137.88722 | Z138: =($C138)*(1-((Z$21-1)*('Generation Inputs'!$D$71))) -> 20137.88722 | AA138: =($C138)*(1-((AA$21-1)*('Generation Inputs'!$D$71))) -> 20137.88722 | AB138: =($C138)*(1-((AB$21-1)*('Generation Inputs'!$D$71))) -> 20137.88722 | AC138: =($C138)*(1-((AC$21-1)*('Generation Inputs'!$D$71))) -> 20137.88722 | AD138: =($C138)*(1-((AD$21-1)*('Generation Inputs'!$D$71))) -> 20137.88722
B139: June | C139: =C120*'Generation Inputs'!$D$51 -> 20573.9751 | D139: kWh's per mo. | F139: =($C139)*(1-((F$21-1)*('Generation Inputs'!$D$71))) -> 20676.84497 | G139: =($C139)*(1-((G$21-1)*('Generation Inputs'!$D$71))) -> 20676.84497 | H139: =($C139)*(1-((H$21-1)*('Generation Inputs'!$D$71))) -> 20676.84497 | I139: =($C139)*(1-((I$21-1)*('Generation Inputs'!$D$71))) -> 20676.84497 | J139: =($C139)*(1-((J$21-1)*('Generation Inputs'!$D$71))) -> 20676.84497 | K139: =($C139)*(1-((K$21-1)*('Generation Inputs'!$D$71))) -> 20676.84497 | L139: =($C139)*(1-((L$21-1)*('Generation Inputs'!$D$71))) -> 20676.84497 | M139: =($C139)*(1-((M$21-1)*('Generation Inputs'!$D$71))) -> 20676.84497 | N139: =($C139)*(1-((N$21-1)*('Generation Inputs'!$D$71))) -> 20676.84497 | O139: =($C139)*(1-((O$21-1)*('Generation Inputs'!$D$71))) -> 20676.84497 | P139: =($C139)*(1-((P$21-1)*('Generation Inputs'!$D$71))) -> 20676.84497 | Q139: =($C139)*(1-((Q$21-1)*('Generation Inputs'!$D$71))) -> 20676.84497 | R139: =($C139)*(1-((R$21-1)*('Generation Inputs'!$D$71))) -> 20676.84497 | S139: =($C139)*(1-((S$21-1)*('Generation Inputs'!$D$71))) -> 20676.84497 | T139: =($C139)*(1-((T$21-1)*('Generation Inputs'!$D$71))) -> 20676.84497 | U139: =($C139)*(1-((U$21-1)*('Generation Inputs'!$D$71))) -> 20676.84497 | V139: =($C139)*(1-((V$21-1)*('Generation Inputs'!$D$71))) -> 20676.84497 | W139: =($C139)*(1-((W$21-1)*('Generation Inputs'!$D$71))) -> 20676.84497 | X139: =($C139)*(1-((X$21-1)*('Generation Inputs'!$D$71))) -> 20676.84497 | Y139: =($C139)*(1-((Y$21-1)*('Generation Inputs'!$D$71))) -> 20676.84497 | Z139: =($C139)*(1-((Z$21-1)*('Generation Inputs'!$D$71))) -> 20676.84497 | AA139: =($C139)*(1-((AA$21-1)*('Generation Inputs'!$D$71))) -> 20676.84497 | AB139: =($C139)*(1-((AB$21-1)*('Generation Inputs'!$D$71))) -> 20676.84497 | AC139: =($C139)*(1-((AC$21-1)*('Generation Inputs'!$D$71))) -> 20676.84497 | AD139: =($C139)*(1-((AD$21-1)*('Generation Inputs'!$D$71))) -> 20676.84497
B140: July | C140: =C121*'Generation Inputs'!$D$51 -> 20072.2749 | D140: kWh's per mo. | F140: =($C140)*(1-((F$21-1)*('Generation Inputs'!$D$71))) -> 20172.63628 | G140: =($C140)*(1-((G$21-1)*('Generation Inputs'!$D$71))) -> 20172.63628 | H140: =($C140)*(1-((H$21-1)*('Generation Inputs'!$D$71))) -> 20172.63628 | I140: =($C140)*(1-((I$21-1)*('Generation Inputs'!$D$71))) -> 20172.63628 | J140: =($C140)*(1-((J$21-1)*('Generation Inputs'!$D$71))) -> 20172.63628 | K140: =($C140)*(1-((K$21-1)*('Generation Inputs'!$D$71))) -> 20172.63628 | L140: =($C140)*(1-((L$21-1)*('Generation Inputs'!$D$71))) -> 20172.63628 | M140: =($C140)*(1-((M$21-1)*('Generation Inputs'!$D$71))) -> 20172.63628 | N140: =($C140)*(1-((N$21-1)*('Generation Inputs'!$D$71))) -> 20172.63628 | O140: =($C140)*(1-((O$21-1)*('Generation Inputs'!$D$71))) -> 20172.63628 | P140: =($C140)*(1-((P$21-1)*('Generation Inputs'!$D$71))) -> 20172.63628 | Q140: =($C140)*(1-((Q$21-1)*('Generation Inputs'!$D$71))) -> 20172.63628 | R140: =($C140)*(1-((R$21-1)*('Generation Inputs'!$D$71))) -> 20172.63628 | S140: =($C140)*(1-((S$21-1)*('Generation Inputs'!$D$71))) -> 20172.63628 | T140: =($C140)*(1-((T$21-1)*('Generation Inputs'!$D$71))) -> 20172.63628 | U140: =($C140)*(1-((U$21-1)*('Generation Inputs'!$D$71))) -> 20172.63628 | V140: =($C140)*(1-((V$21-1)*('Generation Inputs'!$D$71))) -> 20172.63628 | W140: =($C140)*(1-((W$21-1)*('Generation Inputs'!$D$71))) -> 20172.63628 | X140: =($C140)*(1-((X$21-1)*('Generation Inputs'!$D$71))) -> 20172.63628 | Y140: =($C140)*(1-((Y$21-1)*('Generation Inputs'!$D$71))) -> 20172.63628 | Z140: =($C140)*(1-((Z$21-1)*('Generation Inputs'!$D$71))) -> 20172.63628 | AA140: =($C140)*(1-((AA$21-1)*('Generation Inputs'!$D$71))) -> 20172.63628 | AB140: =($C140)*(1-((AB$21-1)*('Generation Inputs'!$D$71))) -> 20172.63628 | AC140: =($C140)*(1-((AC$21-1)*('Generation Inputs'!$D$71))) -> 20172.63628 | AD140: =($C140)*(1-((AD$21-1)*('Generation Inputs'!$D$71))) -> 20172.63628
B141: August | C141: =C122*'Generation Inputs'!$D$51 -> 18278.24268 | D141: kWh's per mo. | F141: =($C141)*(1-((F$21-1)*('Generation Inputs'!$D$71))) -> 18369.63389 | G141: =($C141)*(1-((G$21-1)*('Generation Inputs'!$D$71))) -> 18369.63389 | H141: =($C141)*(1-((H$21-1)*('Generation Inputs'!$D$71))) -> 18369.63389 | I141: =($C141)*(1-((I$21-1)*('Generation Inputs'!$D$71))) -> 18369.63389 | J141: =($C141)*(1-((J$21-1)*('Generation Inputs'!$D$71))) -> 18369.63389 | K141: =($C141)*(1-((K$21-1)*('Generation Inputs'!$D$71))) -> 18369.63389 | L141: =($C141)*(1-((L$21-1)*('Generation Inputs'!$D$71))) -> 18369.63389 | M141: =($C141)*(1-((M$21-1)*('Generation Inputs'!$D$71))) -> 18369.63389 | N141: =($C141)*(1-((N$21-1)*('Generation Inputs'!$D$71))) -> 18369.63389 | O141: =($C141)*(1-((O$21-1)*('Generation Inputs'!$D$71))) -> 18369.63389 | P141: =($C141)*(1-((P$21-1)*('Generation Inputs'!$D$71))) -> 18369.63389 | Q141: =($C141)*(1-((Q$21-1)*('Generation Inputs'!$D$71))) -> 18369.63389 | R141: =($C141)*(1-((R$21-1)*('Generation Inputs'!$D$71))) -> 18369.63389 | S141: =($C141)*(1-((S$21-1)*('Generation Inputs'!$D$71))) -> 18369.63389 | T141: =($C141)*(1-((T$21-1)*('Generation Inputs'!$D$71))) -> 18369.63389 | U141: =($C141)*(1-((U$21-1)*('Generation Inputs'!$D$71))) -> 18369.63389 | V141: =($C141)*(1-((V$21-1)*('Generation Inputs'!$D$71))) -> 18369.63389 | W141: =($C141)*(1-((W$21-1)*('Generation Inputs'!$D$71))) -> 18369.63389 | X141: =($C141)*(1-((X$21-1)*('Generation Inputs'!$D$71))) -> 18369.63389 | Y141: =($C141)*(1-((Y$21-1)*('Generation Inputs'!$D$71))) -> 18369.63389 | Z141: =($C141)*(1-((Z$21-1)*('Generation Inputs'!$D$71))) -> 18369.63389 | AA141: =($C141)*(1-((AA$21-1)*('Generation Inputs'!$D$71))) -> 18369.63389 | AB141: =($C141)*(1-((AB$21-1)*('Generation Inputs'!$D$71))) -> 18369.63389 | AC141: =($C141)*(1-((AC$21-1)*('Generation Inputs'!$D$71))) -> 18369.63389 | AD141: =($C141)*(1-((AD$21-1)*('Generation Inputs'!$D$71))) -> 18369.63389
B142: September | C142: =C123*'Generation Inputs'!$D$51 -> 14093.78467 | D142: kWh's per mo. | F142: =($C142)*(1-((F$21-1)*('Generation Inputs'!$D$71))) -> 14164.25359 | G142: =($C142)*(1-((G$21-1)*('Generation Inputs'!$D$71))) -> 14164.25359 | H142: =($C142)*(1-((H$21-1)*('Generation Inputs'!$D$71))) -> 14164.25359 | I142: =($C142)*(1-((I$21-1)*('Generation Inputs'!$D$71))) -> 14164.25359 | J142: =($C142)*(1-((J$21-1)*('Generation Inputs'!$D$71))) -> 14164.25359 | K142: =($C142)*(1-((K$21-1)*('Generation Inputs'!$D$71))) -> 14164.25359 | L142: =($C142)*(1-((L$21-1)*('Generation Inputs'!$D$71))) -> 14164.25359 | M142: =($C142)*(1-((M$21-1)*('Generation Inputs'!$D$71))) -> 14164.25359 | N142: =($C142)*(1-((N$21-1)*('Generation Inputs'!$D$71))) -> 14164.25359 | O142: =($C142)*(1-((O$21-1)*('Generation Inputs'!$D$71))) -> 14164.25359 | P142: =($C142)*(1-((P$21-1)*('Generation Inputs'!$D$71))) -> 14164.25359 | Q142: =($C142)*(1-((Q$21-1)*('Generation Inputs'!$D$71))) -> 14164.25359 | R142: =($C142)*(1-((R$21-1)*('Generation Inputs'!$D$71))) -> 14164.25359 | S142: =($C142)*(1-((S$21-1)*('Generation Inputs'!$D$71))) -> 14164.25359 | T142: =($C142)*(1-((T$21-1)*('Generation Inputs'!$D$71))) -> 14164.25359 | U142: =($C142)*(1-((U$21-1)*('Generation Inputs'!$D$71))) -> 14164.25359 | V142: =($C142)*(1-((V$21-1)*('Generation Inputs'!$D$71))) -> 14164.25359 | W142: =($C142)*(1-((W$21-1)*('Generation Inputs'!$D$71))) -> 14164.25359 | X142: =($C142)*(1-((X$21-1)*('Generation Inputs'!$D$71))) -> 14164.25359 | Y142: =($C142)*(1-((Y$21-1)*('Generation Inputs'!$D$71))) -> 14164.25359 | Z142: =($C142)*(1-((Z$21-1)*('Generation Inputs'!$D$71))) -> 14164.25359 | AA142: =($C142)*(1-((AA$21-1)*('Generation Inputs'!$D$71))) -> 14164.25359 | AB142: =($C142)*(1-((AB$21-1)*('Generation Inputs'!$D$71))) -> 14164.25359 | AC142: =($C142)*(1-((AC$21-1)*('Generation Inputs'!$D$71))) -> 14164.25359 | AD142: =($C142)*(1-((AD$21-1)*('Generation Inputs'!$D$71))) -> 14164.25359
B143: October | C143: =C124*'Generation Inputs'!$D$51 -> 10562.85132 | D143: kWh's per mo. | F143: =($C143)*(1-((F$21-1)*('Generation Inputs'!$D$71))) -> 10615.66557 | G143: =($C143)*(1-((G$21-1)*('Generation Inputs'!$D$71))) -> 10615.66557 | H143: =($C143)*(1-((H$21-1)*('Generation Inputs'!$D$71))) -> 10615.66557 | I143: =($C143)*(1-((I$21-1)*('Generation Inputs'!$D$71))) -> 10615.66557 | J143: =($C143)*(1-((J$21-1)*('Generation Inputs'!$D$71))) -> 10615.66557 | K143: =($C143)*(1-((K$21-1)*('Generation Inputs'!$D$71))) -> 10615.66557 | L143: =($C143)*(1-((L$21-1)*('Generation Inputs'!$D$71))) -> 10615.66557 | M143: =($C143)*(1-((M$21-1)*('Generation Inputs'!$D$71))) -> 10615.66557 | N143: =($C143)*(1-((N$21-1)*('Generation Inputs'!$D$71))) -> 10615.66557 | O143: =($C143)*(1-((O$21-1)*('Generation Inputs'!$D$71))) -> 10615.66557 | P143: =($C143)*(1-((P$21-1)*('Generation Inputs'!$D$71))) -> 10615.66557 | Q143: =($C143)*(1-((Q$21-1)*('Generation Inputs'!$D$71))) -> 10615.66557 | R143: =($C143)*(1-((R$21-1)*('Generation Inputs'!$D$71))) -> 10615.66557 | S143: =($C143)*(1-((S$21-1)*('Generation Inputs'!$D$71))) -> 10615.66557 | T143: =($C143)*(1-((T$21-1)*('Generation Inputs'!$D$71))) -> 10615.66557 | U143: =($C143)*(1-((U$21-1)*('Generation Inputs'!$D$71))) -> 10615.66557 | V143: =($C143)*(1-((V$21-1)*('Generation Inputs'!$D$71))) -> 10615.66557 | W143: =($C143)*(1-((W$21-1)*('Generation Inputs'!$D$71))) -> 10615.66557 | X143: =($C143)*(1-((X$21-1)*('Generation Inputs'!$D$71))) -> 10615.66557 | Y143: =($C143)*(1-((Y$21-1)*('Generation Inputs'!$D$71))) -> 10615.66557 | Z143: =($C143)*(1-((Z$21-1)*('Generation Inputs'!$D$71))) -> 10615.66557 | AA143: =($C143)*(1-((AA$21-1)*('Generation Inputs'!$D$71))) -> 10615.66557 | AB143: =($C143)*(1-((AB$21-1)*('Generation Inputs'!$D$71))) -> 10615.66557 | AC143: =($C143)*(1-((AC$21-1)*('Generation Inputs'!$D$71))) -> 10615.66557 | AD143: =($C143)*(1-((AD$21-1)*('Generation Inputs'!$D$71))) -> 10615.66557
B144: November | C144: =C125*'Generation Inputs'!$D$51 -> 6757.875 | D144: kWh's per mo. | F144: =($C144)*(1-((F$21-1)*('Generation Inputs'!$D$71))) -> 6791.664375 | G144: =($C144)*(1-((G$21-1)*('Generation Inputs'!$D$71))) -> 6791.664375 | H144: =($C144)*(1-((H$21-1)*('Generation Inputs'!$D$71))) -> 6791.664375 | I144: =($C144)*(1-((I$21-1)*('Generation Inputs'!$D$71))) -> 6791.664375 | J144: =($C144)*(1-((J$21-1)*('Generation Inputs'!$D$71))) -> 6791.664375 | K144: =($C144)*(1-((K$21-1)*('Generation Inputs'!$D$71))) -> 6791.664375 | L144: =($C144)*(1-((L$21-1)*('Generation Inputs'!$D$71))) -> 6791.664375 | M144: =($C144)*(1-((M$21-1)*('Generation Inputs'!$D$71))) -> 6791.664375 | N144: =($C144)*(1-((N$21-1)*('Generation Inputs'!$D$71))) -> 6791.664375 | O144: =($C144)*(1-((O$21-1)*('Generation Inputs'!$D$71))) -> 6791.664375 | P144: =($C144)*(1-((P$21-1)*('Generation Inputs'!$D$71))) -> 6791.664375 | Q144: =($C144)*(1-((Q$21-1)*('Generation Inputs'!$D$71))) -> 6791.664375 | R144: =($C144)*(1-((R$21-1)*('Generation Inputs'!$D$71))) -> 6791.664375 | S144: =($C144)*(1-((S$21-1)*('Generation Inputs'!$D$71))) -> 6791.664375 | T144: =($C144)*(1-((T$21-1)*('Generation Inputs'!$D$71))) -> 6791.664375 | U144: =($C144)*(1-((U$21-1)*('Generation Inputs'!$D$71))) -> 6791.664375 | V144: =($C144)*(1-((V$21-1)*('Generation Inputs'!$D$71))) -> 6791.664375 | W144: =($C144)*(1-((W$21-1)*('Generation Inputs'!$D$71))) -> 6791.664375 | X144: =($C144)*(1-((X$21-1)*('Generation Inputs'!$D$71))) -> 6791.664375 | Y144: =($C144)*(1-((Y$21-1)*('Generation Inputs'!$D$71))) -> 6791.664375 | Z144: =($C144)*(1-((Z$21-1)*('Generation Inputs'!$D$71))) -> 6791.664375 | AA144: =($C144)*(1-((AA$21-1)*('Generation Inputs'!$D$71))) -> 6791.664375 | AB144: =($C144)*(1-((AB$21-1)*('Generation Inputs'!$D$71))) -> 6791.664375 | AC144: =($C144)*(1-((AC$21-1)*('Generation Inputs'!$D$71))) -> 6791.664375 | AD144: =($C144)*(1-((AD$21-1)*('Generation Inputs'!$D$71))) -> 6791.664375
B145: December | C145: =C126*'Generation Inputs'!$D$51 -> 6868.496338 | D145: kWh's per mo. | F145: =($C145)*(1-((F$21-1)*('Generation Inputs'!$D$71))) -> 6902.83882 | G145: =($C145)*(1-((G$21-1)*('Generation Inputs'!$D$71))) -> 6902.83882 | H145: =($C145)*(1-((H$21-1)*('Generation Inputs'!$D$71))) -> 6902.83882 | I145: =($C145)*(1-((I$21-1)*('Generation Inputs'!$D$71))) -> 6902.83882 | J145: =($C145)*(1-((J$21-1)*('Generation Inputs'!$D$71))) -> 6902.83882 | K145: =($C145)*(1-((K$21-1)*('Generation Inputs'!$D$71))) -> 6902.83882 | L145: =($C145)*(1-((L$21-1)*('Generation Inputs'!$D$71))) -> 6902.83882 | M145: =($C145)*(1-((M$21-1)*('Generation Inputs'!$D$71))) -> 6902.83882 | N145: =($C145)*(1-((N$21-1)*('Generation Inputs'!$D$71))) -> 6902.83882 | O145: =($C145)*(1-((O$21-1)*('Generation Inputs'!$D$71))) -> 6902.83882 | P145: =($C145)*(1-((P$21-1)*('Generation Inputs'!$D$71))) -> 6902.83882 | Q145: =($C145)*(1-((Q$21-1)*('Generation Inputs'!$D$71))) -> 6902.83882 | R145: =($C145)*(1-((R$21-1)*('Generation Inputs'!$D$71))) -> 6902.83882 | S145: =($C145)*(1-((S$21-1)*('Generation Inputs'!$D$71))) -> 6902.83882 | T145: =($C145)*(1-((T$21-1)*('Generation Inputs'!$D$71))) -> 6902.83882 | U145: =($C145)*(1-((U$21-1)*('Generation Inputs'!$D$71))) -> 6902.83882 | V145: =($C145)*(1-((V$21-1)*('Generation Inputs'!$D$71))) -> 6902.83882 | W145: =($C145)*(1-((W$21-1)*('Generation Inputs'!$D$71))) -> 6902.83882 | X145: =($C145)*(1-((X$21-1)*('Generation Inputs'!$D$71))) -> 6902.83882 | Y145: =($C145)*(1-((Y$21-1)*('Generation Inputs'!$D$71))) -> 6902.83882 | Z145: =($C145)*(1-((Z$21-1)*('Generation Inputs'!$D$71))) -> 6902.83882 | AA145: =($C145)*(1-((AA$21-1)*('Generation Inputs'!$D$71))) -> 6902.83882 | AB145: =($C145)*(1-((AB$21-1)*('Generation Inputs'!$D$71))) -> 6902.83882 | AC145: =($C145)*(1-((AC$21-1)*('Generation Inputs'!$D$71))) -> 6902.83882 | AD145: =($C145)*(1-((AD$21-1)*('Generation Inputs'!$D$71))) -> 6902.83882
B146: Annual | C146: =SUM(C134:C145) -> 175075.0708 | D146: kWh's per yr. | F146: =SUM(F134:F145) -> 175950.4462 | G146: 175950.4462 | H146: 175950.4462 | I146: 175950.4462 | J146: 175950.4462 | K146: 175950.4462 | L146: 175950.4462 | M146: 175950.4462 | N146: 175950.4462 | O146: 175950.4462 | P146: 175950.4462 | Q146: 175950.4462 | R146: 175950.4462 | S146: 175950.4462 | T146: 175950.4462 | U146: 175950.4462 | V146: 175950.4462 | W146: 175950.4462 | X146: 175950.4462 | Y146: 175950.4462 | Z146: 175950.4462 | AA146: 175950.4462 | AB146: 175950.4462 | AC146: 175950.4462 | AD146: 175950.4462 | AF146: =SUM(F146:AE146) -> 4398761.154
B148: Load Offset Rate Schedule
B149: Month | C149: Rate ($/kWh)
B150: January | C150: ='Generation Inputs'!$D$48 -> 0.085 | D150: $/kWh | F150: =C150*(1+'Generation Inputs'!$D$68) -> 0.087363 | G150: =F150*(1+'Generation Inputs'!$D$68) -> 0.0897916914 | H150: =G150*(1+'Generation Inputs'!$D$68) -> 0.09228790042 | I150: =H150*(1+'Generation Inputs'!$D$68) -> 0.09485350405 | J150: =I150*(1+'Generation Inputs'!$D$68) -> 0.09749043147 | K150: =J150*(1+'Generation Inputs'!$D$68) -> 0.1002006655 | L150: =K150*(1+'Generation Inputs'!$D$68) -> 0.102986244 | M150: =L150*(1+'Generation Inputs'!$D$68) -> 0.1058492615 | N150: =M150*(1+'Generation Inputs'!$D$68) -> 0.108791871 | O150: =N150*(1+'Generation Inputs'!$D$68) -> 0.111816285 | P150: =O150*(1+'Generation Inputs'!$D$68) -> 0.1149247778 | Q150: =P150*(1+'Generation Inputs'!$D$68) -> 0.1181196866 | R150: =Q150*(1+'Generation Inputs'!$D$68) -> 0.1214034139 | S150: =R150*(1+'Generation Inputs'!$D$68) -> 0.1247784288 | T150: =S150*(1+'Generation Inputs'!$D$68) -> 0.1282472691 | U150: =T150*(1+'Generation Inputs'!$D$68) -> 0.1318125432 | V150: =U150*(1+'Generation Inputs'!$D$68) -> 0.1354769319 | W150: =V150*(1+'Generation Inputs'!$D$68) -> 0.1392431906 | X150: =W150*(1+'Generation Inputs'!$D$68) -> 0.1431141513 | Y150: =X150*(1+'Generation Inputs'!$D$68) -> 0.1470927247 | Z150: =Y150*(1+'Generation Inputs'!$D$68) -> 0.1511819024 | AA150: =Z150*(1+'Generation Inputs'!$D$68) -> 0.1553847593 | AB150: =AA150*(1+'Generation Inputs'!$D$68) -> 0.1597044556 | AC150: =AB150*(1+'Generation Inputs'!$D$68) -> 0.1641442395 | AD150: =AC150*(1+'Generation Inputs'!$D$68) -> 0.1687074493
B151: February | C151: ='Generation Inputs'!$D$48 -> 0.085 | D151: $/kWh | F151: =C151*(1+'Generation Inputs'!$D$68) -> 0.087363 | G151: =F151*(1+'Generation Inputs'!$D$68) -> 0.0897916914 | H151: =G151*(1+'Generation Inputs'!$D$68) -> 0.09228790042 | I151: =H151*(1+'Generation Inputs'!$D$68) -> 0.09485350405 | J151: =I151*(1+'Generation Inputs'!$D$68) -> 0.09749043147 | K151: =J151*(1+'Generation Inputs'!$D$68) -> 0.1002006655 | L151: =K151*(1+'Generation Inputs'!$D$68) -> 0.102986244 | M151: =L151*(1+'Generation Inputs'!$D$68) -> 0.1058492615 | N151: =M151*(1+'Generation Inputs'!$D$68) -> 0.108791871 | O151: =N151*(1+'Generation Inputs'!$D$68) -> 0.111816285 | P151: =O151*(1+'Generation Inputs'!$D$68) -> 0.1149247778 | Q151: =P151*(1+'Generation Inputs'!$D$68) -> 0.1181196866 | R151: =Q151*(1+'Generation Inputs'!$D$68) -> 0.1214034139 | S151: =R151*(1+'Generation Inputs'!$D$68) -> 0.1247784288 | T151: =S151*(1+'Generation Inputs'!$D$68) -> 0.1282472691 | U151: =T151*(1+'Generation Inputs'!$D$68) -> 0.1318125432 | V151: =U151*(1+'Generation Inputs'!$D$68) -> 0.1354769319 | W151: =V151*(1+'Generation Inputs'!$D$68) -> 0.1392431906 | X151: =W151*(1+'Generation Inputs'!$D$68) -> 0.1431141513 | Y151: =X151*(1+'Generation Inputs'!$D$68) -> 0.1470927247 | Z151: =Y151*(1+'Generation Inputs'!$D$68) -> 0.1511819024 | AA151: =Z151*(1+'Generation Inputs'!$D$68) -> 0.1553847593 | AB151: =AA151*(1+'Generation Inputs'!$D$68) -> 0.1597044556 | AC151: =AB151*(1+'Generation Inputs'!$D$68) -> 0.1641442395 | AD151: =AC151*(1+'Generation Inputs'!$D$68) -> 0.1687074493
B152: March | C152: ='Generation Inputs'!$D$48 -> 0.085 | D152: $/kWh | F152: =C152*(1+'Generation Inputs'!$D$68) -> 0.087363 | G152: =F152*(1+'Generation Inputs'!$D$68) -> 0.0897916914 | H152: =G152*(1+'Generation Inputs'!$D$68) -> 0.09228790042 | I152: =H152*(1+'Generation Inputs'!$D$68) -> 0.09485350405 | J152: =I152*(1+'Generation Inputs'!$D$68) -> 0.09749043147 | K152: =J152*(1+'Generation Inputs'!$D$68) -> 0.1002006655 | L152: =K152*(1+'Generation Inputs'!$D$68) -> 0.102986244 | M152: =L152*(1+'Generation Inputs'!$D$68) -> 0.1058492615 | N152: =M152*(1+'Generation Inputs'!$D$68) -> 0.108791871 | O152: =N152*(1+'Generation Inputs'!$D$68) -> 0.111816285 | P152: =O152*(1+'Generation Inputs'!$D$68) -> 0.1149247778 | Q152: =P152*(1+'Generation Inputs'!$D$68) -> 0.1181196866 | R152: =Q152*(1+'Generation Inputs'!$D$68) -> 0.1214034139 | S152: =R152*(1+'Generation Inputs'!$D$68) -> 0.1247784288 | T152: =S152*(1+'Generation Inputs'!$D$68) -> 0.1282472691 | U152: =T152*(1+'Generation Inputs'!$D$68) -> 0.1318125432 | V152: =U152*(1+'Generation Inputs'!$D$68) -> 0.1354769319 | W152: =V152*(1+'Generation Inputs'!$D$68) -> 0.1392431906 | X152: =W152*(1+'Generation Inputs'!$D$68) -> 0.1431141513 | Y152: =X152*(1+'Generation Inputs'!$D$68) -> 0.1470927247 | Z152: =Y152*(1+'Generation Inputs'!$D$68) -> 0.1511819024 | AA152: =Z152*(1+'Generation Inputs'!$D$68) -> 0.1553847593 | AB152: =AA152*(1+'Generation Inputs'!$D$68) -> 0.1597044556 | AC152: =AB152*(1+'Generation Inputs'!$D$68) -> 0.1641442395 | AD152: =AC152*(1+'Generation Inputs'!$D$68) -> 0.1687074493
B153: April | C153: ='Generation Inputs'!$D$48 -> 0.085 | D153: $/kWh | F153: =C153*(1+'Generation Inputs'!$D$68) -> 0.087363 | G153: =F153*(1+'Generation Inputs'!$D$68) -> 0.0897916914 | H153: =G153*(1+'Generation Inputs'!$D$68) -> 0.09228790042 | I153: =H153*(1+'Generation Inputs'!$D$68) -> 0.09485350405 | J153: =I153*(1+'Generation Inputs'!$D$68) -> 0.09749043147 | K153: =J153*(1+'Generation Inputs'!$D$68) -> 0.1002006655 | L153: =K153*(1+'Generation Inputs'!$D$68) -> 0.102986244 | M153: =L153*(1+'Generation Inputs'!$D$68) -> 0.1058492615 | N153: =M153*(1+'Generation Inputs'!$D$68) -> 0.108791871 | O153: =N153*(1+'Generation Inputs'!$D$68) -> 0.111816285 | P153: =O153*(1+'Generation Inputs'!$D$68) -> 0.1149247778 | Q153: =P153*(1+'Generation Inputs'!$D$68) -> 0.1181196866 | R153: =Q153*(1+'Generation Inputs'!$D$68) -> 0.1214034139 | S153: =R153*(1+'Generation Inputs'!$D$68) -> 0.1247784288 | T153: =S153*(1+'Generation Inputs'!$D$68) -> 0.1282472691 | U153: =T153*(1+'Generation Inputs'!$D$68) -> 0.1318125432 | V153: =U153*(1+'Generation Inputs'!$D$68) -> 0.1354769319 | W153: =V153*(1+'Generation Inputs'!$D$68) -> 0.1392431906 | X153: =W153*(1+'Generation Inputs'!$D$68) -> 0.1431141513 | Y153: =X153*(1+'Generation Inputs'!$D$68) -> 0.1470927247 | Z153: =Y153*(1+'Generation Inputs'!$D$68) -> 0.1511819024 | AA153: =Z153*(1+'Generation Inputs'!$D$68) -> 0.1553847593 | AB153: =AA153*(1+'Generation Inputs'!$D$68) -> 0.1597044556 | AC153: =AB153*(1+'Generation Inputs'!$D$68) -> 0.1641442395 | AD153: =AC153*(1+'Generation Inputs'!$D$68) -> 0.1687074493
B154: May | C154: ='Generation Inputs'!$D$48 -> 0.085 | D154: $/kWh | F154: =C154*(1+'Generation Inputs'!$D$68) -> 0.087363 | G154: =F154*(1+'Generation Inputs'!$D$68) -> 0.0897916914 | H154: =G154*(1+'Generation Inputs'!$D$68) -> 0.09228790042 | I154: =H154*(1+'Generation Inputs'!$D$68) -> 0.09485350405 | J154: =I154*(1+'Generation Inputs'!$D$68) -> 0.09749043147 | K154: =J154*(1+'Generation Inputs'!$D$68) -> 0.1002006655 | L154: =K154*(1+'Generation Inputs'!$D$68) -> 0.102986244 | M154: =L154*(1+'Generation Inputs'!$D$68) -> 0.1058492615 | N154: =M154*(1+'Generation Inputs'!$D$68) -> 0.108791871 | O154: =N154*(1+'Generation Inputs'!$D$68) -> 0.111816285 | P154: =O154*(1+'Generation Inputs'!$D$68) -> 0.1149247778 | Q154: =P154*(1+'Generation Inputs'!$D$68) -> 0.1181196866 | R154: =Q154*(1+'Generation Inputs'!$D$68) -> 0.1214034139 | S154: =R154*(1+'Generation Inputs'!$D$68) -> 0.1247784288 | T154: =S154*(1+'Generation Inputs'!$D$68) -> 0.1282472691 | U154: =T154*(1+'Generation Inputs'!$D$68) -> 0.1318125432 | V154: =U154*(1+'Generation Inputs'!$D$68) -> 0.1354769319 | W154: =V154*(1+'Generation Inputs'!$D$68) -> 0.1392431906 | X154: =W154*(1+'Generation Inputs'!$D$68) -> 0.1431141513 | Y154: =X154*(1+'Generation Inputs'!$D$68) -> 0.1470927247 | Z154: =Y154*(1+'Generation Inputs'!$D$68) -> 0.1511819024 | AA154: =Z154*(1+'Generation Inputs'!$D$68) -> 0.1553847593 | AB154: =AA154*(1+'Generation Inputs'!$D$68) -> 0.1597044556 | AC154: =AB154*(1+'Generation Inputs'!$D$68) -> 0.1641442395 | AD154: =AC154*(1+'Generation Inputs'!$D$68) -> 0.1687074493
B155: June | C155: ='Generation Inputs'!$D$48 -> 0.085 | D155: $/kWh | F155: =C155*(1+'Generation Inputs'!$D$68) -> 0.087363 | G155: =F155*(1+'Generation Inputs'!$D$68) -> 0.0897916914 | H155: =G155*(1+'Generation Inputs'!$D$68) -> 0.09228790042 | I155: =H155*(1+'Generation Inputs'!$D$68) -> 0.09485350405 | J155: =I155*(1+'Generation Inputs'!$D$68) -> 0.09749043147 | K155: =J155*(1+'Generation Inputs'!$D$68) -> 0.1002006655 | L155: =K155*(1+'Generation Inputs'!$D$68) -> 0.102986244 | M155: =L155*(1+'Generation Inputs'!$D$68) -> 0.1058492615 | N155: =M155*(1+'Generation Inputs'!$D$68) -> 0.108791871 | O155: =N155*(1+'Generation Inputs'!$D$68) -> 0.111816285 | P155: =O155*(1+'Generation Inputs'!$D$68) -> 0.1149247778 | Q155: =P155*(1+'Generation Inputs'!$D$68) -> 0.1181196866 | R155: =Q155*(1+'Generation Inputs'!$D$68) -> 0.1214034139 | S155: =R155*(1+'Generation Inputs'!$D$68) -> 0.1247784288 | T155: =S155*(1+'Generation Inputs'!$D$68) -> 0.1282472691 | U155: =T155*(1+'Generation Inputs'!$D$68) -> 0.1318125432 | V155: =U155*(1+'Generation Inputs'!$D$68) -> 0.1354769319 | W155: =V155*(1+'Generation Inputs'!$D$68) -> 0.1392431906 | X155: =W155*(1+'Generation Inputs'!$D$68) -> 0.1431141513 | Y155: =X155*(1+'Generation Inputs'!$D$68) -> 0.1470927247 | Z155: =Y155*(1+'Generation Inputs'!$D$68) -> 0.1511819024 | AA155: =Z155*(1+'Generation Inputs'!$D$68) -> 0.1553847593 | AB155: =AA155*(1+'Generation Inputs'!$D$68) -> 0.1597044556 | AC155: =AB155*(1+'Generation Inputs'!$D$68) -> 0.1641442395 | AD155: =AC155*(1+'Generation Inputs'!$D$68) -> 0.1687074493
B156: July | C156: ='Generation Inputs'!$D$48 -> 0.085 | D156: $/kWh | F156: =C156*(1+'Generation Inputs'!$D$68) -> 0.087363 | G156: =F156*(1+'Generation Inputs'!$D$68) -> 0.0897916914 | H156: =G156*(1+'Generation Inputs'!$D$68) -> 0.09228790042 | I156: =H156*(1+'Generation Inputs'!$D$68) -> 0.09485350405 | J156: =I156*(1+'Generation Inputs'!$D$68) -> 0.09749043147 | K156: =J156*(1+'Generation Inputs'!$D$68) -> 0.1002006655 | L156: =K156*(1+'Generation Inputs'!$D$68) -> 0.102986244 | M156: =L156*(1+'Generation Inputs'!$D$68) -> 0.1058492615 | N156: =M156*(1+'Generation Inputs'!$D$68) -> 0.108791871 | O156: =N156*(1+'Generation Inputs'!$D$68) -> 0.111816285 | P156: =O156*(1+'Generation Inputs'!$D$68) -> 0.1149247778 | Q156: =P156*(1+'Generation Inputs'!$D$68) -> 0.1181196866 | R156: =Q156*(1+'Generation Inputs'!$D$68) -> 0.1214034139 | S156: =R156*(1+'Generation Inputs'!$D$68) -> 0.1247784288 | T156: =S156*(1+'Generation Inputs'!$D$68) -> 0.1282472691 | U156: =T156*(1+'Generation Inputs'!$D$68) -> 0.1318125432 | V156: =U156*(1+'Generation Inputs'!$D$68) -> 0.1354769319 | W156: =V156*(1+'Generation Inputs'!$D$68) -> 0.1392431906 | X156: =W156*(1+'Generation Inputs'!$D$68) -> 0.1431141513 | Y156: =X156*(1+'Generation Inputs'!$D$68) -> 0.1470927247 | Z156: =Y156*(1+'Generation Inputs'!$D$68) -> 0.1511819024 | AA156: =Z156*(1+'Generation Inputs'!$D$68) -> 0.1553847593 | AB156: =AA156*(1+'Generation Inputs'!$D$68) -> 0.1597044556 | AC156: =AB156*(1+'Generation Inputs'!$D$68) -> 0.1641442395 | AD156: =AC156*(1+'Generation Inputs'!$D$68) -> 0.1687074493
B157: August | C157: ='Generation Inputs'!$D$48 -> 0.085 | D157: $/kWh | F157: =C157*(1+'Generation Inputs'!$D$68) -> 0.087363 | G157: =F157*(1+'Generation Inputs'!$D$68) -> 0.0897916914 | H157: =G157*(1+'Generation Inputs'!$D$68) -> 0.09228790042 | I157: =H157*(1+'Generation Inputs'!$D$68) -> 0.09485350405 | J157: =I157*(1+'Generation Inputs'!$D$68) -> 0.09749043147 | K157: =J157*(1+'Generation Inputs'!$D$68) -> 0.1002006655 | L157: =K157*(1+'Generation Inputs'!$D$68) -> 0.102986244 | M157: =L157*(1+'Generation Inputs'!$D$68) -> 0.1058492615 | N157: =M157*(1+'Generation Inputs'!$D$68) -> 0.108791871 | O157: =N157*(1+'Generation Inputs'!$D$68) -> 0.111816285 | P157: =O157*(1+'Generation Inputs'!$D$68) -> 0.1149247778 | Q157: =P157*(1+'Generation Inputs'!$D$68) -> 0.1181196866 | R157: =Q157*(1+'Generation Inputs'!$D$68) -> 0.1214034139 | S157: =R157*(1+'Generation Inputs'!$D$68) -> 0.1247784288 | T157: =S157*(1+'Generation Inputs'!$D$68) -> 0.1282472691 | U157: =T157*(1+'Generation Inputs'!$D$68) -> 0.1318125432 | V157: =U157*(1+'Generation Inputs'!$D$68) -> 0.1354769319 | W157: =V157*(1+'Generation Inputs'!$D$68) -> 0.1392431906 | X157: =W157*(1+'Generation Inputs'!$D$68) -> 0.1431141513 | Y157: =X157*(1+'Generation Inputs'!$D$68) -> 0.1470927247 | Z157: =Y157*(1+'Generation Inputs'!$D$68) -> 0.1511819024 | AA157: =Z157*(1+'Generation Inputs'!$D$68) -> 0.1553847593 | AB157: =AA157*(1+'Generation Inputs'!$D$68) -> 0.1597044556 | AC157: =AB157*(1+'Generation Inputs'!$D$68) -> 0.1641442395 | AD157: =AC157*(1+'Generation Inputs'!$D$68) -> 0.1687074493
B158: September | C158: ='Generation Inputs'!$D$48 -> 0.085 | D158: $/kWh | F158: =C158*(1+'Generation Inputs'!$D$68) -> 0.087363 | G158: =F158*(1+'Generation Inputs'!$D$68) -> 0.0897916914 | H158: =G158*(1+'Generation Inputs'!$D$68) -> 0.09228790042 | I158: =H158*(1+'Generation Inputs'!$D$68) -> 0.09485350405 | J158: =I158*(1+'Generation Inputs'!$D$68) -> 0.09749043147 | K158: =J158*(1+'Generation Inputs'!$D$68) -> 0.1002006655 | L158: =K158*(1+'Generation Inputs'!$D$68) -> 0.102986244 | M158: =L158*(1+'Generation Inputs'!$D$68) -> 0.1058492615 | N158: =M158*(1+'Generation Inputs'!$D$68) -> 0.108791871 | O158: =N158*(1+'Generation Inputs'!$D$68) -> 0.111816285 | P158: =O158*(1+'Generation Inputs'!$D$68) -> 0.1149247778 | Q158: =P158*(1+'Generation Inputs'!$D$68) -> 0.1181196866 | R158: =Q158*(1+'Generation Inputs'!$D$68) -> 0.1214034139 | S158: =R158*(1+'Generation Inputs'!$D$68) -> 0.1247784288 | T158: =S158*(1+'Generation Inputs'!$D$68) -> 0.1282472691 | U158: =T158*(1+'Generation Inputs'!$D$68) -> 0.1318125432 | V158: =U158*(1+'Generation Inputs'!$D$68) -> 0.1354769319 | W158: =V158*(1+'Generation Inputs'!$D$68) -> 0.1392431906 | X158: =W158*(1+'Generation Inputs'!$D$68) -> 0.1431141513 | Y158: =X158*(1+'Generation Inputs'!$D$68) -> 0.1470927247 | Z158: =Y158*(1+'Generation Inputs'!$D$68) -> 0.1511819024 | AA158: =Z158*(1+'Generation Inputs'!$D$68) -> 0.1553847593 | AB158: =AA158*(1+'Generation Inputs'!$D$68) -> 0.1597044556 | AC158: =AB158*(1+'Generation Inputs'!$D$68) -> 0.1641442395 | AD158: =AC158*(1+'Generation Inputs'!$D$68) -> 0.1687074493
B159: October | C159: ='Generation Inputs'!$D$48 -> 0.085 | D159: $/kWh | F159: =C159*(1+'Generation Inputs'!$D$68) -> 0.087363 | G159: =F159*(1+'Generation Inputs'!$D$68) -> 0.0897916914 | H159: =G159*(1+'Generation Inputs'!$D$68) -> 0.09228790042 | I159: =H159*(1+'Generation Inputs'!$D$68) -> 0.09485350405 | J159: =I159*(1+'Generation Inputs'!$D$68) -> 0.09749043147 | K159: =J159*(1+'Generation Inputs'!$D$68) -> 0.1002006655 | L159: =K159*(1+'Generation Inputs'!$D$68) -> 0.102986244 | M159: =L159*(1+'Generation Inputs'!$D$68) -> 0.1058492615 | N159: =M159*(1+'Generation Inputs'!$D$68) -> 0.108791871 | O159: =N159*(1+'Generation Inputs'!$D$68) -> 0.111816285 | P159: =O159*(1+'Generation Inputs'!$D$68) -> 0.1149247778 | Q159: =P159*(1+'Generation Inputs'!$D$68) -> 0.1181196866 | R159: =Q159*(1+'Generation Inputs'!$D$68) -> 0.1214034139 | S159: =R159*(1+'Generation Inputs'!$D$68) -> 0.1247784288 | T159: =S159*(1+'Generation Inputs'!$D$68) -> 0.1282472691 | U159: =T159*(1+'Generation Inputs'!$D$68) -> 0.1318125432 | V159: =U159*(1+'Generation Inputs'!$D$68) -> 0.1354769319 | W159: =V159*(1+'Generation Inputs'!$D$68) -> 0.1392431906 | X159: =W159*(1+'Generation Inputs'!$D$68) -> 0.1431141513 | Y159: =X159*(1+'Generation Inputs'!$D$68) -> 0.1470927247 | Z159: =Y159*(1+'Generation Inputs'!$D$68) -> 0.1511819024 | AA159: =Z159*(1+'Generation Inputs'!$D$68) -> 0.1553847593 | AB159: =AA159*(1+'Generation Inputs'!$D$68) -> 0.1597044556 | AC159: =AB159*(1+'Generation Inputs'!$D$68) -> 0.1641442395 | AD159: =AC159*(1+'Generation Inputs'!$D$68) -> 0.1687074493
B160: November | C160: ='Generation Inputs'!$D$48 -> 0.085 | D160: $/kWh | F160: =C160*(1+'Generation Inputs'!$D$68) -> 0.087363 | G160: =F160*(1+'Generation Inputs'!$D$68) -> 0.0897916914 | H160: =G160*(1+'Generation Inputs'!$D$68) -> 0.09228790042 | I160: =H160*(1+'Generation Inputs'!$D$68) -> 0.09485350405 | J160: =I160*(1+'Generation Inputs'!$D$68) -> 0.09749043147 | K160: =J160*(1+'Generation Inputs'!$D$68) -> 0.1002006655 | L160: =K160*(1+'Generation Inputs'!$D$68) -> 0.102986244 | M160: =L160*(1+'Generation Inputs'!$D$68) -> 0.1058492615 | N160: =M160*(1+'Generation Inputs'!$D$68) -> 0.108791871 | O160: =N160*(1+'Generation Inputs'!$D$68) -> 0.111816285 | P160: =O160*(1+'Generation Inputs'!$D$68) -> 0.1149247778 | Q160: =P160*(1+'Generation Inputs'!$D$68) -> 0.1181196866 | R160: =Q160*(1+'Generation Inputs'!$D$68) -> 0.1214034139 | S160: =R160*(1+'Generation Inputs'!$D$68) -> 0.1247784288 | T160: =S160*(1+'Generation Inputs'!$D$68) -> 0.1282472691 | U160: =T160*(1+'Generation Inputs'!$D$68) -> 0.1318125432 | V160: =U160*(1+'Generation Inputs'!$D$68) -> 0.1354769319 | W160: =V160*(1+'Generation Inputs'!$D$68) -> 0.1392431906 | X160: =W160*(1+'Generation Inputs'!$D$68) -> 0.1431141513 | Y160: =X160*(1+'Generation Inputs'!$D$68) -> 0.1470927247 | Z160: =Y160*(1+'Generation Inputs'!$D$68) -> 0.1511819024 | AA160: =Z160*(1+'Generation Inputs'!$D$68) -> 0.1553847593 | AB160: =AA160*(1+'Generation Inputs'!$D$68) -> 0.1597044556 | AC160: =AB160*(1+'Generation Inputs'!$D$68) -> 0.1641442395 | AD160: =AC160*(1+'Generation Inputs'!$D$68) -> 0.1687074493
B161: December | C161: ='Generation Inputs'!$D$48 -> 0.085 | D161: $/kWh | F161: =C161*(1+'Generation Inputs'!$D$68) -> 0.087363 | G161: =F161*(1+'Generation Inputs'!$D$68) -> 0.0897916914 | H161: =G161*(1+'Generation Inputs'!$D$68) -> 0.09228790042 | I161: =H161*(1+'Generation Inputs'!$D$68) -> 0.09485350405 | J161: =I161*(1+'Generation Inputs'!$D$68) -> 0.09749043147 | K161: =J161*(1+'Generation Inputs'!$D$68) -> 0.1002006655 | L161: =K161*(1+'Generation Inputs'!$D$68) -> 0.102986244 | M161: =L161*(1+'Generation Inputs'!$D$68) -> 0.1058492615 | N161: =M161*(1+'Generation Inputs'!$D$68) -> 0.108791871 | O161: =N161*(1+'Generation Inputs'!$D$68) -> 0.111816285 | P161: =O161*(1+'Generation Inputs'!$D$68) -> 0.1149247778 | Q161: =P161*(1+'Generation Inputs'!$D$68) -> 0.1181196866 | R161: =Q161*(1+'Generation Inputs'!$D$68) -> 0.1214034139 | S161: =R161*(1+'Generation Inputs'!$D$68) -> 0.1247784288 | T161: =S161*(1+'Generation Inputs'!$D$68) -> 0.1282472691 | U161: =T161*(1+'Generation Inputs'!$D$68) -> 0.1318125432 | V161: =U161*(1+'Generation Inputs'!$D$68) -> 0.1354769319 | W161: =V161*(1+'Generation Inputs'!$D$68) -> 0.1392431906 | X161: =W161*(1+'Generation Inputs'!$D$68) -> 0.1431141513 | Y161: =X161*(1+'Generation Inputs'!$D$68) -> 0.1470927247 | Z161: =Y161*(1+'Generation Inputs'!$D$68) -> 0.1511819024 | AA161: =Z161*(1+'Generation Inputs'!$D$68) -> 0.1553847593 | AB161: =AA161*(1+'Generation Inputs'!$D$68) -> 0.1597044556 | AC161: =AB161*(1+'Generation Inputs'!$D$68) -> 0.1641442395 | AD161: =AC161*(1+'Generation Inputs'!$D$68) -> 0.1687074493
B163: Load Offset Revenue Estimate
B164: Month
B165: January | D165: $ per mo. | F165: =F134*F150 -> 776.5229136 | G165: =G134*G150 -> 798.1102506 | H165: 820.2977156 | I165: 843.1019921 | J165: 866.5402275 | K165: 890.6300458 | L165: 915.3895611 | M165: 940.8373909 | N165: 966.9926703 | O165: 993.8750666 | P165: 1021.504793 | Q165: 1049.902627 | R165: 1079.08992 | S165: 1109.088619 | T165: 1139.921283 | U165: 1171.611095 | V165: 1204.181883 | W165: 1237.65814 | X165: 1272.065036 | Y165: 1307.428444 | Z165: 1343.774955 | AA165: 1381.131898 | AB165: 1419.527365 | AC165: 1458.990226 | AD165: 1499.550154
B166: February | D166: $ per mo. | F166: =F135*F151 -> 1001.708089 | G166: 1029.555574 | H166: 1058.177219 | I166: 1087.594546 | J166: 1117.829674 | K166: 1148.905339 | L166: 1180.844908 | M166: 1213.672396 | N166: 1247.412489 | O166: 1282.090556 | P166: 1317.732673 | Q166: 1354.365642 | R166: 1392.017006 | S166: 1430.715079 | T166: 1470.488958 | U166: 1511.368551 | V166: 1553.384597 | W166: 1596.568689 | X166: 1640.953299 | Y166: 1686.5718 | Z166: 1733.458496 | AA166: 1781.648643 | AB166: 1831.178475 | AC166: 1882.085236 | AD166: 1934.407206
B167: March | D167: $ per mo. | F167: 1513.967021 | G167: 1556.055304 | H167: 1599.313642 | I167: 1643.774561 | J167: 1689.471494 | K167: 1736.438802 | L167: 1784.7118 | M167: 1834.326788 | N167: 1885.321073 | O167: 1937.732999 | P167: 1991.601976 | Q167: 2046.968511 | R167: 2103.874236 | S167: 2162.361939 | T167: 2222.475601 | U167: 2284.260423 | V167: 2347.762863 | W167: 2413.03067 | X167: 2480.112923 | Y167: 2549.060062 | Z167: 2619.923932 | AA167: 2692.757817 | AB167: 2767.616485 | AC167: 2844.556223 | AD167: 2923.634886
B168: April | D168: $ per mo. | F168: 1785.254045 | G168: 1834.884107 | H168: 1885.893886 | I168: 1938.321736 | J168: 1992.20708 | K168: 2047.590437 | L168: 2104.513451 | M168: 2163.018925 | N168: 2223.150851 | O168: 2284.954445 | P168: 2348.476178 | Q168: 2413.763816 | R168: 2480.86645 | S168: 2549.834537 | T168: 2620.719937 | U168: 2693.575952 | V168: 2768.457363 | W168: 2845.420478 | X168: 2924.523167 | Y168: 3005.824911 | Z168: 3089.386844 | AA168: 3175.271798 | AB168: 3263.544354 | AC168: 3354.270887 | AD168: 3447.519618
B169: May | D169: $ per mo. | F169: 1759.306242 | G169: 1808.214955 | H169: 1858.483331 | I169: 1910.149167 | J169: 1963.251314 | K169: 2017.829701 | L169: 2073.925366 | M169: 2131.580492 | N169: 2190.838429 | O169: 2251.743738 | P169: 2314.342214 | Q169: 2378.680927 | R169: 2444.808257 | S169: 2512.773926 | T169: 2582.629042 | U169: 2654.426129 | V169: 2728.219175 | W169: 2804.063668 | X169: 2882.016638 | Y169: 2962.136701 | Z169: 3044.484101 | AA169: 3129.120759 | AB169: 3216.110316 | AC169: 3305.518183 | AD169: 3397.411589
B170: June | D170: $ per mo. | F170: 1806.391207 | G170: 1856.608883 | H170: 1908.22261 | I170: 1961.271198 | J170: 2015.794538 | K170: 2071.833626 | L170: 2129.430601 | M170: 2188.628771 | N170: 2249.472651 | O170: 2312.007991 | P170: 2376.281813 | Q170: 2442.342448 | R170: 2510.239568 | S170: 2580.024228 | T170: 2651.748901 | U170: 2725.467521 | V170: 2801.235518 | W170: 2879.109865 | X170: 2959.149119 | Y170: 3041.413465 | Z170: 3125.964759 | AA170: 3212.866579 | AB170: 3302.18427 | AC170: 3393.984993 | AD170: 3488.337776
B171: July | D171: $ per mo. | F171: 1762.342023 | G171: 1811.335131 | H171: 1861.690248 | I171: 1913.445237 | J171: 1966.639014 | K171: 2021.311579 | L171: 2077.504041 | M171: 2135.258653 | N171: 2194.618844 | O171: 2255.629248 | P171: 2318.335741 | Q171: 2382.785474 | R171: 2449.026911 | S171: 2517.109859 | T171: 2587.085513 | U171: 2659.00649 | V171: 2732.92687 | W171: 2808.902237 | X171: 2886.98972 | Y171: 2967.248034 | Z171: 3049.737529 | AA171: 3134.520232 | AB171: 3221.659895 | AC171: 3311.22204 | AD171: 3403.274013
B172: August | D172: $ per mo. | F172: 1604.826325 | G172: 1649.440497 | H172: 1695.294943 | I172: 1742.424143 | J172: 1790.863534 | K172: 1840.64954 | L172: 1891.819597 | M172: 1944.412182 | N172: 1998.466841 | O172: 2054.024219 | P172: 2111.126092 | Q172: 2169.815397 | R172: 2230.136265 | S172: 2292.134054 | T172: 2355.85538 | U172: 2421.34816 | V172: 2488.661639 | W172: 2557.846432 | X172: 2628.954563 | Y172: 2702.0395 | Z172: 2777.156198 | AA172: 2854.36114 | AB172: 2933.71238 | AC172: 3015.269584 | AD172: 3099.094079
B173: September | D173: $ per mo. | F173: 1237.431686 | G173: 1271.832287 | H173: 1307.189225 | I173: 1343.529085 | J173: 1380.879194 | K173: 1419.267636 | L173: 1458.723276 | M173: 1499.275783 | N173: 1540.95565 | O173: 1583.794217 | P173: 1627.823696 | Q173: 1673.077195 | R173: 1719.588741 | S173: 1767.393308 | T173: 1816.526842 | U173: 1867.026288 | V173: 1918.929619 | W173: 1972.275862 | X173: 2027.105131 | Y173: 2083.458654 | Z173: 2141.378804 | AA173: 2200.909135 | AB173: 2262.094409 | AC173: 2324.980634 | AD173: 2389.615095
B174: October | D174: $ per mo. | F174: 927.4163916 | G174: 953.1985673 | H174: 979.6974875 | I174: 1006.933078 | J174: 1034.925817 | K174: 1063.696755 | L174: 1093.267525 | M174: 1123.660362 | N174: 1154.89812 | O174: 1187.004288 | P174: 1220.003007 | Q174: 1253.91909 | R174: 1288.778041 | S174: 1324.606071 | T174: 1361.430119 | U174: 1399.277877 | V174: 1438.177802 | W174: 1478.159145 | X174: 1519.251969 | Y174: 1561.487174 | Z174: 1604.896517 | AA174: 1649.51264 | AB174: 1695.369092 | AC174: 1742.500352 | AD174: 1790.941862
B175: November | D175: $ per mo. | F175: 593.3401748 | G175: 609.8350317 | H175: 626.7884455 | I175: 644.2131643 | J175: 662.1222903 | K175: 680.52929 | L175: 699.4480042 | M175: 718.8926587 | N175: 738.8778746 | O175: 759.4186796 | P175: 780.5305189 | Q175: 802.2292673 | R175: 824.5312409 | S175: 847.4532094 | T175: 871.0124086 | U175: 895.2265536 | V175: 920.1138518 | W175: 945.6930169 | X175: 971.9832827 | Y175: 999.004418 | Z175: 1026.776741 | AA175: 1055.321134 | AB175: 1084.659062 | AC175: 1114.812584 | AD175: 1145.804373
B176: December | D176: $ per mo. | F176: 603.0527078 | G176: 619.8175731 | H176: 637.0485016 | I176: 654.7584499 | J176: 672.9607349 | K176: =K145*K161 -> 691.6690433 | L176: 710.8974427 | M176: 730.6603916 | N176: 750.9727505 | O176: 771.8497929 | P176: 793.3072172 | Q176: 815.3611578 | R176: 838.028198 | S176: 861.3253819 | T176: 885.2702275 | U176: 909.8807399 | V176: 935.1754244 | W176: 961.1733012 | X176: 987.893919 | Y176: 1015.35737 | Z176: 1043.584305 | AA176: 1072.595949 | AB176: 1102.414116 | AC176: 1133.061228 | AD176: 1164.56033
B177: Annual | D177: $ per yr. | F177: =SUM(F165:F176) -> 15371.55883 | G177: 15798.88816 | H177: 16238.09725 | I177: 16689.51636 | J177: 17153.48491 | K177: 17630.35179 | L177: 18120.47557 | M177: 18624.22479 | N177: 19141.97824 | O177: 19674.12524 | P177: 20221.06592 | Q177: 20783.21155 | R177: 21360.98483 | S177: 21954.82021 | T177: 22565.16421 | U177: 23192.47578 | V177: 23837.22661 | W177: 24499.9015 | X177: 25180.99877 | Y177: 25881.03053 | Z177: 26600.52318 | AA177: 27340.01773 | AB177: 28100.07022 | AC177: 28881.25217 | AD177: 29684.15098
B179: Direct To Grid Net Metering Value
B181: Direct To Grid Energy Generation
B182: Month | C182: Generation (kWh)
B183: January | C183: =C115*'Generation Inputs'!$D$52 -> 2948.081055 | D183: kWh's per mo. | F183: =($C183)*(1-((F$21-1)*('Generation Inputs'!$D$71))) -> 2962.82146 | G183: =($C183)*(1-((G$21-1)*('Generation Inputs'!$D$71))) -> 2962.82146 | H183: =($C183)*(1-((H$21-1)*('Generation Inputs'!$D$71))) -> 2962.82146 | I183: =($C183)*(1-((I$21-1)*('Generation Inputs'!$D$71))) -> 2962.82146 | J183: =($C183)*(1-((J$21-1)*('Generation Inputs'!$D$71))) -> 2962.82146 | K183: =($C183)*(1-((K$21-1)*('Generation Inputs'!$D$71))) -> 2962.82146 | L183: =($C183)*(1-((L$21-1)*('Generation Inputs'!$D$71))) -> 2962.82146 | M183: =($C183)*(1-((M$21-1)*('Generation Inputs'!$D$71))) -> 2962.82146 | N183: =($C183)*(1-((N$21-1)*('Generation Inputs'!$D$71))) -> 2962.82146 | O183: =($C183)*(1-((O$21-1)*('Generation Inputs'!$D$71))) -> 2962.82146 | P183: =($C183)*(1-((P$21-1)*('Generation Inputs'!$D$71))) -> 2962.82146 | Q183: =($C183)*(1-((Q$21-1)*('Generation Inputs'!$D$71))) -> 2962.82146 | R183: =($C183)*(1-((R$21-1)*('Generation Inputs'!$D$71))) -> 2962.82146 | S183: =($C183)*(1-((S$21-1)*('Generation Inputs'!$D$71))) -> 2962.82146 | T183: =($C183)*(1-((T$21-1)*('Generation Inputs'!$D$71))) -> 2962.82146 | U183: =($C183)*(1-((U$21-1)*('Generation Inputs'!$D$71))) -> 2962.82146 | V183: =($C183)*(1-((V$21-1)*('Generation Inputs'!$D$71))) -> 2962.82146 | W183: =($C183)*(1-((W$21-1)*('Generation Inputs'!$D$71))) -> 2962.82146 | X183: =($C183)*(1-((X$21-1)*('Generation Inputs'!$D$71))) -> 2962.82146 | Y183: =($C183)*(1-((Y$21-1)*('Generation Inputs'!$D$71))) -> 2962.82146 | Z183: =($C183)*(1-((Z$21-1)*('Generation Inputs'!$D$71))) -> 2962.82146 | AA183: =($C183)*(1-((AA$21-1)*('Generation Inputs'!$D$71))) -> 2962.82146 | AB183: =($C183)*(1-((AB$21-1)*('Generation Inputs'!$D$71))) -> 2962.82146 | AC183: =($C183)*(1-((AC$21-1)*('Generation Inputs'!$D$71))) -> 2962.82146 | AD183: =($C183)*(1-((AD$21-1)*('Generation Inputs'!$D$71))) -> 2962.82146
B184: February | C184: =C116*'Generation Inputs'!$D$52 -> 3803 | D184: kWh's per mo. | F184: =($C184)*(1-((F$21-1)*('Generation Inputs'!$D$71))) -> 3822.015 | G184: =($C184)*(1-((G$21-1)*('Generation Inputs'!$D$71))) -> 3822.015 | H184: =($C184)*(1-((H$21-1)*('Generation Inputs'!$D$71))) -> 3822.015 | I184: =($C184)*(1-((I$21-1)*('Generation Inputs'!$D$71))) -> 3822.015 | J184: =($C184)*(1-((J$21-1)*('Generation Inputs'!$D$71))) -> 3822.015 | K184: =($C184)*(1-((K$21-1)*('Generation Inputs'!$D$71))) -> 3822.015 | L184: =($C184)*(1-((L$21-1)*('Generation Inputs'!$D$71))) -> 3822.015 | M184: =($C184)*(1-((M$21-1)*('Generation Inputs'!$D$71))) -> 3822.015 | N184: =($C184)*(1-((N$21-1)*('Generation Inputs'!$D$71))) -> 3822.015 | O184: =($C184)*(1-((O$21-1)*('Generation Inputs'!$D$71))) -> 3822.015 | P184: =($C184)*(1-((P$21-1)*('Generation Inputs'!$D$71))) -> 3822.015 | Q184: =($C184)*(1-((Q$21-1)*('Generation Inputs'!$D$71))) -> 3822.015 | R184: =($C184)*(1-((R$21-1)*('Generation Inputs'!$D$71))) -> 3822.015 | S184: =($C184)*(1-((S$21-1)*('Generation Inputs'!$D$71))) -> 3822.015 | T184: =($C184)*(1-((T$21-1)*('Generation Inputs'!$D$71))) -> 3822.015 | U184: =($C184)*(1-((U$21-1)*('Generation Inputs'!$D$71))) -> 3822.015 | V184: =($C184)*(1-((V$21-1)*('Generation Inputs'!$D$71))) -> 3822.015 | W184: =($C184)*(1-((W$21-1)*('Generation Inputs'!$D$71))) -> 3822.015 | X184: =($C184)*(1-((X$21-1)*('Generation Inputs'!$D$71))) -> 3822.015 | Y184: =($C184)*(1-((Y$21-1)*('Generation Inputs'!$D$71))) -> 3822.015 | Z184: =($C184)*(1-((Z$21-1)*('Generation Inputs'!$D$71))) -> 3822.015 | AA184: =($C184)*(1-((AA$21-1)*('Generation Inputs'!$D$71))) -> 3822.015 | AB184: =($C184)*(1-((AB$21-1)*('Generation Inputs'!$D$71))) -> 3822.015 | AC184: =($C184)*(1-((AC$21-1)*('Generation Inputs'!$D$71))) -> 3822.015 | AD184: =($C184)*(1-((AD$21-1)*('Generation Inputs'!$D$71))) -> 3822.015
B185: March | C185: =C117*'Generation Inputs'!$D$52 -> 5747.798828 | D185: kWh's per mo. | F185: =($C185)*(1-((F$21-1)*('Generation Inputs'!$D$71))) -> 5776.537822 | G185: =($C185)*(1-((G$21-1)*('Generation Inputs'!$D$71))) -> 5776.537822 | H185: =($C185)*(1-((H$21-1)*('Generation Inputs'!$D$71))) -> 5776.537822 | I185: =($C185)*(1-((I$21-1)*('Generation Inputs'!$D$71))) -> 5776.537822 | J185: =($C185)*(1-((J$21-1)*('Generation Inputs'!$D$71))) -> 5776.537822 | K185: =($C185)*(1-((K$21-1)*('Generation Inputs'!$D$71))) -> 5776.537822 | L185: =($C185)*(1-((L$21-1)*('Generation Inputs'!$D$71))) -> 5776.537822 | M185: =($C185)*(1-((M$21-1)*('Generation Inputs'!$D$71))) -> 5776.537822 | N185: =($C185)*(1-((N$21-1)*('Generation Inputs'!$D$71))) -> 5776.537822 | O185: =($C185)*(1-((O$21-1)*('Generation Inputs'!$D$71))) -> 5776.537822 | P185: =($C185)*(1-((P$21-1)*('Generation Inputs'!$D$71))) -> 5776.537822 | Q185: =($C185)*(1-((Q$21-1)*('Generation Inputs'!$D$71))) -> 5776.537822 | R185: =($C185)*(1-((R$21-1)*('Generation Inputs'!$D$71))) -> 5776.537822 | S185: =($C185)*(1-((S$21-1)*('Generation Inputs'!$D$71))) -> 5776.537822 | T185: =($C185)*(1-((T$21-1)*('Generation Inputs'!$D$71))) -> 5776.537822 | U185: =($C185)*(1-((U$21-1)*('Generation Inputs'!$D$71))) -> 5776.537822 | V185: =($C185)*(1-((V$21-1)*('Generation Inputs'!$D$71))) -> 5776.537822 | W185: =($C185)*(1-((W$21-1)*('Generation Inputs'!$D$71))) -> 5776.537822 | X185: =($C185)*(1-((X$21-1)*('Generation Inputs'!$D$71))) -> 5776.537822 | Y185: =($C185)*(1-((Y$21-1)*('Generation Inputs'!$D$71))) -> 5776.537822 | Z185: =($C185)*(1-((Z$21-1)*('Generation Inputs'!$D$71))) -> 5776.537822 | AA185: =($C185)*(1-((AA$21-1)*('Generation Inputs'!$D$71))) -> 5776.537822 | AB185: =($C185)*(1-((AB$21-1)*('Generation Inputs'!$D$71))) -> 5776.537822 | AC185: =($C185)*(1-((AC$21-1)*('Generation Inputs'!$D$71))) -> 5776.537822 | AD185: =($C185)*(1-((AD$21-1)*('Generation Inputs'!$D$71))) -> 5776.537822
B186: April | C186: =C118*'Generation Inputs'!$D$52 -> 6777.744141 | D186: kWh's per mo. | F186: =($C186)*(1-((F$21-1)*('Generation Inputs'!$D$71))) -> 6811.632861 | G186: =($C186)*(1-((G$21-1)*('Generation Inputs'!$D$71))) -> 6811.632861 | H186: =($C186)*(1-((H$21-1)*('Generation Inputs'!$D$71))) -> 6811.632861 | I186: =($C186)*(1-((I$21-1)*('Generation Inputs'!$D$71))) -> 6811.632861 | J186: =($C186)*(1-((J$21-1)*('Generation Inputs'!$D$71))) -> 6811.632861 | K186: =($C186)*(1-((K$21-1)*('Generation Inputs'!$D$71))) -> 6811.632861 | L186: =($C186)*(1-((L$21-1)*('Generation Inputs'!$D$71))) -> 6811.632861 | M186: =($C186)*(1-((M$21-1)*('Generation Inputs'!$D$71))) -> 6811.632861 | N186: =($C186)*(1-((N$21-1)*('Generation Inputs'!$D$71))) -> 6811.632861 | O186: =($C186)*(1-((O$21-1)*('Generation Inputs'!$D$71))) -> 6811.632861 | P186: =($C186)*(1-((P$21-1)*('Generation Inputs'!$D$71))) -> 6811.632861 | Q186: =($C186)*(1-((Q$21-1)*('Generation Inputs'!$D$71))) -> 6811.632861 | R186: =($C186)*(1-((R$21-1)*('Generation Inputs'!$D$71))) -> 6811.632861 | S186: =($C186)*(1-((S$21-1)*('Generation Inputs'!$D$71))) -> 6811.632861 | T186: =($C186)*(1-((T$21-1)*('Generation Inputs'!$D$71))) -> 6811.632861 | U186: =($C186)*(1-((U$21-1)*('Generation Inputs'!$D$71))) -> 6811.632861 | V186: =($C186)*(1-((V$21-1)*('Generation Inputs'!$D$71))) -> 6811.632861 | W186: =($C186)*(1-((W$21-1)*('Generation Inputs'!$D$71))) -> 6811.632861 | X186: =($C186)*(1-((X$21-1)*('Generation Inputs'!$D$71))) -> 6811.632861 | Y186: =($C186)*(1-((Y$21-1)*('Generation Inputs'!$D$71))) -> 6811.632861 | Z186: =($C186)*(1-((Z$21-1)*('Generation Inputs'!$D$71))) -> 6811.632861 | AA186: =($C186)*(1-((AA$21-1)*('Generation Inputs'!$D$71))) -> 6811.632861 | AB186: =($C186)*(1-((AB$21-1)*('Generation Inputs'!$D$71))) -> 6811.632861 | AC186: =($C186)*(1-((AC$21-1)*('Generation Inputs'!$D$71))) -> 6811.632861 | AD186: =($C186)*(1-((AD$21-1)*('Generation Inputs'!$D$71))) -> 6811.632861
B187: May | C187: =C119*'Generation Inputs'!$D$52 -> 6679.23291 | D187: kWh's per mo. | F187: =($C187)*(1-((F$21-1)*('Generation Inputs'!$D$71))) -> 6712.629075 | G187: =($C187)*(1-((G$21-1)*('Generation Inputs'!$D$71))) -> 6712.629075 | H187: =($C187)*(1-((H$21-1)*('Generation Inputs'!$D$71))) -> 6712.629075 | I187: =($C187)*(1-((I$21-1)*('Generation Inputs'!$D$71))) -> 6712.629075 | J187: =($C187)*(1-((J$21-1)*('Generation Inputs'!$D$71))) -> 6712.629075 | K187: =($C187)*(1-((K$21-1)*('Generation Inputs'!$D$71))) -> 6712.629075 | L187: =($C187)*(1-((L$21-1)*('Generation Inputs'!$D$71))) -> 6712.629075 | M187: =($C187)*(1-((M$21-1)*('Generation Inputs'!$D$71))) -> 6712.629075 | N187: =($C187)*(1-((N$21-1)*('Generation Inputs'!$D$71))) -> 6712.629075 | O187: =($C187)*(1-((O$21-1)*('Generation Inputs'!$D$71))) -> 6712.629075 | P187: =($C187)*(1-((P$21-1)*('Generation Inputs'!$D$71))) -> 6712.629075 | Q187: =($C187)*(1-((Q$21-1)*('Generation Inputs'!$D$71))) -> 6712.629075 | R187: =($C187)*(1-((R$21-1)*('Generation Inputs'!$D$71))) -> 6712.629075 | S187: =($C187)*(1-((S$21-1)*('Generation Inputs'!$D$71))) -> 6712.629075 | T187: =($C187)*(1-((T$21-1)*('Generation Inputs'!$D$71))) -> 6712.629075 | U187: =($C187)*(1-((U$21-1)*('Generation Inputs'!$D$71))) -> 6712.629075 | V187: =($C187)*(1-((V$21-1)*('Generation Inputs'!$D$71))) -> 6712.629075 | W187: =($C187)*(1-((W$21-1)*('Generation Inputs'!$D$71))) -> 6712.629075 | X187: =($C187)*(1-((X$21-1)*('Generation Inputs'!$D$71))) -> 6712.629075 | Y187: =($C187)*(1-((Y$21-1)*('Generation Inputs'!$D$71))) -> 6712.629075 | Z187: =($C187)*(1-((Z$21-1)*('Generation Inputs'!$D$71))) -> 6712.629075 | AA187: =($C187)*(1-((AA$21-1)*('Generation Inputs'!$D$71))) -> 6712.629075 | AB187: =($C187)*(1-((AB$21-1)*('Generation Inputs'!$D$71))) -> 6712.629075 | AC187: =($C187)*(1-((AC$21-1)*('Generation Inputs'!$D$71))) -> 6712.629075 | AD187: =($C187)*(1-((AD$21-1)*('Generation Inputs'!$D$71))) -> 6712.629075
B188: June | C188: =C120*'Generation Inputs'!$D$52 -> 6857.991699 | D188: kWh's per mo. | F188: =($C188)*(1-((F$21-1)*('Generation Inputs'!$D$71))) -> 6892.281658 | G188: =($C188)*(1-((G$21-1)*('Generation Inputs'!$D$71))) -> 6892.281658 | H188: =($C188)*(1-((H$21-1)*('Generation Inputs'!$D$71))) -> 6892.281658 | I188: =($C188)*(1-((I$21-1)*('Generation Inputs'!$D$71))) -> 6892.281658 | J188: =($C188)*(1-((J$21-1)*('Generation Inputs'!$D$71))) -> 6892.281658 | K188: =($C188)*(1-((K$21-1)*('Generation Inputs'!$D$71))) -> 6892.281658 | L188: =($C188)*(1-((L$21-1)*('Generation Inputs'!$D$71))) -> 6892.281658 | M188: =($C188)*(1-((M$21-1)*('Generation Inputs'!$D$71))) -> 6892.281658 | N188: =($C188)*(1-((N$21-1)*('Generation Inputs'!$D$71))) -> 6892.281658 | O188: =($C188)*(1-((O$21-1)*('Generation Inputs'!$D$71))) -> 6892.281658 | P188: =($C188)*(1-((P$21-1)*('Generation Inputs'!$D$71))) -> 6892.281658 | Q188: =($C188)*(1-((Q$21-1)*('Generation Inputs'!$D$71))) -> 6892.281658 | R188: =($C188)*(1-((R$21-1)*('Generation Inputs'!$D$71))) -> 6892.281658 | S188: =($C188)*(1-((S$21-1)*('Generation Inputs'!$D$71))) -> 6892.281658 | T188: =($C188)*(1-((T$21-1)*('Generation Inputs'!$D$71))) -> 6892.281658 | U188: =($C188)*(1-((U$21-1)*('Generation Inputs'!$D$71))) -> 6892.281658 | V188: =($C188)*(1-((V$21-1)*('Generation Inputs'!$D$71))) -> 6892.281658 | W188: =($C188)*(1-((W$21-1)*('Generation Inputs'!$D$71))) -> 6892.281658 | X188: =($C188)*(1-((X$21-1)*('Generation Inputs'!$D$71))) -> 6892.281658 | Y188: =($C188)*(1-((Y$21-1)*('Generation Inputs'!$D$71))) -> 6892.281658 | Z188: =($C188)*(1-((Z$21-1)*('Generation Inputs'!$D$71))) -> 6892.281658 | AA188: =($C188)*(1-((AA$21-1)*('Generation Inputs'!$D$71))) -> 6892.281658 | AB188: =($C188)*(1-((AB$21-1)*('Generation Inputs'!$D$71))) -> 6892.281658 | AC188: =($C188)*(1-((AC$21-1)*('Generation Inputs'!$D$71))) -> 6892.281658 | AD188: =($C188)*(1-((AD$21-1)*('Generation Inputs'!$D$71))) -> 6892.281658
B189: July | C189: =C121*'Generation Inputs'!$D$52 -> 6690.758301 | D189: kWh's per mo. | F189: =($C189)*(1-((F$21-1)*('Generation Inputs'!$D$71))) -> 6724.212092 | G189: =($C189)*(1-((G$21-1)*('Generation Inputs'!$D$71))) -> 6724.212092 | H189: =($C189)*(1-((H$21-1)*('Generation Inputs'!$D$71))) -> 6724.212092 | I189: =($C189)*(1-((I$21-1)*('Generation Inputs'!$D$71))) -> 6724.212092 | J189: =($C189)*(1-((J$21-1)*('Generation Inputs'!$D$71))) -> 6724.212092 | K189: =($C189)*(1-((K$21-1)*('Generation Inputs'!$D$71))) -> 6724.212092 | L189: =($C189)*(1-((L$21-1)*('Generation Inputs'!$D$71))) -> 6724.212092 | M189: =($C189)*(1-((M$21-1)*('Generation Inputs'!$D$71))) -> 6724.212092 | N189: =($C189)*(1-((N$21-1)*('Generation Inputs'!$D$71))) -> 6724.212092 | O189: =($C189)*(1-((O$21-1)*('Generation Inputs'!$D$71))) -> 6724.212092 | P189: =($C189)*(1-((P$21-1)*('Generation Inputs'!$D$71))) -> 6724.212092 | Q189: =($C189)*(1-((Q$21-1)*('Generation Inputs'!$D$71))) -> 6724.212092 | R189: =($C189)*(1-((R$21-1)*('Generation Inputs'!$D$71))) -> 6724.212092 | S189: =($C189)*(1-((S$21-1)*('Generation Inputs'!$D$71))) -> 6724.212092 | T189: =($C189)*(1-((T$21-1)*('Generation Inputs'!$D$71))) -> 6724.212092 | U189: =($C189)*(1-((U$21-1)*('Generation Inputs'!$D$71))) -> 6724.212092 | V189: =($C189)*(1-((V$21-1)*('Generation Inputs'!$D$71))) -> 6724.212092 | W189: =($C189)*(1-((W$21-1)*('Generation Inputs'!$D$71))) -> 6724.212092 | X189: =($C189)*(1-((X$21-1)*('Generation Inputs'!$D$71))) -> 6724.212092 | Y189: =($C189)*(1-((Y$21-1)*('Generation Inputs'!$D$71))) -> 6724.212092 | Z189: =($C189)*(1-((Z$21-1)*('Generation Inputs'!$D$71))) -> 6724.212092 | AA189: =($C189)*(1-((AA$21-1)*('Generation Inputs'!$D$71))) -> 6724.212092 | AB189: =($C189)*(1-((AB$21-1)*('Generation Inputs'!$D$71))) -> 6724.212092 | AC189: =($C189)*(1-((AC$21-1)*('Generation Inputs'!$D$71))) -> 6724.212092 | AD189: =($C189)*(1-((AD$21-1)*('Generation Inputs'!$D$71))) -> 6724.212092
B190: August | C190: =C122*'Generation Inputs'!$D$52 -> 6092.747559 | D190: kWh's per mo. | F190: =($C190)*(1-((F$21-1)*('Generation Inputs'!$D$71))) -> 6123.211296 | G190: =($C190)*(1-((G$21-1)*('Generation Inputs'!$D$71))) -> 6123.211296 | H190: =($C190)*(1-((H$21-1)*('Generation Inputs'!$D$71))) -> 6123.211296 | I190: =($C190)*(1-((I$21-1)*('Generation Inputs'!$D$71))) -> 6123.211296 | J190: =($C190)*(1-((J$21-1)*('Generation Inputs'!$D$71))) -> 6123.211296 | K190: =($C190)*(1-((K$21-1)*('Generation Inputs'!$D$71))) -> 6123.211296 | L190: =($C190)*(1-((L$21-1)*('Generation Inputs'!$D$71))) -> 6123.211296 | M190: =($C190)*(1-((M$21-1)*('Generation Inputs'!$D$71))) -> 6123.211296 | N190: =($C190)*(1-((N$21-1)*('Generation Inputs'!$D$71))) -> 6123.211296 | O190: =($C190)*(1-((O$21-1)*('Generation Inputs'!$D$71))) -> 6123.211296 | P190: =($C190)*(1-((P$21-1)*('Generation Inputs'!$D$71))) -> 6123.211296 | Q190: =($C190)*(1-((Q$21-1)*('Generation Inputs'!$D$71))) -> 6123.211296 | R190: =($C190)*(1-((R$21-1)*('Generation Inputs'!$D$71))) -> 6123.211296 | S190: =($C190)*(1-((S$21-1)*('Generation Inputs'!$D$71))) -> 6123.211296 | T190: =($C190)*(1-((T$21-1)*('Generation Inputs'!$D$71))) -> 6123.211296 | U190: =($C190)*(1-((U$21-1)*('Generation Inputs'!$D$71))) -> 6123.211296 | V190: =($C190)*(1-((V$21-1)*('Generation Inputs'!$D$71))) -> 6123.211296 | W190: =($C190)*(1-((W$21-1)*('Generation Inputs'!$D$71))) -> 6123.211296 | X190: =($C190)*(1-((X$21-1)*('Generation Inputs'!$D$71))) -> 6123.211296 | Y190: =($C190)*(1-((Y$21-1)*('Generation Inputs'!$D$71))) -> 6123.211296 | Z190: =($C190)*(1-((Z$21-1)*('Generation Inputs'!$D$71))) -> 6123.211296 | AA190: =($C190)*(1-((AA$21-1)*('Generation Inputs'!$D$71))) -> 6123.211296 | AB190: =($C190)*(1-((AB$21-1)*('Generation Inputs'!$D$71))) -> 6123.211296 | AC190: =($C190)*(1-((AC$21-1)*('Generation Inputs'!$D$71))) -> 6123.211296 | AD190: =($C190)*(1-((AD$21-1)*('Generation Inputs'!$D$71))) -> 6123.211296
